Workbook

Sheet Spieler
C1: Spieler | D1: Startgeld | E1: Gesetzt | F1: Los | I1: =AP501 -> 0 | N1: =E43 -> 0 | O1: von | P1: =IFERROR(Z14,0) -> 8 | Q1: gesetzte Spieler | R1: =IF(I1>P1,1,0) -> 0 | U1: =IF(I1>P1,1,0) -> 0 | AB1: TN | AC1: Gruppen | AD1: Gesetzt | AE1: Modus R2 | AF1: TN R2 | AG1: =IF(AB37=FALSE,"","X") -> X | AH1: TN | AI1: spielt | AJ1: gesetzt | AK1: Spieler | AL1: Zufallszahl | AM1: GST | AO1: gelost | AQ1: Los | AR1: =IFERROR(LARGE(AH2:AH500,1),0) -> 24
A2: 1 | B2: =IF(E2="",A2,"") -> 1 | C2: =IFERROR(VLOOKUP(A2,AH2:$AK$500,4,FALSE),"") -> Behling Oliver | D2: ok | E2: =IFERROR(VLOOKUP(C2,$AK$2:$AN$500,4,FALSE),"") ->  | F2: =IF(OR(C2="X",C2="Y",C2="Z"),0,IF(C2<>"",1,0)) -> 1 | G2: =IF(C2<>"",1,0) -> 1 | H2: =IF(E2="gesetzt",C2,"") ->  | I2: C1 | J2: =IF(C2>"",C2,"") -> Behling Oliver | K2: =IF(H2>0,1,"") -> 1 | L2: =IF(ROW(H1)>COUNTA(H:H),"",INDEX(H:H,SMALL(IF(H$2:H$100<>"",ROW($2:$100)),ROW(H1)))) ->  | M2: =SMALL($K$2:$K$9,1) -> 1 | N2: =IFERROR(VLOOKUP(M2,$K$2:$L$9,2,FALSE),"") ->  | O2: =IF(AND(AG1="X",S12>18),1,IF(AND(S12>16,S12<24),1,0)) -> 1 | P2: =IF(Q2>"","A1","") ->  | Q2: =N2 ->  | AB2: =V14 -> 8 | AC2: =X14 -> 2x4 | AD2: =VLOOKUP(AB2,$V$14:$Y$46,4,FALSE) -> 2 | AE2: K.O. | AF2: 4 | AG2: =IF(D2="","",IF(OR(D2=1,D2="OK"),"X",IF(D2=2,"y"))) -> X | AH2: =IF(AI2<>"",COUNTA($AI$2:$AI2),"") ->  | AK2: Ahmadi Behnam | AL2: =IFERROR(IF(AI2="","",IF(AJ2="gesetzt",RAND()*5000000,RAND()*1000*20)),"") ->  | AM2: ok | AN2: =IF(AJ2="","",AJ2) ->  | AO2: =Berechnung!CZ2 -> D1 | AP2: =IF(AN2="gesetzt",1,0) -> 0 | AQ2: =AO2 -> D1 | AR2: E1
A3: 2 | B3: =IF(E3="",A3,"") -> 2 | C3: =IFERROR(VLOOKUP(A3,AH3:$AK$500,4,FALSE),"") -> Brachmanski Dave | D3: ok | F3: =IF(OR(C3="X",C3="Y",C3="Z"),0,IF(C3<>"",1,0)) -> 1 | G3: =IF(C3<>"",1,0) -> 1 | H3: =IF(E3="gesetzt",C3,"") ->  | I3: A2 | J3: =IF(C3>"",C3,"") -> Brachmanski Dave | K3: =IF(H3>0,2,"") -> 2 | L3: =IF(ROW(H2)>COUNTA(H:H),"",INDEX(H:H,SMALL(IF(H$2:H$100<>"",ROW($2:$100)),ROW(H2)))) ->  | M3: =SMALL($K$2:$K$9,2) -> 2 | N3: =IFERROR(VLOOKUP(M3,$K$2:$L$9,2,FALSE),"") ->  | O3: =IF(I1=0,0,IF(I1>P1,1,IF(P1>I1,1,0))) -> 0 | P3: =IF(Q3>"","B1","") ->  | Q3: =N3 ->  | AB3: 9 | AC3: =X15 -> 1x4 1x5 | AE3: K.O. | AG3: X | AH3: =IF(AI3<>"",COUNTA($AI$2:$AI3),"") ->  | AK3: Ahmed Roy Rameez | AM3: ok | AN3: =IF(AJ3="","",AJ3) ->  | AO3: =Berechnung!CZ3 -> G2 | AP3: =IF(AN3="gesetzt",1,0) -> 0 | AQ3: G2 | AR3: A1
A4: 3 | B4: =IF(E4="",A4,"") -> 3 | C4: =IFERROR(VLOOKUP(A4,AH4:$AK$500,4,FALSE),"") -> Brömel Frank | D4: ok | F4: 1 | G4: 1 | I4: B2 | J4: Brömel Frank | K4: =IF(H4>0,3,"") -> 3 | L4: =IF(ROW(H3)>COUNTA(H:H),"",INDEX(H:H,SMALL(IF(H$2:H$100<>"",ROW($2:$100)),ROW(H3)))) ->  | M4: =SMALL($K$2:$K$9,3) -> 3 | P4: =IF(Q4>"","C1","") ->  | AB4: 10 | AC4: 2x5 | AE4: K.O. | AG4: X | AH4: =IF(AI4<>"",COUNTA($AI$2:$AI4),"") ->  | AO4: =Berechnung!CZ4 -> A3 | AP4: 0 | AQ4: A3 | AR4: B1
A5: 4 | B5: 4 | C5: =IFERROR(VLOOKUP(A5,AH5:$AK$500,4,FALSE),"") -> Delling Tino | D5: ok | F5: 1 | G5: 1 | I5: E3 | J5: Delling Tino | K5: =IF(H5>0,4,"") -> 4 | L5: =IF(ROW(H4)>COUNTA(H:H),"",INDEX(H:H,SMALL(IF(H$2:H$100<>"",ROW($2:$100)),ROW(H4)))) ->  | M5: =SMALL($K$2:$K$9,4) -> 4 | P5: =IF(Q5>"","D1","") ->  | AB5: 11 | AC5: 1x3 2x4 | AD5: =VLOOKUP(AB5,$V$14:$Y$46,4,FALSE) -> 4 | AE5: K.O. | AF5: 8 | AG5: X | AH5: =IF(AI5<>"",COUNTA($AI$2:$AI5),"") ->  | AK5: Bauer Dennis | AO5: =Berechnung!CZ5 -> F2 | AP5: 0 | AQ5: F2 | AR5: G1
A6: 5 | B6: 5 | C6: =IFERROR(VLOOKUP(A6,AH6:$AK$500,4,FALSE),"") -> Drahn Robert | D6: ok | F6: 1 | G6: 1 | I6: B1 | J6: Drahn Robert | K6: =IF(H6>0,5,"") -> 5 | L6: =IF(ROW(H5)>COUNTA(H:H),"",INDEX(H:H,SMALL(IF(H$2:H$100<>"",ROW($2:$100)),ROW(H5)))) ->  | M6: =SMALL($K$2:$K$9,5) -> 5 | P6: =IF(Q6>"","E1","") ->  | AB6: 12 | AC6: 4x3 | AD6: 4 | AE6: K.O. | AF6: 8 | AG6: X | AH6: =IF(AI6<>"",COUNTA($AI$2:$AI6),"") ->  | AK6: Bauer Matthias | AM6: ok | AO6: =Berechnung!CZ6 -> H2 | AP6: 0 | AQ6: H2 | AR6: C1
A7: 6 | B7: 6 | C7: =IFERROR(VLOOKUP(A7,AH7:$AK$500,4,FALSE),"") -> Elham Faiz | D7: ok | F7: 1 | G7: 1 | I7: H1 | J7: Elham Faiz | K7: =IF(H7>0,6,"") -> 6 | L7: =IF(ROW(H6)>COUNTA(H:H),"",INDEX(H:H,SMALL(IF(H$2:H$100<>"",ROW($2:$100)),ROW(H6)))) ->  | M7: =SMALL($K$2:$K$9,6) -> 6 | P7: =IF(Q7>"","F1","") ->  | AB7: 13 | AC7: 3x3 1x4 | AE7: K.O. | AG7: X | AH7: =IF(AI7<>"",COUNTA($AI$2:$AI7),"") ->  | AK7: Beetz Mario | AO7: =Berechnung!CZ7 -> D3 | AP7: 0 | AQ7: D3 | AR7: F1
A8: 7 | B8: 7 | C8: =IFERROR(VLOOKUP(A8,AH8:$AK$500,4,FALSE),"") -> Fandrei Andreas | D8: ok | F8: 1 | G8: 1 | I8: E2 | J8: Fandrei Andreas | K8: =IF(H8>0,7,"") -> 7 | L8: =IF(ROW(H7)>COUNTA(H:H),"",INDEX(H:H,SMALL(IF(H$2:H$100<>"",ROW($2:$100)),ROW(H7)))) ->  | M8: =SMALL($K$2:$K$9,7) -> 7 | P8: =IF(Q8>"","G1","") ->  | AB8: 14 | AC8: 2x3 2x4 | AE8: K.O. | AG8: X | AH8: =IF(AI8<>"",COUNTA($AI$2:$AI8),"") -> 1 | AI8: ok | AK8: Behling Oliver | AL8: 16271.34069 | AO8: =Berechnung!CZ8 -> A2 | AP8: 0 | AQ8: A2 | AR8: H1
A9: 8 | B9: 8 | C9: =IFERROR(VLOOKUP(A9,AH9:$AK$500,4,FALSE),"") -> Fandrei Joel | D9: ok | F9: 1 | G9: 1 | I9: H2 | J9: Fandrei Joel | K9: =IF(H9>0,8,"") -> 8 | L9: =IF(ROW(H8)>COUNTA(H:H),"",INDEX(H:H,SMALL(IF(H$2:H$100<>"",ROW($2:$100)),ROW(H8)))) ->  | M9: =SMALL($K$2:$K$9,8) -> 8 | P9: =IF(Q9>"","H1","") ->  | AB9: 15 | AC9: 1x3 3x4 | AE9: K.O. | AG9: X | AH9: =IF(AI9<>"",COUNTA($AI$2:$AI9),"") ->  | AK9: Belzl Achim | AM9: ok | AO9: =Berechnung!CZ9 -> E3 | AP9: 0 | AQ9: E3 | AR9: D1
A10: 9 | B10: 9 | C10: =IFERROR(VLOOKUP(A10,AH10:$AK$500,4,FALSE),"") -> Gärtner David | D10: ok | F10: 1 | G10: 1 | I10: A3 | J10: Gärtner David | M10: =SMALL($B$2:$B$41,1) -> 1 | N10: =IFERROR(VLOOKUP(M10,$B$2:$C$41,2,FALSE),"") -> Behling Oliver | Q10: Setzliste ab 20 Teilnehmer | S10: PW Namenseingabe = 147 | AB10: 16 | AC10: 4x4 | AE10: K.O. | AG10: X | AH10: =IF(AI10<>"",COUNTA($AI$2:$AI10),"") ->  | AK10: Bergmann Hans | AM10: ok | AO10: =Berechnung!CZ10 -> A1 | AP10: 0 | AQ10: A1 | AR10: D3
A11: 10 | B11: 10 | C11: =IFERROR(VLOOKUP(A11,AH11:$AK$500,4,FALSE),"") -> Hartung Andreas | D11: ok | F11: 1 | G11: 1 | I11: D1 | J11: Hartung Andreas | M11: =SMALL($B$2:$B$41,2) -> 2 | N11: =IFERROR(VLOOKUP(M11,$B$2:$C$41,2,FALSE),"") -> Brachmanski Dave | Q11: Freigabe-Code Finals: 148 | S11: PW Punktevergabe = 147 | AB11: 17 | AC11: 1x5 3x4 | AD11: 4 | AE11: =IF(AND(S12=17,AG1="X"),"K.O.","Gruppen") -> Gruppen | AF11: =IF(AND(S12<21,AG1="X"),8,12) -> 12 | AG11: X | AH11: =IF(AI11<>"",COUNTA($AI$2:$AI11),"") ->  | AK11: Bocksberger Aaron | AO11: =Berechnung!CZ11 -> C1 | AP11: 0 | AQ11: C1 | AR11: E3
A12: 11 | B12: 11 | C12: =IFERROR(VLOOKUP(A12,AH12:$AK$500,4,FALSE),"") -> Hofmann Frank | D12: ok | F12: 1 | G12: 1 | I12: G3 | J12: Hofmann Frank | M12: =SMALL($B$2:$B$41,3) -> 3 | N12: Brömel Frank | Q12: Startgeld = 17,00 € | S12: =G43 -> 24 | T12: Spieler nehmen teil | AB12: 18 | AC12: 2x5 2x4 | AD12: 4 | AE12: =IF(AND(S12=18,AG1="X"),"K.O.","Gruppen") -> Gruppen | AF12: =IF(AND(S122<21,AG1="X"),8,12) -> 8 | AG12: X | AH12: =IF(AI12<>"",COUNTA($AI$2:$AI12),"") ->  | AK12: Bonitz Jörg | AO12: =Berechnung!CZ12 -> C3 | AP12: 0 | AQ12: C3 | AR12: B2
A13: 12 | B13: 12 | C13: =IFERROR(VLOOKUP(A13,AH13:$AK$500,4,FALSE),"") -> Isermann Rene | D13: ok | F13: 1 | G13: 1 | I13: C3 | J13: Isermann Rene | M13: =SMALL($B$2:$B$41,4) -> 4 | N13: Delling Tino | Q13: Version 02.01.2024 | S13: Modus: | T13: =IFERROR(VLOOKUP(S12,$AB$2:$AC$46,2,FALSE),"") -> 8x3 | AA13: Gruppen | AB13: 19 | AC13: 3x5 1x4 | AE13: =IF(AND(S12=19,AG1="X"),"K.O.","Gruppen") -> Gruppen | AG13: X | AH13: =IF(AI13<>"",COUNTA($AI$2:$AI13),"") -> 2 | AI13: ok | AK13: Brachmanski Dave | AL13: 1549.311273 | AM13: ok | AO13: =Berechnung!CZ13 -> E2 | AP13: 0 | AQ13: E2 | AR13: A2
A14: 13 | B14: 13 | C14: =IFERROR(VLOOKUP(A14,AH14:$AK$500,4,FALSE),"") -> Jeroch Paul | D14: ok | F14: 1 | G14: 1 | I14: F1 | J14: Jeroch Paul | M14: =SMALL($B$2:$B$41,5) -> 5 | N14: Drahn Robert | Q14: © Copyright by T. Delling | S14: Shootoutzeit einstellen: | V14: 8 | X14: 2x4 | Y14: 2 | Z14: =VLOOKUP(S12,$V$14:$Y$46,4,FALSE) -> 8 | AA14: 00:55:00 | AB14: 20 | AC14: 4x5 | AE14: =IF(AND(S12=20,AG1="X"),"K.O.","Gruppen") -> Gruppen | AG14: X | AH14: =IF(AI14<>"",COUNTA($AI$2:$AI14),"") -> 3 | AI14: ok | AK14: Brömel Frank | AL14: 2824.395901 | AM14: ok | AO14: =Berechnung!CZ14 -> B3 | AP14: 0 | AQ14: B3 | AR14: H3
A15: 14 | B15: 14 | C15: =IFERROR(VLOOKUP(A15,AH15:$AK$500,4,FALSE),"") -> Löffel Ulrich | D15: ok | F15: 1 | G15: 1 | I15: G1 | J15: Löffel Ulrich | M15: =SMALL($B$2:$B$41,6) -> 6 | N15: Elham Faiz | Q15: Bei Fragen: 147max@freenet.de | S15: Reset - Code: 1309 | V15: 9 | X15: 1x4 1x5 | Y15: 2 | Z15: =IF(AND(S12<21,AG1="X"),4,IF(AND(AG1="X",S12=24),6,0)) -> 6 | AB15: 21 | AC15: 3x4 3x3 | AD15: 6 | AE15: Gruppen | AF15: 12 | AG15: X | AH15: =IF(AI15<>"",COUNTA($AI$2:$AI15),"") ->  | AK15: Brünner Thomas | AO15: =Berechnung!CZ15 -> B2 | AP15: 0 | AQ15: B2 | AR15: H2
A16: 15 | B16: 15 | C16: =IFERROR(VLOOKUP(A16,AH16:$AK$500,4,FALSE),"") -> Müller Marcus | D16: ok | F16: 1 | G16: 1 | I16: F2 | J16: Müller Marcus | M16: =SMALL($B$2:$B$41,7) -> 7 | N16: Fandrei Andreas | Q16: Tel.: 0174 / 3076906 | S16: setzt die Auslosung zurück | V16: 10 | X16: 2x5 | Y16: 2 | AB16: =V28 -> 22 | AC16: 4x4 2x3 | AE16: Gruppen | AG16: X | AH16: =IF(AI16<>"",COUNTA($AI$2:$AI16),"") ->  | AK16: Buße Christopher | AO16: =Berechnung!CZ16 -> H1 | AP16: 0 | AQ16: H1 | AR16: G3
A17: 16 | B17: 16 | C17: =IFERROR(VLOOKUP(A17,AH17:$AK$500,4,FALSE),"") -> Rejke Ronny | D17: ok | F17: 1 | G17: 1 | I17: F3 | J17: Rejke Ronny | M17: =SMALL($B$2:$B$41,8) -> 8 | N17: Fandrei Joel | Q17: Platzierung | R17: 12-15 TN | S17: 8-15 TN | T17: 16-23 TN | V17: 11 | X17: 1x3 2x4 | Y17: =IF(AG1="",3,4) -> 4 | AA17: 24-40 TN | AB17: 23 | AC17: 5x4 1x3 | AE17: Gruppen | AG17: X | AH17: =IF(AI17<>"",COUNTA($AI$2:$AI17),"") ->  | AK17: Chen Wie | AO17: =Berechnung!CZ17 -> D2 | AP17: 0 | AQ17: D2 | AR17: C3
A18: 17 | B18: 17 | C18: =IFERROR(VLOOKUP(A18,AH18:$AK$500,4,FALSE),"") -> Stachly Marec | D18: ok | F18: 1 | G18: 1 | I18: G2 | J18: Stachly Marec | M18: =SMALL($B$2:$B$41,9) -> 9 | N18: Gärtner David | Q18: 1. Platz | R18: 150 | S18: 150 | T18: 250 | V18: 12 | X18: 4x3 | Y18: 4 | AA18: 350 | AB18: 24 | AC18: 8x3 | AD18: =VLOOKUP(AB18,$V$14:$Y$46,4,FALSE) -> 8 | AE18: =IF(AND(S12=24,AG1=""),"Gruppen","K.O.") -> K.O. | AF18: =IF(AND(S122<21,AG1="X"),16,12) -> 16 | AG18: X | AH18: =IF(AI18<>"",COUNTA($AI$2:$AI18),"") -> 4 | AI18: ok | AK18: Delling Tino | AL18: 11793.78397 | AM18: ok | AO18: =Berechnung!CZ18 -> C2 | AP18: 0 | AQ18: C2 | AR18: F2
A19: 18 | B19: 18 | C19: =IFERROR(VLOOKUP(A19,AH19:$AK$500,4,FALSE),"") -> Straßburger Marko | D19: ok | F19: 1 | G19: 1 | I19: D3 | J19: Straßburger Marko | M19: =SMALL($B$2:$B$41,10) -> 10 | N19: Hartung Andreas | Q19: 2. Platz | R19: 120 | S19: 120 | T19: 200 | V19: 13 | X19: 3x3 1x4 | Y19: 4 | AA19: 300 | AB19: 25 | AC19: 7x3 1x4 | AD19: 8 | AE19: K.O. | AF19: 16 | AG19: X | AH19: =IF(AI19<>"",COUNTA($AI$2:$AI19),"") -> 5 | AI19: ok | AK19: Drahn Robert | AL19: 11091.33082 | AO19: =Berechnung!CZ19 -> F1 | AP19: 0 | AQ19: F1 | AR19: F3
A20: 19 | B20: 19 | C20: =IFERROR(VLOOKUP(A20,AH20:$AK$500,4,FALSE),"") -> Suttner Magnus | D20: ok | F20: 1 | G20: 1 | I20: D2 | J20: Suttner Magnus | M20: =SMALL($B$2:$B$41,11) -> 11 | N20: Hofmann Frank | Q20: 3. Platz | R20: 100 | S20: 90 | T20: 140 | V20: 14 | X20: 2x3 2x4 | Y20: 4 | AA20: 230 | AB20: 26 | AC20: 6x3 2x4 | AE20: K.O. | AG20: X | AH20: =IF(AI20<>"",COUNTA($AI$2:$AI20),"") -> 6 | AI20: ok | AK20: Elham Faiz | AL20: 19157.96089 | AM20: ok | AO20: =Berechnung!CZ20 -> E1 | AP20: 0 | AQ20: E1 | AR20: B3
A21: 20 | B21: 20 | C21: =IFERROR(VLOOKUP(A21,AH21:$AK$500,4,FALSE),"") -> Swennen Andy | D21: ok | F21: 1 | G21: 1 | I21: E1 | J21: =IF(C21>"",C21,"") -> Swennen Andy | M21: =SMALL($B$2:$B$41,12) -> 12 | N21: Isermann Rene | Q21: 3. Platz | R21: 80 | S21: 90 | T21: 140 | V21: 15 | X21: 1x3 3x4 | Y21: 4 | AA21: 230 | AB21: 27 | AC21: 5x3 3x4 | AE21: K.O. | AG21: X | AH21: =IF(AI21<>"",COUNTA($AI$2:$AI21),"") ->  | AK21: Faarooq Rayumer | AM21: ok | AO21: =Berechnung!CZ21 -> G3 | AP21: 0 | AQ21: G3 | AR21: E2
A22: 21 | B22: 21 | C22: =IFERROR(VLOOKUP(A22,AH22:$AK$500,4,FALSE),"") -> Thomas Moritz | D22: ok | F22: 1 | G22: 1 | I22: H3 | J22: Thomas Moritz | M22: =SMALL($B$2:$B$41,13) -> 13 | N22: Jeroch Paul | Q22: Viertelfinale | R22: 50 | S22: 50 | T22: 100 | V22: 16 | X22: 4x4 | Y22: 4 | AA22: 150 | AB22: 28 | AC22: 4x3 4x4 | AE22: K.O. | AG22: X | AH22: =IF(AI22<>"",COUNTA($AI$2:$AI22),"") -> 7 | AI22: ok | AK22: Fandrei Andreas | AL22: 227.1244163 | AM22: ok | AO22: =Berechnung!CZ22 -> F3 | AP22: 0 | AQ22: F3 | AR22: A3
A23: 22 | B23: 22 | C23: =IFERROR(VLOOKUP(A23,AH23:$AK$500,4,FALSE),"") -> Valderrama Salvador | D23: ok | F23: 1 | G23: 1 | I23: A1 | J23: Valderrama Salvador | M23: =SMALL($B$2:$B$41,14) -> 14 | N23: Löffel Ulrich | Q23: 2. Runde (Gr. o. AF) | S23: - | T23: 60 | V23: 17 | X23: =IF(AG1="X","1x5 3x4","2x43x3") -> 1x5 3x4 | Y23: =IF(AG1="",5,4) -> 4 | AA23: 100 | AB23: 29 | AC23: 3x3 5x4 | AE23: K.O. | AG23: X | AH23: =IF(AI23<>"",COUNTA($AI$2:$AI23),"") -> 8 | AI23: ok | AK23: Fandrei Joel | AL23: 6853.028354 | AM23: ok | AO23: =Berechnung!CZ23 -> H3 | AP23: 0 | AQ23: H3 | AR23: C2
A24: 23 | B24: 23 | C24: =IFERROR(VLOOKUP(A24,AH24:$AK$500,4,FALSE),"") -> Weber Marco | D24: ok | F24: 1 | G24: 1 | I24: B3 | J24: Weber Marco | M24: =SMALL($B$2:$B$41,15) -> 15 | N24: Müller Marcus | Q24: Teilnahme | S24: 20 | T24: 30 | V24: 18 | X24: =IF(AG1="X","2x5 2x4","6x3") -> 2x5 2x4 | Y24: =IF($AG$1="",6,4) -> 4 | AA24: 50 | AB24: 30 | AC24: 2x3 6x4 | AE24: K.O. | AG24: X | AH24: =IF(AI24<>"",COUNTA($AI$2:$AI24),"") ->  | AK24: Fertellioglu Bugrahan | AO24: =Berechnung!CZ24 -> B1 | AP24: 0 | AQ24: B1 | AR24: G2
A25: 24 | B25: 24 | C25: =IFERROR(VLOOKUP(A25,AH25:$AK$500,4,FALSE),"") -> Witzik Oliver | D25: ok | F25: 1 | G25: 1 | I25: C2 | J25: Witzik Oliver | M25: =SMALL($B$2:$B$41,16) -> 16 | N25: Rejke Ronny | R25: entfällt | V25: 19 | X25: =IF(AG1="X","3x5 1x4","1X4 5x3") -> 3x5 1x4 | Y25: =IF($AG$1="",6,4) -> 4 | AB25: 31 | AC25: 1x3 7x4 | AE25: K.O. | AG25: X | AH25: =IF(AI25<>"",COUNTA($AI$2:$AI25),"") ->  | AK25: Födisch Sebastian | AO25: =Berechnung!CZ25 -> G1 | AP25: 0 | AQ25: G1 | AR25: D2
A26: 25 | B26: 25 | C26: =IFERROR(VLOOKUP(A26,AH26:$AK$500,4,FALSE),"") ->  | F26: 0 | G26: 0 | M26: =SMALL($B$2:$B$41,17) -> 17 | N26: Stachly Marec | Q26: Start- / Preisgeldberechnung | T26: Gesamt | V26: 20 | X26: =IF(AG1="X","4x5","2x4 4x3") -> 4x5 | Y26: 4 | AB26: 32 | AC26: 8x4 | AE26: K.O. | AH26: =IF(AI26<>"",COUNTA($AI$2:$AI26),"") ->  | AK26: Fritz Thomas | AO26: =Berechnung!CZ26 ->  | AP26: 0
A27: 26 | B27: 26 | C27: =IFERROR(VLOOKUP(A27,AH27:$AK$500,4,FALSE),"") ->  | F27: 0 | G27: 0 | M27: =SMALL($B$2:$B$41,18) -> 18 | N27: Straßburger Marko | Q27: Startgeld 1 Tag: | S27: 17 | T27: =S27*S28 -> 408 | V27: 21 | X27: 3x4 3x3 | Y27: 6 | AB27: 33 | AC27: 7x4 1x5 | AE27: K.O. | AH27: =IF(AI27<>"",COUNTA($AI$2:$AI27),"") ->  | AK27: Fröhlich Christian | AO27: =Berechnung!CZ27 ->  | AP27: 0
A28: 27 | B28: 27 | C28: =IFERROR(VLOOKUP(A28,AH28:$AK$500,4,FALSE),"") ->  | F28: 0 | G28: 0 | M28: =SMALL($B$2:$B$41,19) -> 19 | N28: Suttner Magnus | Q28: Teilnehmer / GST Jackpot: | S28: =D42 -> 24 | T28: =S28*2 -> 48 | V28: 22 | X28: 4x4 2x3 | Y28: 6 | AB28: 34 | AC28: 6x4 2x5 | AE28: K.O. | AH28: =IF(AI28<>"",COUNTA($AI$2:$AI28),"") ->  | AK28: Gabriel Christian | AO28: =Berechnung!CZ28 ->  | AP28: 0
A29: 28 | B29: 28 | C29: =IFERROR(VLOOKUP(A29,AH29:$AK$500,4,FALSE),"") ->  | F29: 0 | G29: 0 | M29: =SMALL($B$2:$B$41,20) -> 20 | N29: Swennen Andy | Q29: TN Gesamt / Preisgeld: | S29: =S28 -> 24 | T29: =S27*S28-T28 -> 360 | V29: 23 | X29: 5x4 1x3 | Y29: 6 | AB29: 35 | AC29: 5x4 3x5 | AE29: K.O. | AH29: =IF(AI29<>"",COUNTA($AI$2:$AI29),"") ->  | AK29: Gaede Charly | AO29: =Berechnung!CZ29 ->  | AP29: 0
A30: 29 | B30: 29 | C30: =IFERROR(VLOOKUP(A30,AH30:$AK$500,4,FALSE),"") ->  | F30: 0 | G30: 0 | M30: =SMALL($B$2:$B$41,21) -> 21 | N30: Thomas Moritz | Q30: Jackpot 3LR: | S30: 2.5 | T30: =S29*S30 -> 60 | V30: 24 | X30: =IF(AG1="","6x4",IF(AG1="X","8x3")) -> 8x3 | Y30: =IF(AG1="",6,8) -> 8 | AB30: 36 | AC30: 4x4 4x5 | AE30: K.O. | AH30: =IF(AI30<>"",COUNTA($AI$2:$AI30),"") -> 9 | AI30: ok | AK30: Gärtner David | AL30: 15802.10093 | AO30: =Berechnung!CZ30 ->  | AP30: 0
A31: 30 | B31: 30 | C31: =IFERROR(VLOOKUP(A31,AH31:$AK$500,4,FALSE),"") ->  | F31: 0 | G31: 0 | M31: =SMALL($B$2:$B$41,22) -> 22 | N31: Valderrama Salvador | Q31: Jackpot 100+: | S31: 0.5 | T31: =S29*S31 -> 12 | V31: 25 | X31: 7x3 1x4 | Y31: 8 | AB31: 37 | AC31: 3x4 5x5 | AE31: K.O. | AH31: =IF(AI31<>"",COUNTA($AI$2:$AI31),"") ->  | AK31: Gehrke Mario | AO31: =Berechnung!CZ31 ->  | AP31: 0
A32: 31 | B32: 31 | C32: =IFERROR(VLOOKUP(A32,AH32:$AK$500,4,FALSE),"") ->  | F32: 0 | G32: 0 | M32: =SMALL($B$2:$B$41,23) -> 23 | N32: Weber Marco | Q32: Ausschüttung / Jackpot: | T32: =T29-T30-T31 -> 288 | V32: 26 | X32: 6x3 2x4 | Y32: 8 | AB32: 38 | AC32: 2x4 6x5 | AE32: K.O. | AH32: =IF(AI32<>"",COUNTA($AI$2:$AI32),"") ->  | AK32: Gheran Florin | AO32: =Berechnung!CZ32 ->  | AP32: 0
A33: 32 | B33: 32 | C33: =IFERROR(VLOOKUP(A33,AH33:$AK$500,4,FALSE),"") ->  | F33: 0 | G33: 0 | M33: =SMALL($B$2:$B$41,24) -> 24 | N33: Witzik Oliver | Q33: 1. Platz | S33: 1x | T33: =IF($S$29<20,$T$32*40%,IF($S$29>19,$T$32*35%)) -> 100.8 | V33: 27 | X33: 5x3 3x4 | Y33: 8 | AA33: =T33 -> 100.8 | AB33: 39 | AC33: 1x4 7x5 | AE33: K.O. | AH33: =IF(AI33<>"",COUNTA($AI$2:$AI33),"") ->  | AK33: Grüner Ann-Cathrin | AM33: ok | AO33: =Berechnung!CZ33 ->  | AP33: 0
A34: 33 | B34: 33 | C34: =IFERROR(VLOOKUP(A34,AH34:$AK$500,4,FALSE),"") ->  | F34: 0 | G34: 0 | M34: =SMALL($B$2:$B$41,25) -> 25 | Q34: 2. Platz | S34: 1x | T34: =IF($S$29<20,$T$32*30%,IF($S$29>19,$T$32*25%)) -> 72 | V34: 28 | X34: 4x3 4x4 | Y34: 8 | AA34: =T34 -> 72 | AB34: 40 | AC34: 8x5 | AE34: K.O. | AH34: =IF(AI34<>"",COUNTA($AI$2:$AI34),"") ->  | AK34: Habrom Hilmar | AO34: =Berechnung!CZ34 ->  | AP34: 0
A35: 34 | B35: 34 | C35: =IFERROR(VLOOKUP(A35,AH35:$AK$500,4,FALSE),"") ->  | F35: 0 | G35: 0 | H35: =IF(E35="x",C35,"") ->  | M35: =SMALL($B$2:$B$41,26) -> 26 | Q35: 2 x 3. Platz | S35: 2x | T35: =IF($S$29<20,$T$32*15%,IF($S$29>19,$T$32*10%)) -> 28.8 | V35: 29 | X35: 3x3 5x4 | Y35: 8 | AA35: =T35*2 -> 57.6 | AH35: =IF(AI35<>"",COUNTA($AI$2:$AI35),"") ->  | AK35: Haidary Enayat | AO35: =Berechnung!CZ35 ->  | AP35: 0
A36: 35 | B36: 35 | C36: =IFERROR(VLOOKUP(A36,AH36:$AK$500,4,FALSE),"") ->  | F36: 0 | G36: 0 | M36: =SMALL($B$2:$B$41,27) -> 27 | Q36: ab 20 Teilnehmer: 4 x 5. Platz | S36: 4x | T36: =IF($S$29<20,$T$32*0%,IF($S$29>19,$T$32*5%)) -> 14.4 | V36: 30 | X36: 2x3 6x4 | Y36: 8 | AA36: =T36*4 -> 57.6 | AC36: Änderung den Gruppen bei 17-24 TN | AH36: =IF(AI36<>"",COUNTA($AI$2:$AI36),"") ->  | AK36: Hänel Holger | AO36: =Berechnung!CZ36 ->  | AP36: 0
A37: 36 | B37: 36 | C37: =IFERROR(VLOOKUP(A37,AH37:$AK$500,4,FALSE),"") ->  | F37: 0 | G37: 0 | M37: =SMALL($B$2:$B$41,28) -> 28 | Q37: bezahltes Startgeld: | S37: =D42 -> 24 | T37: =S27*S37 -> 408 | V37: 31 | X37: 1x3 7x4 | Y37: 8 | AA37: =SUM(AA33:AA36) -> 288 | AB37: TRUE | AH37: =IF(AI37<>"",COUNTA($AI$2:$AI37),"") -> 10 | AI37: ok | AK37: Hartung Andreas | AL37: 1267.190423 | AO37: =Berechnung!CZ37 ->  | AP37: 0
A38: 37 | B38: 37 | C38: =IFERROR(VLOOKUP(A38,AH38:$AK$500,4,FALSE),"") ->  | F38: 0 | G38: 0 | M38: =SMALL($B$2:$B$41,29) -> 29 | Q38: GST Gebühr 10€ pro Saison: | S38: 4 | T38: =S38*10 -> 40 | V38: 32 | X38: 8x4 | Y38: 8 | AH38: =IF(AI38<>"",COUNTA($AI$2:$AI38),"") ->  | AK38: Hermsdorf Hannes | AO38: =Berechnung!CZ38 ->  | AP38: 0
A39: 38 | B39: 38 | C39: =IFERROR(VLOOKUP(A39,AH39:$AK$500,4,FALSE),"") ->  | F39: 0 | G39: 0 | M39: =SMALL($B$2:$B$41,30) -> 30 | Q39: Behling | V39: 33 | X39: 7x4 1x5 | Y39: 8 | AH39: =IF(AI39<>"",COUNTA($AI$2:$AI39),"") ->  | AK39: Hirth Christian | AM39: ok | AO39: =Berechnung!CZ39 ->  | AP39: 0
A40: 39 | B40: 39 | C40: =IFERROR(VLOOKUP(A40,AH40:$AK$500,4,FALSE),"") ->  | F40: 0 | G40: 0 | M40: =SMALL($B$2:$B$41,31) -> 31 | Q40: Hofmann | T40: =T29-T30-T31 -> 288 | V40: 34 | X40: 6x4 2x5 | Y40: 8 | AH40: =IF(AI40<>"",COUNTA($AI$2:$AI40),"") -> 11 | AI40: ok | AK40: Hofmann Frank | AL40: 319.6190526 | AO40: =Berechnung!CZ40 ->  | AP40: 0
A41: 40 | B41: 40 | C41: =IFERROR(VLOOKUP(A41,AH41:$AK$500,4,FALSE),"") ->  | F41: 0 | G41: 0 | M41: =SMALL($B$2:$B$41,32) -> 32 | Q41: Witzik | T41: =T29-T30-T31 -> 288 | V41: 35 | X41: 5x4 3x5 | Y41: 8 | AG41: =IF(D41="","",IF(OR(D41=1,D41="OK"),"X",IF(D41=2,"y"))) ->  | AH41: =IF(AI41<>"",COUNTA($AI$2:$AI41),"") ->  | AK41: Hollensen Olaf | AM41: ok | AO41: =Berechnung!CZ41 ->  | AP41: 0
D42: =COUNTA(D2:D41) -> 24 | F42: 0 | G42: 0 | M42: =SMALL($B$2:$B$41,33) -> 33 | Q42: Drahn | V42: 36 | X42: 4x4 4x5 | Y42: 8 | AG42: =COUNTIF(AG2:AG41,"X") -> 24 | AH42: =IF(AI42<>"",COUNTA($AI$2:$AI42),"") ->  | AK42: Hollin Andreas | AP42: 0
F43: =SUM(F2:F41) -> 24 | G43: =SUM(G2:G41) -> 24 | M43: =SMALL($B$2:$B$41,34) -> 34 | V43: 37 | X43: 3x4 5x5 | Y43: 8 | AG43: =COUNTIF(AG2:AG41,"Y") -> 0 | AH43: =IF(AI43<>"",COUNTA($AI$2:$AI43),"") ->  | AK43: Hollnagel Gustav | AP43: 0
M44: =SMALL($B$2:$B$41,35) -> 35 | V44: 38 | X44: 2x4 6x5 | Y44: 8 | AH44: =IF(AI44<>"",COUNTA($AI$2:$AI44),"") ->  | AK44: Ilmer Daniel | AP44: 0
M45: =SMALL($B$2:$B$41,36) -> 36 | V45: 39 | X45: 1x4 7x5 | Y45: 8 | AH45: =IF(AI45<>"",COUNTA($AI$2:$AI45),"") -> 12 | AI45: ok | AK45: Isermann Rene | AL45: 18206.26447 | AP45: 0
M46: =SMALL($B$2:$B$41,37) -> 37 | N46: =IFERROR(VLOOKUP(M46,$B$2:$C$41,2,FALSE),"") ->  | V46: 40 | X46: 8x5 | Y46: 8 | AH46: =IF(AI46<>"",COUNTA($AI$2:$AI46),"") ->  | AK46: Jacob Frank | AP46: 0
M47: =SMALL($B$2:$B$41,38) -> 38 | N47: =IFERROR(VLOOKUP(M47,$B$2:$C$41,2,FALSE),"") ->  | AH47: =IF(AI47<>"",COUNTA($AI$2:$AI47),"") ->  | AK47: Jahn Rainer | AP47: 0
M48: =SMALL($B$2:$B$41,39) -> 39 | AH48: =IF(AI48<>"",COUNTA($AI$2:$AI48),"") ->  | AK48: Jaritz Christopher | AM48: ok | AP48: 0
M49: =SMALL($B$2:$B$41,40) -> 40 | AH49: =IF(AI49<>"",COUNTA($AI$2:$AI49),"") ->  | AK49: Jasemi Saman | AP49: 0
AH50: =IF(AI50<>"",COUNTA($AI$2:$AI50),"") -> 13 | AI50: ok | AK50: Jeroch Paul | AL50: 13365.21731 | AM50: ok | AP50: 0
AH51: =IF(AI51<>"",COUNTA($AI$2:$AI51),"") ->  | AK51: Jungk Christian | AP51: 0
AH52: =IF(AI52<>"",COUNTA($AI$2:$AI52),"") ->  | AK52: Kah Thomas | AP52: 0
AH53: =IF(AI53<>"",COUNTA($AI$2:$AI53),"") ->  | AK53: Kallies Stephan | AP53: 0
AH54: =IF(AI54<>"",COUNTA($AI$2:$AI54),"") ->  | AK54: Kämpfer Norbert | AP54: 0
AH55: =IF(AI55<>"",COUNTA($AI$2:$AI55),"") ->  | AK55: Kandler Michael | AM55: ok | AP55: 0
AH56: =IF(AI56<>"",COUNTA($AI$2:$AI56),"") ->  | AK56: Karries Stev | AP56: 0
AH57: =IF(AI57<>"",COUNTA($AI$2:$AI57),"") ->  | AK57: Kaufmann Luca | AP57: 0
AH58: =IF(AI58<>"",COUNTA($AI$2:$AI58),"") ->  | AK58: Kensy Tobias | AM58: ok | AP58: 0
AH59: =IF(AI59<>"",COUNTA($AI$2:$AI59),"") ->  | AK59: Kesselring Andreas | AP59: 0
AH60: =IF(AI60<>"",COUNTA($AI$2:$AI60),"") ->  | AK60: Khalid Umair | AM60: ok | AP60: 0
AH61: =IF(AI61<>"",COUNTA($AI$2:$AI61),"") ->  | AK61: Kies Christoph | AP61: 0
AH62: =IF(AI62<>"",COUNTA($AI$2:$AI62),"") ->  | AK62: Kirim Ali | AM62: ok | AP62: 0
AH63: =IF(AI63<>"",COUNTA($AI$2:$AI63),"") ->  | AK63: Kirsten Felix | AM63: ok | AP63: 0
AH64: =IF(AI64<>"",COUNTA($AI$2:$AI64),"") ->  | AK64: Kloppisch Peter | AP64: 0
AH65: =IF(AI65<>"",COUNTA($AI$2:$AI65),"") ->  | AK65: Kosniowski Matthias | AP65: 0
AH66: =IF(AI66<>"",COUNTA($AI$2:$AI66),"") ->  | AK66: Kraege Thomas | AL66: =IFERROR(IF(AI66="","",IF(AJ66="gesetzt",RAND()*5000000,RAND()*1000*20)),"") ->  | AP66: 0
AH67: =IF(AI67<>"",COUNTA($AI$2:$AI67),"") ->  | AK67: Kraus Hermann | AM67: ok | AN67: =IF(AJ67="","",AJ67) ->  | AP67: =IF(AN67="gesetzt",1,0) -> 0
AH68: =IF(AI68<>"",COUNTA($AI$2:$AI68),"") -> 14 | AI68: ok | AK68: Löffel Ulrich | AL68: 14142.32037 | AM68: ok | AP68: 0
AH69: =IF(AI69<>"",COUNTA($AI$2:$AI69),"") ->  | AK69: Lux Sebastian | AP69: 0
AH70: =IF(AI70<>"",COUNTA($AI$2:$AI70),"") ->  | AK70: Marmucki Lukas | AP70: 0
AH71: =IF(AI71<>"",COUNTA($AI$2:$AI71),"") ->  | AK71: Martynov Sergej | AP71: 0
AH72: =IF(AI72<>"",COUNTA($AI$2:$AI72),"") ->  | AK72: Metzler Thomas | AP72: 0
AH73: =IF(AI73<>"",COUNTA($AI$2:$AI73),"") ->  | AK73: Muhammad Umer | AM73: ok | AP73: 0
AH74: =IF(AI74<>"",COUNTA($AI$2:$AI74),"") ->  | AK74: Müller Frank | AP74: 0
AH75: =IF(AI75<>"",COUNTA($AI$2:$AI75),"") -> 15 | AI75: ok | AK75: Müller Marcus | AL75: 3105.116581 | AM75: ok | AP75: 0
AH76: =IF(AI76<>"",COUNTA($AI$2:$AI76),"") ->  | AK76: Müller Tom | AP76: 0
AH77: =IF(AI77<>"",COUNTA($AI$2:$AI77),"") ->  | AK77: N. Schmidt Paul | AP77: 0
AH78: =IF(AI78<>"",COUNTA($AI$2:$AI78),"") ->  | AK78: Neumann Tobias | AP78: 0
AH79: =IF(AI79<>"",COUNTA($AI$2:$AI79),"") ->  | AK79: Ohlenroth Sven | AP79: 0
AH80: =IF(AI80<>"",COUNTA($AI$2:$AI80),"") ->  | AK80: Ossowski Andre | AP80: 0
AH81: =IF(AI81<>"",COUNTA($AI$2:$AI81),"") ->  | AK81: Ouhsain Oussama | AM81: ok | AP81: 0
AH82: =IF(AI82<>"",COUNTA($AI$2:$AI82),"") ->  | AK82: Pfeiffer Jakob | AP82: 0
AH83: =IF(AI83<>"",COUNTA($AI$2:$AI83),"") ->  | AK83: Rapior Frank | AP83: 0
AH84: =IF(AI84<>"",COUNTA($AI$2:$AI84),"") ->  | AK84: Rath Thomas | AP84: 0
AH85: =IF(AI85<>"",COUNTA($AI$2:$AI85),"") ->  | AK85: Reinel Jürgen | AP85: 0
AH86: =IF(AI86<>"",COUNTA($AI$2:$AI86),"") ->  | AK86: Reinel Sebastian | AP86: 0
AH87: =IF(AI87<>"",COUNTA($AI$2:$AI87),"") ->  | AK87: Reinhard Rene | AP87: 0
AH88: =IF(AI88<>"",COUNTA($AI$2:$AI88),"") -> 16 | AI88: ok | AK88: Rejke Ronny | AL88: 7409.882582 | AM88: ok | AP88: 0
AH89: =IF(AI89<>"",COUNTA($AI$2:$AI89),"") ->  | AK89: Rentsch Marco | AP89: 0
AH90: =IF(AI90<>"",COUNTA($AI$2:$AI90),"") ->  | AK90: Rosenberger Carl | AP90: 0
AH91: =IF(AI91<>"",COUNTA($AI$2:$AI91),"") ->  | AK91: Rothaug Dennis | AP91: 0
AH92: =IF(AI92<>"",COUNTA($AI$2:$AI92),"") ->  | AK92: Rzepka Stephan | AP92: 0
AH93: =IF(AI93<>"",COUNTA($AI$2:$AI93),"") ->  | AK93: Sahre Manfred | AP93: 0
AH94: =IF(AI94<>"",COUNTA($AI$2:$AI94),"") ->  | AK94: Salomon Thomas | AP94: 0
AH95: =IF(AI95<>"",COUNTA($AI$2:$AI95),"") ->  | AK95: Scharl Jürgen | AM95: ok | AP95: 0
AH96: =IF(AI96<>"",COUNTA($AI$2:$AI96),"") ->  | AK96: Scheurer Rene | AP96: 0
AH97: =IF(AI97<>"",COUNTA($AI$2:$AI97),"") ->  | AK97: Schildbach Tobias | AP97: 0
AH98: =IF(AI98<>"",COUNTA($AI$2:$AI98),"") ->  | AK98: Schmid Christian | AM98: ok | AP98: 0
AH99: =IF(AI99<>"",COUNTA($AI$2:$AI99),"") ->  | AK99: Schmidt Dieter | AM99: ok | AP99: 0
AH100: =IF(AI100<>"",COUNTA($AI$2:$AI100),"") ->  | AK100: Schmidt Kevin | AP100: 0
AH101: =IF(AI101<>"",COUNTA($AI$2:$AI101),"") ->  | AK101: Schneider Daniel | AP101: 0
AH102: =IF(AI102<>"",COUNTA($AI$2:$AI102),"") ->  | AK102: Schranz Johannes | AM102: ok | AP102: 0
AH103: =IF(AI103<>"",COUNTA($AI$2:$AI103),"") ->  | AK103: Schumann Björn | AP103: 0
AH104: =IF(AI104<>"",COUNTA($AI$2:$AI104),"") ->  | AK104: Schwarze Bernhard | AP104: 0
AH105: =IF(AI105<>"",COUNTA($AI$2:$AI105),"") ->  | AK105: Seidel Michael | AM105: ok | AP105: 0
AH106: =IF(AI106<>"",COUNTA($AI$2:$AI106),"") ->  | AK106: Simon Fabio | AM106: ok | AP106: 0
AH107: =IF(AI107<>"",COUNTA($AI$2:$AI107),"") ->  | AK107: Sinden Leonard | AP107: 0
AH108: =IF(AI108<>"",COUNTA($AI$2:$AI108),"") -> 17 | AI108: ok | AK108: Stachly Marec | AL108: 1704.052098 | AM108: ok | AP108: 0
AH109: =IF(AI109<>"",COUNTA($AI$2:$AI109),"") ->  | AK109: Stahl Volker | AM109: ok | AP109: 0
AH110: =IF(AI110<>"",COUNTA($AI$2:$AI110),"") ->  | AK110: Straßberger Martin | AP110: 0
AH111: =IF(AI111<>"",COUNTA($AI$2:$AI111),"") -> 18 | AI111: ok | AK111: Straßburger Marko | AL111: 2368.164003 | AM111: ok | AP111: 0
AH112: =IF(AI112<>"",COUNTA($AI$2:$AI112),"") -> 19 | AI112: ok | AK112: Suttner Magnus | AL112: 5420.964179 | AM112: ok | AP112: 0
AH113: =IF(AI113<>"",COUNTA($AI$2:$AI113),"") -> 20 | AI113: ok | AK113: Swennen Andy | AL113: 10266.3952 | AM113: ok | AP113: 0
AH114: =IF(AI114<>"",COUNTA($AI$2:$AI114),"") -> 21 | AI114: ok | AK114: Thomas Moritz | AL114: 9665.385739 | AM114: ok | AP114: 0
AH115: =IF(AI115<>"",COUNTA($AI$2:$AI115),"") ->  | AK115: Urban Adam | AM115: ok | AP115: 0
AH116: =IF(AI116<>"",COUNTA($AI$2:$AI116),"") ->  | AK116: Utikal Jan | AP116: 0
AH117: =IF(AI117<>"",COUNTA($AI$2:$AI117),"") -> 22 | AI117: ok | AK117: Valderrama Salvador | AL117: 19536.43147 | AM117: ok | AP117: 0
AH118: =IF(AI118<>"",COUNTA($AI$2:$AI118),"") ->  | AK118: Vaupel Philipp | AP118: 0
AH119: =IF(AI119<>"",COUNTA($AI$2:$AI119),"") ->  | AK119: Veit Timo | AM119: ok | AP119: 0
AH120: =IF(AI120<>"",COUNTA($AI$2:$AI120),"") -> 23 | AI120: ok | AK120: Weber Marco | AL120: 4697.556965 | AM120: ok | AP120: 0
AH121: =IF(AI121<>"",COUNTA($AI$2:$AI121),"") ->  | AK121: Weber Mats | AP121: 0
AH122: =IF(AI122<>"",COUNTA($AI$2:$AI122),"") ->  | AK122: Weber Max | AM122: ok | AP122: 0
AH123: =IF(AI123<>"",COUNTA($AI$2:$AI123),"") ->  | AK123: Wendelmuth Tino | AP123: 0
AH124: =IF(AI124<>"",COUNTA($AI$2:$AI124),"") -> 24 | AI124: ok | AK124: Witzik Oliver | AL124: 19352.37048 | AP124: 0
AH125: =IF(AI125<>"",COUNTA($AI$2:$AI125),"") ->  | AK125: x | AP125: 0
AH126: =IF(AI126<>"",COUNTA($AI$2:$AI126),"") ->  | AK126: y | AP126: 0
AH127: =IF(AI127<>"",COUNTA($AI$2:$AI127),"") ->  | AK127: Yekebasli Abuzer | AM127: ok | AP127: 0
AH128: =IF(AI128<>"",COUNTA($AI$2:$AI128),"") ->  | AK128: z | AP128: 0
AH129: =IF(AI129<>"",COUNTA($AI$2:$AI129),"") ->  | AK129: Zenß Christian | AP129: 0
AH130: =IF(AI130<>"",COUNTA($AI$2:$AI130),"") ->  | AL130: =IFERROR(IF(AI130="","",IF(AJ130="gesetzt",RAND()*5000000,RAND()*1000*20)),"") ->  | AP130: 0
AH131: =IF(AI131<>"",COUNTA($AI$2:$AI131),"") ->  | AN131: =IF(AJ131="","",AJ131) ->  | AP131: =IF(AN131="gesetzt",1,0) -> 0
AH132: =IF(AI132<>"",COUNTA($AI$2:$AI132),"") ->  | AP132: 0
AH133: =IF(AI133<>"",COUNTA($AI$2:$AI133),"") ->  | AP133: 0
AH134: =IF(AI134<>"",COUNTA($AI$2:$AI134),"") ->  | AP134: 0
AH135: =IF(AI135<>"",COUNTA($AI$2:$AI135),"") ->  | AP135: 0
AH136: =IF(AI136<>"",COUNTA($AI$2:$AI136),"") ->  | AP136: 0
AH137: =IF(AI137<>"",COUNTA($AI$2:$AI137),"") ->  | AP137: 0
AH138: =IF(AI138<>"",COUNTA($AI$2:$AI138),"") ->  | AP138: 0
AH139: =IF(AI139<>"",COUNTA($AI$2:$AI139),"") ->  | AP139: 0
AH140: =IF(AI140<>"",COUNTA($AI$2:$AI140),"") ->  | AP140: 0
AH141: =IF(AI141<>"",COUNTA($AI$2:$AI141),"") ->  | AP141: 0
AH142: =IF(AI142<>"",COUNTA($AI$2:$AI142),"") ->  | AP142: 0
AH143: =IF(AI143<>"",COUNTA($AI$2:$AI143),"") ->  | AP143: 0
AH144: =IF(AI144<>"",COUNTA($AI$2:$AI144),"") ->  | AP144: 0
AH145: =IF(AI145<>"",COUNTA($AI$2:$AI145),"") ->  | AP145: 0
AH146: =IF(AI146<>"",COUNTA($AI$2:$AI146),"") ->  | AP146: 0
AH147: =IF(AI147<>"",COUNTA($AI$2:$AI147),"") ->  | AP147: 0
AH148: =IF(AI148<>"",COUNTA($AI$2:$AI148),"") ->  | AP148: 0
AH149: =IF(AI149<>"",COUNTA($AI$2:$AI149),"") ->  | AP149: 0
AH150: =IF(AI150<>"",COUNTA($AI$2:$AI150),"") ->  | AP150: 0
AH151: =IF(AI151<>"",COUNTA($AI$2:$AI151),"") ->  | AP151: 0
AH152: =IF(AI152<>"",COUNTA($AI$2:$AI152),"") ->  | AP152: 0
AH153: =IF(AI153<>"",COUNTA($AI$2:$AI153),"") ->  | AP153: 0
AH154: =IF(AI154<>"",COUNTA($AI$2:$AI154),"") ->  | AP154: 0
AH155: =IF(AI155<>"",COUNTA($AI$2:$AI155),"") ->  | AP155: 0
AH156: =IF(AI156<>"",COUNTA($AI$2:$AI156),"") ->  | AP156: 0
AH157: =IF(AI157<>"",COUNTA($AI$2:$AI157),"") ->  | AP157: 0
AH158: =IF(AI158<>"",COUNTA($AI$2:$AI158),"") ->  | AP158: 0
AH159: =IF(AI159<>"",COUNTA($AI$2:$AI159),"") ->  | AP159: 0
AH160: =IF(AI160<>"",COUNTA($AI$2:$AI160),"") ->  | AP160: 0
AH161: =IF(AI161<>"",COUNTA($AI$2:$AI161),"") ->  | AP161: 0
AH162: =IF(AI162<>"",COUNTA($AI$2:$AI162),"") ->  | AP162: 0
AH163: =IF(AI163<>"",COUNTA($AI$2:$AI163),"") ->  | AP163: 0
AH164: =IF(AI164<>"",COUNTA($AI$2:$AI164),"") ->  | AP164: 0
AH165: =IF(AI165<>"",COUNTA($AI$2:$AI165),"") ->  | AP165: 0
AH166: =IF(AI166<>"",COUNTA($AI$2:$AI166),"") ->  | AP166: 0
AH167: =IF(AI167<>"",COUNTA($AI$2:$AI167),"") ->  | AP167: 0
AH168: =IF(AI168<>"",COUNTA($AI$2:$AI168),"") ->  | AP168: 0
AH169: =IF(AI169<>"",COUNTA($AI$2:$AI169),"") ->  | AP169: 0
AH170: =IF(AI170<>"",COUNTA($AI$2:$AI170),"") ->  | AP170: 0
AH171: =IF(AI171<>"",COUNTA($AI$2:$AI171),"") ->  | AP171: 0
AH172: =IF(AI172<>"",COUNTA($AI$2:$AI172),"") ->  | AP172: 0
AH173: =IF(AI173<>"",COUNTA($AI$2:$AI173),"") ->  | AP173: 0
AH174: =IF(AI174<>"",COUNTA($AI$2:$AI174),"") ->  | AP174: 0
AH175: =IF(AI175<>"",COUNTA($AI$2:$AI175),"") ->  | AP175: 0
AH176: =IF(AI176<>"",COUNTA($AI$2:$AI176),"") ->  | AP176: 0
AH177: =IF(AI177<>"",COUNTA($AI$2:$AI177),"") ->  | AP177: 0
AH178: =IF(AI178<>"",COUNTA($AI$2:$AI178),"") ->  | AP178: 0
AH179: =IF(AI179<>"",COUNTA($AI$2:$AI179),"") ->  | AP179: 0
AH180: =IF(AI180<>"",COUNTA($AI$2:$AI180),"") ->  | AP180: 0
AH181: =IF(AI181<>"",COUNTA($AI$2:$AI181),"") ->  | AP181: 0
AH182: =IF(AI182<>"",COUNTA($AI$2:$AI182),"") ->  | AP182: 0
AH183: =IF(AI183<>"",COUNTA($AI$2:$AI183),"") ->  | AP183: 0
AH184: =IF(AI184<>"",COUNTA($AI$2:$AI184),"") ->  | AP184: 0
AH185: =IF(AI185<>"",COUNTA($AI$2:$AI185),"") ->  | AP185: 0
AH186: =IF(AI186<>"",COUNTA($AI$2:$AI186),"") ->  | AP186: 0
AH187: =IF(AI187<>"",COUNTA($AI$2:$AI187),"") ->  | AP187: 0
AH188: =IF(AI188<>"",COUNTA($AI$2:$AI188),"") ->  | AP188: 0
AH189: =IF(AI189<>"",COUNTA($AI$2:$AI189),"") ->  | AP189: 0
AH190: =IF(AI190<>"",COUNTA($AI$2:$AI190),"") ->  | AP190: 0
AH191: =IF(AI191<>"",COUNTA($AI$2:$AI191),"") ->  | AP191: 0
AH192: =IF(AI192<>"",COUNTA($AI$2:$AI192),"") ->  | AP192: 0
AH193: =IF(AI193<>"",COUNTA($AI$2:$AI193),"") ->  | AP193: 0
AH194: =IF(AI194<>"",COUNTA($AI$2:$AI194),"") ->  | AL194: =IFERROR(IF(AI194="","",IF(AJ194="gesetzt",RAND()*5000000,RAND()*1000*20)),"") ->  | AP194: 0
AH195: =IF(AI195<>"",COUNTA($AI$2:$AI195),"") ->  | AN195: =IF(AJ195="","",AJ195) ->  | AP195: =IF(AN195="gesetzt",1,0) -> 0
AH196: =IF(AI196<>"",COUNTA($AI$2:$AI196),"") ->  | AP196: 0
AH197: =IF(AI197<>"",COUNTA($AI$2:$AI197),"") ->  | AP197: 0
AH198: =IF(AI198<>"",COUNTA($AI$2:$AI198),"") ->  | AP198: 0
AH199: =IF(AI199<>"",COUNTA($AI$2:$AI199),"") ->  | AP199: 0
AH200: =IF(AI200<>"",COUNTA($AI$2:$AI200),"") ->  | AP200: 0
... 301 more rows

Sheet 1. Runde Gruppen
B1: GRUPPE A | R1: GRUPPE B
A2: =IF(AND(CB2="",R2=""),1,0) -> 0 | B2: =IF(D3="",0,1) -> 1 | D2: =Berechnung!D1 -> Spieler | E2: =Berechnung!E1 -> M | F2: =Berechnung!F1 -> W | G2: =Berechnung!G1 -> L | H2: U | I2: =Berechnung!H1 -> F+ | J2: =Berechnung!I1 -> F- | K2: =Berechnung!K1 -> 0 | L2: =Berechnung!L1 -> 0 | M2: =Berechnung!M1 -> Rang | N2: =Berechnung!N1 -> Rang | O2: =Berechnung!O1 -> P+ | R2: =IF(T3="",0,1) -> 1 | T2: =Berechnung!D12 -> Spieler | U2: =Berechnung!E12 -> M | V2: =Berechnung!F12 -> W | W2: =Berechnung!G12 -> L | X2: U | Y2: F+ | Z2: F- | AA2: =Berechnung!K12 -> 0 | AB2: =Berechnung!L12 -> 0 | AC2: =Berechnung!M12 -> Rang | AD2: =Berechnung!N12 -> Rang | AE2: =Berechnung!O12 -> P+ | AH2: speichert unter C:\Users\Public\Videos
A3: =IF(AND(B3="",R3=""),1,0) -> 0 | B3: =IF(D3="","",Berechnung!B2) -> 1 | C3: =Berechnung!C2 -> A1 | D3: =IFERROR(VLOOKUP(C3,Spieler!$I$2:$J$41,2,FALSE),"") -> Valderrama Salvador | E3: =Berechnung!E2 -> 2 | F3: =Berechnung!F2 -> 1 | G3: =Berechnung!G2 -> 1 | H3: =Berechnung!J2 -> 0 | I3: =Berechnung!H2 -> 3 | J3: =Berechnung!I2 -> 2 | K3: =Berechnung!K2 -> 0 | L3: =Berechnung!L2 -> 0 | M3: =Berechnung!M2 -> 1002 | N3: =Berechnung!N2 -> 2 | P3: =D3 -> Valderrama Salvador | Q3: 155 | R3: =IF(T3="","",Berechnung!B13) -> 1 | S3: =Berechnung!C13 -> B1 | T3: =IFERROR(VLOOKUP(S3,Spieler!$I$2:$J$41,2,FALSE),"") -> Drahn Robert | U3: =Berechnung!E13 -> 2 | V3: =Berechnung!F13 -> 1 | W3: =Berechnung!G13 -> 1 | X3: =Berechnung!J13 -> 0 | Y3: =Berechnung!H13 -> 2 | Z3: =Berechnung!I13 -> 2 | AA3: =Berechnung!K13 -> 0 | AB3: =Berechnung!L13 -> 0 | AC3: =Berechnung!M13 -> 2 | AD3: =Berechnung!N13 -> 2 | AF3: =T3 -> Drahn Robert
A4: =IF(AND(B4="",R4=""),1,0) -> 0 | B4: =IF(D4="","",Berechnung!B3) -> 2 | C4: =Berechnung!C3 -> A2 | D4: =IFERROR(VLOOKUP(C4,Spieler!$I$2:$J$41,2,FALSE),"") -> Brachmanski Dave | E4: =Berechnung!E3 -> 2 | F4: =Berechnung!F3 -> 0 | G4: =Berechnung!G3 -> 2 | H4: =Berechnung!J3 -> 0 | I4: =Berechnung!H3 -> 1 | J4: =Berechnung!I3 -> 4 | K4: =Berechnung!K3 -> 0 | L4: =Berechnung!L3 -> 0 | M4: =Berechnung!M3 -> -22998 | N4: =Berechnung!N3 -> 3 | P4: =D4 -> Brachmanski Dave | R4: =IF(T4="","",Berechnung!B14) -> 2 | S4: =Berechnung!C14 -> B2 | T4: =IFERROR(VLOOKUP(S4,Spieler!$I$2:$J$41,2,FALSE),"") -> Brömel Frank | U4: =Berechnung!E14 -> 2 | V4: =Berechnung!F14 -> 0 | W4: =Berechnung!G14 -> 2 | X4: =Berechnung!J14 -> 0 | Y4: =Berechnung!H14 -> 0 | Z4: =Berechnung!I14 -> 4 | AA4: =Berechnung!K14 -> 0 | AB4: =Berechnung!L14 -> 0 | AC4: =Berechnung!M14 -> -23998 | AD4: =Berechnung!N14 -> 3 | AF4: =T4 -> Brömel Frank
A5: =IF(AND(B5="",R5=""),1,0) -> 0 | B5: =IF(D5="","",Berechnung!B4) -> 3 | C5: =Berechnung!C4 -> A3 | D5: =IFERROR(VLOOKUP(C5,Spieler!$I$2:$J$41,2,FALSE),"") -> Gärtner David | E5: =Berechnung!E4 -> 2 | F5: =Berechnung!F4 -> 2 | G5: =Berechnung!G4 -> 0 | H5: =Berechnung!J4 -> 0 | I5: =Berechnung!H4 -> 4 | J5: =Berechnung!I4 -> 2 | K5: =Berechnung!K4 -> 0 | L5: =Berechnung!L4 -> 0 | M5: =Berechnung!M4 -> 22002 | N5: =Berechnung!N4 -> 1 | P5: =D5 -> Gärtner David | R5: =IF(T5="","",Berechnung!B15) -> 3 | S5: =Berechnung!C15 -> B3 | T5: =IFERROR(VLOOKUP(S5,Spieler!$I$2:$J$41,2,FALSE),"") -> Weber Marco | U5: =Berechnung!E15 -> 2 | V5: =Berechnung!F15 -> 2 | W5: =Berechnung!G15 -> 0 | X5: =Berechnung!J15 -> 0 | Y5: =Berechnung!H15 -> 4 | Z5: =Berechnung!I15 -> 0 | AA5: =Berechnung!K15 -> 0 | AB5: =Berechnung!L15 -> 0 | AC5: =Berechnung!M15 -> 24002 | AD5: =Berechnung!N15 -> 1 | AF5: =T5 -> Weber Marco
A6: =IF(AND(B6="",R6=""),1,0) -> 1 | B6: =IF(D6="","",Berechnung!B5) ->  | C6: =Berechnung!C5 -> A4 | D6: =IFERROR(VLOOKUP(C6,Spieler!$I$2:$J$41,2,FALSE),"") ->  | E6: =Berechnung!E5 -> 0 | F6: =Berechnung!F5 -> 0 | G6: =Berechnung!G5 -> 0 | H6: =Berechnung!J5 -> 0 | I6: =Berechnung!H5 -> 0 | J6: =Berechnung!I5 -> 0 | K6: =Berechnung!K5 -> 0 | L6: =Berechnung!L5 -> 0 | M6: =Berechnung!M5 -> -200000 | N6: =Berechnung!N5 ->  | P6: =D6 ->  | R6: =IF(T6="","",Berechnung!B16) ->  | S6: =Berechnung!C16 -> B4 | T6: =IFERROR(VLOOKUP(S6,Spieler!$I$2:$J$41,2,FALSE),"") ->  | U6: =Berechnung!E16 -> 0 | V6: =Berechnung!F16 -> 0 | W6: =Berechnung!G16 -> 0 | X6: =Berechnung!J16 -> 0 | Y6: =Berechnung!H16 -> 0 | Z6: =Berechnung!I16 -> 0 | AA6: =Berechnung!K16 -> 0 | AB6: =Berechnung!L16 -> 0 | AC6: =Berechnung!M16 -> -200000 | AD6: =Berechnung!N16 ->  | AF6: =T6 -> 
A7: =IF(AND(B7="",R7=""),1,0) -> 1 | B7: =IF(D7="","",Berechnung!B6) ->  | C7: =Berechnung!C6 -> A5 | D7: =IFERROR(VLOOKUP(C7,Spieler!$I$2:$J$41,2,FALSE),"") ->  | E7: =Berechnung!E6 -> 0 | F7: =Berechnung!F6 -> 0 | G7: =Berechnung!G6 -> 0 | H7: =Berechnung!J6 -> 0 | I7: =Berechnung!H6 -> 0 | J7: =Berechnung!I6 -> 0 | K7: =Berechnung!K6 -> 0 | L7: =Berechnung!L6 -> 0 | M7: =Berechnung!M6 -> -200000 | N7: =Berechnung!N6 ->  | P7: =D7 ->  | R7: =IF(T7="","",Berechnung!B17) ->  | S7: =Berechnung!C17 -> B5 | T7: =IFERROR(VLOOKUP(S7,Spieler!$I$2:$J$41,2,FALSE),"") ->  | U7: =Berechnung!E17 -> 0 | V7: =Berechnung!F17 -> 0 | W7: =Berechnung!G17 -> 0 | X7: =Berechnung!J17 -> 0 | Y7: =Berechnung!H17 -> 0 | Z7: =Berechnung!I17 -> 0 | AA7: =Berechnung!K17 -> 0 | AB7: =Berechnung!L17 -> 0 | AC7: =Berechnung!M17 -> -200000 | AD7: =Berechnung!N17 ->  | AF7: =T7 -> 
A9: 0 | B9: GRUPPE C | Q9: aktualisiert um: | R9: GRUPPE D
A10: 0 | B10: =IF(D11="",0,1) -> 1 | D10: =Berechnung!D23 -> Spieler | E10: =Berechnung!E23 -> M | F10: =Berechnung!F23 -> W | G10: =Berechnung!G23 -> L | H10: U | I10: F+ | J10: F- | K10: =Berechnung!K23 -> 0 | L10: =Berechnung!L23 -> 0 | M10: =Berechnung!M23 -> Rang | N10: =Berechnung!N23 -> Rang | O10: =Berechnung!O23 -> P+ | Q10: =NOW()-TODAY() -> 12:39:24.400 | R10: =IF(T11="",0,1) -> 1 | T10: =Berechnung!D34 -> Spieler | U10: =Berechnung!E34 -> M | V10: =Berechnung!F34 -> W | W10: =Berechnung!G34 -> L | X10: U | Y10: F+ | Z10: F- | AA10: =Berechnung!K34 -> 0 | AB10: =Berechnung!L34 -> 0 | AC10: =Berechnung!M34 -> Rang | AD10: =Berechnung!N34 -> Rang | AE10: =Berechnung!O34 -> P+
A11: 0 | B11: =IF(D11="","",Berechnung!B24) -> 1 | C11: =Berechnung!C24 -> C1 | D11: =IFERROR(VLOOKUP(C11,Spieler!$I$2:$J$41,2,FALSE),"") -> Behling Oliver | E11: =Berechnung!E24 -> 2 | F11: =Berechnung!F24 -> 1 | G11: =Berechnung!G24 -> 1 | H11: =Berechnung!J24 -> 0 | I11: =Berechnung!H24 -> 2 | J11: =Berechnung!I24 -> 2 | K11: =Berechnung!K24 -> 0 | L11: =Berechnung!L24 -> 0 | M11: =Berechnung!M24 -> 2 | N11: =Berechnung!N24 -> 2 | P11: =D11 -> Behling Oliver | Q11: =IF(OR(T11="",T11=0),5,0) -> 0 | R11: =IF(T11="","",Berechnung!B35) -> 1 | S11: =Berechnung!C35 -> D1 | T11: =IFERROR(VLOOKUP(S11,Spieler!$I$2:$J$41,2,FALSE),"") -> Hartung Andreas | U11: =Berechnung!E35 -> 2 | V11: =Berechnung!F35 -> 0 | W11: =Berechnung!G35 -> 2 | X11: =Berechnung!J35 -> 0 | Y11: =Berechnung!H35 -> 1 | Z11: =Berechnung!I35 -> 4 | AA11: =Berechnung!K35 -> 0 | AB11: =Berechnung!L35 -> 0 | AC11: =Berechnung!M35 -> -22998 | AD11: =Berechnung!N35 -> 3 | AF11: =T11 -> Hartung Andreas
A12: 0 | B12: =IF(D12="","",Berechnung!B25) -> 2 | C12: =Berechnung!C25 -> C2 | D12: =IFERROR(VLOOKUP(C12,Spieler!$I$2:$J$41,2,FALSE),"") -> Witzik Oliver | E12: =Berechnung!E25 -> 2 | F12: =Berechnung!F25 -> 2 | G12: =Berechnung!G25 -> 0 | H12: =Berechnung!J25 -> 0 | I12: =Berechnung!H25 -> 4 | J12: =Berechnung!I25 -> 0 | K12: =Berechnung!K25 -> 0 | L12: =Berechnung!L25 -> 0 | M12: =Berechnung!M25 -> 24002 | N12: =Berechnung!N25 -> 1 | P12: =D12 -> Witzik Oliver | R12: =IF(T12="","",Berechnung!B36) -> 2 | S12: =Berechnung!C36 -> D2 | T12: =IFERROR(VLOOKUP(S12,Spieler!$I$2:$J$41,2,FALSE),"") -> Suttner Magnus | U12: =Berechnung!E36 -> 2 | V12: =Berechnung!F36 -> 1 | W12: =Berechnung!G36 -> 1 | X12: =Berechnung!J36 -> 0 | Y12: =Berechnung!H36 -> 3 | Z12: =Berechnung!I36 -> 2 | AA12: =Berechnung!K36 -> 0 | AB12: =Berechnung!L36 -> 0 | AC12: =Berechnung!M36 -> 1002 | AD12: =Berechnung!N36 -> 2 | AF12: =T12 -> Suttner Magnus
A13: 0 | B13: =IF(D13="","",Berechnung!B26) -> 3 | C13: =Berechnung!C26 -> C3 | D13: =IFERROR(VLOOKUP(C13,Spieler!$I$2:$J$41,2,FALSE),"") -> Isermann Rene | E13: =Berechnung!E26 -> 2 | F13: =Berechnung!F26 -> 0 | G13: =Berechnung!G26 -> 2 | H13: =Berechnung!J26 -> 0 | I13: =Berechnung!H26 -> 0 | J13: =Berechnung!I26 -> 4 | K13: =Berechnung!K26 -> 0 | L13: =Berechnung!L26 -> 0 | M13: =Berechnung!M26 -> -23998 | N13: =Berechnung!N26 -> 3 | P13: =D13 -> Isermann Rene | R13: =IF(T13="","",Berechnung!B37) -> 3 | S13: =Berechnung!C37 -> D3 | T13: =IFERROR(VLOOKUP(S13,Spieler!$I$2:$J$41,2,FALSE),"") -> Straßburger Marko | U13: =Berechnung!E37 -> 2 | V13: =Berechnung!F37 -> 2 | W13: =Berechnung!G37 -> 0 | X13: =Berechnung!J37 -> 0 | Y13: =Berechnung!H37 -> 4 | Z13: =Berechnung!I37 -> 2 | AA13: =Berechnung!K37 -> 0 | AB13: =Berechnung!L37 -> 0 | AC13: =Berechnung!M37 -> 22002 | AD13: =Berechnung!N37 -> 1 | AF13: =T13 -> Straßburger Marko
A14: 1 | B14: =IF(D14="","",Berechnung!B27) ->  | C14: =Berechnung!C27 -> C4 | D14: =IFERROR(VLOOKUP(C14,Spieler!$I$2:$J$41,2,FALSE),"") ->  | E14: =Berechnung!E27 -> 0 | F14: =Berechnung!F27 -> 0 | G14: =Berechnung!G27 -> 0 | H14: =Berechnung!J27 -> 0 | I14: =Berechnung!H27 -> 0 | J14: =Berechnung!I27 -> 0 | K14: =Berechnung!K27 -> 0 | L14: =Berechnung!L27 -> 0 | M14: =Berechnung!M27 -> -200000 | N14: =Berechnung!N27 ->  | P14: =D14 ->  | R14: =IF(T14="","",Berechnung!B38) ->  | S14: =Berechnung!C38 -> D4 | T14: =IFERROR(VLOOKUP(S14,Spieler!$I$2:$J$41,2,FALSE),"") ->  | U14: =Berechnung!E38 -> 0 | V14: =Berechnung!F38 -> 0 | W14: =Berechnung!G38 -> 0 | X14: =Berechnung!J38 -> 0 | Y14: =Berechnung!H38 -> 0 | Z14: =Berechnung!I38 -> 0 | AA14: =Berechnung!K38 -> 0 | AB14: =Berechnung!L38 -> 0 | AC14: =Berechnung!M38 -> -200000 | AD14: =Berechnung!N38 ->  | AF14: =T14 -> 
A15: 1 | B15: =IF(D15="","",Berechnung!B28) ->  | C15: =Berechnung!C28 -> C5 | D15: =IFERROR(VLOOKUP(C15,Spieler!$I$2:$J$41,2,FALSE),"") ->  | E15: =Berechnung!E28 -> 0 | F15: =Berechnung!F28 -> 0 | G15: =Berechnung!G28 -> 0 | H15: =Berechnung!J28 -> 0 | I15: =Berechnung!H28 -> 0 | J15: =Berechnung!I28 -> 0 | K15: =Berechnung!K28 -> 0 | L15: =Berechnung!L28 -> 0 | M15: =Berechnung!M28 -> -200000 | N15: =Berechnung!N28 ->  | P15: =D15 ->  | R15: =IF(T15="","",Berechnung!B39) ->  | S15: =Berechnung!C39 -> D5 | T15: =IFERROR(VLOOKUP(S15,Spieler!$I$2:$J$41,2,FALSE),"") ->  | U15: =Berechnung!E39 -> 0 | V15: =Berechnung!F39 -> 0 | W15: =Berechnung!G39 -> 0 | X15: =Berechnung!J39 -> 0 | Y15: =Berechnung!H39 -> 0 | Z15: =Berechnung!I39 -> 0 | AA15: =Berechnung!K39 -> 0 | AB15: =Berechnung!L39 -> 0 | AC15: =Berechnung!M39 -> -200000 | AD15: =Berechnung!N39 ->  | AF15: =T15 -> 
A17: 0 | B17: GRUPPE E | R17: GRUPPE F
A18: 0 | B18: =IF(D19="",0,1) -> 1 | D18: =Berechnung!D45 -> Spieler | E18: =Berechnung!E45 -> M | F18: =Berechnung!F45 -> W | G18: =Berechnung!G45 -> L | H18: U | I18: F+ | J18: F- | K18: =Berechnung!K45 -> 0 | L18: =Berechnung!L45 -> 0 | M18: =Berechnung!M45 -> Rang | N18: =Berechnung!N45 -> Rang | O18: =Berechnung!O45 -> P+ | R18: =IF(T19="",0,1) -> 1 | T18: =Berechnung!D56 -> Spieler | U18: =Berechnung!E56 -> M | V18: =Berechnung!F56 -> W | W18: =Berechnung!G56 -> L | X18: U | Y18: F+ | Z18: F- | AA18: =Berechnung!K56 -> 0 | AB18: =Berechnung!L56 -> 0 | AC18: =Berechnung!M56 -> Rang | AD18: =Berechnung!N56 -> Rang | AE18: =Berechnung!O56 -> P+
A19: 0 | B19: =IF(D19="","",Berechnung!B46) -> 1 | C19: =Berechnung!C46 -> E1 | D19: =IFERROR(VLOOKUP(C19,Spieler!$I$2:$J$41,2,FALSE),"") -> Swennen Andy | E19: =Berechnung!E46 -> 2 | F19: =Berechnung!F46 -> 0 | G19: =Berechnung!G46 -> 2 | H19: =Berechnung!J46 -> 0 | I19: =Berechnung!H46 -> 0 | J19: =Berechnung!I46 -> 4 | K19: =Berechnung!K46 -> 0 | L19: =Berechnung!L46 -> 0 | M19: =Berechnung!M46 -> -23998 | N19: =Berechnung!N46 -> 3 | P19: =D19 -> Swennen Andy | Q19: =IF(OR(T19="",T19=0),7,0) -> 0 | R19: =IF(T19="","",Berechnung!B57) -> 1 | S19: =Berechnung!C57 -> F1 | T19: =IFERROR(VLOOKUP(S19,Spieler!$I$2:$J$41,2,FALSE),"") -> Jeroch Paul | U19: =Berechnung!E57 -> 2 | V19: =Berechnung!F57 -> 2 | W19: =Berechnung!G57 -> 0 | X19: =Berechnung!J57 -> 0 | Y19: =Berechnung!H57 -> 4 | Z19: =Berechnung!I57 -> 1 | AA19: =Berechnung!K57 -> 0 | AB19: =Berechnung!L57 -> 0 | AC19: =Berechnung!M57 -> 23002 | AD19: =Berechnung!N57 -> 1 | AF19: =T19 -> Jeroch Paul
A20: 0 | B20: =IF(D20="","",Berechnung!B47) -> 2 | C20: =Berechnung!C47 -> E2 | D20: =IFERROR(VLOOKUP(C20,Spieler!$I$2:$J$41,2,FALSE),"") -> Fandrei Andreas | E20: =Berechnung!E47 -> 2 | F20: =Berechnung!F47 -> 1 | G20: =Berechnung!G47 -> 1 | H20: =Berechnung!J47 -> 0 | I20: =Berechnung!H47 -> 2 | J20: =Berechnung!I47 -> 2 | K20: =Berechnung!K47 -> 0 | L20: =Berechnung!L47 -> 0 | M20: =Berechnung!M47 -> 2 | N20: =Berechnung!N47 -> 2 | P20: =D20 -> Fandrei Andreas | R20: =IF(T20="","",Berechnung!B58) -> 2 | S20: =Berechnung!C58 -> F2 | T20: =IFERROR(VLOOKUP(S20,Spieler!$I$2:$J$41,2,FALSE),"") -> Müller Marcus | U20: =Berechnung!E58 -> 2 | V20: =Berechnung!F58 -> 1 | W20: =Berechnung!G58 -> 1 | X20: =Berechnung!J58 -> 0 | Y20: =Berechnung!H58 -> 2 | Z20: =Berechnung!I58 -> 2 | AA20: =Berechnung!K58 -> 0 | AB20: =Berechnung!L58 -> 0 | AC20: =Berechnung!M58 -> 2 | AD20: =Berechnung!N58 -> 2 | AF20: =T20 -> Müller Marcus
A21: 0 | B21: =IF(D21="","",Berechnung!B48) -> 3 | C21: =Berechnung!C48 -> E3 | D21: =IFERROR(VLOOKUP(C21,Spieler!$I$2:$J$41,2,FALSE),"") -> Delling Tino | E21: =Berechnung!E48 -> 2 | F21: =Berechnung!F48 -> 2 | G21: =Berechnung!G48 -> 0 | H21: =Berechnung!J48 -> 0 | I21: =Berechnung!H48 -> 4 | J21: =Berechnung!I48 -> 0 | K21: =Berechnung!K48 -> 0 | L21: =Berechnung!L48 -> 0 | M21: =Berechnung!M48 -> 24002 | N21: =Berechnung!N48 -> 1 | P21: =D21 -> Delling Tino | R21: =IF(T21="","",Berechnung!B59) -> 3 | S21: =Berechnung!C59 -> F3 | T21: =IFERROR(VLOOKUP(S21,Spieler!$I$2:$J$41,2,FALSE),"") -> Rejke Ronny | U21: =Berechnung!E59 -> 2 | V21: =Berechnung!F59 -> 0 | W21: =Berechnung!G59 -> 2 | X21: =Berechnung!J59 -> 0 | Y21: =Berechnung!H59 -> 1 | Z21: =Berechnung!I59 -> 4 | AA21: =Berechnung!K59 -> 0 | AB21: =Berechnung!L59 -> 0 | AC21: =Berechnung!M59 -> -22998 | AD21: =Berechnung!N59 -> 3 | AF21: =T21 -> Rejke Ronny
A22: 1 | B22: =IF(D22="","",Berechnung!B49) ->  | C22: =Berechnung!C49 -> E4 | D22: =IFERROR(VLOOKUP(C22,Spieler!$I$2:$J$41,2,FALSE),"") ->  | E22: =Berechnung!E49 -> 0 | F22: =Berechnung!F49 -> 0 | G22: =Berechnung!G49 -> 0 | H22: =Berechnung!J49 -> 0 | I22: =Berechnung!H49 -> 0 | J22: =Berechnung!I49 -> 0 | K22: =Berechnung!K49 -> 0 | L22: =Berechnung!L49 -> 0 | M22: =Berechnung!M49 -> -200000 | N22: =Berechnung!N49 ->  | P22: =D22 ->  | R22: =IF(T22="","",Berechnung!B60) ->  | S22: =Berechnung!C60 -> F4 | T22: =IFERROR(VLOOKUP(S22,Spieler!$I$2:$J$41,2,FALSE),"") ->  | U22: =Berechnung!E60 -> 0 | V22: =Berechnung!F60 -> 0 | W22: =Berechnung!G60 -> 0 | X22: =Berechnung!J60 -> 0 | Y22: =Berechnung!H60 -> 0 | Z22: =Berechnung!I60 -> 0 | AA22: =Berechnung!K60 -> 0 | AB22: =Berechnung!L60 -> 0 | AC22: =Berechnung!M60 -> -200000 | AD22: =Berechnung!N60 ->  | AF22: =T22 -> 
A23: 1 | B23: =IF(D23="","",Berechnung!B50) ->  | C23: =Berechnung!C50 -> E5 | D23: =IFERROR(VLOOKUP(C23,Spieler!$I$2:$J$41,2,FALSE),"") ->  | E23: =Berechnung!E50 -> 0 | F23: =Berechnung!F50 -> 0 | G23: =Berechnung!G50 -> 0 | H23: =Berechnung!J50 -> 0 | I23: =Berechnung!H50 -> 0 | J23: =Berechnung!I50 -> 0 | K23: =Berechnung!K50 -> 0 | L23: =Berechnung!L50 -> 0 | M23: =Berechnung!M50 -> -200000 | N23: =Berechnung!N50 ->  | P23: =D23 ->  | R23: =IF(T23="","",Berechnung!B61) ->  | S23: =Berechnung!C61 -> F5 | T23: =IFERROR(VLOOKUP(S23,Spieler!$I$2:$J$41,2,FALSE),"") ->  | U23: =Berechnung!E61 -> 0 | V23: =Berechnung!F61 -> 0 | W23: =Berechnung!G61 -> 0 | X23: =Berechnung!J61 -> 0 | Y23: =Berechnung!H61 -> 0 | Z23: =Berechnung!I61 -> 0 | AA23: =Berechnung!K61 -> 0 | AB23: =Berechnung!L61 -> 0 | AC23: =Berechnung!M61 -> -200000 | AD23: =Berechnung!N61 ->  | AF23: =T23 -> 
A25: 0 | B25: GRUPPE G | R25: GRUPPE H
A26: 0 | B26: =IF(D27="",0,1) -> 1 | D26: =Berechnung!D67 -> Spieler | E26: =Berechnung!E67 -> M | F26: =Berechnung!F67 -> W | G26: =Berechnung!G67 -> L | H26: U | I26: F+ | J26: F- | K26: =Berechnung!K67 -> 0 | L26: =Berechnung!L67 -> 0 | M26: =Berechnung!M67 -> Rang | N26: =Berechnung!N67 -> Rang | O26: =Berechnung!O67 -> P+ | R26: =IF(T27="",0,1) -> 1 | T26: =Berechnung!D78 -> Spieler | U26: =Berechnung!E78 -> M | V26: =Berechnung!F78 -> W | W26: =Berechnung!G78 -> L | X26: U | Y26: F+ | Z26: F- | AA26: =Berechnung!K78 -> 0 | AB26: =Berechnung!L78 -> 0 | AC26: =Berechnung!M78 -> Rang | AD26: =Berechnung!N78 -> Rang | AE26: =Berechnung!O78 -> P+
A27: 0 | B27: =IF(D27="","",Berechnung!B68) -> 1 | C27: =Berechnung!C68 -> G1 | D27: =IFERROR(VLOOKUP(C27,Spieler!$I$2:$J$41,2,FALSE),"") -> Löffel Ulrich | E27: =Berechnung!E68 -> 2 | F27: =Berechnung!F68 -> 0 | G27: =Berechnung!G68 -> 2 | H27: =Berechnung!J68 -> 0 | I27: =Berechnung!H68 -> 0 | J27: =Berechnung!I68 -> 4 | K27: =Berechnung!K68 -> 0 | L27: =Berechnung!L68 -> 0 | M27: =Berechnung!M68 -> -23998 | N27: =Berechnung!N68 -> 3 | P27: =D27 -> Löffel Ulrich | Q27: =IF(OR(T27="",T27=0),9,0) -> 0 | R27: =IF(T27="","",Berechnung!B79) -> 1 | S27: =Berechnung!C79 -> H1 | T27: =IFERROR(VLOOKUP(S27,Spieler!$I$2:$J$41,2,FALSE),"") -> Elham Faiz | U27: =Berechnung!E79 -> 2 | V27: =Berechnung!F79 -> 0 | W27: =Berechnung!G79 -> 2 | X27: =Berechnung!J79 -> 0 | Y27: =Berechnung!H79 -> 1 | Z27: =Berechnung!I79 -> 4 | AA27: =Berechnung!K79 -> 0 | AB27: =Berechnung!L79 -> 0 | AC27: =Berechnung!M79 -> -22998 | AD27: =Berechnung!N79 -> 3 | AF27: =T27 -> Elham Faiz
A28: 0 | B28: =IF(D28="","",Berechnung!B69) -> 2 | C28: =Berechnung!C69 -> G2 | D28: =IFERROR(VLOOKUP(C28,Spieler!$I$2:$J$41,2,FALSE),"") -> Stachly Marec | E28: =Berechnung!E69 -> 2 | F28: =Berechnung!F69 -> 2 | G28: =Berechnung!G69 -> 0 | H28: =Berechnung!J69 -> 0 | I28: =Berechnung!H69 -> 4 | J28: =Berechnung!I69 -> 0 | K28: =Berechnung!K69 -> 0 | L28: =Berechnung!L69 -> 0 | M28: =Berechnung!M69 -> 24002 | N28: =Berechnung!N69 -> 1 | P28: =D28 -> Stachly Marec | R28: =IF(T28="","",Berechnung!B80) -> 2 | S28: =Berechnung!C80 -> H2 | T28: =IFERROR(VLOOKUP(S28,Spieler!$I$2:$J$41,2,FALSE),"") -> Fandrei Joel | U28: =Berechnung!E80 -> 2 | V28: =Berechnung!F80 -> 2 | W28: =Berechnung!G80 -> 0 | X28: =Berechnung!J80 -> 0 | Y28: =Berechnung!H80 -> 4 | Z28: =Berechnung!I80 -> 1 | AA28: =Berechnung!K80 -> 0 | AB28: =Berechnung!L80 -> 0 | AC28: =Berechnung!M80 -> 23002 | AD28: =Berechnung!N80 -> 1 | AF28: =T28 -> Fandrei Joel
A29: 0 | B29: =IF(D29="","",Berechnung!B70) -> 3 | C29: =Berechnung!C70 -> G3 | D29: =IFERROR(VLOOKUP(C29,Spieler!$I$2:$J$41,2,FALSE),"") -> Hofmann Frank | E29: =Berechnung!E70 -> 2 | F29: =Berechnung!F70 -> 1 | G29: =Berechnung!G70 -> 1 | H29: =Berechnung!J70 -> 0 | I29: =Berechnung!H70 -> 2 | J29: =Berechnung!I70 -> 2 | K29: =Berechnung!K70 -> 0 | L29: =Berechnung!L70 -> 0 | M29: =Berechnung!M70 -> 2 | N29: =Berechnung!N70 -> 2 | P29: =D29 -> Hofmann Frank | R29: =IF(T29="","",Berechnung!B81) -> 3 | S29: =Berechnung!C81 -> H3 | T29: =IFERROR(VLOOKUP(S29,Spieler!$I$2:$J$41,2,FALSE),"") -> Thomas Moritz | U29: =Berechnung!E81 -> 2 | V29: =Berechnung!F81 -> 1 | W29: =Berechnung!G81 -> 1 | X29: =Berechnung!J81 -> 0 | Y29: =Berechnung!H81 -> 3 | Z29: =Berechnung!I81 -> 3 | AA29: =Berechnung!K81 -> 0 | AB29: =Berechnung!L81 -> 0 | AC29: =Berechnung!M81 -> 2 | AD29: =Berechnung!N81 -> 2 | AF29: =T29 -> Thomas Moritz
A30: 1 | B30: =IF(D30="","",Berechnung!B71) ->  | C30: =Berechnung!C71 -> G4 | D30: =IFERROR(VLOOKUP(C30,Spieler!$I$2:$J$41,2,FALSE),"") ->  | E30: =Berechnung!E71 -> 0 | F30: =Berechnung!F71 -> 0 | G30: =Berechnung!G71 -> 0 | H30: =Berechnung!J71 -> 0 | I30: =Berechnung!H71 -> 0 | J30: =Berechnung!I71 -> 0 | K30: =Berechnung!K29 -> 0 | L30: =Berechnung!L29 -> 0 | M30: =Berechnung!M71 -> -200000 | N30: =Berechnung!N71 ->  | P30: =D30 ->  | R30: =IF(T30="","",Berechnung!B82) ->  | S30: =Berechnung!C82 -> H4 | T30: =IFERROR(VLOOKUP(S30,Spieler!$I$2:$J$41,2,FALSE),"") ->  | U30: =Berechnung!E82 -> 0 | V30: =Berechnung!F82 -> 0 | W30: =Berechnung!G82 -> 0 | X30: =Berechnung!J82 -> 0 | Y30: =Berechnung!H82 -> 0 | Z30: =Berechnung!I82 -> 0 | AA30: =Berechnung!K82 -> 0 | AB30: =Berechnung!L82 -> 0 | AC30: =Berechnung!M82 -> -200000 | AD30: =Berechnung!N82 ->  | AF30: =T30 -> 
A31: 1 | B31: =IF(D31="","",Berechnung!B72) ->  | C31: =Berechnung!C72 -> G5 | D31: =IFERROR(VLOOKUP(C31,Spieler!$I$2:$J$41,2,FALSE),"") ->  | E31: =Berechnung!E30 -> 0 | F31: =Berechnung!F30 -> 0 | G31: =Berechnung!G30 -> 0 | H31: =Berechnung!J72 -> 0 | I31: =Berechnung!H72 -> 0 | J31: =Berechnung!I72 -> 0 | K31: =Berechnung!K30 -> 0 | L31: =Berechnung!L30 -> 0 | M31: =Berechnung!M72 -> -200000 | N31: =Berechnung!N72 ->  | P31: =D31 ->  | R31: =IF(T31="","",Berechnung!B83) ->  | S31: =Berechnung!C83 -> H5 | T31: =IFERROR(VLOOKUP(S31,Spieler!$I$2:$J$41,2,FALSE),"") ->  | U31: =Berechnung!E83 -> 0 | V31: =Berechnung!F83 -> 0 | W31: =Berechnung!G83 -> 0 | X31: =Berechnung!J83 -> 0 | Y31: =Berechnung!H83 -> 0 | Z31: =Berechnung!I83 -> 0 | AA31: =Berechnung!K83 -> 0 | AB31: =Berechnung!L83 -> 0 | AC31: =Berechnung!M83 -> -200000 | AD31: =Berechnung!N83 ->  | AF31: =T31 -> 

Sheet Matches
A1: =E112 -> 24 | B1: Nr. | C1: Gr. | E1: Startzeit | F1: Endzeit | G1: Dauer | H1: Spieler | J1: Spieler | K1: Break 30+ | O1: Match | Q1: Break 30+ | W1: 23:13:11 | X1: 13:34:28 | Y1: 12:18:14 | Z1: =Y1+AA1 -> 13:13:14 | AA1: =Spieler!AA14 -> 00:55:00 | AB1: HB SP1 | AD1: Anzahl1 | AE1: Anzahl2 | AG1: HB SP2
A2: =Berechnung!AX2 -> 0 | B2: =Berechnung!BH2 -> 1 | C2: =Berechnung!BF2 -> A | D2: =Berechnung!BA2 -> 0 | E2: 13:03:00 | F2: 14:07:54 | G2: =IF(F2="","",F2-E2) -> 01:04:54 | H2: =Berechnung!Z2 -> Valderrama Salvador | I2: =IF(H2>"","v","") -> v | J2: =Berechnung!AA2 -> Brachmanski Dave | O2: 2 | P2: 0 | Z2: =IF(E2="","",IF(AND(E2>"",O2+P2>1),3,IF(O2+P2>=2,3,IF($Y$1>AA2,1,0)))) -> 3 | AA2: =IF(E2="","",E2+$AA$1) -> 13:58:00 | AB2: =IFERROR(LARGE(K2:N2,1),"") ->  | AC2: =H2 -> Valderrama Salvador | AD2: =IF(K2>0,1)+IF(L2>0,1)+IF(M2>0,1)+IF(N2>0,1) -> 0 | AE2: =IF(Q2>0,1)+IF(R2>0,1)+IF(S2>0,1)+IF(T2>0,1) -> 0 | AG2: =IFERROR(LARGE(Q2:T2,1),"") ->  | AH2: =J2 -> Brachmanski Dave
A3: =Berechnung!AX3 -> 0 | B3: =Berechnung!BH3 -> 2 | C3: =Berechnung!BF3 -> B | D3: =Berechnung!BA3 -> 0 | E3: 10:04:00 | F3: 10:56:22 | G3: =IF(F3="","",F3-E3) -> 00:52:22 | H3: =Berechnung!Z3 -> Drahn Robert | I3: =IF(H3>"","v","") -> v | J3: =Berechnung!AA3 -> Brömel Frank | O3: 2 | P3: 0 | Z3: 3 | AA3: 10:59:00 | AC3: Drahn Robert | AD3: 0 | AE3: =IF(Q3>0,1)+IF(R3>0,1)+IF(S3>0,1)+IF(T3>0,1) -> 0 | AH3: Brömel Frank
A4: =Berechnung!AX4 -> 0 | B4: =Berechnung!BH4 -> 3 | C4: =Berechnung!BF4 -> C | D4: =Berechnung!BA4 -> 0 | E4: 10:04:00 | F4: 11:16:32 | G4: =IF(F4="","",F4-E4) -> 01:12:32 | H4: =Berechnung!Z4 -> Behling Oliver | I4: v | J4: =Berechnung!AA4 -> Witzik Oliver | O4: 0 | P4: 2 | Z4: 3 | AA4: 10:59:00 | AC4: Behling Oliver | AD4: 0 | AE4: 0 | AH4: Witzik Oliver
A5: =Berechnung!AX5 -> 0 | B5: =Berechnung!BH5 -> 4 | C5: =Berechnung!BF5 -> D | D5: =Berechnung!BA5 -> 0 | E5: 10:04:00 | F5: 10:52:07 | G5: 00:48:07 | H5: =Berechnung!Z5 -> Hartung Andreas | I5: v | J5: =Berechnung!AA5 -> Suttner Magnus | O5: 0 | P5: 2 | Z5: 3 | AA5: 10:59:00 | AC5: Hartung Andreas | AD5: 0 | AE5: 0 | AH5: Suttner Magnus
A6: =Berechnung!AX6 -> 0 | B6: =Berechnung!BH6 -> 5 | C6: =Berechnung!BF6 -> E | D6: =Berechnung!BA6 -> 0 | E6: 10:04:00 | F6: 10:54:00 | G6: 00:50:00 | H6: =Berechnung!Z6 -> Swennen Andy | I6: v | J6: =Berechnung!AA6 -> Fandrei Andreas | O6: 0 | P6: 2 | Z6: 3 | AA6: 10:59:00 | AC6: Swennen Andy | AD6: 0 | AE6: 0 | AH6: Fandrei Andreas
A7: =Berechnung!AX7 -> 0 | B7: =Berechnung!BH7 -> 6 | C7: =Berechnung!BF7 -> F | D7: =Berechnung!BA7 -> 0 | E7: 10:52:00 | F7: 11:42:08 | G7: 00:50:08 | H7: =Berechnung!Z7 -> Jeroch Paul | I7: v | J7: =Berechnung!AA7 -> Müller Marcus | K7: 63 | L7: 38 | O7: 2 | P7: 0 | Z7: 3 | AA7: 11:47:00 | AB7: 63 | AC7: Jeroch Paul | AD7: 2 | AE7: 0 | AH7: Müller Marcus
A8: =Berechnung!AX8 -> 0 | B8: =Berechnung!BH8 -> 7 | C8: =Berechnung!BF8 -> G | D8: =Berechnung!BA8 -> 0 | E8: 10:54:00 | F8: 11:57:27 | G8: 01:03:27 | H8: =Berechnung!Z8 -> Löffel Ulrich | I8: v | J8: =Berechnung!AA8 -> Stachly Marec | O8: 0 | P8: 2 | Z8: 3 | AA8: 11:49:00 | AC8: Löffel Ulrich | AD8: 0 | AE8: 0 | AH8: Stachly Marec | AK8: speichert unter C:\Users\Public\Videos
A9: =Berechnung!AX9 -> 0 | B9: =Berechnung!BH9 -> 8 | C9: =Berechnung!BF9 -> H | D9: =Berechnung!BA9 -> 0 | E9: 10:56:00 | F9: 11:53:21 | G9: 00:57:21 | H9: =Berechnung!Z9 -> Elham Faiz | I9: v | J9: =Berechnung!AA9 -> Fandrei Joel | O9: 0 | P9: 2 | Q9: 44 | Z9: 3 | AA9: 11:51:00 | AC9: Elham Faiz | AD9: 0 | AE9: 1 | AG9: 44 | AH9: Fandrei Joel | AK9: 148 | AL9: Freigabe-Code Finals
A10: =Berechnung!AX10 -> 0 | B10: =Berechnung!BH10 -> 9 | C10: =Berechnung!BF10 -> A | D10: =Berechnung!BA10 -> 0 | E10: 14:49:00 | F10: 15:50:36 | G10: 01:01:36 | H10: =Berechnung!Z10 -> Valderrama Salvador | I10: v | J10: =Berechnung!AA10 -> Gärtner David | O10: 1 | P10: 2 | Q10: 32 | Z10: 3 | AA10: 15:44:00 | AC10: Valderrama Salvador | AD10: 0 | AE10: 1 | AG10: 32 | AH10: Gärtner David
A11: =Berechnung!AX11 -> 0 | B11: =Berechnung!BH11 -> 10 | C11: =Berechnung!BF11 -> B | D11: =Berechnung!BA11 -> 0 | E11: 11:53:00 | F11: 12:32:25 | G11: 00:39:25 | H11: =Berechnung!Z11 -> Drahn Robert | I11: v | J11: =Berechnung!AA11 -> Weber Marco | O11: 0 | P11: 2 | Q11: 53 | Z11: 3 | AA11: 12:48:00 | AC11: Drahn Robert | AD11: 0 | AE11: 1 | AG11: 53 | AH11: Weber Marco | AK11: Die Vorrunde ist abgeschlossen?
A12: =Berechnung!AX12 -> 0 | B12: =Berechnung!BH12 -> 11 | C12: =Berechnung!BF12 -> C | D12: =Berechnung!BA12 -> 0 | E12: 11:55:00 | F12: 13:20:44 | G12: 01:25:44 | H12: =Berechnung!Z12 -> Behling Oliver | I12: v | J12: =Berechnung!AA12 -> Isermann Rene | O12: 2 | P12: 0 | Y12: TRUE | Z12: 3 | AA12: 12:50:00 | AC12: Behling Oliver | AD12: 0 | AE12: 0 | AH12: Isermann Rene | AK12: Haken setzen!
A13: =Berechnung!AX13 -> 0 | B13: =Berechnung!BH13 -> 12 | C13: =Berechnung!BF13 -> D | D13: =Berechnung!BA13 -> 0 | E13: 12:00:00 | F13: 13:03:45 | G13: 01:03:45 | H13: =Berechnung!Z13 -> Hartung Andreas | I13: v | J13: =Berechnung!AA13 -> Straßburger Marko | O13: 1 | P13: 2 | Z13: 3 | AA13: 12:55:00 | AC13: Hartung Andreas | AD13: 0 | AE13: 0 | AH13: Straßburger Marko | AK13: Die Auslosung der Achtelfinals erfolgt!
A14: =Berechnung!AX14 -> 0 | B14: =Berechnung!BH14 -> 13 | C14: =Berechnung!BF14 -> E | D14: =Berechnung!BA14 -> 0 | E14: 12:27:00 | F14: 13:13:56 | G14: 00:46:56 | H14: =Berechnung!Z14 -> Swennen Andy | I14: v | J14: =Berechnung!AA14 -> Delling Tino | O14: 0 | P14: 2 | Y14: ACHTUNG!
A15: =Berechnung!AX15 -> 0 | B15: =Berechnung!BH15 -> 14 | C15: =Berechnung!BF15 -> F | D15: =Berechnung!BA15 -> 0 | E15: 12:43:00 | F15: 13:59:05 | G15: 01:16:05 | H15: =Berechnung!Z15 -> Jeroch Paul | I15: v | J15: =Berechnung!AA15 -> Rejke Ronny | O15: 2 | P15: 1 | Y15: Das Tabellenblatt wird deaktiviert!
A16: =Berechnung!AX16 -> 0 | B16: =Berechnung!BH16 -> 15 | C16: =Berechnung!BF16 -> G | D16: =Berechnung!BA16 -> 0 | E16: 13:15:00 | F16: 14:24:32 | G16: 01:09:32 | H16: =Berechnung!Z16 -> Löffel Ulrich | I16: v | J16: =Berechnung!AA16 -> Hofmann Frank | O16: 0 | P16: 2 | Z16: 3 | AA16: 14:10:00 | AC16: Löffel Ulrich | AD16: 0 | AE16: 0 | AH16: Hofmann Frank
A17: =Berechnung!AX17 -> 0 | B17: =Berechnung!BH17 -> 16 | C17: =Berechnung!BF17 -> H | D17: =Berechnung!BA17 -> 0 | E17: 13:20:00 | F17: 14:40:13 | G17: 01:20:13 | H17: =Berechnung!Z17 -> Elham Faiz | I17: v | J17: =Berechnung!AA17 -> Thomas Moritz | K17: 32 | O17: 1 | P17: 2 | Z17: 3 | AA17: 14:15:00 | AB17: 32 | AC17: Elham Faiz | AD17: 1 | AE17: 0 | AH17: Thomas Moritz
A18: =Berechnung!AX18 -> 0 | B18: =Berechnung!BH18 -> 17 | C18: =Berechnung!BF18 -> A | D18: =Berechnung!BA18 -> 0 | E18: 11:22:00 | F18: 12:23:10 | G18: 01:01:10 | H18: =Berechnung!Z18 -> Brachmanski Dave | I18: v | J18: =Berechnung!AA18 -> Gärtner David | O18: 1 | P18: 2 | Z18: 3 | AA18: 12:17:00 | AC18: Brachmanski Dave | AD18: 0 | AE18: 0 | AH18: Gärtner David
A19: =Berechnung!AX19 -> 0 | B19: =Berechnung!BH19 -> 18 | C19: =Berechnung!BF19 -> B | D19: =Berechnung!BA19 -> 0 | E19: 14:06:00 | F19: 14:43:59 | G19: 00:37:59 | H19: =Berechnung!Z19 -> Brömel Frank | I19: v | J19: =Berechnung!AA19 -> Weber Marco | O19: 0 | P19: 2 | Z19: 3 | AA19: 15:01:00 | AC19: Brömel Frank | AD19: 0 | AE19: 0 | AH19: Weber Marco
A20: =Berechnung!AX20 -> 0 | B20: =Berechnung!BH20 -> 19 | C20: =Berechnung!BF20 -> C | D20: =Berechnung!BA20 -> 0 | E20: 14:19:00 | F20: 15:07:02 | G20: 00:48:02 | H20: =Berechnung!Z20 -> Witzik Oliver | I20: v | J20: =Berechnung!AA20 -> Isermann Rene | O20: 2 | P20: 0 | Z20: 3 | AA20: 15:14:00 | AC20: Witzik Oliver | AD20: 0 | AE20: 0 | AH20: Isermann Rene
A21: =Berechnung!AX21 -> 0 | B21: =Berechnung!BH21 -> 20 | C21: =Berechnung!BF21 -> D | D21: =Berechnung!BA21 -> 0 | E21: 14:35:00 | F21: 16:00:38 | G21: 01:25:38 | H21: =Berechnung!Z21 -> Suttner Magnus | I21: v | J21: =Berechnung!AA21 -> Straßburger Marko | O21: 1 | P21: 2 | Z21: 3 | AA21: 15:30:00 | AC21: Suttner Magnus | AD21: 0 | AE21: 0 | AH21: Straßburger Marko
A22: =Berechnung!AX22 -> 0 | B22: =Berechnung!BH22 -> 21 | C22: =Berechnung!BF22 -> E | D22: =Berechnung!BA22 -> 0 | E22: 14:45:00 | F22: 15:35:39 | G22: 00:50:39 | H22: =Berechnung!Z22 -> Fandrei Andreas | I22: v | J22: =Berechnung!AA22 -> Delling Tino | O22: 0 | P22: 2 | Z22: 3 | AA22: 15:40:00 | AC22: Fandrei Andreas | AD22: 0 | AE22: 0 | AH22: Delling Tino
A23: =Berechnung!AX23 -> 0 | B23: =Berechnung!BH23 -> 22 | C23: =Berechnung!BF23 -> F | D23: =Berechnung!BA23 -> 0 | E23: 15:13:00 | F23: 16:15:48 | G23: 01:02:48 | H23: =Berechnung!Z23 -> Müller Marcus | I23: v | J23: =Berechnung!AA23 -> Rejke Ronny | O23: 2 | P23: 0 | Z23: 3 | AA23: 16:08:00 | AC23: Müller Marcus | AD23: 0 | AE23: 0 | AH23: Rejke Ronny
A24: =Berechnung!AX24 -> 0 | B24: =Berechnung!BH24 -> 23 | C24: =Berechnung!BF24 -> G | D24: =Berechnung!BA24 -> 0 | E24: 15:35:00 | F24: 16:10:56 | G24: 00:35:56 | H24: =Berechnung!Z24 -> Stachly Marec | I24: v | J24: =Berechnung!AA24 -> Hofmann Frank | K24: 30 | O24: 2 | P24: 0 | Z24: 3 | AA24: 16:30:00 | AB24: 30 | AC24: Stachly Marec | AD24: 1 | AE24: 0 | AH24: Hofmann Frank
A25: =Berechnung!AX25 -> 0 | B25: =Berechnung!BH25 -> 24 | C25: =Berechnung!BF25 -> H | D25: =Berechnung!BA25 -> 0 | E25: 15:55:00 | F25: 16:45:20 | G25: 00:50:20 | H25: =Berechnung!Z25 -> Fandrei Joel | I25: v | J25: =Berechnung!AA25 -> Thomas Moritz | O25: 2 | P25: 1 | Z25: 3 | AA25: 16:50:00 | AC25: Fandrei Joel | AD25: 0 | AE25: 0 | AH25: Thomas Moritz
A26: =Berechnung!AX26 -> 0 | B26: =Berechnung!BH26 ->  | C26: =Berechnung!BF26 ->  | D26: =Berechnung!BA26 -> 0 | H26: =Berechnung!Z26 ->  | J26: =Berechnung!AA26 ->  | AD26: 0 | AE26: 0
A27: =Berechnung!AX27 -> 0 | B27: =Berechnung!BH27 ->  | C27: =Berechnung!BF27 ->  | D27: =Berechnung!BA27 -> 0 | H27: =Berechnung!Z27 ->  | J27: =Berechnung!AA27 ->  | AD27: 0 | AE27: 0
A28: =Berechnung!AX28 -> 0 | B28: =Berechnung!BH28 ->  | C28: =Berechnung!BF28 ->  | D28: =Berechnung!BA28 -> 0 | H28: =Berechnung!Z28 ->  | J28: =Berechnung!AA28 ->  | AD28: 0 | AE28: 0
A29: =Berechnung!AX29 -> 0 | B29: =Berechnung!BH29 ->  | C29: =Berechnung!BF29 ->  | D29: =Berechnung!BA29 -> 0 | H29: =Berechnung!Z29 ->  | J29: =Berechnung!AA29 ->  | AD29: 0 | AE29: 0
A30: =Berechnung!AX30 -> 0 | B30: =Berechnung!BH30 ->  | C30: =Berechnung!BF30 ->  | D30: =Berechnung!BA30 -> 0 | H30: =Berechnung!Z30 ->  | J30: =Berechnung!AA30 ->  | AD30: 0 | AE30: 0
A31: =Berechnung!AX31 -> 0 | B31: =Berechnung!BH31 ->  | C31: =Berechnung!BF31 ->  | D31: =Berechnung!BA31 -> 0 | H31: =Berechnung!Z31 ->  | J31: =Berechnung!AA31 ->  | AD31: 0 | AE31: 0
A32: =Berechnung!AX32 -> 0 | B32: =Berechnung!BH32 ->  | C32: =Berechnung!BF32 ->  | D32: =Berechnung!BA32 -> 0 | H32: =Berechnung!Z32 ->  | J32: =Berechnung!AA32 ->  | AD32: 0 | AE32: 0
A33: =Berechnung!AX33 -> 0 | B33: =Berechnung!BH33 ->  | C33: =Berechnung!BF33 ->  | D33: =Berechnung!BA33 -> 0 | H33: =Berechnung!Z33 ->  | J33: =Berechnung!AA33 ->  | AD33: 0 | AE33: 0
A34: =Berechnung!AX34 -> 0 | B34: =Berechnung!BH34 ->  | C34: =Berechnung!BF34 ->  | D34: =Berechnung!BA34 -> 0 | H34: =Berechnung!Z34 ->  | J34: =Berechnung!AA34 ->  | Z34: =IF(E34="","",IF(AND(E34>"",O34+P34>1),3,IF(O34+P34>=2,3,IF($Y$1>AA34,1,0)))) ->  | AA34: =IF(E34="","",E34+$AA$1) ->  | AB34: =IFERROR(LARGE(K34:N34,1),"") ->  | AC34: =H34 ->  | AD34: =IF(K34>0,1)+IF(L34>0,1)+IF(M34>0,1)+IF(N34>0,1) -> 0 | AE34: 0 | AG34: =IFERROR(LARGE(Q34:T34,1),"") ->  | AH34: =J34 -> 
A35: =Berechnung!AX35 -> 0 | B35: =Berechnung!BH35 ->  | C35: =Berechnung!BF35 ->  | D35: =Berechnung!BA35 -> 0 | H35: =Berechnung!Z35 ->  | J35: =Berechnung!AA35 ->  | AD35: 0 | AE35: 0
A36: =Berechnung!AX36 -> 0 | B36: =Berechnung!BH36 ->  | C36: =Berechnung!BF36 ->  | D36: =Berechnung!BA36 -> 0 | H36: =Berechnung!Z36 ->  | J36: =Berechnung!AA36 ->  | AD36: 0 | AE36: 0
A37: =Berechnung!AX37 -> 0 | B37: =Berechnung!BH37 ->  | C37: =Berechnung!BF37 ->  | D37: =Berechnung!BA37 -> 0 | H37: =Berechnung!Z37 ->  | J37: =Berechnung!AA37 ->  | AD37: 0 | AE37: 0
A38: =Berechnung!AX38 -> 0 | B38: =Berechnung!BH38 ->  | C38: =Berechnung!BF38 ->  | D38: =Berechnung!BA38 -> 0 | H38: =Berechnung!Z38 ->  | AD38: 0 | AE38: 0 | AH38: 0
A39: =Berechnung!AX39 -> 0 | B39: =Berechnung!BH39 ->  | C39: =Berechnung!BF39 ->  | D39: =Berechnung!BA39 -> 0 | H39: =Berechnung!Z39 ->  | AD39: 0 | AE39: 0 | AH39: 0
A40: =Berechnung!AX40 -> 0 | B40: =Berechnung!BH40 ->  | C40: =Berechnung!BF40 ->  | D40: =Berechnung!BA40 -> 0 | H40: =Berechnung!Z40 ->  | AD40: 0 | AE40: 0 | AH40: 0
A41: =Berechnung!AX41 -> 0 | B41: =Berechnung!BH41 ->  | C41: =Berechnung!BF41 ->  | D41: =Berechnung!BA41 -> 0 | H41: =Berechnung!Z41 ->  | AD41: 0 | AE41: 0 | AH41: 0
A42: =Berechnung!AX42 -> 0 | B42: =Berechnung!BH42 ->  | C42: =Berechnung!BF42 ->  | D42: =Berechnung!BA42 -> 0 | H42: =Berechnung!Z42 ->  | AD42: 0 | AE42: 0 | AH42: 0
A43: =Berechnung!AX43 -> 0 | B43: =Berechnung!BH43 ->  | C43: =Berechnung!BF43 ->  | D43: =Berechnung!BA43 -> 0 | H43: =Berechnung!Z43 ->  | AD43: 0 | AE43: 0 | AH43: 0
A44: =Berechnung!AX44 -> 0 | B44: =Berechnung!BH44 ->  | C44: =Berechnung!BF44 ->  | D44: =Berechnung!BA44 -> 0 | H44: =Berechnung!Z44 ->  | AD44: 0 | AE44: 0 | AH44: 0
A45: =Berechnung!AX45 -> 0 | B45: =Berechnung!BH45 ->  | C45: =Berechnung!BF45 ->  | D45: =Berechnung!BA45 -> 0 | H45: =Berechnung!Z45 ->  | AD45: 0 | AE45: 0 | AH45: 0
A46: =Berechnung!AX46 -> 0 | B46: =Berechnung!BH46 ->  | C46: =Berechnung!BF46 ->  | D46: =Berechnung!BA46 -> 0 | H46: =Berechnung!Z46 ->  | J46: =Berechnung!AA46 ->  | AD46: 0 | AE46: 0
A47: =Berechnung!AX47 -> 0 | B47: =Berechnung!BH47 ->  | C47: =Berechnung!BF47 ->  | D47: =Berechnung!BA47 -> 0 | H47: =Berechnung!Z47 ->  | J47: =Berechnung!AA47 ->  | AD47: 0 | AE47: 0
A48: =Berechnung!AX48 -> 0 | B48: =Berechnung!BH48 ->  | C48: =Berechnung!BF48 ->  | D48: =Berechnung!BA48 -> 0 | H48: =Berechnung!Z48 ->  | J48: =Berechnung!AA48 ->  | AD48: 0 | AE48: 0
A49: =Berechnung!AX49 -> 0 | B49: =Berechnung!BH49 ->  | C49: =Berechnung!BF49 ->  | D49: =Berechnung!BA49 -> 0 | H49: =Berechnung!Z49 ->  | J49: =Berechnung!AA49 ->  | AD49: 0 | AE49: 0
A50: =Berechnung!AX50 -> 0 | B50: =Berechnung!BH50 ->  | C50: =Berechnung!BF50 ->  | D50: =Berechnung!BA50 -> 0 | H50: =Berechnung!Z50 ->  | J50: =Berechnung!AA50 ->  | AD50: 0 | AE50: 0
A51: =Berechnung!AX51 -> 0 | B51: =Berechnung!BH51 ->  | C51: =Berechnung!BF51 ->  | D51: =Berechnung!BA51 -> 0 | H51: =Berechnung!Z51 ->  | J51: =Berechnung!AA51 ->  | AD51: 0 | AE51: 0
A52: =Berechnung!AX52 -> 0 | B52: =Berechnung!BH52 ->  | C52: =Berechnung!BF52 ->  | D52: =Berechnung!BA52 -> 0 | H52: =Berechnung!Z52 ->  | J52: =Berechnung!AA52 ->  | AD52: 0 | AE52: 0
A53: =Berechnung!AX53 -> 0 | B53: =Berechnung!BH53 ->  | C53: =Berechnung!BF53 ->  | D53: =Berechnung!BA53 -> 0 | H53: =Berechnung!Z53 ->  | J53: =Berechnung!AA53 ->  | AD53: 0 | AE53: 0
A54: =Berechnung!AX54 -> 0 | B54: =Berechnung!BH54 ->  | C54: =Berechnung!BF54 ->  | D54: =Berechnung!BA54 -> 0 | H54: =Berechnung!Z54 ->  | J54: =Berechnung!AA54 ->  | AD54: 0 | AE54: 0
A55: =Berechnung!AX55 -> 0 | B55: =Berechnung!BH55 ->  | C55: =Berechnung!BF55 ->  | D55: =Berechnung!BA55 -> 0 | H55: =Berechnung!Z55 ->  | J55: =Berechnung!AA55 ->  | AD55: 0 | AE55: 0
A56: =Berechnung!AX56 -> 0 | B56: =Berechnung!BH56 ->  | C56: =Berechnung!BF56 ->  | D56: =Berechnung!BA56 -> 0 | H56: =Berechnung!Z56 ->  | J56: =Berechnung!AA56 ->  | AD56: 0 | AE56: 0
A57: =Berechnung!AX57 -> 0 | B57: =Berechnung!BH57 ->  | C57: =Berechnung!BF57 ->  | D57: =Berechnung!BA57 -> 0 | H57: =Berechnung!Z57 ->  | J57: =Berechnung!AA57 ->  | AD57: 0 | AE57: 0
A58: =Berechnung!AX58 -> 0 | B58: =Berechnung!BH58 ->  | C58: =Berechnung!BF58 ->  | D58: =Berechnung!BA58 -> 0 | H58: =Berechnung!Z58 ->  | J58: =Berechnung!AA58 ->  | AD58: 0 | AE58: 0
A59: =Berechnung!AX59 -> 0 | B59: =Berechnung!BH59 ->  | C59: =Berechnung!BF59 ->  | D59: =Berechnung!BA59 -> 0 | H59: =Berechnung!Z59 ->  | J59: =Berechnung!AA59 ->  | AD59: 0 | AE59: 0
A60: =Berechnung!AX60 -> 0 | B60: =Berechnung!BH60 ->  | C60: =Berechnung!BF60 ->  | D60: =Berechnung!BA60 -> 0 | H60: =Berechnung!Z60 ->  | J60: =Berechnung!AA60 ->  | AD60: 0 | AE60: 0
A61: =Berechnung!AX61 -> 0 | B61: =Berechnung!BH61 ->  | C61: =Berechnung!BF61 ->  | D61: =Berechnung!BA61 -> 0 | H61: =Berechnung!Z61 ->  | J61: =Berechnung!AA61 ->  | AD61: 0 | AE61: 0
A62: =Berechnung!AX62 -> 0 | B62: =Berechnung!BH62 ->  | C62: =Berechnung!BF62 ->  | D62: =Berechnung!BA62 -> 0 | H62: =Berechnung!Z62 ->  | J62: =Berechnung!AA62 ->  | AD62: 0 | AE62: 0
A63: =Berechnung!AX63 -> 0 | B63: =Berechnung!BH63 ->  | C63: =Berechnung!BF63 ->  | D63: =Berechnung!BA63 -> 0 | H63: =Berechnung!Z63 ->  | J63: =Berechnung!AA63 ->  | AD63: 0 | AE63: 0
A64: =Berechnung!AX64 -> 0 | B64: =Berechnung!BH64 ->  | C64: =Berechnung!BF64 ->  | D64: =Berechnung!BA64 -> 0 | H64: =Berechnung!Z64 ->  | J64: =Berechnung!AA64 ->  | AD64: 0 | AE64: 0
A65: =Berechnung!AX65 -> 0 | B65: =Berechnung!BH65 ->  | C65: =Berechnung!BF65 ->  | D65: =Berechnung!BA65 -> 0 | H65: =Berechnung!Z65 ->  | J65: =Berechnung!AA65 ->  | AD65: 0 | AE65: 0
A66: =Berechnung!AX66 -> 0 | B66: =Berechnung!BH66 ->  | C66: =Berechnung!BF66 ->  | D66: =Berechnung!BA66 -> 0 | H66: =Berechnung!Z66 ->  | J66: =Berechnung!AA66 ->  | Z66: =IF(E66="","",IF(AND(E66>"",O66+P66>1),3,IF(O66+P66>=2,3,IF($Y$1>AA66,1,0)))) ->  | AA66: =IF(E66="","",E66+$AA$1) ->  | AB66: =IFERROR(LARGE(K66:N66,1),"") ->  | AC66: =H66 ->  | AD66: =IF(K66>0,1)+IF(L66>0,1)+IF(M66>0,1)+IF(N66>0,1) -> 0 | AE66: 0 | AG66: =IFERROR(LARGE(Q66:T66,1),"") ->  | AH66: =J66 -> 
A67: =Berechnung!AX67 -> 0 | B67: =Berechnung!BH67 ->  | C67: =Berechnung!BF67 ->  | D67: =Berechnung!BA67 -> 0 | G67: =IF(F67="","",F67-E67) ->  | H67: =Berechnung!Z67 ->  | I67: =IF(H67>"","v","") ->  | J67: =Berechnung!AA67 ->  | AD67: 0 | AE67: =IF(Q67>0,1)+IF(R67>0,1)+IF(S67>0,1)+IF(T67>0,1) -> 0
A68: =Berechnung!AX68 -> 0 | B68: =Berechnung!BH68 ->  | C68: =Berechnung!BF68 ->  | D68: =Berechnung!BA68 -> 0 | H68: =Berechnung!Z68 ->  | J68: =Berechnung!AA68 ->  | AD68: 0 | AE68: 0
A69: =Berechnung!AX69 -> 0 | B69: =Berechnung!BH69 ->  | C69: =Berechnung!BF69 ->  | D69: =Berechnung!BA69 -> 0 | H69: =Berechnung!Z69 ->  | J69: =Berechnung!AA69 ->  | AD69: 0 | AE69: 0
A70: =Berechnung!AX70 -> 0 | B70: =Berechnung!BH70 ->  | C70: =Berechnung!BF70 ->  | D70: =Berechnung!BA70 -> 0 | H70: =Berechnung!Z70 ->  | J70: =Berechnung!AA70 ->  | AD70: 0 | AE70: 0
A71: =Berechnung!AX71 -> 0 | B71: =Berechnung!BH71 ->  | C71: =Berechnung!BF71 ->  | D71: =Berechnung!BA71 -> 0 | H71: =Berechnung!Z71 ->  | J71: =Berechnung!AA71 ->  | AD71: 0 | AE71: 0
A72: =Berechnung!AX72 -> 0 | B72: =Berechnung!BH72 ->  | C72: =Berechnung!BF72 ->  | D72: =Berechnung!BA72 -> 0 | H72: =Berechnung!Z72 ->  | J72: =Berechnung!AA72 ->  | AD72: 0 | AE72: 0
A73: =Berechnung!AX73 -> 0 | B73: =Berechnung!BH73 ->  | C73: =Berechnung!BF73 ->  | D73: =Berechnung!BA73 -> 0 | H73: =Berechnung!Z73 ->  | I73: =IF(H73>"","v","") ->  | J73: =Berechnung!AA73 ->  | AD73: 0 | AE73: 0
A74: =Berechnung!AX74 -> 0 | B74: =Berechnung!BH74 ->  | C74: =Berechnung!BF74 ->  | D74: =Berechnung!BA74 -> 0 | H74: =Berechnung!Z74 ->  | J74: =Berechnung!AA74 ->  | AD74: 0 | AE74: 0
A75: =Berechnung!AX75 -> 0 | B75: =Berechnung!BH75 ->  | C75: =Berechnung!BF75 ->  | D75: =Berechnung!BA75 -> 0 | H75: =Berechnung!Z75 ->  | J75: =Berechnung!AA75 ->  | AD75: 0 | AE75: 0
A76: =Berechnung!AX76 -> 0 | B76: =Berechnung!BH76 ->  | C76: =Berechnung!BF76 ->  | D76: =Berechnung!BA76 -> 0 | H76: =Berechnung!Z76 ->  | J76: =Berechnung!AA76 ->  | AD76: 0 | AE76: 0
A77: =Berechnung!AX77 -> 0 | B77: =Berechnung!BH77 ->  | C77: =Berechnung!BF77 ->  | D77: =Berechnung!BA77 -> 0 | H77: =Berechnung!Z77 ->  | J77: =Berechnung!AA77 ->  | AD77: 0 | AE77: 0
A78: =Berechnung!AX78 -> 0 | B78: =Berechnung!BH78 ->  | C78: =Berechnung!BF78 ->  | D78: =Berechnung!BA78 -> 0 | H78: =Berechnung!Z78 ->  | J78: =Berechnung!AA78 ->  | AD78: 0 | AE78: 0
A79: =Berechnung!AX79 -> 0 | B79: =Berechnung!BH79 ->  | C79: =Berechnung!BF79 ->  | D79: =Berechnung!BA79 -> 0 | H79: =Berechnung!Z79 ->  | J79: =Berechnung!AA79 ->  | AD79: 0 | AE79: 0
A80: =Berechnung!AX80 -> 0 | B80: =Berechnung!BH80 ->  | C80: =Berechnung!BF80 ->  | D80: =Berechnung!BA80 -> 0 | H80: =Berechnung!Z80 ->  | J80: =Berechnung!AA80 ->  | AD80: 0 | AE80: 0
A81: =Berechnung!AX81 -> 0 | B81: =Berechnung!BH81 ->  | C81: =Berechnung!BF81 ->  | D81: =Berechnung!BA81 -> 0 | H81: =Berechnung!Z81 ->  | J81: =Berechnung!AA81 ->  | AD81: 0 | AE81: 0
AB82: =IFERROR(LARGE(AB2:AB81,1),0) -> 63 | AD82: =SUM(AD2:AD81) -> 4 | AE82: =SUM(AE2:AE81) -> 3 | AG82: =IFERROR(LARGE(AG2:AG81,1),0) -> 53
O83: =SUM(O2:P81) -> 55 | AB83: =IF(AB82="","",VLOOKUP(AB82,AB2:$AC$81,2,FALSE)) -> Jeroch Paul | AG83: =IFERROR(IF(AG82="","",VLOOKUP(AG82,$AG$2:$AH$81,2,FALSE)),"") -> Weber Marco
AB84: =IF(AB82>AG82,AB83,AG83) -> Jeroch Paul
AB85: =IF(AND(AB82=0,AG82=0),"",IF(AB82>AG82,AB82,AG82)) -> 63
E112: =COUNTA(E2:E99) -> 24

Sheet Berechnung (hidden)
A1: A | D1: Spieler | E1: M | F1: W | G1: L | H1: F+ | I1: F- | J1: U | M1: Rang | N1: Rang | O1: P+ | AF1: F | AG1: F | AH1: W | AI1: L | AJ1: M | AK1: U | BH1: =Spieler!S12 -> 24 | BI1: =AW1 -> 0 | BJ1: 8 | BK1: 9 | BL1: 10 | BM1: 11 | BN1: 12 | BO1: 13 | BP1: 14 | BQ1: 15 | BR1: 16 | BS1: 17 | BT1: 18 | BU1: 19 | BV1: 20 | BW1: 21 | BX1: 22 | BY1: 23 | BZ1: 24 | CA1: 25 | CB1: 26 | CC1: 27 | CD1: 28 | CE1: 29 | CF1: 30 | CG1: 31 | CH1: 32 | CI1: 33 | CJ1: 34 | CK1: 35 | CL1: 36 | CM1: 37 | CN1: 38 | CO1: 39 | CP1: 40 | CQ1: =BH1 -> 24 | CT1: =Spieler!I1 -> 0 | DF1: Gesetzte Spieler | DH1: nicht gesetzte Sp
B2: 1 | C2: A1 | D2: ='1. Runde Gruppen'!D3 -> Valderrama Salvador | E2: =AJ2+AJ5+AJ8+AJ4 -> 2 | F2: =AH2+AH5+AH8+AH4 -> 1 | G2: =AI2+AI5+AI8+AI4 -> 1 | H2: =AF2+AF5+AF8+AF4 -> 3 | I2: =AG2+AG5+AG8+AG4 -> 2 | J2: =AK2+AK5+AK8+AK4 -> 0 | M2: =IF(D2="X",-200000,IF(D2="Y",-200000,IF(D2="Z",-200000,IF(D2="",-200000,IF(D2="Z Freilos",-200000,IF(D2="",(-90000),(F2*10000)+(H2*1000)+(J2*10)+E2-(G2*10000)-(I2*1000)+O2)))))) -> 1002 | N2: =IF(E2=0,"",RANK(M2,M2:M6)) -> 2 | O2: ='1. Runde Gruppen'!O3 -> 0 | P2: =IF(D2="","",D2) -> Valderrama Salvador | Q2: =IF(V2="","",1) -> 1 | R2: 1 | S2: =IF(Q2="","",R2) -> 1 | T2: A | U2: =C2 -> A1 | V2: =D2 -> Valderrama Salvador | W2: =C3 -> A2 | X2: =D3 -> Brachmanski Dave | Y2: =IFERROR(SMALL($S$2:$S$88,ROW()-1),"") -> 1 | Z2: =IFERROR(IF(Y2="","",VLOOKUP(Y2,$S$1:$V$88,4,FALSE)),"") -> Valderrama Salvador | AA2: =IFERROR(IF(Y2="","",VLOOKUP(Y2,$S$1:$X$88,6,FALSE)),"") -> Brachmanski Dave | AB2: =Matches!O2 -> 2 | AC2: =Matches!P2 -> 0 | AF2: =IFERROR(VLOOKUP(S2,$Y$2:$AC$88,4,FALSE),"") -> 2 | AG2: =IFERROR(VLOOKUP(S2,$Y$2:$AC$88,5,FALSE),"") -> 0 | AH2: =IF(AF2>AG2,1,0) -> 1 | AI2: =IF(AG2>AF2,1,0) -> 0 | AJ2: =IF(AF2+AG2>=1,1,0) -> 1 | AK2: =IF(AND(AF2+AG2>1,AF2=AG2),1,0) -> 0 | BF2: =IF(Y2="","",VLOOKUP(Y2,$S$2:$T$88,2,FALSE)) -> A | BH2: =IF(Y2="","",IF(Y2>0,ROW()-1)) -> 1 | BI2: =IF($CS$1="X","","A1") -> A1 | BJ2: =$BI$2 -> A1 | BK2: =$BI$2 -> A1 | BL2: A1 | BM2: A1 | BN2: A1 | BO2: A1 | BP2: A1 | BQ2: A1 | BR2: A1 | BS2: A1 | BT2: A1 | BU2: A1 | BV2: A1 | BW2: A1 | BX2: A1 | BY2: A1 | BZ2: A1 | CA2: A1 | CB2: A1 | CC2: A1 | CD2: A1 | CE2: A1 | CF2: A1 | CG2: A1 | CH2: A1 | CI2: A1 | CJ2: A1 | CK2: A1 | CL2: A1 | CM2: A1 | CN2: A1 | CO2: A1 | CP2: A1 | CQ2: =IFERROR(LOOKUP($CQ$1,$BI$1:$CP$1,BI2:CP2),"") -> A1 | CR2: =CS44 -> A1 | CS2: =IF(CT1>0,Spieler!P2,"") ->  | CT2: =Spieler!Q2 ->  | CU2: =IF($CQ$1<8,"",IF(CS2=CR2,"",CR2)) -> A1 | CV2: =IF(ROW(CU1)>COUNTA(CU:CU),"",INDEX(CU:CU,SMALL(IF(CU$2:CU$100<>"",ROW($2:$100)),ROW(CU1)))) -> A1 | CW2: =IFERROR(IF(CV2>"",CV2,""),"") -> A1 | CX2: =CS2 ->  | CY2: =Spieler!C2 -> Behling Oliver | CZ2: =VLOOKUP(CY2,$DM$2:$DN$49,2,FALSE) -> D1 | DA2: =CT2 ->  | DB2: =IF(ROW(CX1)>COUNTA(CX:CX),"",INDEX(CX:CX,SMALL(IF(CX$2:CX$100<>"",ROW($2:$100)),ROW(CX1)))) -> A1 | DC2: =IFERROR(IF(DB2>"",DB2,""),"") -> A1 | DD2: =VLOOKUP(DC2,Spieler!$I$2:$J$41,2,FALSE) -> Valderrama Salvador | DF2: =IFERROR(IF(CT2="","",IF(CT2>"",RAND()*5000000)),"") ->  | DG2: =CS2 ->  | DH2: =IF(CU2="","",RAND()*1000) -> 670.8958751 | DI2: =CU2 -> A1 | DJ2: =IFERROR(LARGE($DF$2:$DG$9,1),"") ->  | DK2: =IFERROR(VLOOKUP(DJ2,$DF$2:$DG$9,2,FALSE),"") ->  | DM2: =CT2 ->  | DN2: =DK2 -> 
B3: 2 | C3: A2 | D3: ='1. Runde Gruppen'!D4 -> Brachmanski Dave | E3: =AJ2+AJ7+AJ3+AJ11 -> 2 | F3: =AI2+AH3+AH7+AH11 -> 0 | G3: =AH2+AI7+AI3+AI11 -> 2 | H3: =AG2+AF11+AF7+AF3 -> 1 | I3: =AF2+AG3+AG7+AG11 -> 4 | J3: =AK2+AK7+AK3+AK11 -> 0 | M3: =IF(D3="X",-200000,IF(D3="Y",-200000,IF(D3="Z",-200000,IF(D3="",-200000,IF(D3="Z Freilos",-200000,IF(D3="",(-90000),(F3*10000)+(H3*1000)+(J3*10)+E3-(G3*10000)-(I3*1000)+O3)))))) -> -22998 | N3: =IF(E3=0,"",RANK(M3,M2:M6)) -> 3 | O3: ='1. Runde Gruppen'!O4 -> 0 | P3: =IF(D3="","",D3) -> Brachmanski Dave | Q3: =IF(V3="","",2) ->  | R3: =IF(B5=4,41,9) -> 9 | S3: =IF(Q3="","",R3) ->  | T3: A | U3: =C4 -> A3 | V3: =IF(X3="","",D3) ->  | W3: =C5 -> A4 | X3: =D5 ->  | Y3: =IFERROR(SMALL($S$2:$S$88,ROW()-1),"") -> 2 | Z3: =IFERROR(IF(Y3="","",VLOOKUP(Y3,$S$1:$V$88,4,FALSE)),"") -> Drahn Robert | AA3: =IFERROR(IF(Y3="","",VLOOKUP(Y3,$S$1:$X$88,6,FALSE)),"") -> Brömel Frank | AB3: =Matches!O3 -> 2 | AC3: =Matches!P3 -> 0 | AF3: =IFERROR(VLOOKUP(S3,$Y$2:$AC$88,4,FALSE),"") -> 0 | AG3: =IFERROR(VLOOKUP(S3,$Y$2:$AC$88,5,FALSE),"") -> 0 | AH3: =IF(AF3>AG3,1,0) -> 0 | AI3: =IF(AG3>AF3,1,0) -> 0 | AJ3: =IF(AF3+AG3>=1,1,0) -> 0 | AK3: =IF(AND(AF3+AG3>1,AF3=AG3),1,0) -> 0 | BF3: =IF(Y3="","",VLOOKUP(Y3,$S$2:$T$88,2,FALSE)) -> B | BH3: =IF(Y3="","",IF(Y3>0,ROW()-1)) -> 2 | BI3: A2 | BJ3: A2 | BK3: A2 | BL3: A2 | BM3: A2 | BN3: A2 | BO3: A2 | BP3: A2 | BQ3: A2 | BR3: A2 | BS3: A2 | BT3: A2 | BU3: A2 | BV3: A2 | BW3: A2 | BX3: A2 | BY3: A2 | BZ3: A2 | CA3: A2 | CB3: A2 | CC3: A2 | CD3: A2 | CE3: A2 | CF3: A2 | CG3: A2 | CH3: A2 | CI3: A2 | CJ3: A2 | CK3: A2 | CL3: A2 | CM3: A2 | CN3: A2 | CO3: A2 | CP3: A2 | CQ3: =IFERROR(LOOKUP($CQ$1,$BI$1:$CP$1,BI3:CP3),"") -> A2 | CR3: =CS45 -> A2 | CS3: =IF(CT1>0,Spieler!P3,"") ->  | CT3: =Spieler!Q3 ->  | CU3: =IF($CQ$1<8,"",IF(CS3=CR3,"",CR3)) -> A2 | CV3: =IF(ROW(CU2)>COUNTA(CU:CU),"",INDEX(CU:CU,SMALL(IF(CU$2:CU$100<>"",ROW($2:$100)),ROW(CU2)))) -> A2 | CW3: A2 | CX3: =CS3 ->  | CY3: =Spieler!C3 -> Brachmanski Dave | CZ3: =VLOOKUP(CY3,$DM$2:$DN$49,2,FALSE) -> G2 | DA3: =CT3 ->  | DB3: =IF(ROW(CX2)>COUNTA(CX:CX),"",INDEX(CX:CX,SMALL(IF(CX$2:CX$100<>"",ROW($2:$100)),ROW(CX2)))) -> A2 | DC3: =IFERROR(IF(DB3>"",DB3,""),"") -> A2 | DD3: =VLOOKUP(DC3,Spieler!$I$2:$J$41,2,FALSE) -> Brachmanski Dave | DF3: =IFERROR(IF(CT3="","",IF(CT3>"",RAND()*5000000)),"") ->  | DG3: =CS3 ->  | DH3: =IF(CU3="","",RAND()*1000) -> 706.0558281 | DI3: =CU3 -> A2 | DJ3: =IFERROR(LARGE($DF$2:$DG$9,2),"") ->  | DK3: =IFERROR(VLOOKUP(DJ3,$DF$2:$DG$9,2,FALSE),"") ->  | DM3: =CT3 ->  | DN3: =DK3 -> 
B4: 3 | C4: A3 | D4: ='1. Runde Gruppen'!D5 -> Gärtner David | E4: =AJ5+AJ7+AJ10+AJ9 -> 2 | F4: =AI5+AI7+AH10+AH9 -> 2 | G4: =AH5+AH7+AI10+AI9 -> 0 | H4: =AG5+AG7+AF10+AF9 -> 4 | I4: =AF5+AF7+AG10+AG9 -> 2 | J4: =AK5+AK7+AK10+AK9 -> 0 | M4: 22002 | N4: =IF(E4=0,"",RANK(M4,M2:M6)) -> 1 | O4: ='1. Runde Gruppen'!O5 -> 0 | P4: =IF(D4="","",D4) -> Gärtner David | Q4: =IF(V4="","",3) ->  | R4: 17 | T4: A | U4: =C2 -> A1 | V4: =IF(X4="","",D2) ->  | W4: =C6 -> A5 | X4: =D6 ->  | Y4: =IFERROR(SMALL($S$2:$S$88,ROW()-1),"") -> 3 | Z4: Behling Oliver | AA4: Witzik Oliver | AB4: =Matches!O4 -> 0 | AC4: =Matches!P4 -> 2 | AF4: 0 | AG4: 0 | AH4: =IF(AF4>AG4,1,0) -> 0 | AI4: 0 | AJ4: =IF(AF4+AG4>=1,1,0) -> 0 | AK4: 0 | BF4: C | BH4: 3 | BI4: A3 | BJ4: A3 | BK4: A3 | BL4: A3 | BM4: A3 | BN4: A3 | BO4: A3 | BP4: A3 | BQ4: A3 | BR4: A3 | BS4: A3 | BT4: A3 | BU4: A3 | BV4: A3 | BW4: A3 | BX4: A3 | BY4: A3 | BZ4: A3 | CA4: A3 | CB4: A3 | CC4: A3 | CD4: A3 | CE4: A3 | CF4: A3 | CG4: A3 | CH4: A3 | CI4: A3 | CJ4: A3 | CK4: A3 | CL4: A3 | CM4: A3 | CN4: A3 | CO4: A3 | CP4: A3 | CQ4: A3 | CR4: A3 | CS4: =IF(CT1>=3,Spieler!P4,"") ->  | CT4: =Spieler!Q4 ->  | CU4: A3 | CV4: =IF(ROW(CU3)>COUNTA(CU:CU),"",INDEX(CU:CU,SMALL(IF(CU$2:CU$100<>"",ROW($2:$100)),ROW(CU3)))) -> A3 | CW4: A3 | CY4: =Spieler!C4 -> Brömel Frank | CZ4: A3 | DB4: =IF(ROW(CX3)>COUNTA(CX:CX),"",INDEX(CX:CX,SMALL(IF(CX$2:CX$100<>"",ROW($2:$100)),ROW(CX3)))) -> A3 | DC4: A3 | DD4: =VLOOKUP(DC4,Spieler!$I$2:$J$41,2,FALSE) -> Gärtner David | DH4: 855.097359 | DI4: A3 | DJ4: =IFERROR(LARGE($DF$2:$DG$9,3),"") ->  | DK4: =IFERROR(VLOOKUP(DJ4,$DF$2:$DG$9,2,FALSE),"") -> 
B5: =IF(D5="","",4) ->  | C5: A4 | D5: ='1. Runde Gruppen'!D6 ->  | E5: =AJ3+AJ6+AJ8+AJ10 -> 0 | F5: =AI3+AH6+AI8+AI10 -> 0 | G5: =AH3+AH8+AH10+AI6 -> 0 | H5: =AG3+AF6+AG8+AG10 -> 0 | I5: =AF3+AG6+AF8+AF10 -> 0 | J5: =AK3+AK8+AK10+AK6 -> 0 | M5: -200000 | N5: =IF(E5=0,"",RANK(M5,M2:M6)) ->  | O5: ='1. Runde Gruppen'!O6 -> 0 | P5: =IF(D5="","",D5) ->  | Q5: =IF(V5="","",4) -> 4 | R5: 25 | S5: 25 | T5: A | U5: =C3 -> A2 | V5: =D2 -> Valderrama Salvador | W5: =C4 -> A3 | X5: =D4 -> Gärtner David | Y5: 4 | Z5: Hartung Andreas | AA5: Suttner Magnus | AB5: =Matches!O5 -> 0 | AC5: =Matches!P5 -> 2 | AF5: 1 | AG5: 2 | AH5: 0 | AI5: 1 | AJ5: 1 | AK5: 0 | BF5: D | BH5: 4 | BI5: A4 | BJ5: A4 | BK5: A4 | BL5: A4 | BM5: A4 | BN5: =$BI$7 -> B1 | BO5: A4 | BP5: A4 | BQ5: A4 | BR5: A4 | BS5: A4 | BT5: =$BI$7 -> B1 | BU5: A4 | BV5: A4 | BW5: A4 | BX5: A4 | BY5: A4 | BZ5: =$BI$7 -> B1 | CA5: A4 | CB5: A4 | CC5: A4 | CD5: A4 | CE5: A4 | CF5: A4 | CG5: A4 | CH5: A4 | CI5: A4 | CJ5: A4 | CK5: A4 | CL5: A4 | CM5: A4 | CN5: A4 | CO5: A4 | CP5: A4 | CQ5: =IFERROR(LOOKUP($CQ$1,$BI$1:$CP$1,BI5:CP5),"") -> B1 | CS5: =IF(CT1>=4,Spieler!P5,"") ->  | CT5: =Spieler!Q5 ->  | CV5: =IF(ROW(CU4)>COUNTA(CU:CU),"",INDEX(CU:CU,SMALL(IF(CU$2:CU$100<>"",ROW($2:$100)),ROW(CU4)))) -> B1 | CW5: B1 | CY5: =Spieler!C5 -> Delling Tino | CZ5: F2 | DB5: =IF(ROW(CX4)>COUNTA(CX:CX),"",INDEX(CX:CX,SMALL(IF(CX$2:CX$100<>"",ROW($2:$100)),ROW(CX4)))) -> B1 | DC5: B1 | DD5: =VLOOKUP(DC5,Spieler!$I$2:$J$41,2,FALSE) -> Drahn Robert | DJ5: =IFERROR(LARGE($DF$2:$DG$9,4),"") -> 
B6: =IF(D6="","",5) ->  | C6: A5 | D6: ='1. Runde Gruppen'!D7 ->  | E6: =AJ4+AJ6+AJ9+AJ11 -> 0 | F6: =AI4+AI6+AI9+AI11 -> 0 | G6: =AH4+AH6+AH9+AH11 -> 0 | H6: =AG4+AG6+AG9+AG11 -> 0 | I6: =AF4+AF6+AF9+AF11 -> 0 | J6: =AK4+AK6+AK9+AK11 -> 0 | M6: -200000 | N6: =IF(E6=0,"",RANK(M6,M2:M6)) ->  | O6: ='1. Runde Gruppen'!O7 -> 0 | P6: =IF(D6="","",D6) ->  | Q6: =IF(V6="","",5) ->  | R6: 33 | T6: A | U6: =C5 -> A4 | V6: =IF(X6="","",D5) ->  | W6: =C6 -> A5 | X6: =D6 ->  | Y6: 5 | Z6: Swennen Andy | AA6: Fandrei Andreas | AB6: =Matches!O6 -> 0 | AC6: =Matches!P6 -> 2 | AF6: 0 | AG6: 0 | AH6: =IF(AF6>AG6,1,0) -> 0 | AI6: 0 | AJ6: 0 | AK6: 0 | BF6: E | BH6: 5 | BI6: A5 | BJ6: =$BI$7 -> B1 | BK6: A5 | BL6: A5 | BM6: =$BI$7 -> B1 | BN6: B2 | BO6: =$BI$7 -> B1 | BP6: =$BI$7 -> B1 | BQ6: =$BI$7 -> B1 | BR6: =$BI$7 -> B1 | BS6: =$BI$7 -> B1 | BT6: B2 | BU6: =$BI$7 -> B1 | BV6: =$BI$7 -> B1 | BW6: =$BI$7 -> B1 | BX6: =$BI$7 -> B1 | BY6: =$BI$7 -> B1 | BZ6: B2 | CA6: =$BI$7 -> B1 | CB6: B1 | CC6: B1 | CD6: B1 | CE6: B1 | CF6: B1 | CG6: B1 | CH6: B1 | CI6: A5 | CJ6: A5 | CK6: A5 | CL6: A5 | CM6: A5 | CN6: A5 | CO6: A5 | CP6: A5 | CQ6: B2 | CS6: =IF(CT1>=5,Spieler!P6,"") ->  | CT6: =Spieler!Q6 ->  | CU6: =IF($CQ$1<8,"",IF(CS3=CR6,"",CR6)) ->  | CV6: =IF(ROW(CU5)>COUNTA(CU:CU),"",INDEX(CU:CU,SMALL(IF(CU$2:CU$100<>"",ROW($2:$100)),ROW(CU5)))) -> B2 | CW6: B2 | CY6: =Spieler!C6 -> Drahn Robert | CZ6: H2 | DB6: =IF(ROW(CX5)>COUNTA(CX:CX),"",INDEX(CX:CX,SMALL(IF(CX$2:CX$100<>"",ROW($2:$100)),ROW(CX5)))) -> B2 | DC6: B2 | DD6: =VLOOKUP(DC6,Spieler!$I$2:$J$41,2,FALSE) -> Brömel Frank | DJ6: =IFERROR(LARGE($DF$2:$DG$9,5),"") -> 
Q7: =IF(V7="","",6) -> 6 | R7: =IF(B5=4,65,41) -> 41 | S7: 41 | T7: A | U7: =C2 -> A1 | V7: =D3 -> Brachmanski Dave | W7: =C4 -> A3 | X7: Gärtner David | Y7: 6 | Z7: Jeroch Paul | AA7: Müller Marcus | AB7: =Matches!O7 -> 2 | AC7: =Matches!P7 -> 0 | AF7: 1 | AG7: 2 | AH7: 0 | AI7: =IF(AG7>AF7,1,0) -> 1 | AJ7: 1 | AK7: 0 | BF7: F | BH7: 6 | BI7: =IF($CS$1="X","","B1") -> B1 | BJ7: B2 | BK7: =$BI$7 -> B1 | BL7: B1 | BM7: B2 | BN7: B3 | BO7: B2 | BP7: B2 | BQ7: B2 | BR7: B2 | BS7: B2 | BT7: B3 | BU7: B2 | BV7: B2 | BW7: B2 | BX7: B2 | BY7: B2 | BZ7: B3 | CA7: B2 | CB7: B2 | CC7: B2 | CD7: B2 | CE7: B2 | CF7: B2 | CG7: B2 | CH7: B2 | CI7: =$BI$7 -> B1 | CJ7: B1 | CK7: B1 | CL7: B1 | CM7: B1 | CN7: B1 | CO7: B1 | CP7: B1 | CQ7: B3 | CR7: B1 | CS7: =IF(CT1>=6,Spieler!P7,"") ->  | CT7: =Spieler!Q7 ->  | CU7: =IF($CQ$1<8,"",IF(CS3=CR7,"",CR7)) -> B1 | CV7: =IF(ROW(CU6)>COUNTA(CU:CU),"",INDEX(CU:CU,SMALL(IF(CU$2:CU$100<>"",ROW($2:$100)),ROW(CU6)))) -> B3 | CW7: B3 | CY7: =Spieler!C7 -> Elham Faiz | CZ7: =VLOOKUP(CY7,$DM$2:$DN$49,2,FALSE) -> D3 | DB7: =IF(ROW(CX6)>COUNTA(CX:CX),"",INDEX(CX:CX,SMALL(IF(CX$2:CX$100<>"",ROW($2:$100)),ROW(CX6)))) -> B3 | DC7: B3 | DD7: =VLOOKUP(DC7,Spieler!$I$2:$J$41,2,FALSE) -> Weber Marco | DH7: 29.11346334 | DI7: B1 | DJ7: =IFERROR(LARGE($DF$2:$DG$9,6),"") -> 
Q8: =IF(V8="","",7) ->  | R8: 49 | T8: A | U8: =C3 -> A2 | V8: =IF(X8="","",D2) ->  | W8: A4 | Y8: 7 | Z8: Löffel Ulrich | AA8: Stachly Marec | AB8: =Matches!O8 -> 0 | AC8: =Matches!P8 -> 2 | AF8: 0 | AG8: 0 | AH8: 0 | AI8: 0 | AJ8: 0 | AK8: 0 | BF8: G | BH8: 7 | BI8: B2 | BJ8: B3 | BK8: B2 | BL8: B2 | BM8: B3 | BN8: =$BI$12 -> C1 | BO8: B3 | BP8: B3 | BQ8: B3 | BR8: B3 | BS8: B3 | BT8: =$BI$12 -> C1 | BU8: B3 | BV8: B3 | BW8: B3 | BX8: B3 | BY8: B3 | BZ8: =$BI$12 -> C1 | CA8: B3 | CB8: B3 | CC8: B3 | CD8: B3 | CE8: B3 | CF8: B3 | CG8: B3 | CH8: B3 | CI8: B2 | CJ8: B2 | CK8: B2 | CL8: B2 | CM8: B2 | CN8: B2 | CO8: B2 | CP8: B2 | CQ8: C1 | CR8: B2 | CS8: =IF(CT1>=7,Spieler!P8,"") ->  | CT8: =Spieler!Q8 ->  | CU8: =IF($CQ$1<8,"",IF(CS8=CR8,"",CR8)) -> B2 | CV8: =IF(ROW(CU7)>COUNTA(CU:CU),"",INDEX(CU:CU,SMALL(IF(CU$2:CU$100<>"",ROW($2:$100)),ROW(CU7)))) -> C1 | CW8: C1 | CY8: =Spieler!C8 -> Fandrei Andreas | CZ8: A2 | DB8: =IF(ROW(CX7)>COUNTA(CX:CX),"",INDEX(CX:CX,SMALL(IF(CX$2:CX$100<>"",ROW($2:$100)),ROW(CX7)))) -> C1 | DC8: C1 | DD8: =VLOOKUP(DC8,Spieler!$I$2:$J$41,2,FALSE) -> Behling Oliver | DH8: 382.1703166 | DI8: B2 | DJ8: =IFERROR(LARGE($DF$2:$DG$9,7),"") -> 
Q9: =IF(V9="","",8) ->  | R9: 57 | T9: A | U9: =C4 -> A3 | V9: =IF(X9="","",D4) ->  | W9: A5 | Y9: 8 | Z9: Elham Faiz | AA9: Fandrei Joel | AB9: =Matches!O9 -> 0 | AC9: =Matches!P9 -> 2 | AF9: 0 | AG9: 0 | AH9: 0 | AI9: 0 | AJ9: 0 | AK9: 0 | BF9: H | BH9: 8 | BI9: B3 | BJ9: B4 | BK9: B3 | BL9: B3 | BM9: B4 | BN9: C2 | BO9: =$BI$12 -> C1 | BP9: B4 | BQ9: B4 | BR9: B4 | BS9: B4 | BT9: C2 | BU9: =$BI$12 -> C1 | BV9: B4 | BW9: B4 | BX9: B4 | BY9: B4 | BZ9: C2 | CA9: =$BI$12 -> C1 | CB9: B4 | CC9: B4 | CD9: B4 | CE9: B4 | CF9: B4 | CG9: B4 | CH9: B4 | CI9: B3 | CJ9: B3 | CK9: B3 | CL9: B3 | CM9: B3 | CN9: B3 | CO9: B3 | CP9: B3 | CQ9: C2 | CR9: B3 | CS9: =IF(CT1=8,Spieler!P9,"") ->  | CT9: =Spieler!Q9 ->  | CU9: B3 | CV9: =IF(ROW(CU8)>COUNTA(CU:CU),"",INDEX(CU:CU,SMALL(IF(CU$2:CU$100<>"",ROW($2:$100)),ROW(CU8)))) -> C2 | CW9: C2 | CY9: =Spieler!C9 -> Fandrei Joel | CZ9: E3 | DB9: =IF(ROW(CX8)>COUNTA(CX:CX),"",INDEX(CX:CX,SMALL(IF(CX$2:CX$100<>"",ROW($2:$100)),ROW(CX8)))) -> C2 | DC9: C2 | DD9: =VLOOKUP(DC9,Spieler!$I$2:$J$41,2,FALSE) -> Witzik Oliver | DH9: 402.3413664 | DI9: B3 | DJ9: =IFERROR(LARGE($DF$2:$DG$9,8),"") -> 
Q10: =IF(V10="","",9) ->  | R10: =IF(B5=4,9,65) -> 65 | S10: =IF(Q10="","",R10) ->  | T10: A | U10: =C2 -> A1 | V10: =IF(X10="","",D4) ->  | W10: =C5 -> A4 | X10: =D5 ->  | Y10: 25 | Z10: =IFERROR(IF(Y10="","",VLOOKUP(Y10,$S$1:$V$88,4,FALSE)),"") -> Valderrama Salvador | AA10: =IFERROR(IF(Y10="","",VLOOKUP(Y10,$S$1:$X$88,6,FALSE)),"") -> Gärtner David | AB10: =Matches!O10 -> 1 | AC10: =Matches!P10 -> 2 | AF10: 0 | AG10: 0 | AH10: 0 | AI10: 0 | AJ10: 0 | AK10: 0 | BF10: A | BH10: 9 | BI10: B4 | BK10: B4 | BL10: B4 | BM10: =$BI$12 -> C1 | BN10: C3 | BO10: C2 | BP10: =$BI$12 -> C1 | BQ10: =$BI$12 -> C1 | BR10: =$BI$12 -> C1 | BS10: =$BI$12 -> C1 | BT10: C3 | BU10: C2 | BV10: =$BI$12 -> C1 | BW10: =$BI$12 -> C1 | BX10: =$BI$12 -> C1 | BY10: =$BI$12 -> C1 | BZ10: C3 | CA10: C2 | CB10: =$BI$12 -> C1 | CC10: C1 | CD10: C1 | CE10: C1 | CF10: C1 | CG10: C1 | CH10: C1 | CI10: B4 | CJ10: B4 | CK10: B4 | CL10: B4 | CM10: B4 | CN10: B4 | CO10: B4 | CP10: B4 | CQ10: C3 | CV10: =IF(ROW(CU9)>COUNTA(CU:CU),"",INDEX(CU:CU,SMALL(IF(CU$2:CU$100<>"",ROW($2:$100)),ROW(CU9)))) -> C3 | CW10: C3 | CX10: =CW2 -> A1 | CY10: =Spieler!C10 -> Gärtner David | CZ10: A1 | DA10: =Spieler!N10 -> Behling Oliver | DB10: =IF(ROW(CX9)>COUNTA(CX:CX),"",INDEX(CX:CX,SMALL(IF(CX$2:CX$100<>"",ROW($2:$100)),ROW(CX9)))) -> C3 | DC10: C3 | DD10: =VLOOKUP(DC10,Spieler!$I$2:$J$41,2,FALSE) -> Isermann Rene | DJ10: =IFERROR(LARGE($DH$2:$DH$41,1),"") -> 941.1475369 | DK10: =IFERROR(VLOOKUP(DJ10,$DH$2:$DI$41,2,FALSE),"") -> D1 | DM10: =DA10 -> Behling Oliver | DN10: =DK10 -> D1
Q11: =IF(V11="","",10) ->  | R11: 73 | T11: A | U11: =C3 -> A2 | V11: =IF(X11="","",D3) ->  | W11: =C6 -> A5 | X11: =D6 ->  | Y11: 26 | Z11: Drahn Robert | AA11: Weber Marco | AB11: =Matches!O11 -> 0 | AC11: =Matches!P11 -> 2 | AF11: 0 | AG11: 0 | AH11: 0 | AI11: 0 | AJ11: 0 | AK11: 0 | BF11: B | BH11: 10 | BI11: B5 | BL11: B5 | BM11: C2 | BN11: =$BI$17 -> D1 | BO11: C3 | BP11: C2 | BQ11: C2 | BR11: C2 | BS11: C2 | BT11: =$BI$17 -> D1 | BU11: C3 | BV11: C2 | BW11: C2 | BX11: C2 | BY11: C2 | BZ11: =$BI$17 -> D1 | CA11: C3 | CB11: C2 | CC11: C2 | CD11: C2 | CE11: C2 | CF11: C2 | CG11: C2 | CH11: C2 | CI11: =$BI$12 -> C1 | CJ11: B5 | CK11: B5 | CL11: B5 | CM11: B5 | CN11: B5 | CO11: B5 | CP11: B5 | CQ11: D1 | CV11: =IF(ROW(CU10)>COUNTA(CU:CU),"",INDEX(CU:CU,SMALL(IF(CU$2:CU$100<>"",ROW($2:$100)),ROW(CU10)))) -> D1 | CW11: D1 | CX11: =CW3 -> A2 | CY11: =Spieler!C11 -> Hartung Andreas | CZ11: C1 | DA11: =Spieler!N11 -> Brachmanski Dave | DB11: =IF(ROW(CX10)>COUNTA(CX:CX),"",INDEX(CX:CX,SMALL(IF(CX$2:CX$100<>"",ROW($2:$100)),ROW(CX10)))) -> D1 | DC11: D1 | DD11: =VLOOKUP(DC11,Spieler!$I$2:$J$41,2,FALSE) -> Hartung Andreas | DJ11: =IFERROR(LARGE($DH$2:$DH$41,2),"") -> 905.1439587 | DK11: =IFERROR(VLOOKUP(DJ11,$DH$2:$DI$41,2,FALSE),"") -> G2 | DM11: =DA11 -> Brachmanski Dave | DN11: G2
A12: B | D12: Spieler | E12: M | F12: W | G12: L | H12: F+ | I12: F- | J12: U | M12: Rang | N12: Rang | O12: P+ | Y12: 27 | Z12: Behling Oliver | AA12: Isermann Rene | AB12: =Matches!O12 -> 2 | AC12: =Matches!P12 -> 0 | BF12: C | BH12: 11 | BI12: =IF($CS$1="X","","C1") -> C1 | BM12: C3 | BN12: D2 | BO12: =$BI$17 -> D1 | BP12: C3 | BQ12: C3 | BR12: C3 | BS12: C3 | BT12: D2 | BU12: =$BI$17 -> D1 | BV12: C3 | BW12: C3 | BX12: C3 | BY12: C3 | BZ12: D2 | CA12: =$BI$17 -> D1 | CB12: C3 | CC12: C3 | CD12: C3 | CE12: C3 | CF12: C3 | CG12: C3 | CH12: C3 | CI12: C2 | CJ12: =$BI$12 -> C1 | CK12: C1 | CL12: C1 | CM12: C1 | CN12: C1 | CO12: C1 | CP12: C1 | CQ12: D2 | CR12: C1 | CU12: =IF($CQ$1<8,"",IF(CS4=CR12,"",CR12)) -> C1 | CV12: =IF(ROW(CU11)>COUNTA(CU:CU),"",INDEX(CU:CU,SMALL(IF(CU$2:CU$100<>"",ROW($2:$100)),ROW(CU11)))) -> D2 | CW12: D2 | CX12: A3 | CY12: =Spieler!C12 -> Hofmann Frank | CZ12: C3 | DA12: =Spieler!N12 -> Brömel Frank | DB12: =IF(ROW(CX11)>COUNTA(CX:CX),"",INDEX(CX:CX,SMALL(IF(CX$2:CX$100<>"",ROW($2:$100)),ROW(CX11)))) -> D2 | DC12: D2 | DD12: =VLOOKUP(DC12,Spieler!$I$2:$J$41,2,FALSE) -> Suttner Magnus | DH12: 634.336803 | DI12: C1 | DJ12: =IFERROR(LARGE($DH$2:$DH$41,3),"") -> 855.097359 | DK12: A3 | DM12: Brömel Frank | DN12: A3
B13: 1 | C13: B1 | D13: ='1. Runde Gruppen'!T3 -> Drahn Robert | E13: =AJ13+AJ16+AJ19+AJ15 -> 2 | F13: =AH13+AH16+AH19+AH15 -> 1 | G13: =AI13+AI16+AI19+AI15 -> 1 | H13: =AF13+AF16+AF19+AF15 -> 2 | I13: =AG13+AG16+AG19+AG15 -> 2 | J13: =AK13+AK16+AK19+AK15 -> 0 | M13: =IF(D13="X",-200000,IF(D13="Y",-200000,IF(D13="Z",-200000,IF(D13="",-200000,IF(D13="Z Freilos",-200000,IF(D13="",(-90000),(F13*10000)+(H13*1000)+(J13*10)+E13-(G13*10000)-(I13*1000)+O13)))))) -> 2 | N13: =IF(E13=0,"",RANK(M13,M13:M17)) -> 2 | O13: ='1. Runde Gruppen'!AE3 -> 0 | P13: =IF(D13="","",D13) -> Drahn Robert | Q13: =IF(V13="","",1) -> 1 | R13: 2 | S13: 2 | T13: B | U13: =C13 -> B1 | V13: =D13 -> Drahn Robert | W13: =C14 -> B2 | X13: =D14 -> Brömel Frank | Y13: 28 | Z13: Hartung Andreas | AA13: Straßburger Marko | AB13: =Matches!O13 -> 1 | AC13: =Matches!P13 -> 2 | AF13: =IFERROR(VLOOKUP(S13,$Y$2:$AC$88,4,FALSE),"") -> 2 | AG13: =IFERROR(VLOOKUP(S13,$Y$2:$AC$88,5,FALSE),"") -> 0 | AH13: =IF(AF13>AG13,1,0) -> 1 | AI13: =IF(AG13>AF13,1,0) -> 0 | AJ13: =IF(AF13+AG13>=1,1,0) -> 1 | AK13: =IF(AND(AF13+AG13>1,AF13=AG13),1,0) -> 0 | BF13: D | BH13: 12 | BI13: C2 | BN13: D3 | BO13: D2 | BP13: =$BI$17 -> D1 | BQ13: C4 | BR13: C4 | BS13: =$BI$17 -> D1 | BT13: D3 | BU13: D2 | BV13: =$BI$17 -> D1 | BW13: C4 | BX13: C4 | BY13: C4 | BZ13: D3 | CA13: D2 | CB13: =$BI$17 -> D1 | CC13: C4 | CD13: C4 | CE13: C4 | CF13: C4 | CG13: C4 | CH13: C4 | CI13: C3 | CJ13: C2 | CK13: C2 | CL13: C2 | CM13: C2 | CN13: C2 | CO13: C2 | CP13: C2 | CQ13: D3 | CR13: C2 | CU13: C2 | CV13: =IF(ROW(CU12)>COUNTA(CU:CU),"",INDEX(CU:CU,SMALL(IF(CU$2:CU$100<>"",ROW($2:$100)),ROW(CU12)))) -> D3 | CW13: D3 | CX13: B1 | CY13: =Spieler!C13 -> Isermann Rene | CZ13: E2 | DA13: =Spieler!N13 -> Delling Tino | DB13: =IF(ROW(CX12)>COUNTA(CX:CX),"",INDEX(CX:CX,SMALL(IF(CX$2:CX$100<>"",ROW($2:$100)),ROW(CX12)))) -> D3 | DC13: D3 | DD13: =VLOOKUP(DC13,Spieler!$I$2:$J$41,2,FALSE) -> Straßburger Marko | DH13: 324.5262179 | DI13: C2 | DJ13: =IFERROR(LARGE($DH$2:$DH$41,4),"") -> 784.7459258 | DK13: F2 | DM13: =DA13 -> Delling Tino | DN13: F2
B14: 2 | C14: B2 | D14: ='1. Runde Gruppen'!T4 -> Brömel Frank | E14: =AJ13+AJ18+AJ14+AJ22 -> 2 | F14: =AI13+AH14+AH18+AH22 -> 0 | G14: =AH13+AI18+AI14+AI22 -> 2 | H14: =AG13+AF22+AF18+AF14 -> 0 | I14: =AF13+AG14+AG18+AG22 -> 4 | J14: =AK13+AK18+AK14+AK22 -> 0 | M14: =IF(D14="X",-200000,IF(D14="Y",-200000,IF(D14="Z",-200000,IF(D14="",-200000,IF(D14="Z Freilos",-200000,IF(D14="",(-90000),(F14*10000)+(H14*1000)+(J14*10)+E14-(G14*10000)-(I14*1000)+O14)))))) -> -23998 | N14: =IF(E14=0,"",RANK(M14,M13:M17)) -> 3 | O14: ='1. Runde Gruppen'!AE4 -> 0 | P14: =IF(D14="","",D14) -> Brömel Frank | Q14: =IF(V14="","",2) ->  | R14: =IF(B16=4,42,10) -> 10 | T14: B | U14: =C15 -> B3 | V14: =IF(X14="","",D14) ->  | W14: =C16 -> B4 | X14: =D16 ->  | Y14: 29 | Z14: Swennen Andy | AA14: Delling Tino | AB14: =Matches!O14 -> 0 | AC14: =Matches!P14 -> 2 | AF14: =IFERROR(VLOOKUP(S14,$Y$2:$AC$88,4,FALSE),"") -> 0 | AG14: =IFERROR(VLOOKUP(S14,$Y$2:$AC$88,5,FALSE),"") -> 0 | AH14: 0 | AI14: 0 | AJ14: =IF(AF14+AG14>=1,1,0) -> 0 | AK14: =IF(AND(AF14+AG14>1,AF14=AG14),1,0) -> 0 | BF14: E | BH14: 13 | BI14: C3 | BO14: D3 | BP14: D2 | BQ14: =$BI$17 -> D1 | BR14: =$BI$17 -> D1 | BS14: D2 | BT14: =$BI$22 -> E1 | BU14: D3 | BV14: D2 | BW14: =$BI$17 -> D1 | BX14: =$BI$17 -> D1 | BY14: =BI17 -> D1 | BZ14: =$BI$22 -> E1 | CA14: D3 | CB14: D2 | CC14: =$BI$17 -> D1 | CD14: D1 | CE14: D1 | CF14: D1 | CG14: D1 | CH14: D1 | CI14: C4 | CJ14: C3 | CK14: C3 | CL14: C3 | CM14: C3 | CN14: C3 | CO14: C3 | CP14: C3 | CQ14: E1 | CR14: C3 | CU14: C3 | CV14: =IF(ROW(CU13)>COUNTA(CU:CU),"",INDEX(CU:CU,SMALL(IF(CU$2:CU$100<>"",ROW($2:$100)),ROW(CU13)))) -> E1 | CW14: E1 | CX14: B2 | CY14: =Spieler!C14 -> Jeroch Paul | CZ14: B3 | DA14: =Spieler!N14 -> Drahn Robert | DB14: =IF(ROW(CX13)>COUNTA(CX:CX),"",INDEX(CX:CX,SMALL(IF(CX$2:CX$100<>"",ROW($2:$100)),ROW(CX13)))) -> E1 | DC14: E1 | DD14: =VLOOKUP(DC14,Spieler!$I$2:$J$41,2,FALSE) -> Swennen Andy | DH14: 458.1290042 | DI14: C3 | DJ14: =IFERROR(LARGE($DH$2:$DH$41,5),"") -> 725.4222754 | DK14: H2 | DM14: Drahn Robert | DN14: =DK14 -> H2
B15: 3 | C15: B3 | D15: ='1. Runde Gruppen'!T5 -> Weber Marco | E15: =AJ16+AJ18+AJ21+AJ20 -> 2 | F15: =AI16+AI18+AH21+AH20 -> 2 | G15: =AH16+AH18+AI21+AI20 -> 0 | H15: =AG16+AG18+AF21+AF20 -> 4 | I15: =AF16+AF18+AG21+AG20 -> 0 | J15: =AK16+AK18+AK21+AK20 -> 0 | M15: 24002 | N15: =IF(E15=0,"",RANK(M15,M13:M17)) -> 1 | O15: ='1. Runde Gruppen'!AE5 -> 0 | P15: =IF(D15="","",D15) -> Weber Marco | Q15: =IF(V15="","",3) ->  | R15: 18 | T15: B | U15: =C13 -> B1 | V15: =IF(X15="","",D13) ->  | W15: =C17 -> B5 | X15: =D17 ->  | Y15: 30 | Z15: Jeroch Paul | AA15: =IFERROR(IF(Y15="","",VLOOKUP(Y15,$S$1:$X$88,6,FALSE)),"") -> Rejke Ronny | AB15: =Matches!O15 -> 2 | AC15: =Matches!P15 -> 1 | AF15: 0 | AG15: 0 | AH15: 0 | AI15: 0 | AJ15: =IF(AF15+AG15>=1,1,0) -> 0 | AK15: 0 | BF15: F | BH15: 14 | BI15: C4 | BP15: D3 | BQ15: D2 | BR15: D2 | BS15: D3 | BT15: E2 | BU15: =$BI$22 -> E1 | BV15: D3 | BW15: D2 | BX15: D2 | BY15: =BI18 -> D2 | BZ15: E2 | CA15: =$BI$22 -> E1 | CB15: D3 | CC15: D2 | CD15: D2 | CE15: D2 | CF15: D2 | CG15: D2 | CH15: D2 | CI15: =$BI$17 -> D1 | CJ15: C4 | CK15: C4 | CL15: C4 | CM15: C4 | CN15: C4 | CO15: C4 | CP15: C4 | CQ15: E2 | CV15: =IF(ROW(CU14)>COUNTA(CU:CU),"",INDEX(CU:CU,SMALL(IF(CU$2:CU$100<>"",ROW($2:$100)),ROW(CU14)))) -> E2 | CW15: E2 | CX15: B3 | CY15: =Spieler!C15 -> Löffel Ulrich | CZ15: B2 | DA15: =Spieler!N15 -> Elham Faiz | DB15: =IF(ROW(CX14)>COUNTA(CX:CX),"",INDEX(CX:CX,SMALL(IF(CX$2:CX$100<>"",ROW($2:$100)),ROW(CX14)))) -> E2 | DC15: E2 | DD15: =VLOOKUP(DC15,Spieler!$I$2:$J$41,2,FALSE) -> Fandrei Andreas | DJ15: =IFERROR(LARGE($DH$2:$DH$41,6),"") -> 723.1419912 | DK15: D3 | DM15: Elham Faiz | DN15: D3
B16: =IF(D16="","",4) ->  | C16: B4 | D16: ='1. Runde Gruppen'!T6 ->  | E16: =AJ14+AJ17+AJ19+AJ21 -> 0 | F16: =AI14+AH17+AI19+AI21 -> 0 | G16: =AH14+AH19+AH21+AI17 -> 0 | H16: =AG14+AF17+AG19+AG21 -> 0 | I16: =AF14+AG17+AF19+AF21 -> 0 | J16: =AK14+AK19+AK21+AK17 -> 0 | M16: -200000 | N16: =IF(E16=0,"",RANK(M16,M13:M17)) ->  | O16: ='1. Runde Gruppen'!AE6 -> 0 | P16: =IF(D16="","",D16) ->  | Q16: =IF(V16="","",4) -> 4 | R16: 26 | S16: 26 | T16: B | U16: =C14 -> B2 | V16: =D13 -> Drahn Robert | W16: =C15 -> B3 | X16: =D15 -> Weber Marco | Y16: 31 | Z16: Löffel Ulrich | AA16: Hofmann Frank | AB16: =Matches!O16 -> 0 | AC16: =Matches!P16 -> 2 | AF16: 0 | AG16: 2 | AH16: 0 | AI16: 1 | AJ16: 1 | AK16: 0 | BF16: G | BH16: 15 | BI16: C5 | BQ16: D3 | BR16: D3 | BS16: =$BI$22 -> E1 | BT16: E3 | BU16: E2 | BV16: =$BI$22 -> E1 | BW16: D3 | BX16: D3 | BY16: =BI19 -> D3 | BZ16: E3 | CA16: E2 | CB16: =$BI$22 -> E1 | CC16: D3 | CD16: D3 | CE16: D3 | CF16: D3 | CG16: D3 | CH16: D3 | CI16: D2 | CJ16: =$BI$17 -> D1 | CK16: C5 | CL16: C5 | CM16: C5 | CN16: C5 | CO16: C5 | CP16: C5 | CQ16: E3 | CV16: =IF(ROW(CU15)>COUNTA(CU:CU),"",INDEX(CU:CU,SMALL(IF(CU$2:CU$100<>"",ROW($2:$100)),ROW(CU15)))) -> E3 | CW16: E3 | CX16: C1 | CY16: =Spieler!C16 -> Müller Marcus | CZ16: H1 | DA16: =Spieler!N16 -> Fandrei Andreas | DB16: =IF(ROW(CX15)>COUNTA(CX:CX),"",INDEX(CX:CX,SMALL(IF(CX$2:CX$100<>"",ROW($2:$100)),ROW(CX15)))) -> E3 | DC16: E3 | DD16: =VLOOKUP(DC16,Spieler!$I$2:$J$41,2,FALSE) -> Delling Tino | DJ16: =IFERROR(LARGE($DH$2:$DH$41,7),"") -> 706.0558281 | DK16: A2 | DM16: Fandrei Andreas | DN16: A2
B17: =IF(D17="","",5) ->  | C17: B5 | D17: ='1. Runde Gruppen'!T7 ->  | E17: =AJ15+AJ17+AJ20+AJ22 -> 0 | F17: =AI15+AI17+AI20+AI22 -> 0 | G17: =AH15+AH17+AH20+AH22 -> 0 | H17: =AG15+AG17+AG20+AG22 -> 0 | I17: =AF15+AF17+AF20+AF22 -> 0 | J17: =AK15+AK17+AK20+AK22 -> 0 | M17: -200000 | N17: =IF(E17=0,"",RANK(M17,M13:M17)) ->  | O17: ='1. Runde Gruppen'!AE7 -> 0 | P17: =IF(D17="","",D17) ->  | Q17: =IF(V17="","",5) ->  | R17: 34 | T17: B | U17: =C16 -> B4 | V17: =IF(X17="","",D16) ->  | W17: =C17 -> B5 | X17: =D17 ->  | Y17: 32 | Z17: Elham Faiz | AA17: Thomas Moritz | AB17: =Matches!O17 -> 1 | AC17: =Matches!P17 -> 2 | AF17: 0 | AG17: 0 | AH17: 0 | AI17: 0 | AJ17: 0 | AK17: 0 | BF17: H | BH17: 16 | BI17: =IF($CS$1="X","","D1") -> D1 | BR17: D4 | BS17: E2 | BT17: =$BI$27 -> F1 | BU17: E3 | BV17: E2 | BW17: =$BI$22 -> E1 | BX17: D4 | BY17: =BI20 -> D4 | BZ17: =$BI$27 -> F1 | CA17: E3 | CB17: E2 | CC17: =$BI$22 -> E1 | CD17: D4 | CE17: D4 | CF17: D4 | CG17: D4 | CH17: D4 | CI17: D3 | CJ17: D2 | CK17: =$BI$17 -> D1 | CL17: D1 | CM17: D1 | CN17: D1 | CO17: D1 | CP17: D1 | CQ17: F1 | CR17: D1 | CU17: =IF($CQ$1<8,"",IF(CS5=CR17,"",CR17)) -> D1 | CV17: =IF(ROW(CU16)>COUNTA(CU:CU),"",INDEX(CU:CU,SMALL(IF(CU$2:CU$100<>"",ROW($2:$100)),ROW(CU16)))) -> F1 | CW17: F1 | CX17: C2 | CY17: =Spieler!C17 -> Rejke Ronny | CZ17: D2 | DA17: =Spieler!N17 -> Fandrei Joel | DB17: =IF(ROW(CX16)>COUNTA(CX:CX),"",INDEX(CX:CX,SMALL(IF(CX$2:CX$100<>"",ROW($2:$100)),ROW(CX16)))) -> F1 | DC17: F1 | DD17: =VLOOKUP(DC17,Spieler!$I$2:$J$41,2,FALSE) -> Jeroch Paul | DH17: 941.1475369 | DI17: D1 | DJ17: =IFERROR(LARGE($DH$2:$DH$41,8),"") -> 697.5277484 | DK17: E3 | DM17: Fandrei Joel | DN17: E3
Q18: =IF(V18="","",6) -> 6 | R18: =IF(B16=4,66,42) -> 42 | S18: 42 | T18: B | U18: =C13 -> B1 | V18: =D14 -> Brömel Frank | W18: =C15 -> B3 | X18: Weber Marco | Y18: 41 | Z18: Brachmanski Dave | AA18: Gärtner David | AB18: =Matches!O18 -> 1 | AC18: =Matches!P18 -> 2 | AF18: 0 | AG18: 2 | AH18: 0 | AI18: 1 | AJ18: 1 | AK18: 0 | BF18: A | BH18: 17 | BI18: D2 | BS18: E3 | BT18: F2 | BU18: =$BI$27 -> F1 | BV18: E3 | BW18: E2 | BX18: =$BI$22 -> E1 | BY18: =BI22 -> E1 | BZ18: F2 | CA18: =$BI$27 -> F1 | CB18: E3 | CC18: E2 | CD18: =$BI$22 -> E1 | CE18: =$BI$22 -> E1 | CF18: =$BI$22 -> E1 | CG18: =$BI$22 -> E1 | CH18: =$BI$22 -> E1 | CI18: D4 | CJ18: D3 | CK18: D2 | CL18: D2 | CM18: D2 | CN18: D2 | CO18: D2 | CP18: D2 | CQ18: F2 | CR18: D2 | CU18: D2 | CV18: =IF(ROW(CU17)>COUNTA(CU:CU),"",INDEX(CU:CU,SMALL(IF(CU$2:CU$100<>"",ROW($2:$100)),ROW(CU17)))) -> F2 | CW18: F2 | CX18: C3 | CY18: =Spieler!C18 -> Stachly Marec | CZ18: C2 | DA18: =Spieler!N18 -> Gärtner David | DB18: =IF(ROW(CX17)>COUNTA(CX:CX),"",INDEX(CX:CX,SMALL(IF(CX$2:CX$100<>"",ROW($2:$100)),ROW(CX17)))) -> F2 | DC18: F2 | DD18: =VLOOKUP(DC18,Spieler!$I$2:$J$41,2,FALSE) -> Müller Marcus | DH18: 332.0928976 | DI18: D2 | DJ18: =IFERROR(LARGE($DH$2:$DH$41,9),"") -> 670.8958751 | DK18: A1 | DM18: Gärtner David | DN18: A1
Q19: =IF(V19="","",7) ->  | R19: 50 | T19: B | U19: =C14 -> B2 | V19: =IF(X19="","",D13) ->  | W19: B4 | Y19: 42 | Z19: Brömel Frank | AA19: Weber Marco | AB19: =Matches!O19 -> 0 | AC19: =Matches!P19 -> 2 | AF19: 0 | AG19: 0 | AH19: 0 | AI19: 0 | AJ19: 0 | AK19: 0 | BF19: B | BH19: 18 | BI19: D3 | BT19: F3 | BU19: F2 | BV19: =$BI$27 -> F1 | BW19: E3 | BX19: E2 | BY19: =BI23 -> E2 | BZ19: F3 | CA19: F2 | CB19: =$BI$27 -> F1 | CC19: E3 | CD19: E2 | CE19: E2 | CF19: E2 | CG19: E2 | CH19: E2 | CI19: =$BI$22 -> E1 | CJ19: D4 | CK19: D3 | CL19: D3 | CM19: D3 | CN19: D3 | CO19: D3 | CP19: D3 | CQ19: F3 | CR19: D3 | CU19: D3 | CV19: =IF(ROW(CU18)>COUNTA(CU:CU),"",INDEX(CU:CU,SMALL(IF(CU$2:CU$100<>"",ROW($2:$100)),ROW(CU18)))) -> F3 | CW19: F3 | CX19: D1 | CY19: =Spieler!C19 -> Straßburger Marko | CZ19: F1 | DA19: =Spieler!N19 -> Hartung Andreas | DB19: =IF(ROW(CX18)>COUNTA(CX:CX),"",INDEX(CX:CX,SMALL(IF(CX$2:CX$100<>"",ROW($2:$100)),ROW(CX18)))) -> F3 | DC19: F3 | DD19: =VLOOKUP(DC19,Spieler!$I$2:$J$41,2,FALSE) -> Rejke Ronny | DH19: 723.1419912 | DI19: D3 | DJ19: =IFERROR(LARGE($DH$2:$DH$41,10),"") -> 634.336803 | DK19: C1 | DM19: Hartung Andreas | DN19: C1
Q20: =IF(V20="","",8) ->  | R20: 58 | T20: B | U20: =C15 -> B3 | V20: =IF(X20="","",D15) ->  | W20: B5 | Y20: 43 | Z20: Witzik Oliver | AA20: Isermann Rene | AB20: =Matches!O20 -> 2 | AC20: =Matches!P20 -> 0 | AF20: 0 | AG20: 0 | AH20: 0 | AI20: 0 | AJ20: 0 | AK20: 0 | BF20: C | BH20: 19 | BI20: D4 | BU20: F3 | BV20: F2 | BW20: =$BI$27 -> F1 | BX20: E3 | BY20: =BI24 -> E3 | BZ20: =$BI$32 -> G1 | CA20: F3 | CB20: F2 | CC20: =$BI$27 -> F1 | CD20: E3 | CE20: E3 | CF20: E3 | CG20: E3 | CH20: E3 | CI20: E2 | CJ20: =$BI$22 -> E1 | CK20: D4 | CL20: D4 | CM20: D4 | CN20: D4 | CO20: D4 | CP20: D4 | CQ20: G1 | CV20: =IF(ROW(CU19)>COUNTA(CU:CU),"",INDEX(CU:CU,SMALL(IF(CU$2:CU$100<>"",ROW($2:$100)),ROW(CU19)))) -> G1 | CW20: G1 | CX20: D2 | CY20: =Spieler!C20 -> Suttner Magnus | CZ20: E1 | DA20: =Spieler!N20 -> Hofmann Frank | DB20: =IF(ROW(CX19)>COUNTA(CX:CX),"",INDEX(CX:CX,SMALL(IF(CX$2:CX$100<>"",ROW($2:$100)),ROW(CX19)))) -> G1 | DC20: G1 | DD20: =VLOOKUP(DC20,Spieler!$I$2:$J$41,2,FALSE) -> Löffel Ulrich | DJ20: =IFERROR(LARGE($DH$2:$DH$41,11),"") -> 458.1290042 | DK20: C3 | DM20: Hofmann Frank | DN20: C3
Q21: =IF(V21="","",9) ->  | R21: =IF(B16=4,10,66) -> 66 | T21: B | U21: =C13 -> B1 | V21: =IF(X21="","",D15) ->  | W21: =C16 -> B4 | X21: =D16 ->  | Y21: 44 | Z21: Suttner Magnus | AA21: Straßburger Marko | AB21: =Matches!O21 -> 1 | AC21: =Matches!P21 -> 2 | AF21: 0 | AG21: 0 | AH21: 0 | AI21: 0 | AJ21: 0 | AK21: 0 | BF21: D | BH21: 20 | BI21: D5 | BV21: F3 | BW21: F2 | BX21: =$BI$27 -> F1 | BY21: =BI25 -> E4 | BZ21: G2 | CA21: =$BI$32 -> G1 | CB21: F3 | CC21: F2 | CD21: =$BI$27 -> F1 | CE21: E4 | CF21: E4 | CG21: E4 | CH21: E4 | CI21: E3 | CJ21: E2 | CK21: =$BI$22 -> E1 | CL21: D5 | CM21: D5 | CN21: D5 | CO21: D5 | CP21: D5 | CQ21: G2 | CV21: =IF(ROW(CU20)>COUNTA(CU:CU),"",INDEX(CU:CU,SMALL(IF(CU$2:CU$100<>"",ROW($2:$100)),ROW(CU20)))) -> G2 | CW21: G2 | CX21: D3 | CY21: =Spieler!C21 -> Swennen Andy | CZ21: G3 | DA21: =Spieler!N21 -> Isermann Rene | DB21: =IF(ROW(CX20)>COUNTA(CX:CX),"",INDEX(CX:CX,SMALL(IF(CX$2:CX$100<>"",ROW($2:$100)),ROW(CX20)))) -> G2 | DC21: G2 | DD21: =VLOOKUP(DC21,Spieler!$I$2:$J$41,2,FALSE) -> Stachly Marec | DJ21: =IFERROR(LARGE($DH$2:$DH$41,12),"") -> 452.2745498 | DK21: E2 | DM21: Isermann Rene | DN21: E2
Q22: =IF(V22="","",10) ->  | R22: 74 | T22: B | U22: =C14 -> B2 | V22: =IF(X22="","",D14) ->  | W22: =C17 -> B5 | X22: =D17 ->  | Y22: 45 | Z22: Fandrei Andreas | AA22: Delling Tino | AB22: =Matches!O22 -> 0 | AC22: =Matches!P22 -> 2 | AF22: 0 | AG22: 0 | AH22: 0 | AI22: 0 | AJ22: 0 | AK22: 0 | BF22: E | BH22: 21 | BI22: =IF($CS$1="X","","E1") -> E1 | BW22: F3 | BX22: F2 | BY22: =BI27 -> F1 | BZ22: G3 | CA22: G2 | CB22: =$BI$32 -> G1 | CC22: F3 | CD22: F2 | CE22: =$BI$27 -> F1 | CF22: =$BI$27 -> F1 | CG22: =$BI$27 -> F1 | CH22: =$BI$27 -> F1 | CI22: E4 | CJ22: E3 | CK22: E2 | CL22: =$BI$22 -> E1 | CM22: =$BI$22 -> E1 | CN22: =$BI$22 -> E1 | CO22: =$BI$22 -> E1 | CP22: =$BI$22 -> E1 | CQ22: G3 | CR22: E1 | CU22: =IF($CQ$1<8,"",IF(CS6=CR22,"",CR22)) -> E1 | CV22: =IF(ROW(CU21)>COUNTA(CU:CU),"",INDEX(CU:CU,SMALL(IF(CU$2:CU$100<>"",ROW($2:$100)),ROW(CU21)))) -> G3 | CW22: G3 | CX22: E1 | CY22: =Spieler!C22 -> Thomas Moritz | CZ22: F3 | DA22: =Spieler!N22 -> Jeroch Paul | DB22: =IF(ROW(CX21)>COUNTA(CX:CX),"",INDEX(CX:CX,SMALL(IF(CX$2:CX$100<>"",ROW($2:$100)),ROW(CX21)))) -> G3 | DC22: G3 | DD22: =VLOOKUP(DC22,Spieler!$I$2:$J$41,2,FALSE) -> Hofmann Frank | DH22: 194.3161823 | DI22: E1 | DJ22: =IFERROR(LARGE($DH$2:$DH$41,13),"") -> 402.3413664 | DK22: B3 | DM22: Jeroch Paul | DN22: B3
A23: C | D23: Spieler | E23: M | F23: W | G23: L | H23: F+ | I23: F- | J23: U | M23: Rang | N23: Rang | O23: P+ | Y23: 46 | Z23: Müller Marcus | AA23: Rejke Ronny | AB23: =Matches!O23 -> 2 | AC23: =Matches!P23 -> 0 | BF23: F | BH23: 22 | BI23: E2 | BX23: F3 | BY23: =BI28 -> F2 | BZ23: =$BI$37 -> H1 | CA23: G3 | CB23: G2 | CC23: =$BI$32 -> G1 | CD23: F3 | CE23: F2 | CF23: F2 | CG23: F2 | CH23: F2 | CI23: =$BI$27 -> F1 | CJ23: E4 | CK23: E3 | CL23: E2 | CM23: E2 | CN23: E2 | CO23: E2 | CP23: E2 | CQ23: H1 | CR23: E2 | CU23: E2 | CV23: =IF(ROW(CU22)>COUNTA(CU:CU),"",INDEX(CU:CU,SMALL(IF(CU$2:CU$100<>"",ROW($2:$100)),ROW(CU22)))) -> H1 | CW23: H1 | CX23: E2 | CY23: =Spieler!C23 -> Valderrama Salvador | CZ23: H3 | DA23: =Spieler!N23 -> Löffel Ulrich | DB23: =IF(ROW(CX22)>COUNTA(CX:CX),"",INDEX(CX:CX,SMALL(IF(CX$2:CX$100<>"",ROW($2:$100)),ROW(CX22)))) -> H1 | DC23: H1 | DD23: =VLOOKUP(DC23,Spieler!$I$2:$J$41,2,FALSE) -> Elham Faiz | DH23: 452.2745498 | DI23: E2 | DJ23: =IFERROR(LARGE($DH$2:$DH$41,14),"") -> 382.1703166 | DK23: B2 | DM23: Löffel Ulrich | DN23: B2
B24: 1 | C24: C1 | D24: ='1. Runde Gruppen'!D11 -> Behling Oliver | E24: =AJ24+AJ27+AJ30+AJ26 -> 2 | F24: =AH24+AH27+AH30+AH26 -> 1 | G24: =AI24+AI27+AI30+AI26 -> 1 | H24: =AF24+AF27+AF30+AF26 -> 2 | I24: =AG24+AG27+AG30+AG26 -> 2 | J24: =AK24+AK27+AK30+AK26 -> 0 | M24: =IF(D24="X",-200000,IF(D24="Y",-200000,IF(D24="Z",-200000,IF(D24="",-200000,IF(D24="Z Freilos",-200000,IF(D24="",(-90000),(F24*10000)+(H24*1000)+(J24*10)+E24-(G24*10000)-(I24*1000)+O24)))))) -> 2 | N24: =IF(E24=0,"",RANK(M24,M24:M28)) -> 2 | O24: ='1. Runde Gruppen'!O11 -> 0 | P24: =IF(D24="","",D24) -> Behling Oliver | Q24: =IF(V24="","",1) -> 1 | R24: 3 | S24: 3 | T24: C | U24: =C24 -> C1 | V24: =D24 -> Behling Oliver | W24: =C25 -> C2 | X24: =D25 -> Witzik Oliver | Y24: 47 | Z24: Stachly Marec | AA24: Hofmann Frank | AB24: =Matches!O24 -> 2 | AC24: =Matches!P24 -> 0 | AF24: =IFERROR(VLOOKUP(S24,$Y$2:$AC$88,4,FALSE),"") -> 0 | AG24: =IFERROR(VLOOKUP(S24,$Y$2:$AC$88,5,FALSE),"") -> 2 | AH24: =IF(AF24>AG24,1,0) -> 0 | AI24: =IF(AG24>AF24,1,0) -> 1 | AJ24: =IF(AF24+AG24>=1,1,0) -> 1 | AK24: =IF(AND(AF24+AG24>1,AF24=AG24),1,0) -> 0 | BF24: G | BH24: 23 | BI24: E3 | BY24: =BI29 -> F3 | BZ24: H2 | CA24: =$BI$37 -> H1 | CB24: G3 | CC24: G2 | CD24: =$BI$32 -> G1 | CE24: F3 | CF24: F3 | CG24: F3 | CH24: F3 | CI24: F2 | CJ24: =$BI$27 -> F1 | CK24: E4 | CL24: E3 | CM24: E3 | CN24: E3 | CO24: E3 | CP24: E3 | CQ24: H2 | CR24: E3 | CU24: E3 | CV24: =IF(ROW(CU23)>COUNTA(CU:CU),"",INDEX(CU:CU,SMALL(IF(CU$2:CU$100<>"",ROW($2:$100)),ROW(CU23)))) -> H2 | CW24: H2 | CX24: E3 | CY24: =Spieler!C24 -> Weber Marco | CZ24: B1 | DA24: =Spieler!N24 -> Müller Marcus | DB24: =IF(ROW(CX23)>COUNTA(CX:CX),"",INDEX(CX:CX,SMALL(IF(CX$2:CX$100<>"",ROW($2:$100)),ROW(CX23)))) -> H2 | DC24: H2 | DD24: =VLOOKUP(DC24,Spieler!$I$2:$J$41,2,FALSE) -> Fandrei Joel | DH24: 697.5277484 | DI24: E3 | DJ24: =IFERROR(LARGE($DH$2:$DH$41,15),"") -> 371.0749696 | DK24: H1 | DM24: Müller Marcus | DN24: H1
B25: 2 | C25: C2 | D25: ='1. Runde Gruppen'!D12 -> Witzik Oliver | E25: =AJ24+AJ29+AJ25+AJ33 -> 2 | F25: =AI24+AH25+AH29+AH33 -> 2 | G25: =AH24+AI29+AI25+AI33 -> 0 | H25: =AG24+AF33+AF29+AF25 -> 4 | I25: =AF24+AG25+AG29+AG33 -> 0 | J25: =AK24+AK29+AK25+AK33 -> 0 | M25: =IF(D25="X",-200000,IF(D25="Y",-200000,IF(D25="Z",-200000,IF(D25="",-200000,IF(D25="Z Freilos",-200000,IF(D25="",(-90000),(F25*10000)+(H25*1000)+(J25*10)+E25-(G25*10000)-(I25*1000)+O25)))))) -> 24002 | N25: =IF(E25=0,"",RANK(M25,M24:M28)) -> 1 | O25: ='1. Runde Gruppen'!O12 -> 0 | P25: =IF(D25="","",D25) -> Witzik Oliver | Q25: =IF(V25="","",2) ->  | R25: =IF(B27=4,43,11) -> 11 | S25: =IF(Q25="","",R25) ->  | T25: C | U25: =C26 -> C3 | V25: =IF(X25="","",D25) ->  | W25: =C27 -> C4 | X25: =D27 ->  | Y25: 48 | Z25: Fandrei Joel | AA25: Thomas Moritz | AB25: =Matches!O25 -> 2 | AC25: =Matches!P25 -> 1 | AF25: =IFERROR(VLOOKUP(S25,$Y$2:$AC$88,4,FALSE),"") -> 0 | AG25: =IFERROR(VLOOKUP(S25,$Y$2:$AC$88,5,FALSE),"") -> 0 | AH25: 0 | AI25: 0 | AJ25: =IF(AF25+AG25>=1,1,0) -> 0 | AK25: =IF(AND(AF25+AG25>1,AF25=AG25),1,0) -> 0 | BF25: H | BH25: 24 | BI25: E4 | BZ25: H3 | CA25: H2 | CB25: =$BI$37 -> H1 | CC25: G3 | CD25: G2 | CE25: =$BI$32 -> G1 | CF25: F4 | CG25: F4 | CH25: F4 | CI25: F3 | CJ25: F2 | CK25: =$BI$27 -> F1 | CL25: E4 | CM25: E4 | CN25: E4 | CO25: E4 | CP25: E4 | CQ25: H3 | CV25: =IF(ROW(CU24)>COUNTA(CU:CU),"",INDEX(CU:CU,SMALL(IF(CU$2:CU$100<>"",ROW($2:$100)),ROW(CU24)))) -> H3 | CW25: H3 | CX25: F1 | CY25: =Spieler!C25 -> Witzik Oliver | CZ25: G1 | DA25: =Spieler!N25 -> Rejke Ronny | DB25: =IF(ROW(CX24)>COUNTA(CX:CX),"",INDEX(CX:CX,SMALL(IF(CX$2:CX$100<>"",ROW($2:$100)),ROW(CX24)))) -> H3 | DC25: H3 | DD25: =VLOOKUP(DC25,Spieler!$I$2:$J$41,2,FALSE) -> Thomas Moritz | DJ25: =IFERROR(LARGE($DH$2:$DH$41,16),"") -> 332.0928976 | DK25: D2 | DM25: Rejke Ronny | DN25: D2
B26: 3 | C26: C3 | D26: ='1. Runde Gruppen'!D13 -> Isermann Rene | E26: =AJ27+AJ29+AJ32+AJ31 -> 2 | F26: =AI27+AI29+AH32+AH31 -> 0 | G26: =AH27+AH29+AI32+AI31 -> 2 | H26: =AG27+AG29+AF32+AF31 -> 0 | I26: =AF27+AF29+AG32+AG31 -> 4 | J26: =AK27+AK29+AK32+AK31 -> 0 | M26: -23998 | N26: =IF(E26=0,"",RANK(M26,M24:M28)) -> 3 | O26: ='1. Runde Gruppen'!O13 -> 0 | P26: =IF(D26="","",D26) -> Isermann Rene | Q26: =IF(V26="","",3) ->  | R26: 19 | T26: C | U26: =C24 -> C1 | V26: =IF(X26="","",D24) ->  | W26: =C28 -> C5 | X26: =D28 ->  | AB26: =Matches!O26 -> 0 | AC26: =Matches!P26 -> 0 | AF26: =IFERROR(VLOOKUP(S26,$Y$2:$AC$88,4,FALSE),"") -> 0 | AG26: 0 | AH26: 0 | AI26: 0 | AJ26: =IF(AF26+AG26>=1,1,0) -> 0 | AK26: 0 | BI26: E5 | CA26: H3 | CB26: H2 | CC26: =$BI$37 -> H1 | CD26: G3 | CE26: G2 | CF26: =$BI$32 -> G1 | CG26: =$BI$32 -> G1 | CH26: =$BI$32 -> G1 | CI26: F4 | CJ26: F3 | CK26: F2 | CL26: =$BI$27 -> F1 | CM26: E5 | CN26: E5 | CO26: E5 | CP26: E5 | CQ26: 0 | CV26: =IF(ROW(CU25)>COUNTA(CU:CU),"",INDEX(CU:CU,SMALL(IF(CU$2:CU$100<>"",ROW($2:$100)),ROW(CU25)))) ->  | CX26: F2 | CY26: =Spieler!C26 ->  | DA26: =Spieler!N26 -> Stachly Marec | DB26: =IF(ROW(CX25)>COUNTA(CX:CX),"",INDEX(CX:CX,SMALL(IF(CX$2:CX$100<>"",ROW($2:$100)),ROW(CX25)))) ->  | DD26: =VLOOKUP(DC26,Spieler!$I$2:$J$41,2,FALSE) ->  | DJ26: =IFERROR(LARGE($DH$2:$DH$41,17),"") -> 324.5262179 | DK26: C2 | DM26: Stachly Marec | DN26: C2
B27: =IF(D27="","",4) ->  | C27: C4 | D27: ='1. Runde Gruppen'!D14 ->  | E27: =AJ25+AJ28+AJ30+AJ32 -> 0 | F27: =AI25+AH28+AI30+AI32 -> 0 | G27: =AH25+AH30+AH32+AI28 -> 0 | H27: =AG25+AF28+AG30+AG32 -> 0 | I27: =AF25+AG28+AF30+AF32 -> 0 | J27: =AK25+AK30+AK32+AK28 -> 0 | M27: -200000 | N27: =IF(E27=0,"",RANK(M27,M24:M28)) ->  | O27: ='1. Runde Gruppen'!O14 -> 0 | P27: =IF(D27="","",D27) ->  | Q27: =IF(V27="","",4) -> 4 | R27: 27 | S27: 27 | T27: C | U27: =C25 -> C2 | V27: =D24 -> Behling Oliver | W27: =C26 -> C3 | X27: =D26 -> Isermann Rene | AB27: =Matches!O27 -> 0 | AC27: =Matches!P27 -> 0 | AF27: 2 | AG27: 0 | AH27: 1 | AI27: 0 | AJ27: 1 | AK27: 0 | BI27: =IF($CS$1="X","","F1") -> F1 | CB27: H3 | CC27: H2 | CD27: =$BI$37 -> H1 | CE27: G3 | CF27: G2 | CG27: G2 | CH27: G2 | CI27: =$BI$32 -> G1 | CJ27: F4 | CK27: F3 | CL27: F2 | CM27: =$BI$27 -> F1 | CN27: =$BI$27 -> F1 | CO27: =$BI$27 -> F1 | CP27: =$BI$27 -> F1 | CQ27: 0 | CR27: F1 | CU27: =IF($CQ$1<8,"",IF(CS7=CR27,"",CR27)) -> F1 | CV27: =IF(ROW(CU26)>COUNTA(CU:CU),"",INDEX(CU:CU,SMALL(IF(CU$2:CU$100<>"",ROW($2:$100)),ROW(CU26)))) ->  | CX27: F3 | CY27: =Spieler!C27 ->  | DA27: =Spieler!N27 -> Straßburger Marko | DB27: =IF(ROW(CX26)>COUNTA(CX:CX),"",INDEX(CX:CX,SMALL(IF(CX$2:CX$100<>"",ROW($2:$100)),ROW(CX26)))) ->  | DD27: =VLOOKUP(DC27,Spieler!$I$2:$J$41,2,FALSE) ->  | DH27: 217.1048635 | DI27: F1 | DJ27: =IFERROR(LARGE($DH$2:$DH$41,18),"") -> 217.1048635 | DK27: F1 | DM27: Straßburger Marko | DN27: F1
B28: =IF(D28="","",5) ->  | C28: C5 | D28: ='1. Runde Gruppen'!D15 ->  | E28: =AJ26+AJ28+AJ31+AJ33 -> 0 | F28: =AI26+AI28+AI31+AI33 -> 0 | G28: =AH26+AH28+AH31+AH33 -> 0 | H28: =AG26+AG28+AG31+AG33 -> 0 | I28: =AF26+AF28+AF31+AF33 -> 0 | J28: =AK26+AK28+AK31+AK33 -> 0 | M28: -200000 | N28: =IF(E28=0,"",RANK(M28,M24:M28)) ->  | O28: ='1. Runde Gruppen'!O15 -> 0 | P28: =IF(D28="","",D28) ->  | Q28: =IF(V28="","",5) ->  | R28: 35 | T28: C | U28: =C27 -> C4 | V28: =IF(X28="","",D27) ->  | W28: =C28 -> C5 | X28: =D28 ->  | Y28: =IFERROR(SMALL($S$2:$S$88,ROW()-1),"") ->  | AB28: =Matches!O28 -> 0 | AC28: =Matches!P28 -> 0 | AF28: 0 | AG28: 0 | AH28: 0 | AI28: 0 | AJ28: 0 | AK28: 0 | BI28: F2 | CC28: H3 | CD28: H2 | CE28: =$BI$37 -> H1 | CF28: G3 | CG28: G3 | CH28: G3 | CI28: G2 | CJ28: =$BI$32 -> G1 | CK28: F4 | CL28: F3 | CM28: F2 | CN28: F2 | CO28: F2 | CP28: F2 | CQ28: 0 | CR28: F2 | CU28: F2 | CV28: =IF(ROW(CU27)>COUNTA(CU:CU),"",INDEX(CU:CU,SMALL(IF(CU$2:CU$100<>"",ROW($2:$100)),ROW(CU27)))) ->  | CX28: G1 | CY28: =Spieler!C28 ->  | DA28: =Spieler!N28 -> Suttner Magnus | DB28: =IF(ROW(CX27)>COUNTA(CX:CX),"",INDEX(CX:CX,SMALL(IF(CX$2:CX$100<>"",ROW($2:$100)),ROW(CX27)))) ->  | DD28: =VLOOKUP(DC28,Spieler!$I$2:$J$41,2,FALSE) ->  | DH28: 784.7459258 | DI28: F2 | DJ28: =IFERROR(LARGE($DH$2:$DH$41,19),"") -> 194.3161823 | DK28: E1 | DM28: Suttner Magnus | DN28: E1
Q29: =IF(V29="","",6) -> 6 | R29: =IF(B27=4,67,43) -> 43 | S29: 43 | T29: C | U29: =C24 -> C1 | V29: =D25 -> Witzik Oliver | W29: =C26 -> C3 | X29: Isermann Rene | AB29: =Matches!O29 -> 0 | AC29: =Matches!P29 -> 0 | AF29: 2 | AG29: 0 | AH29: 1 | AI29: 0 | AJ29: 1 | AK29: 0 | BI29: F3 | CD29: H3 | CE29: H2 | CF29: =$BI$37 -> H1 | CG29: G4 | CH29: G4 | CI29: G3 | CJ29: G2 | CK29: =$BI$32 -> G1 | CL29: F4 | CM29: F3 | CN29: F3 | CO29: F3 | CP29: F3 | CQ29: 0 | CR29: F3 | CU29: F3 | CV29: =IF(ROW(CU28)>COUNTA(CU:CU),"",INDEX(CU:CU,SMALL(IF(CU$2:CU$100<>"",ROW($2:$100)),ROW(CU28)))) ->  | CX29: G2 | CY29: =Spieler!C29 ->  | DA29: =Spieler!N29 -> Swennen Andy | DB29: =IF(ROW(CX28)>COUNTA(CX:CX),"",INDEX(CX:CX,SMALL(IF(CX$2:CX$100<>"",ROW($2:$100)),ROW(CX28)))) ->  | DD29: =VLOOKUP(DC29,Spieler!$I$2:$J$41,2,FALSE) ->  | DH29: 71.98169089 | DI29: F3 | DJ29: =IFERROR(LARGE($DH$2:$DH$41,20),"") -> 126.5651394 | DK29: G3 | DM29: Swennen Andy | DN29: G3
Q30: =IF(V30="","",7) ->  | R30: 51 | T30: C | U30: =C25 -> C2 | V30: =IF(X30="","",D24) ->  | W30: C4 | AB30: =Matches!O30 -> 0 | AC30: =Matches!P30 -> 0 | AF30: 0 | AG30: 0 | AH30: 0 | AI30: 0 | AJ30: 0 | AK30: 0 | BI30: F4 | CE30: H3 | CF30: H2 | CG30: =$BI$37 -> H1 | CH30: =$BI$37 -> H1 | CI30: G4 | CJ30: G3 | CK30: G2 | CL30: =$BI$32 -> G1 | CM30: F4 | CN30: F4 | CO30: F4 | CP30: F4 | CQ30: 0 | CR30: =CS72 ->  | CU30: =IF($CQ$1<8,"",IF(CS30=CR30,"",CR30)) ->  | CV30: =IF(ROW(CU29)>COUNTA(CU:CU),"",INDEX(CU:CU,SMALL(IF(CU$2:CU$100<>"",ROW($2:$100)),ROW(CU29)))) ->  | CX30: G3 | CY30: =Spieler!C30 ->  | DA30: =Spieler!N30 -> Thomas Moritz | DB30: =IF(ROW(CX29)>COUNTA(CX:CX),"",INDEX(CX:CX,SMALL(IF(CX$2:CX$100<>"",ROW($2:$100)),ROW(CX29)))) ->  | DD30: =VLOOKUP(DC30,Spieler!$I$2:$J$41,2,FALSE) ->  | DJ30: =IFERROR(LARGE($DH$2:$DH$41,21),"") -> 71.98169089 | DK30: F3 | DM30: Thomas Moritz | DN30: F3
Q31: =IF(V31="","",8) ->  | R31: 59 | T31: C | U31: =C26 -> C3 | V31: =IF(X31="","",D26) ->  | W31: C5 | AB31: =Matches!O31 -> 0 | AC31: =Matches!P31 -> 0 | AF31: 0 | AG31: 0 | AH31: 0 | AI31: 0 | AJ31: 0 | AK31: 0 | BI31: F5 | CF31: H3 | CG31: H2 | CH31: H2 | CI31: =$BI$37 -> H1 | CJ31: G4 | CK31: G3 | CL31: G2 | CM31: =$BI$32 -> G1 | CN31: F5 | CO31: F5 | CP31: F5 | CQ31: 0 | CV31: =IF(ROW(CU30)>COUNTA(CU:CU),"",INDEX(CU:CU,SMALL(IF(CU$2:CU$100<>"",ROW($2:$100)),ROW(CU30)))) ->  | CX31: H1 | CY31: =Spieler!C31 ->  | DA31: =Spieler!N31 -> Valderrama Salvador | DB31: =IF(ROW(CX30)>COUNTA(CX:CX),"",INDEX(CX:CX,SMALL(IF(CX$2:CX$100<>"",ROW($2:$100)),ROW(CX30)))) ->  | DD31: =VLOOKUP(DC31,Spieler!$I$2:$J$41,2,FALSE) ->  | DJ31: =IFERROR(LARGE($DH$2:$DH$41,22),"") -> 68.08289959 | DK31: H3 | DM31: Valderrama Salvador | DN31: H3
Q32: =IF(V32="","",9) ->  | R32: =IF(B27=4,11,67) -> 67 | T32: C | U32: =C24 -> C1 | V32: =IF(X32="","",D26) ->  | W32: =C27 -> C4 | X32: =D27 ->  | AB32: =Matches!O32 -> 0 | AC32: =Matches!P32 -> 0 | AF32: 0 | AG32: 0 | AH32: 0 | AI32: 0 | AJ32: 0 | AK32: 0 | BI32: =IF($CS$1="X","","G1") -> G1 | CG32: H3 | CH32: H3 | CI32: H2 | CJ32: =$BI$37 -> H1 | CK32: G4 | CL32: G3 | CM32: G2 | CN32: =$BI$32 -> G1 | CO32: =$BI$32 -> G1 | CP32: =$BI$32 -> G1 | CQ32: 0 | CR32: G1 | CU32: =IF($CQ$1<8,"",IF(CS8=CR32,"",CR32)) -> G1 | CV32: =IF(ROW(CU31)>COUNTA(CU:CU),"",INDEX(CU:CU,SMALL(IF(CU$2:CU$100<>"",ROW($2:$100)),ROW(CU31)))) ->  | CX32: H2 | CY32: =Spieler!C32 ->  | DA32: =Spieler!N32 -> Weber Marco | DB32: =IF(ROW(CX31)>COUNTA(CX:CX),"",INDEX(CX:CX,SMALL(IF(CX$2:CX$100<>"",ROW($2:$100)),ROW(CX31)))) ->  | DD32: =VLOOKUP(DC32,Spieler!$I$2:$J$41,2,FALSE) ->  | DH32: 19.428256 | DI32: G1 | DJ32: =IFERROR(LARGE($DH$2:$DH$41,23),"") -> 29.11346334 | DK32: B1 | DM32: Weber Marco | DN32: B1
Q33: =IF(V33="","",10) ->  | R33: 75 | T33: C | U33: =C25 -> C2 | V33: =IF(X33="","",D25) ->  | W33: =C28 -> C5 | X33: =D28 ->  | AB33: =Matches!O33 -> 0 | AC33: =Matches!P33 -> 0 | AF33: 0 | AG33: 0 | AH33: 0 | AI33: 0 | AJ33: 0 | AK33: 0 | BI33: G2 | CH33: H4 | CI33: H3 | CJ33: H2 | CK33: =$BI$37 -> H1 | CL33: G4 | CM33: G3 | CN33: G2 | CO33: G2 | CP33: G2 | CQ33: 0 | CR33: G2 | CU33: =IF($CQ$1<8,"",IF(CS8=CR33,"",CR33)) -> G2 | CV33: =IF(ROW(CU32)>COUNTA(CU:CU),"",INDEX(CU:CU,SMALL(IF(CU$2:CU$100<>"",ROW($2:$100)),ROW(CU32)))) ->  | CX33: H3 | CY33: =Spieler!C33 ->  | DA33: =Spieler!N33 -> Witzik Oliver | DB33: =IF(ROW(CX32)>COUNTA(CX:CX),"",INDEX(CX:CX,SMALL(IF(CX$2:CX$100<>"",ROW($2:$100)),ROW(CX32)))) ->  | DC33: =IFERROR(IF(DB33>"",DB33,""),"") ->  | DD33: =VLOOKUP(DC33,Spieler!$I$2:$J$41,2,FALSE) ->  | DH33: 905.1439587 | DI33: G2 | DJ33: =IFERROR(LARGE($DH$2:$DH$41,24),"") -> 19.428256 | DK33: G1 | DM33: Witzik Oliver | DN33: G1
A34: D | D34: Spieler | E34: M | F34: W | G34: L | H34: F+ | I34: F- | J34: U | M34: Rang | N34: Rang | O34: P+ | AB34: =Matches!O34 -> 0 | AC34: =Matches!P34 -> 0 | BI34: G3 | CI34: H4 | CJ34: H3 | CK34: H2 | CL34: =$BI$37 -> H1 | CM34: G4 | CN34: G3 | CO34: G3 | CP34: G3 | CQ34: 0 | CR34: G3 | CU34: G3 | CV34: =IF(ROW(CU33)>COUNTA(CU:CU),"",INDEX(CU:CU,SMALL(IF(CU$2:CU$100<>"",ROW($2:$100)),ROW(CU33)))) ->  | CY34: =Spieler!C34 ->  | DA34: =Spieler!N34 ->  | DB34: =IF(ROW(CX33)>COUNTA(CX:CX),"",INDEX(CX:CX,SMALL(IF(CX$2:CX$100<>"",ROW($2:$100)),ROW(CX33)))) ->  | DD34: =VLOOKUP(DC34,Spieler!$I$2:$J$41,2,FALSE) ->  | DH34: 126.5651394 | DI34: G3 | DJ34: =IFERROR(LARGE($DH$2:$DH$41,25),"") -> 
B35: 1 | C35: D1 | D35: ='1. Runde Gruppen'!T11 -> Hartung Andreas | E35: =AJ35+AJ38+AJ41+AJ37 -> 2 | F35: =AH35+AH38+AH41+AH37 -> 0 | G35: =AI35+AI38+AI41+AI37 -> 2 | H35: =AF35+AF38+AF41+AF37 -> 1 | I35: =AG35+AG38+AG41+AG37 -> 4 | J35: =AK35+AK38+AK41+AK37 -> 0 | M35: =IF(D35="X",-200000,IF(D35="Y",-200000,IF(D35="Z",-200000,IF(D35="",-200000,IF(D35="Z Freilos",-200000,IF(D35="",(-90000),(F35*10000)+(H35*1000)+(J35*10)+E35-(G35*10000)-(I35*1000)+O35)))))) -> -22998 | N35: =IF(E35=0,"",RANK(M35,M35:M39)) -> 3 | O35: ='1. Runde Gruppen'!AE11 -> 0 | P35: =IF(D35="","",D35) -> Hartung Andreas | Q35: =IF(V35="","",1) -> 1 | R35: 4 | S35: 4 | T35: D | U35: =C35 -> D1 | V35: =D35 -> Hartung Andreas | W35: =C36 -> D2 | X35: =D36 -> Suttner Magnus | AB35: =Matches!O35 -> 0 | AC35: =Matches!P35 -> 0 | AF35: =VLOOKUP(S35,$Y$2:$AC$88,4,FALSE) -> 0 | AG35: =VLOOKUP(S35,$Y$2:$AC$88,5,FALSE) -> 2 | AH35: =IF(AF35>AG35,1,0) -> 0 | AI35: =IF(AG35>AF35,1,0) -> 1 | AJ35: =IF(AF35+AG35>=1,1,0) -> 1 | AK35: =IF(AND(AF35+AG35>1,AF35=AG35),1,0) -> 0 | BI35: G4 | CJ35: H4 | CK35: H3 | CL35: H2 | CM35: =$BI$37 -> H1 | CN35: G4 | CO35: G4 | CP35: G4 | CQ35: 0 | CV35: =IF(ROW(CU34)>COUNTA(CU:CU),"",INDEX(CU:CU,SMALL(IF(CU$2:CU$100<>"",ROW($2:$100)),ROW(CU34)))) ->  | CY35: =Spieler!C35 ->  | DA35: =Spieler!N35 ->  | DB35: =IF(ROW(CX34)>COUNTA(CX:CX),"",INDEX(CX:CX,SMALL(IF(CX$2:CX$100<>"",ROW($2:$100)),ROW(CX34)))) ->  | DD35: =VLOOKUP(DC35,Spieler!$I$2:$J$41,2,FALSE) ->  | DJ35: =IFERROR(LARGE($DH$2:$DH$41,26),"") -> 
B36: 2 | C36: D2 | D36: ='1. Runde Gruppen'!T12 -> Suttner Magnus | E36: =AJ35+AJ40+AJ36+AJ44 -> 2 | F36: =AI35+AH36+AH40+AH44 -> 1 | G36: =AH35+AI40+AI36+AI44 -> 1 | H36: =AG35+AF44+AF40+AF36 -> 3 | I36: =AF35+AG36+AG40+AG44 -> 2 | J36: =AK35+AK40+AK36+AK44 -> 0 | M36: =IF(D36="X",-200000,IF(D36="Y",-200000,IF(D36="Z",-200000,IF(D36="",-200000,IF(D36="Z Freilos",-200000,IF(D36="",(-90000),(F36*10000)+(H36*1000)+(J36*10)+E36-(G36*10000)-(I36*1000)+O36)))))) -> 1002 | N36: =IF(E36=0,"",RANK(M36,M35:M39)) -> 2 | O36: ='1. Runde Gruppen'!AE12 -> 0 | P36: =IF(D36="","",D36) -> Suttner Magnus | Q36: =IF(V36="","",2) ->  | R36: =IF(B38=4,44,12) -> 12 | T36: D | U36: =C37 -> D3 | V36: =IF(X36="","",D36) ->  | W36: =C38 -> D4 | X36: =D38 ->  | AB36: =Matches!O36 -> 0 | AC36: =Matches!P36 -> 0 | AF36: =VLOOKUP(S36,$Y$2:$AC$88,4,FALSE) -> 0 | AG36: =VLOOKUP(S36,$Y$2:$AC$88,5,FALSE) -> 0 | AH36: 0 | AI36: 0 | AJ36: =IF(AF36+AG36>=1,1,0) -> 0 | AK36: =IF(AND(AF36+AG36>1,AF36=AG36),1,0) -> 0 | BI36: G5 | CK36: H4 | CL36: H3 | CM36: H2 | CN36: =$BI$37 -> H1 | CO36: G5 | CP36: G5 | CQ36: 0 | CV36: =IF(ROW(CU35)>COUNTA(CU:CU),"",INDEX(CU:CU,SMALL(IF(CU$2:CU$100<>"",ROW($2:$100)),ROW(CU35)))) ->  | CY36: =Spieler!C36 ->  | DA36: =Spieler!N36 ->  | DB36: =IF(ROW(CX35)>COUNTA(CX:CX),"",INDEX(CX:CX,SMALL(IF(CX$2:CX$100<>"",ROW($2:$100)),ROW(CX35)))) ->  | DD36: =VLOOKUP(DC36,Spieler!$I$2:$J$41,2,FALSE) ->  | DJ36: =IFERROR(LARGE($DH$2:$DH$41,27),"") -> 
B37: 3 | C37: D3 | D37: ='1. Runde Gruppen'!T13 -> Straßburger Marko | E37: =AJ38+AJ40+AJ43+AJ42 -> 2 | F37: =AI38+AI40+AH43+AH42 -> 2 | G37: =AH38+AH40+AI43+AI42 -> 0 | H37: =AG38+AG40+AF43+AF42 -> 4 | I37: =AF38+AF40+AG43+AG42 -> 2 | J37: =AK38+AK40+AK43+AK42 -> 0 | M37: 22002 | N37: =IF(E37=0,"",RANK(M37,M35:M39)) -> 1 | O37: ='1. Runde Gruppen'!AE13 -> 0 | P37: =IF(D37="","",D37) -> Straßburger Marko | Q37: =IF(V37="","",3) ->  | R37: 20 | T37: D | U37: =C35 -> D1 | V37: =IF(X37="","",D35) ->  | W37: =C39 -> D5 | X37: =D39 ->  | AB37: =Matches!O37 -> 0 | AC37: =Matches!P37 -> 0 | AF37: 0 | AG37: 0 | AH37: 0 | AI37: 0 | AJ37: =IF(AF37+AG37>=1,1,0) -> 0 | AK37: 0 | BI37: =IF($CS$1="X","","H1") -> H1 | CL37: H4 | CM37: H3 | CN37: H2 | CO37: =$BI$37 -> H1 | CP37: =$BI$37 -> H1 | CQ37: 0 | CR37: H1 | CU37: =IF($CQ$1<8,"",IF(CS9=CR37,"",CR37)) -> H1 | CV37: =IF(ROW(CU36)>COUNTA(CU:CU),"",INDEX(CU:CU,SMALL(IF(CU$2:CU$100<>"",ROW($2:$100)),ROW(CU36)))) ->  | CY37: =Spieler!C37 ->  | DA37: =Spieler!N37 ->  | DB37: =IF(ROW(CX36)>COUNTA(CX:CX),"",INDEX(CX:CX,SMALL(IF(CX$2:CX$100<>"",ROW($2:$100)),ROW(CX36)))) ->  | DD37: =VLOOKUP(DC37,Spieler!$I$2:$J$41,2,FALSE) ->  | DH37: 371.0749696 | DI37: H1 | DJ37: =IFERROR(LARGE($DH$2:$DH$41,28),"") -> 
B38: =IF(D38="","",4) ->  | C38: D4 | D38: ='1. Runde Gruppen'!T14 ->  | E38: =AJ36+AJ39+AJ41+AJ43 -> 0 | F38: =AI36+AH39+AI41+AI43 -> 0 | G38: =AH36+AH41+AH43+AI39 -> 0 | H38: =AG36+AF39+AG41+AG43 -> 0 | I38: =AF36+AG39+AF41+AF43 -> 0 | J38: =AK36+AK41+AK43+AK39 -> 0 | M38: -200000 | N38: =IF(E38=0,"",RANK(M38,M35:M39)) ->  | O38: ='1. Runde Gruppen'!AE14 -> 0 | P38: =IF(D38="","",D38) ->  | Q38: =IF(V38="","",4) -> 4 | R38: 28 | S38: 28 | T38: D | U38: =C36 -> D2 | V38: =D35 -> Hartung Andreas | W38: =C37 -> D3 | X38: =D37 -> Straßburger Marko | AB38: =Matches!O38 -> 0 | AC38: =Matches!P38 -> 0 | AF38: 1 | AG38: 2 | AH38: 0 | AI38: 1 | AJ38: 1 | AK38: 0 | BI38: H2 | CM38: H4 | CN38: H3 | CO38: H2 | CP38: H2 | CQ38: 0 | CR38: H2 | CU38: =IF($CQ$1<8,"",IF(CS38=CR38,"",CR38)) -> H2 | CV38: =IF(ROW(CU37)>COUNTA(CU:CU),"",INDEX(CU:CU,SMALL(IF(CU$2:CU$100<>"",ROW($2:$100)),ROW(CU37)))) ->  | CY38: =Spieler!C38 ->  | DA38: =Spieler!N38 ->  | DB38: =IF(ROW(CX37)>COUNTA(CX:CX),"",INDEX(CX:CX,SMALL(IF(CX$2:CX$100<>"",ROW($2:$100)),ROW(CX37)))) ->  | DD38: =VLOOKUP(DC38,Spieler!$I$2:$J$41,2,FALSE) ->  | DH38: 725.4222754 | DI38: H2 | DJ38: =IFERROR(LARGE($DH$2:$DH$41,29),"") -> 
B39: =IF(D39="","",5) ->  | C39: D5 | D39: ='1. Runde Gruppen'!T15 ->  | E39: =AJ37+AJ39+AJ42+AJ44 -> 0 | F39: =AI37+AI39+AI42+AI44 -> 0 | G39: =AH37+AH39+AH42+AH44 -> 0 | H39: =AG37+AG39+AG42+AG44 -> 0 | I39: =AF37+AF39+AF42+AF44 -> 0 | J39: =AK37+AK39+AK42+AK44 -> 0 | M39: -200000 | N39: =IF(E39=0,"",RANK(M39,M35:M39)) ->  | O39: ='1. Runde Gruppen'!AE15 -> 0 | P39: =IF(D39="","",D39) ->  | Q39: =IF(V39="","",5) ->  | R39: 36 | T39: D | U39: =C38 -> D4 | V39: =IF(X39="","",D38) ->  | W39: =C39 -> D5 | X39: =D39 ->  | AB39: =Matches!O39 -> 0 | AC39: =Matches!P39 -> 0 | AF39: 0 | AG39: 0 | AH39: 0 | AI39: 0 | AJ39: 0 | AK39: 0 | BI39: H3 | CN39: H4 | CO39: H3 | CP39: H3 | CQ39: 0 | CR39: H3 | CU39: =IF($CQ$1<8,"",IF(CS39=CR39,"",CR39)) -> H3 | CV39: =IF(ROW(CU38)>COUNTA(CU:CU),"",INDEX(CU:CU,SMALL(IF(CU$2:CU$100<>"",ROW($2:$100)),ROW(CU38)))) ->  | CY39: =Spieler!C39 ->  | CZ39: =VLOOKUP(CY39,$DM$2:$DN$49,2,FALSE) ->  | DA39: =Spieler!N39 ->  | DB39: =IF(ROW(CX38)>COUNTA(CX:CX),"",INDEX(CX:CX,SMALL(IF(CX$2:CX$100<>"",ROW($2:$100)),ROW(CX38)))) ->  | DD39: =VLOOKUP(DC39,Spieler!$I$2:$J$41,2,FALSE) ->  | DH39: 68.08289959 | DI39: H3 | DJ39: =IFERROR(LARGE($DH$2:$DH$41,30),"") -> 
Q40: =IF(V40="","",6) -> 6 | R40: =IF(B38=4,68,44) -> 44 | S40: 44 | T40: D | U40: =C35 -> D1 | V40: =D36 -> Suttner Magnus | W40: =C37 -> D3 | X40: Straßburger Marko | AB40: =Matches!O40 -> 0 | AC40: =Matches!P40 -> 0 | AF40: 1 | AG40: 2 | AH40: 0 | AI40: 1 | AJ40: 1 | AK40: 0 | BI40: H4 | CO40: H4 | CP40: H4 | CQ40: 0 | CV40: =IF(ROW(CU39)>COUNTA(CU:CU),"",INDEX(CU:CU,SMALL(IF(CU$2:CU$100<>"",ROW($2:$100)),ROW(CU39)))) ->  | CY40: =Spieler!C40 ->  | DA40: =Spieler!N40 ->  | DB40: =IF(ROW(CX39)>COUNTA(CX:CX),"",INDEX(CX:CX,SMALL(IF(CX$2:CX$100<>"",ROW($2:$100)),ROW(CX39)))) ->  | DD40: =VLOOKUP(DC40,Spieler!$I$2:$J$41,2,FALSE) ->  | DJ40: =IFERROR(LARGE($DH$2:$DH$41,31),"") -> 
Q41: =IF(V41="","",7) ->  | R41: 52 | T41: D | U41: =C36 -> D2 | V41: =IF(X41="","",D35) ->  | W41: D4 | AB41: =Matches!O41 -> 0 | AC41: =Matches!P41 -> 0 | AF41: 0 | AG41: 0 | AH41: 0 | AI41: 0 | AJ41: 0 | AK41: 0 | BI41: H5 | CP41: H5 | CQ41: 0 | CV41: =IF(ROW(CU40)>COUNTA(CU:CU),"",INDEX(CU:CU,SMALL(IF(CU$2:CU$100<>"",ROW($2:$100)),ROW(CU40)))) ->  | CY41: =Spieler!C41 ->  | DA41: =Spieler!N41 ->  | DB41: =IF(ROW(CX40)>COUNTA(CX:CX),"",INDEX(CX:CX,SMALL(IF(CX$2:CX$100<>"",ROW($2:$100)),ROW(CX40)))) ->  | DD41: =VLOOKUP(DC41,Spieler!$I$2:$J$41,2,FALSE) ->  | DJ41: =IFERROR(LARGE($DH$2:$DH$41,32),"") -> 
Q42: =IF(V42="","",8) ->  | R42: 60 | T42: D | U42: =C37 -> D3 | V42: =IF(X42="","",D37) ->  | W42: D5 | AB42: =Matches!O42 -> 0 | AC42: =Matches!P42 -> 0 | AF42: 0 | AG42: 0 | AH42: 0 | AI42: 0 | AJ42: 0 | AK42: 0 | BV42: =IF(AND(Spieler!AG1="X",CQ43=24),"X",IF(CQ43<21,Spieler!AG1,"")) -> X | DA42: =Spieler!N42 ->  | DJ42: =IFERROR(LARGE($DH$2:$DH$41,33),"") ->  | DM42: =DA42 -> 
Q43: =IF(V43="","",9) ->  | R43: =IF(B38=4,12,68) -> 68 | T43: D | U43: =C35 -> D1 | V43: =IF(X43="","",D37) ->  | W43: =C38 -> D4 | X43: =D38 ->  | AB43: =Matches!O43 -> 0 | AC43: =Matches!P43 -> 0 | AF43: 0 | AG43: 0 | AH43: 0 | AI43: 0 | AJ43: 0 | AK43: 0 | BI43: =AW43 -> 0 | BJ43: 8 | BK43: 9 | BL43: 10 | BM43: 11 | BN43: 12 | BO43: 13 | BP43: 14 | BQ43: 15 | BR43: 16 | BS43: 17 | BT43: 18 | BU43: 19 | BV43: 20 | BW43: 21 | BX43: 22 | BY43: 23 | BZ43: 24 | CA43: 25 | CB43: 26 | CC43: 27 | CD43: 28 | CE43: 29 | CF43: 30 | CG43: 31 | CH43: 32 | CI43: 33 | CJ43: 34 | CK43: 35 | CL43: 36 | CM43: 37 | CN43: 38 | CO43: 39 | CP43: 40 | CQ43: =BH1 -> 24 | DA43: =Spieler!N43 ->  | DJ43: =IFERROR(LARGE($DH$2:$DH$41,34),"") -> 
Q44: =IF(V44="","",10) ->  | R44: 76 | T44: D | U44: =C36 -> D2 | V44: =IF(X44="","",D36) ->  | W44: =C39 -> D5 | X44: =D39 ->  | AB44: =Matches!O44 -> 0 | AC44: =Matches!P44 -> 0 | AF44: =VLOOKUP(S44,$Y$2:$AC$88,4,FALSE) -> 0 | AG44: =VLOOKUP(S44,$Y$2:$AC$88,5,FALSE) -> 0 | AH44: 0 | AI44: 0 | AJ44: 0 | AK44: 0 | BI44: A1 | BJ44: A1 | BK44: A1 | BL44: A1 | BM44: A1 | BN44: A1 | BO44: A1 | BP44: A1 | BQ44: A1 | BR44: A1 | BS44: A1 | BT44: A1 | BU44: A1 | BV44: A1 | BW44: A1 | BX44: A1 | BY44: A1 | BZ44: A1 | CA44: A1 | CB44: A1 | CC44: A1 | CD44: A1 | CE44: A1 | CF44: A1 | CG44: A1 | CH44: A1 | CI44: A1 | CJ44: A1 | CK44: A1 | CL44: A1 | CM44: A1 | CN44: A1 | CO44: A1 | CP44: A1 | CQ44: =IFERROR(LOOKUP($CQ$1,$BI$1:$CP$1,BI44:CP44),"") -> A1 | CS44: =IF(CQ44=0,"",CQ44) -> A1 | CT44: =IF(ROW(CS43)>COUNTA(CS43:CS100),"",INDEX(CS43:CS100,SMALL(IF(CS$43:CS$100<>"",ROW($43:$100)),ROW(CS43)))) ->  | DA44: =Spieler!N44 ->  | DJ44: =IFERROR(LARGE($DH$2:$DH$41,35),"") -> 
A45: E | D45: Spieler | E45: M | F45: W | G45: L | H45: F+ | I45: F- | J45: U | M45: Rang | N45: Rang | O45: P+ | AB45: =Matches!O45 -> 0 | AC45: =Matches!P45 -> 0 | BI45: A2 | BJ45: A2 | BK45: A2 | BL45: A2 | BM45: A2 | BN45: A2 | BO45: A2 | BP45: A2 | BQ45: A2 | BR45: A2 | BS45: A2 | BT45: A2 | BU45: A2 | BV45: A2 | BW45: A2 | BX45: A2 | BY45: A2 | BZ45: A2 | CA45: A2 | CB45: A2 | CC45: A2 | CD45: A2 | CE45: A2 | CF45: A2 | CG45: A2 | CH45: A2 | CI45: A2 | CJ45: A2 | CK45: A2 | CL45: A2 | CM45: A2 | CN45: A2 | CO45: A2 | CP45: A2 | CQ45: =IFERROR(LOOKUP($CQ$1,$BI$1:$CP$1,BI45:CP45),"") -> A2 | CS45: =IF(CQ45=0,"",CQ45) -> A2 | CT45: =IF(ROW(CS44)>COUNTA(CS44:CS101),"",INDEX(CS44:CS101,SMALL(IF(CS$43:CS$100<>"",ROW($43:$100)),ROW(CS44)))) ->  | DA45: =Spieler!N45 ->  | DJ45: =IFERROR(LARGE($DH$2:$DH$41,36),"") -> 
B46: 1 | C46: E1 | D46: ='1. Runde Gruppen'!D19 -> Swennen Andy | E46: =AJ46+AJ49+AJ52+AJ48 -> 2 | F46: =AH46+AH49+AH52+AH48 -> 0 | G46: =AI46+AI49+AI52+AI48 -> 2 | H46: =AF46+AF49+AF52+AF48 -> 0 | I46: =AG46+AG49+AG52+AG48 -> 4 | J46: =AK46+AK49+AK52+AK48 -> 0 | M46: =IF(D46="X",-200000,IF(D46="Y",-200000,IF(D46="Z",-200000,IF(D46="",-200000,IF(D46="Z Freilos",-200000,IF(D46="",(-90000),(F46*10000)+(H46*1000)+(J46*10)+E46-(G46*10000)-(I46*1000)+O46)))))) -> -23998 | N46: =IF(E46=0,"",RANK(M46,M46:M50)) -> 3 | O46: ='1. Runde Gruppen'!O19 -> 0 | P46: =IF(D46="","",D46) -> Swennen Andy | Q46: =IF(V46="","",1) -> 1 | R46: 5 | S46: 5 | T46: E | U46: =C46 -> E1 | V46: =D46 -> Swennen Andy | W46: =C47 -> E2 | X46: =D47 -> Fandrei Andreas | AB46: =Matches!O46 -> 0 | AC46: =Matches!P46 -> 0 | AF46: =VLOOKUP(S46,$Y$2:$AC$88,4,FALSE) -> 0 | AG46: =VLOOKUP(S46,$Y$2:$AC$88,5,FALSE) -> 2 | AH46: =IF(AF46>AG46,1,0) -> 0 | AI46: =IF(AG46>AF46,1,0) -> 1 | AJ46: =IF(AF46+AG46>=1,1,0) -> 1 | AK46: =IF(AND(AF46+AG46>1,AF46=AG46),1,0) -> 0 | BI46: A3 | BJ46: A3 | BK46: A3 | BL46: A3 | BM46: A3 | BN46: A3 | BO46: A3 | BP46: A3 | BQ46: A3 | BR46: A3 | BS46: A3 | BT46: A3 | BU46: A3 | BV46: A3 | BW46: A3 | BX46: A3 | BY46: A3 | BZ46: A3 | CA46: A3 | CB46: A3 | CC46: A3 | CD46: A3 | CE46: A3 | CF46: A3 | CG46: A3 | CH46: A3 | CI46: A3 | CJ46: A3 | CK46: A3 | CL46: A3 | CM46: A3 | CN46: A3 | CO46: A3 | CP46: A3 | CQ46: A3 | CS46: A3 | CT46: =IF(ROW(CS45)>COUNTA(CS45:CS102),"",INDEX(CS45:CS102,SMALL(IF(CS$43:CS$100<>"",ROW($43:$100)),ROW(CS45)))) ->  | DA46: =Spieler!N46 ->  | DJ46: =IFERROR(LARGE($DH$2:$DH$41,37),"") ->  | DM46: =DA46 -> 
B47: 2 | C47: E2 | D47: ='1. Runde Gruppen'!D20 -> Fandrei Andreas | E47: =AJ46+AJ51+AJ47+AJ55 -> 2 | F47: =AI46+AH47+AH51+AH55 -> 1 | G47: =AH46+AI51+AI47+AI55 -> 1 | H47: =AG46+AF55+AF51+AF47 -> 2 | I47: =AF46+AG47+AG51+AG55 -> 2 | J47: =AK46+AK51+AK47+AK55 -> 0 | M47: =IF(D47="X",-200000,IF(D47="Y",-200000,IF(D47="Z",-200000,IF(D47="",-200000,IF(D47="Z Freilos",-200000,IF(D47="",(-90000),(F47*10000)+(H47*1000)+(J47*10)+E47-(G47*10000)-(I47*1000)+O47)))))) -> 2 | N47: =IF(E47=0,"",RANK(M47,M46:M50)) -> 2 | O47: ='1. Runde Gruppen'!O20 -> 0 | P47: =IF(D47="","",D47) -> Fandrei Andreas | Q47: =IF(V47="","",2) ->  | R47: =IF(B49=4,45,13) -> 13 | T47: E | U47: =C48 -> E3 | V47: =IF(X47="","",D47) ->  | W47: =C49 -> E4 | X47: =D49 ->  | AB47: =Matches!O47 -> 0 | AC47: =Matches!P47 -> 0 | AF47: =VLOOKUP(S47,$Y$2:$AC$88,4,FALSE) -> 0 | AG47: =VLOOKUP(S47,$Y$2:$AC$88,5,FALSE) -> 0 | AH47: 0 | AI47: 0 | AJ47: =IF(AF47+AG47>=1,1,0) -> 0 | AK47: =IF(AND(AF47+AG47>1,AF47=AG47),1,0) -> 0 | BI47: A4 | BJ47: A4 | BK47: A4 | BL47: A4 | BM47: A4 | BO47: A4 | BP47: A4 | BQ47: A4 | BR47: A4 | BS47: A4 | BT47: =IF($BV$42="X","A4","") -> A4 | BU47: A4 | BV47: A4 | BW47: A4 | BX47: A4 | BY47: A4 | BZ47: =IF($BV$42="X","","A4") ->  | CA47: A4 | CB47: A4 | CC47: A4 | CD47: A4 | CE47: A4 | CF47: A4 | CG47: A4 | CH47: A4 | CI47: A4 | CJ47: A4 | CK47: A4 | CL47: A4 | CM47: A4 | CN47: A4 | CO47: A4 | CP47: A4 | CQ47: =IFERROR(LOOKUP($CQ$1,$BI$1:$CP$1,BI47:CP47),"") ->  | CS47: =IF(CQ47=0,"",CQ47) ->  | CT47: =IF(ROW(CS46)>COUNTA(CS46:CS103),"",INDEX(CS46:CS103,SMALL(IF(CS$43:CS$100<>"",ROW($43:$100)),ROW(CS46)))) ->  | DA47: =Spieler!N47 ->  | DJ47: =IFERROR(LARGE($DH$2:$DH$41,38),"") ->  | DM47: =DA47 -> 
B48: 3 | C48: E3 | D48: ='1. Runde Gruppen'!D21 -> Delling Tino | E48: =AJ49+AJ51+AJ54+AJ53 -> 2 | F48: =AI49+AI51+AH54+AH53 -> 2 | G48: =AH49+AH51+AI54+AI53 -> 0 | H48: =AG49+AG51+AF54+AF53 -> 4 | I48: =AF49+AF51+AG54+AG53 -> 0 | J48: =AK49+AK51+AK54+AK53 -> 0 | M48: 24002 | N48: =IF(E48=0,"",RANK(M48,M46:M50)) -> 1 | O48: ='1. Runde Gruppen'!O21 -> 0 | P48: =IF(D48="","",D48) -> Delling Tino | Q48: =IF(V48="","",3) ->  | R48: 21 | T48: E | U48: =C46 -> E1 | V48: =IF(X48="","",D46) ->  | W48: =C50 -> E5 | X48: =D50 ->  | AB48: =Matches!O48 -> 0 | AC48: =Matches!P48 -> 0 | AF48: 0 | AG48: 0 | AH48: 0 | AI48: 0 | AJ48: =IF(AF48+AG48>=1,1,0) -> 0 | AK48: 0 | BI48: A5 | BK48: A5 | BL48: A5 | BS48: =IF($BV$42="X","A5","") -> A5 | BT48: =IF($BV$42="X","A5","") -> A5 | BU48: =IF($BV$42="X","A5","") -> A5 | BV48: =IF($BV$42="X","A5","") -> A5 | CD48: B1 | CE48: B1 | CF48: B1 | CG48: B1 | CH48: B1 | CI48: A5 | CJ48: A5 | CK48: A5 | CL48: A5 | CM48: A5 | CN48: A5 | CO48: A5 | CP48: A5 | CQ48: 0 | CT48: =IF(ROW(CS47)>COUNTA(CS47:CS104),"",INDEX(CS47:CS104,SMALL(IF(CS$43:CS$100<>"",ROW($43:$100)),ROW(CS47)))) ->  | DA48: =Spieler!N48 ->  | DJ48: =IFERROR(LARGE($DH$2:$DH$41,39),"") -> 
B49: =IF(D49="","",4) ->  | C49: E4 | D49: ='1. Runde Gruppen'!D22 ->  | E49: =AJ47+AJ50+AJ52+AJ54 -> 0 | F49: =AI47+AH50+AI52+AI54 -> 0 | G49: =AH47+AH52+AH54+AI50 -> 0 | H49: =AG47+AF50+AG52+AG54 -> 0 | I49: =AF47+AG50+AF52+AF54 -> 0 | J49: =AK47+AK52+AK54+AK50 -> 0 | M49: -200000 | N49: =IF(E49=0,"",RANK(M49,M46:M50)) ->  | O49: ='1. Runde Gruppen'!O22 -> 0 | P49: =IF(D49="","",D49) ->  | Q49: =IF(V49="","",4) -> 4 | R49: 29 | S49: 29 | T49: E | U49: =C47 -> E2 | V49: =D46 -> Swennen Andy | W49: =C48 -> E3 | X49: =D48 -> Delling Tino | AB49: =Matches!O49 -> 0 | AC49: =Matches!P49 -> 0 | AF49: 0 | AG49: 2 | AH49: 0 | AI49: 1 | AJ49: 1 | AK49: 0 | BI49: B1 | BJ49: B1 | BK49: B1 | BL49: B1 | BM49: B1 | BN49: B1 | BO49: B1 | BP49: B1 | BQ49: B1 | BR49: B1 | BS49: B1 | BT49: B1 | BU49: B1 | BV49: B1 | BW49: B1 | BX49: B1 | BY49: B1 | BZ49: B1 | CA49: B1 | CB49: B1 | CC49: B1 | CD49: B2 | CE49: B2 | CF49: B2 | CG49: B2 | CH49: B2 | CI49: B1 | CJ49: B1 | CK49: B1 | CL49: B1 | CM49: B1 | CN49: B1 | CO49: B1 | CP49: B1 | CQ49: B1 | CS49: B1 | CT49: =IF(ROW(CS48)>COUNTA(CS48:CS105),"",INDEX(CS48:CS105,SMALL(IF(CS$43:CS$100<>"",ROW($43:$100)),ROW(CS48)))) ->  | DA49: =Spieler!N49 ->  | DJ49: =IFERROR(LARGE($DH$2:$DH$41,40),"") -> 
B50: =IF(D50="","",5) ->  | C50: E5 | D50: ='1. Runde Gruppen'!D23 ->  | E50: =AJ48+AJ50+AJ53+AJ55 -> 0 | F50: =AI48+AI50+AI53+AI55 -> 0 | G50: =AH48+AH50+AH53+AH55 -> 0 | H50: =AG48+AG50+AG53+AG55 -> 0 | I50: =AF48+AF50+AF53+AF55 -> 0 | J50: =AK48+AK50+AK53+AK55 -> 0 | M50: -200000 | N50: =IF(E50=0,"",RANK(M50,M46:M50)) ->  | O50: ='1. Runde Gruppen'!O23 -> 0 | P50: =IF(D50="","",D50) ->  | Q50: =IF(V50="","",5) ->  | R50: 37 | T50: E | U50: =C49 -> E4 | V50: =IF(X50="","",D49) ->  | W50: =C50 -> E5 | X50: =D50 ->  | AB50: =Matches!O50 -> 0 | AC50: =Matches!P50 -> 0 | AF50: 0 | AG50: 0 | AH50: 0 | AI50: 0 | AJ50: 0 | AK50: 0 | BI50: B2 | BJ50: B2 | BK50: B2 | BL50: B2 | BM50: B2 | BN50: B2 | BO50: B2 | BP50: B2 | BQ50: B2 | BR50: B2 | BS50: B2 | BT50: B2 | BU50: B2 | BV50: B2 | BW50: B2 | BX50: B2 | BY50: B2 | BZ50: B2 | CA50: B2 | CB50: B2 | CC50: B2 | CD50: B3 | CE50: B3 | CF50: B3 | CG50: B3 | CH50: B3 | CI50: B2 | CJ50: B2 | CK50: B2 | CL50: B2 | CM50: B2 | CN50: B2 | CO50: B2 | CP50: B2 | CQ50: B2 | CS50: B2 | CT50: =IF(ROW(CS49)>COUNTA(CS49:CS106),"",INDEX(CS49:CS106,SMALL(IF(CS$43:CS$100<>"",ROW($43:$100)),ROW(CS49)))) -> 
Q51: =IF(V51="","",6) -> 6 | R51: =IF(B49=4,69,45) -> 45 | S51: 45 | T51: E | U51: =C46 -> E1 | V51: =D47 -> Fandrei Andreas | W51: =C48 -> E3 | X51: Delling Tino | AB51: =Matches!O51 -> 0 | AC51: =Matches!P51 -> 0 | AF51: 0 | AG51: 2 | AH51: 0 | AI51: 1 | AJ51: 1 | AK51: 0 | BI51: B3 | BJ51: B3 | BK51: B3 | BL51: B3 | BM51: B3 | BN51: B3 | BO51: B3 | BP51: B3 | BQ51: B3 | BR51: B3 | BS51: B3 | BT51: B3 | BU51: B3 | BV51: B3 | BW51: B3 | BX51: B3 | BY51: B3 | BZ51: B3 | CA51: B3 | CB51: B3 | CC51: B3 | CD51: B4 | CE51: B4 | CF51: B4 | CG51: B4 | CH51: B4 | CI51: B3 | CJ51: B3 | CK51: B3 | CL51: B3 | CM51: B3 | CN51: B3 | CO51: B3 | CP51: B3 | CQ51: B3 | CS51: B3 | CT51: =IF(ROW(CS50)>COUNTA(CS50:CS107),"",INDEX(CS50:CS107,SMALL(IF(CS$43:CS$100<>"",ROW($43:$100)),ROW(CS50)))) -> 
Q52: =IF(V52="","",7) ->  | R52: 53 | T52: E | U52: =C47 -> E2 | V52: =IF(X52="","",D46) ->  | W52: E4 | AB52: =Matches!O52 -> 0 | AC52: =Matches!P52 -> 0 | AF52: 0 | AG52: 0 | AH52: 0 | AI52: 0 | AJ52: 0 | AK52: 0 | BI52: B4 | BJ52: B4 | BK52: B4 | BL52: B4 | BM52: B4 | BP52: B4 | BQ52: B4 | BR52: B4 | BS52: B4 | BT52: =IF($BV$42="X","B4","") -> B4 | BU52: =IF($BV$42="X","B4","") -> B4 | BV52: B4 | BW52: B4 | BX52: B4 | BY52: B4 | BZ52: =IF($BV$42="x","","B4") ->  | CB52: B4 | CC52: B4 | CI52: B4 | CJ52: B4 | CK52: B4 | CL52: B4 | CM52: B4 | CN52: B4 | CO52: B4 | CP52: B4 | CQ52: =IFERROR(LOOKUP($CQ$1,$BI$1:$CP$1,BI52:CP52),"") ->  | CS52: =IF(CQ52=0,"",CQ52) ->  | CT52: =IF(ROW(CS51)>COUNTA(CS51:CS108),"",INDEX(CS51:CS108,SMALL(IF(CS$43:CS$100<>"",ROW($43:$100)),ROW(CS51)))) -> 
Q53: =IF(V53="","",8) ->  | R53: 61 | T53: E | U53: =C48 -> E3 | V53: =IF(X53="","",D48) ->  | W53: E5 | AB53: =Matches!O53 -> 0 | AC53: =Matches!P53 -> 0 | AF53: 0 | AG53: 0 | AH53: 0 | AI53: 0 | AJ53: 0 | AK53: 0 | BI53: B5 | BL53: B5 | BT53: =IF($BV$42="X","B5","") -> B5 | BU53: =IF($BV$42="X","B5","") -> B5 | BV53: =IF($BV$42="X","B5","") -> B5 | CJ53: B5 | CK53: B5 | CL53: B5 | CM53: B5 | CN53: B5 | CO53: B5 | CP53: B5 | CQ53: 0 | CT53: =IF(ROW(CS52)>COUNTA(CS52:CS109),"",INDEX(CS52:CS109,SMALL(IF(CS$43:CS$100<>"",ROW($43:$100)),ROW(CS52)))) -> 
Q54: =IF(V54="","",9) ->  | R54: =IF(B49=4,13,69) -> 69 | T54: E | U54: =C46 -> E1 | V54: =IF(X54="","",D48) ->  | W54: =C49 -> E4 | X54: =D49 ->  | AB54: =Matches!O54 -> 0 | AC54: =Matches!P54 -> 0 | AF54: 0 | AG54: 0 | AH54: 0 | AI54: 0 | AJ54: 0 | AK54: 0 | BI54: C1 | BM54: C1 | BN54: C1 | BO54: C1 | BP54: C1 | BQ54: C1 | BR54: C1 | BS54: C1 | BT54: C1 | BU54: C1 | BV54: C1 | BW54: C1 | BX54: C1 | BY54: C1 | BZ54: C1 | CA54: C1 | CB54: C1 | CC54: C1 | CD54: C1 | CE54: C1 | CF54: C1 | CG54: C1 | CH54: C1 | CI54: C1 | CJ54: C1 | CK54: C1 | CL54: C1 | CM54: C1 | CN54: C1 | CO54: C1 | CP54: C1 | CQ54: C1 | CS54: C1 | CT54: =IF(ROW(CS53)>COUNTA(CS53:CS110),"",INDEX(CS53:CS110,SMALL(IF(CS$43:CS$100<>"",ROW($43:$100)),ROW(CS53)))) -> 
Q55: =IF(V55="","",10) ->  | R55: 77 | T55: E | U55: =C47 -> E2 | V55: =IF(X55="","",D47) ->  | W55: =C50 -> E5 | X55: =D50 ->  | AB55: =Matches!O55 -> 0 | AC55: =Matches!P55 -> 0 | AF55: =VLOOKUP(S55,$Y$2:$AC$88,4,FALSE) -> 0 | AG55: =VLOOKUP(S55,$Y$2:$AC$88,5,FALSE) -> 0 | AH55: 0 | AI55: 0 | AJ55: 0 | AK55: 0 | BI55: C2 | BM55: C2 | BN55: C2 | BO55: C2 | BP55: C2 | BQ55: C2 | BR55: C2 | BS55: C2 | BT55: C2 | BU55: C2 | BV55: C2 | BW55: C2 | BX55: C2 | BY55: C2 | BZ55: C2 | CA55: C2 | CB55: C2 | CC55: C2 | CD55: C2 | CE55: C2 | CF55: C2 | CG55: C2 | CH55: C2 | CI55: C2 | CJ55: C2 | CK55: C2 | CL55: C2 | CM55: C2 | CN55: C2 | CO55: C2 | CP55: C2 | CQ55: C2 | CS55: C2 | CT55: =IF(ROW(CS54)>COUNTA(CS54:CS111),"",INDEX(CS54:CS111,SMALL(IF(CS$43:CS$100<>"",ROW($43:$100)),ROW(CS54)))) -> 
A56: F | D56: Spieler | E56: M | F56: W | G56: L | H56: F+ | I56: F- | J56: U | M56: Rang | N56: Rang | O56: P+ | AB56: =Matches!O56 -> 0 | AC56: =Matches!P56 -> 0 | BI56: C3 | BM56: C3 | BN56: C3 | BO56: C3 | BP56: C3 | BQ56: C3 | BR56: C3 | BS56: C3 | BT56: C3 | BU56: C3 | BV56: C3 | BW56: C3 | BX56: C3 | BY56: C3 | BZ56: C3 | CA56: C3 | CB56: C3 | CC56: C3 | CD56: C3 | CE56: C3 | CF56: C3 | CG56: C3 | CH56: C3 | CI56: C3 | CJ56: C3 | CK56: C3 | CL56: C3 | CM56: C3 | CN56: C3 | CO56: C3 | CP56: C3 | CQ56: C3 | CS56: C3 | CT56: =IF(ROW(CS55)>COUNTA(CS55:CS112),"",INDEX(CS55:CS112,SMALL(IF(CS$43:CS$100<>"",ROW($43:$100)),ROW(CS55)))) -> 
B57: 1 | C57: F1 | D57: ='1. Runde Gruppen'!T19 -> Jeroch Paul | E57: =AJ57+AJ60+AJ63+AJ59 -> 2 | F57: =AH57+AH60+AH63+AH59 -> 2 | G57: =AI57+AI60+AI63+AI59 -> 0 | H57: =AF57+AF60+AF63+AF59 -> 4 | I57: =AG57+AG60+AG63+AG59 -> 1 | J57: =AK57+AK60+AK63+AK59 -> 0 | M57: =IF(D57="X",-200000,IF(D57="Y",-200000,IF(D57="Z",-200000,IF(D57="",-200000,IF(D57="Z Freilos",-200000,IF(D57="",(-90000),(F57*10000)+(H57*1000)+(J57*10)+E57-(G57*10000)-(I57*1000)+O57)))))) -> 23002 | N57: =IF(E57=0,"",RANK(M57,M57:M61)) -> 1 | O57: ='1. Runde Gruppen'!AE19 -> 0 | P57: =IF(D57="","",D57) -> Jeroch Paul | Q57: =IF(V57="","",1) -> 1 | R57: 6 | S57: 6 | T57: F | U57: =C57 -> F1 | V57: =D57 -> Jeroch Paul | W57: =C58 -> F2 | X57: =D58 -> Müller Marcus | AB57: =Matches!O57 -> 0 | AC57: =Matches!P57 -> 0 | AF57: =VLOOKUP(S57,$Y$2:$AC$88,4,FALSE) -> 2 | AG57: =VLOOKUP(S57,$Y$2:$AC$88,5,FALSE) -> 0 | AH57: =IF(AF57>AG57,1,0) -> 1 | AI57: =IF(AG57>AF57,1,0) -> 0 | AJ57: =IF(AF57+AG57>=1,1,0) -> 1 | AK57: =IF(AND(AF57+AG57>1,AF57=AG57),1,0) -> 0 | BI57: C4 | BQ57: C4 | BR57: C4 | BS57: =IF($BV$42="X","C4","") -> C4 | BT57: =IF($BV$42="X","C4","") -> C4 | BU57: =IF($BV$42="X","C4","") -> C4 | BV57: =IF($BV$42="X","C4","") -> C4 | BW57: C4 | BX57: C4 | BY57: =BI57 -> C4 | BZ57: =IF($BV$42="x","","C4") ->  | CC57: C4 | CD57: C4 | CE57: C4 | CF57: C4 | CG57: C4 | CH57: C4 | CI57: C4 | CJ57: C4 | CK57: C4 | CL57: C4 | CM57: C4 | CN57: C4 | CO57: C4 | CP57: C4 | CT57: =IF(ROW(CS56)>COUNTA(CS56:CS113),"",INDEX(CS56:CS113,SMALL(IF(CS$43:CS$100<>"",ROW($43:$100)),ROW(CS56)))) -> 
B58: 2 | C58: F2 | D58: ='1. Runde Gruppen'!T20 -> Müller Marcus | E58: =AJ57+AJ62+AJ58+AJ66 -> 2 | F58: =AI57+AH58+AH62+AH66 -> 1 | G58: =AH57+AI62+AI58+AI66 -> 1 | H58: =AG57+AF66+AF62+AF58 -> 2 | I58: =AF57+AG58+AG62+AG66 -> 2 | J58: =AK57+AK62+AK58+AK66 -> 0 | M58: =IF(D58="X",-200000,IF(D58="Y",-200000,IF(D58="Z",-200000,IF(D58="",-200000,IF(D58="Z Freilos",-200000,IF(D58="",(-90000),(F58*10000)+(H58*1000)+(J58*10)+E58-(G58*10000)-(I58*1000)+O58)))))) -> 2 | N58: =IF(E58=0,"",RANK(M58,M57:M61)) -> 2 | O58: ='1. Runde Gruppen'!AE20 -> 0 | P58: =IF(D58="","",D58) -> Müller Marcus | Q58: =IF(V58="","",2) ->  | R58: =IF(B60=4,46,14) -> 14 | T58: F | U58: =C59 -> F3 | V58: =IF(X58="","",D58) ->  | W58: =C60 -> F4 | X58: =D60 ->  | AB58: =Matches!O58 -> 0 | AC58: =Matches!P58 -> 0 | AF58: =VLOOKUP(S58,$Y$2:$AC$88,4,FALSE) -> 0 | AG58: =VLOOKUP(S58,$Y$2:$AC$88,5,FALSE) -> 0 | AH58: 0 | AI58: 0 | AJ58: =IF(AF58+AG58>=1,1,0) -> 0 | AK58: =IF(AND(AF58+AG58>1,AF58=AG58),1,0) -> 0 | BI58: C5 | BU58: =IF($BV$42="X","C5","") -> C5 | BV58: =IF($BV$42="X","C5","") -> C5 | CK58: C5 | CL58: C5 | CM58: C5 | CN58: C5 | CO58: C5 | CP58: C5 | CQ58: 0 | CT58: =IF(ROW(CS57)>COUNTA(CS57:CS114),"",INDEX(CS57:CS114,SMALL(IF(CS$43:CS$100<>"",ROW($43:$100)),ROW(CS57)))) -> 
B59: 3 | C59: F3 | D59: ='1. Runde Gruppen'!T21 -> Rejke Ronny | E59: =AJ60+AJ62+AJ65+AJ64 -> 2 | F59: =AI60+AI62+AH65+AH64 -> 0 | G59: =AH60+AH62+AI65+AI64 -> 2 | H59: =AG60+AG62+AF65+AF64 -> 1 | I59: =AF60+AF62+AG65+AG64 -> 4 | J59: =AK60+AK62+AK65+AK64 -> 0 | M59: -22998 | N59: =IF(E59=0,"",RANK(M59,M57:M61)) -> 3 | O59: ='1. Runde Gruppen'!AE21 -> 0 | P59: =IF(D59="","",D59) -> Rejke Ronny | Q59: =IF(V59="","",3) ->  | R59: 22 | T59: F | U59: =C57 -> F1 | V59: =IF(X59="","",D57) ->  | W59: =C61 -> F5 | X59: =D61 ->  | AB59: =Matches!O59 -> 0 | AC59: =Matches!P59 -> 0 | AF59: 0 | AG59: 0 | AH59: 0 | AI59: 0 | AJ59: =IF(AF59+AG59>=1,1,0) -> 0 | AK59: 0 | BI59: D1 | BN59: D1 | BO59: D1 | BP59: D1 | BQ59: D1 | BR59: D1 | BS59: D1 | BT59: D1 | BU59: D1 | BV59: D1 | BW59: D1 | BX59: D1 | BY59: D1 | BZ59: D1 | CA59: D1 | CB59: D1 | CC59: D1 | CD59: D1 | CE59: D1 | CF59: D1 | CG59: D1 | CH59: D1 | CI59: D1 | CJ59: D1 | CK59: D1 | CL59: D1 | CM59: D1 | CN59: D1 | CO59: D1 | CP59: D1 | CQ59: =IFERROR(LOOKUP($CQ$1,$BI$1:$CP$1,BI59:CP59),"") -> D1 | CS59: D1 | CT59: =IF(ROW(CS58)>COUNTA(CS58:CS115),"",INDEX(CS58:CS115,SMALL(IF(CS$43:CS$100<>"",ROW($43:$100)),ROW(CS58)))) -> 
B60: =IF(D60="","",4) ->  | C60: F4 | D60: ='1. Runde Gruppen'!T22 ->  | E60: =AJ58+AJ61+AJ63+AJ65 -> 0 | F60: =AI58+AH61+AI63+AI65 -> 0 | G60: =AH58+AH63+AH65+AI61 -> 0 | H60: =AG58+AF61+AG63+AG65 -> 0 | I60: =AF58+AG61+AF63+AF65 -> 0 | J60: =AK58+AK63+AK65+AK61 -> 0 | M60: -200000 | N60: =IF(E60=0,"",RANK(M60,M57:M61)) ->  | O60: ='1. Runde Gruppen'!AE22 -> 0 | P60: =IF(D60="","",D60) ->  | Q60: =IF(V60="","",4) -> 4 | R60: 30 | S60: 30 | T60: F | U60: =C58 -> F2 | V60: =D57 -> Jeroch Paul | W60: =C59 -> F3 | X60: =D59 -> Rejke Ronny | AB60: =Matches!O60 -> 0 | AC60: =Matches!P60 -> 0 | AF60: 2 | AG60: 1 | AH60: 1 | AI60: 0 | AJ60: 1 | AK60: 0 | BI60: D2 | BN60: D2 | BO60: D2 | BP60: D2 | BQ60: D2 | BR60: D2 | BS60: D2 | BT60: D2 | BU60: D2 | BV60: D2 | BW60: D2 | BX60: D2 | BY60: D2 | BZ60: D2 | CA60: D2 | CB60: D2 | CC60: D2 | CD60: D2 | CE60: D2 | CF60: D2 | CG60: D2 | CH60: D2 | CI60: D2 | CJ60: D2 | CK60: D2 | CL60: D2 | CM60: D2 | CN60: D2 | CO60: D2 | CP60: D2 | CQ60: D2 | CS60: D2
B61: =IF(D61="","",5) ->  | C61: F5 | D61: ='1. Runde Gruppen'!T23 ->  | E61: =AJ59+AJ61+AJ64+AJ66 -> 0 | F61: =AI59+AI61+AI64+AI66 -> 0 | G61: =AH59+AH61+AH64+AH66 -> 0 | H61: =AG59+AG61+AG64+AG66 -> 0 | I61: =AF59+AF61+AF64+AF66 -> 0 | J61: =AK59+AK61+AK64+AK66 -> 0 | M61: -200000 | N61: =IF(E61=0,"",RANK(M61,M57:M61)) ->  | O61: ='1. Runde Gruppen'!AE23 -> 0 | P61: =IF(D61="","",D61) ->  | Q61: =IF(V61="","",5) ->  | R61: 38 | T61: F | U61: =C60 -> F4 | V61: =IF(X61="","",D60) ->  | W61: =C61 -> F5 | X61: =D61 ->  | AB61: =Matches!O61 -> 0 | AC61: =Matches!P61 -> 0 | AF61: 0 | AG61: 0 | AH61: 0 | AI61: 0 | AJ61: 0 | AK61: 0 | BI61: D3 | BN61: D3 | BO61: D3 | BP61: D3 | BQ61: D3 | BR61: D3 | BS61: D3 | BT61: D3 | BU61: D3 | BV61: D3 | BW61: D3 | BX61: D3 | BY61: D3 | BZ61: D3 | CA61: D3 | CB61: D3 | CC61: D3 | CD61: D3 | CE61: D3 | CF61: D3 | CG61: D3 | CH61: D3 | CI61: D3 | CJ61: D3 | CK61: D3 | CL61: D3 | CM61: D3 | CN61: D3 | CO61: D3 | CP61: D3 | CQ61: D3 | CS61: D3
Q62: =IF(V62="","",6) -> 6 | R62: =IF(B60=4,70,46) -> 46 | S62: 46 | T62: F | U62: =C57 -> F1 | V62: =D58 -> Müller Marcus | W62: =C59 -> F3 | X62: Rejke Ronny | AB62: =Matches!O62 -> 0 | AC62: =Matches!P62 -> 0 | AF62: 2 | AG62: 0 | AH62: 1 | AI62: 0 | AJ62: 1 | AK62: 0 | BI62: D4 | BR62: D4 | BS62: =IF($BV$42="X","D4","") -> D4 | BT62: =IF($BV$42="X","D4","") -> D4 | BU62: =IF($BV$42="X","D4","") -> D4 | BV62: =IF($BV$42="X","D4","") -> D4 | BX62: D4 | BY62: =BI62 -> D4 | BZ62: =IF($BV$42="x","","D4") ->  | CD62: D4 | CE62: D4 | CF62: D4 | CG62: D4 | CH62: D4 | CI62: D4 | CJ62: D4 | CK62: D4 | CL62: D4 | CM62: D4 | CN62: D4 | CO62: D4 | CP62: D4
Q63: =IF(V63="","",7) ->  | R63: 54 | T63: F | U63: =C58 -> F2 | V63: =IF(X63="","",D57) ->  | W63: F4 | AB63: =Matches!O63 -> 0 | AC63: =Matches!P63 -> 0 | AF63: 0 | AG63: 0 | AH63: 0 | AI63: 0 | AJ63: 0 | AK63: 0 | BI63: D5 | BV63: =IF($BV$42="X","D5","") -> D5 | CL63: D5 | CM63: D5 | CN63: D5 | CO63: D5 | CP63: D5 | CQ63: 0
Q64: =IF(V64="","",8) ->  | R64: 62 | T64: F | U64: =C59 -> F3 | V64: =IF(X64="","",D59) ->  | W64: F5 | AB64: =Matches!O64 -> 0 | AC64: =Matches!P64 -> 0 | AF64: 0 | AG64: 0 | AH64: 0 | AI64: 0 | AJ64: 0 | AK64: 0 | BI64: E1 | BS64: E1 | BT64: E1 | BU64: E1 | BV64: E1 | BW64: E1 | BX64: E1 | BY64: E1 | BZ64: E1 | CA64: E1 | CB64: E1 | CC64: E1 | CD64: E1 | CE64: E1 | CF64: E1 | CG64: E1 | CH64: E1 | CI64: E1 | CJ64: E1 | CK64: E1 | CL64: E1 | CM64: E1 | CN64: E1 | CO64: E1 | CP64: E1 | CQ64: =IFERROR(IF(AND($BV$42="X",$CQ$43<21),"",LOOKUP($CQ$1,$BI$1:$CP$1,BI64:CP64)),"") -> E1 | CS64: =IF(AND($CQ$43>20,$BV$42="X"),CQ64,IF(CQ64=0,"",CQ64)) -> E1
Q65: =IF(V65="","",9) ->  | R65: =IF(B60=4,14,70) -> 70 | T65: F | U65: =C57 -> F1 | V65: =IF(X65="","",D59) ->  | W65: =C60 -> F4 | X65: =D60 ->  | AB65: =Matches!O65 -> 0 | AC65: =Matches!P65 -> 0 | AF65: 0 | AG65: 0 | AH65: 0 | AI65: 0 | AJ65: 0 | AK65: 0 | BI65: E2 | BS65: E2 | BT65: E2 | BU65: E2 | BV65: E2 | BW65: E2 | BX65: E2 | BY65: E2 | BZ65: E2 | CA65: E2 | CB65: E2 | CC65: E2 | CD65: E2 | CE65: E2 | CF65: E2 | CG65: E2 | CH65: E2 | CI65: E2 | CJ65: E2 | CK65: E2 | CL65: E2 | CM65: E2 | CN65: E2 | CO65: E2 | CP65: E2 | CQ65: =IFERROR(IF(AND($BV$42="X",$CQ$43<21),"",LOOKUP($CQ$1,$BI$1:$CP$1,BI65:CP65)),"") -> E2 | CS65: =IF(AND($CQ$43>20,$BV$42="X"),CQ65,IF(CQ65=0,"",CQ65)) -> E2
Q66: =IF(V66="","",10) ->  | R66: 78 | T66: F | U66: =C58 -> F2 | V66: =IF(X66="","",D58) ->  | W66: =C61 -> F5 | X66: =D61 ->  | AB66: =Matches!O66 -> 0 | AC66: =Matches!P66 -> 0 | AF66: =VLOOKUP(S66,$Y$2:$AC$88,4,FALSE) -> 0 | AG66: =VLOOKUP(S66,$Y$2:$AC$88,5,FALSE) -> 0 | AH66: 0 | AI66: 0 | AJ66: 0 | AK66: 0 | BI66: E3 | BS66: E3 | BT66: E3 | BU66: E3 | BV66: E3 | BW66: E3 | BX66: E3 | BY66: E3 | BZ66: E3 | CA66: E3 | CB66: E3 | CC66: E3 | CD66: E3 | CE66: E3 | CF66: E3 | CG66: E3 | CH66: E3 | CI66: E3 | CJ66: E3 | CK66: E3 | CL66: E3 | CM66: E3 | CN66: E3 | CO66: E3 | CP66: E3 | CQ66: =IFERROR(IF(AND($BV$42="X",$CQ$43<21),"",LOOKUP($CQ$1,$BI$1:$CP$1,BI66:CP66)),"") -> E3 | CS66: =IF(AND($CQ$43>20,$BV$42="X"),CQ66,IF(CQ66=0,"",CQ66)) -> E3
A67: G | D67: Spieler | E67: M | F67: W | G67: L | H67: F+ | I67: F- | J67: U | M67: Rang | N67: Rang | O67: P+ | S67: =IF(Q67="","",R67) ->  | Y67: =IFERROR(SMALL($S$2:$S$88,ROW()-1),"") ->  | Z67: =IFERROR(IF(Y67="","",VLOOKUP(Y67,$S$1:$V$88,4,FALSE)),"") ->  | AA67: =IFERROR(IF(Y67="","",VLOOKUP(Y67,$S$1:$X$88,6,FALSE)),"") ->  | AB67: =Matches!O67 -> 0 | AC67: =Matches!P67 -> 0 | BF67: =IF(Y67="","",VLOOKUP(Y67,$S$2:$T$88,2,FALSE)) ->  | BH67: =IF(Y67="","",IF(Y67>0,ROW()-1)) ->  | BI67: E4 | BY67: =BI67 -> E4 | BZ67: =IF($BV$42="x","","E4") ->  | CE67: E4 | CF67: E4 | CG67: E4 | CH67: E4 | CI67: E4 | CJ67: E4 | CK67: E4 | CL67: E4 | CM67: E4 | CN67: E4 | CO67: E4 | CP67: E4
B68: 1 | C68: G1 | D68: ='1. Runde Gruppen'!D27 -> Löffel Ulrich | E68: =AJ68+AJ71+AJ74+AJ70 -> 2 | F68: =AH68+AH71+AH74+AH70 -> 0 | G68: =AI68+AI71+AI74+AI70 -> 2 | H68: =AF68+AF71+AF74+AF70 -> 0 | I68: =AG68+AG71+AG74+AG70 -> 4 | J68: =AK68+AK71+AK74+AK70 -> 0 | M68: =IF(D68="X",-200000,IF(D68="Y",-200000,IF(D68="Z",-200000,IF(D68="",-200000,IF(D68="Z Freilos",-200000,IF(D68="",(-90000),(F68*10000)+(H68*1000)+(J68*10)+E68-(G68*10000)-(I68*1000)+O68)))))) -> -23998 | N68: =IF(E68=0,"",RANK(M68,M68:M72)) -> 3 | O68: ='1. Runde Gruppen'!O27 -> 0 | P68: =IF(D68="","",D68) -> Löffel Ulrich | Q68: =IF(V68="","",1) -> 1 | R68: 7 | S68: 7 | T68: G | U68: =C68 -> G1 | V68: =D68 -> Löffel Ulrich | W68: =C69 -> G2 | X68: =D69 -> Stachly Marec | AB68: =Matches!O68 -> 0 | AC68: =Matches!P68 -> 0 | AF68: =VLOOKUP(S68,$Y$2:$AC$88,4,FALSE) -> 0 | AG68: =VLOOKUP(S68,$Y$2:$AC$88,5,FALSE) -> 2 | AH68: =IF(AF68>AG68,1,0) -> 0 | AI68: =IF(AG68>AF68,1,0) -> 1 | AJ68: =IF(AF68+AG68>=1,1,0) -> 1 | AK68: =IF(AND(AF68+AG68>1,AF68=AG68),1,0) -> 0 | BI68: E5 | CM68: E5 | CN68: E5 | CO68: E5 | CP68: E5 | CQ68: 0
B69: 2 | C69: G2 | D69: ='1. Runde Gruppen'!D28 -> Stachly Marec | E69: =AJ68+AJ73+AJ69+AJ77 -> 2 | F69: =AI68+AH69+AH73+AH77 -> 2 | G69: =AH68+AI73+AI69+AI77 -> 0 | H69: =AG68+AF77+AF73+AF69 -> 4 | I69: =AF68+AG69+AG73+AG77 -> 0 | J69: =AK68+AK73+AK69+AK77 -> 0 | M69: =IF(D69="X",-200000,IF(D69="Y",-200000,IF(D69="Z",-200000,IF(D69="",-200000,IF(D69="Z Freilos",-200000,IF(D69="",(-90000),(F69*10000)+(H69*1000)+(J69*10)+E69-(G69*10000)-(I69*1000)+O69)))))) -> 24002 | N69: =IF(E69=0,"",RANK(M69,M68:M72)) -> 1 | O69: ='1. Runde Gruppen'!O28 -> 0 | P69: =IF(D69="","",D69) -> Stachly Marec | Q69: =IF(V69="","",2) ->  | R69: =IF(B71=4,47,15) -> 15 | T69: G | U69: =C70 -> G3 | V69: =IF(X69="","",D69) ->  | W69: =C71 -> G4 | X69: =D71 ->  | AB69: =Matches!O69 -> 0 | AC69: =Matches!P69 -> 0 | AF69: =VLOOKUP(S69,$Y$2:$AC$88,4,FALSE) -> 0 | AG69: =VLOOKUP(S69,$Y$2:$AC$88,5,FALSE) -> 0 | AH69: 0 | AI69: 0 | AJ69: =IF(AF69+AG69>=1,1,0) -> 0 | AK69: =IF(AND(AF69+AG69>1,AF69=AG69),1,0) -> 0 | BI69: F1 | BT69: F1 | BU69: F1 | BV69: F1 | BW69: F1 | BX69: F1 | BY69: F1 | BZ69: F1 | CA69: F1 | CB69: F1 | CC69: F1 | CD69: F1 | CE69: F1 | CF69: F1 | CG69: F1 | CH69: F1 | CI69: F1 | CJ69: F1 | CK69: F1 | CL69: F1 | CM69: F1 | CN69: F1 | CO69: F1 | CP69: F1 | CQ69: =IFERROR(IF(AND($BV$42="X",$CQ$43<21),"",LOOKUP($CQ$1,$BI$1:$CP$1,BI69:CP69)),"") -> F1 | CS69: =IF(AND($CQ$43>20,$BV$42="X"),CQ69,IF(CQ69=0,"",CQ69)) -> F1
B70: 3 | C70: G3 | D70: ='1. Runde Gruppen'!D29 -> Hofmann Frank | E70: =AJ71+AJ73+AJ76+AJ75 -> 2 | F70: =AI71+AI73+AH76+AH75 -> 1 | G70: =AH71+AH73+AI76+AI75 -> 1 | H70: =AG71+AG73+AF76+AF75 -> 2 | I70: =AF71+AF73+AG76+AG75 -> 2 | J70: =AK71+AK73+AK76+AK75 -> 0 | M70: 2 | N70: =IF(E70=0,"",RANK(M70,M68:M72)) -> 2 | O70: ='1. Runde Gruppen'!O29 -> 0 | P70: =IF(D70="","",D70) -> Hofmann Frank | Q70: =IF(V70="","",3) ->  | R70: 23 | T70: G | U70: =C68 -> G1 | V70: =IF(X70="","",D68) ->  | W70: =C72 -> G5 | X70: =D72 ->  | AB70: =Matches!O70 -> 0 | AC70: =Matches!P70 -> 0 | AF70: 0 | AG70: 0 | AH70: 0 | AI70: 0 | AJ70: =IF(AF70+AG70>=1,1,0) -> 0 | AK70: 0 | BI70: F2 | BT70: F2 | BU70: F2 | BV70: F2 | BW70: F2 | BX70: F2 | BY70: F2 | BZ70: F2 | CA70: F2 | CB70: F2 | CC70: F2 | CD70: F2 | CE70: F2 | CF70: F2 | CG70: F2 | CH70: F2 | CI70: F2 | CJ70: F2 | CK70: F2 | CL70: F2 | CM70: F2 | CN70: F2 | CO70: F2 | CP70: F2 | CQ70: =IFERROR(IF(AND($BV$42="X",$CQ$43<21),"",LOOKUP($CQ$1,$BI$1:$CP$1,BI70:CP70)),"") -> F2 | CS70: =IF(AND($CQ$43>20,$BV$42="X"),CQ70,IF(CQ70=0,"",CQ70)) -> F2
B71: =IF(D71="","",4) ->  | C71: G4 | D71: ='1. Runde Gruppen'!D30 ->  | E71: =AJ69+AJ72+AJ74+AJ76 -> 0 | F71: =AI69+AH72+AI74+AI76 -> 0 | G71: =AH69+AH74+AH76+AI72 -> 0 | H71: =AG69+AF72+AG74+AG76 -> 0 | I71: =AF69+AG72+AF74+AF76 -> 0 | J71: =AK69+AK74+AK76+AK72 -> 0 | M71: -200000 | N71: =IF(E71=0,"",RANK(M71,M68:M72)) ->  | O71: ='1. Runde Gruppen'!O30 -> 0 | P71: =IF(D71="","",D71) ->  | Q71: =IF(V71="","",4) -> 4 | R71: 31 | S71: 31 | T71: G | U71: =C69 -> G2 | V71: =D68 -> Löffel Ulrich | W71: =C70 -> G3 | X71: =D70 -> Hofmann Frank | AB71: =Matches!O71 -> 0 | AC71: =Matches!P71 -> 0 | AF71: 0 | AG71: 2 | AH71: 0 | AI71: 1 | AJ71: 1 | AK71: 0 | BI71: F3 | BT71: F3 | BU71: F3 | BV71: F3 | BW71: F3 | BX71: F3 | BY71: F3 | BZ71: F3 | CA71: F3 | CB71: F3 | CC71: F3 | CD71: F3 | CE71: F3 | CF71: F3 | CG71: F3 | CH71: F3 | CI71: F3 | CJ71: F3 | CK71: F3 | CL71: F3 | CM71: F3 | CN71: F3 | CO71: F3 | CP71: F3 | CQ71: =IFERROR(IF(AND($BV$42="X",$CQ$43<21),"",LOOKUP($CQ$1,$BI$1:$CP$1,BI71:CP71)),"") -> F3 | CS71: =IF(AND($CQ$43>20,$BV$42="X"),CQ71,IF(CQ71=0,"",CQ71)) -> F3
B72: =IF(D72="","",5) ->  | C72: G5 | D72: ='1. Runde Gruppen'!D31 ->  | E72: =AJ70+AJ72+AJ75+AJ77 -> 0 | F72: =AI70+AI72+AI75+AI77 -> 0 | G72: =AH70+AH72+AH75+AH77 -> 0 | H72: =AG70+AG72+AG75+AG77 -> 0 | I72: =AF70+AF72+AF75+AF77 -> 0 | J72: =AK70+AK72+AK75+AK77 -> 0 | M72: -200000 | N72: =IF(E72=0,"",RANK(M72,M68:M72)) ->  | O72: ='1. Runde Gruppen'!O31 -> 0 | P72: =IF(D72="","",D72) ->  | Q72: =IF(V72="","",5) ->  | R72: 39 | T72: G | U72: =C71 -> G4 | V72: =IF(X72="","",D71) ->  | W72: =C72 -> G5 | X72: =D72 ->  | AB72: =Matches!O72 -> 0 | AC72: =Matches!P72 -> 0 | AF72: 0 | AG72: 0 | AH72: 0 | AI72: 0 | AJ72: 0 | AK72: 0 | BI72: F4 | BZ72: =IF($BV$42="X","","F4") ->  | CF72: F4 | CG72: F4 | CH72: F4 | CI72: F4 | CJ72: F4 | CK72: F4 | CL72: F4 | CM72: F4 | CN72: F4 | CO72: F4 | CP72: F4 | CQ72: =IFERROR(LOOKUP($CQ$1,$BI$1:$CP$1,BI72:CP72),"") ->  | CS72: =IF(AND(CQ43=24,$BV$42=""),"F4",IF(CQ72=0,"",CQ72)) -> 
Q73: =IF(V73="","",6) -> 6 | R73: =IF(B71=4,77,47) -> 47 | S73: 47 | T73: G | U73: =C68 -> G1 | V73: =D69 -> Stachly Marec | W73: =C70 -> G3 | X73: Hofmann Frank | AB73: =Matches!O73 -> 0 | AC73: =Matches!P73 -> 0 | AF73: 2 | AG73: 0 | AH73: 1 | AI73: 0 | AJ73: 1 | AK73: 0 | BI73: F5 | CN73: F5 | CO73: F5 | CP73: F5 | CQ73: 0
Q74: =IF(V74="","",7) ->  | R74: 55 | T74: G | U74: =C69 -> G2 | V74: =IF(X74="","",D68) ->  | W74: G4 | AB74: =Matches!O74 -> 0 | AC74: =Matches!P74 -> 0 | AF74: 0 | AG74: 0 | AH74: 0 | AI74: 0 | AJ74: 0 | AK74: 0 | BI74: G1 | BZ74: =IF($BV$42="X","G1","") -> G1 | CA74: G1 | CB74: G1 | CC74: G1 | CD74: G1 | CE74: G1 | CF74: G1 | CG74: G1 | CH74: G1 | CI74: G1 | CJ74: G1 | CK74: G1 | CL74: G1 | CM74: G1 | CN74: G1 | CO74: G1 | CP74: G1 | CQ74: G1 | CS74: G1
Q75: =IF(V75="","",8) ->  | R75: 63 | T75: G | U75: =C70 -> G3 | V75: =IF(X75="","",D70) ->  | W75: G5 | AB75: =Matches!O75 -> 0 | AC75: =Matches!P75 -> 0 | AF75: 0 | AG75: 0 | AH75: 0 | AI75: 0 | AJ75: 0 | AK75: 0 | BI75: G2 | BZ75: =IF($BV$42="X","G2","") -> G2 | CA75: G2 | CB75: G2 | CC75: G2 | CD75: G2 | CE75: G2 | CF75: G2 | CG75: G2 | CH75: G2 | CI75: G2 | CJ75: G2 | CK75: G2 | CL75: G2 | CM75: G2 | CN75: G2 | CO75: G2 | CP75: G2 | CQ75: G2 | CS75: G2
Q76: =IF(V76="","",9) ->  | R76: =IF(B71=4,15,71) -> 71 | T76: G | U76: =C68 -> G1 | V76: =IF(X76="","",D70) ->  | W76: =C71 -> G4 | X76: =D71 ->  | AB76: =Matches!O76 -> 0 | AC76: =Matches!P76 -> 0 | AF76: 0 | AG76: 0 | AH76: 0 | AI76: 0 | AJ76: 0 | AK76: 0 | BI76: G3 | BZ76: =IF($BV$42="X","G3","") -> G3 | CA76: G3 | CB76: G3 | CC76: G3 | CD76: G3 | CE76: G3 | CF76: G3 | CG76: G3 | CH76: G3 | CI76: G3 | CJ76: G3 | CK76: G3 | CL76: G3 | CM76: G3 | CN76: G3 | CO76: G3 | CP76: G3 | CQ76: G3 | CS76: G3
Q77: =IF(V77="","",10) ->  | R77: 79 | T77: G | U77: =C69 -> G2 | V77: =IF(X77="","",D69) ->  | W77: =C72 -> G5 | X77: =D72 ->  | AB77: =Matches!O77 -> 0 | AC77: =Matches!P77 -> 0 | AF77: =VLOOKUP(S77,$Y$2:$AC$88,4,FALSE) -> 0 | AG77: =VLOOKUP(S77,$Y$2:$AC$88,5,FALSE) -> 0 | AH77: 0 | AI77: 0 | AJ77: 0 | AK77: 0 | BI77: G4 | CG77: G4 | CH77: G4 | CI77: G4 | CJ77: G4 | CK77: G4 | CL77: G4 | CM77: G4 | CN77: G4 | CO77: G4 | CP77: G4 | CQ77: 0
A78: H | D78: Spieler | E78: M | F78: W | G78: L | H78: F+ | I78: F- | J78: U | M78: Rang | N78: Rang | O78: P+ | AB78: =Matches!O78 -> 0 | AC78: =Matches!P78 -> 0 | BI78: G5 | CO78: G5 | CP78: G5 | CQ78: 0
B79: 1 | C79: H1 | D79: ='1. Runde Gruppen'!T27 -> Elham Faiz | E79: =AJ79+AJ82+AJ85+AJ81 -> 2 | F79: =AH79+AH82+AH85+AH81 -> 0 | G79: =AI79+AI82+AI85+AI81 -> 2 | H79: =AF79+AF82+AF85+AF81 -> 1 | I79: =AG79+AG82+AG85+AG81 -> 4 | J79: =AK79+AK82+AK85+AK81 -> 0 | M79: =IF(D79="X",-200000,IF(D79="Y",-200000,IF(D79="Z",-200000,IF(D79="",-200000,IF(D79="Z Freilos",-200000,IF(D79="",(-90000),(F79*10000)+(H79*1000)+(J79*10)+E79-(G79*10000)-(I79*1000)+O79)))))) -> -22998 | N79: =IF(E79=0,"",RANK(M79,M79:M83)) -> 3 | O79: ='1. Runde Gruppen'!AE27 -> 0 | P79: =IF(D79="","",D79) -> Elham Faiz | Q79: =IF(V79="","",1) -> 1 | R79: 8 | S79: 8 | T79: H | U79: =C79 -> H1 | V79: =D79 -> Elham Faiz | W79: =C80 -> H2 | X79: =D80 -> Fandrei Joel | AB79: =Matches!O79 -> 0 | AC79: =Matches!P79 -> 0 | AF79: =VLOOKUP(S79,$Y$2:$AC$88,4,FALSE) -> 0 | AG79: =VLOOKUP(S79,$Y$2:$AC$88,5,FALSE) -> 2 | AH79: =IF(AF79>AG79,1,0) -> 0 | AI79: =IF(AG79>AF79,1,0) -> 1 | AJ79: =IF(AF79+AG79>=1,1,0) -> 1 | AK79: =IF(AND(AF79+AG79>1,AF79=AG79),1,0) -> 0 | BI79: H1 | BZ79: =IF($BV$42="X","H1","") -> H1 | CA79: H1 | CB79: H1 | CC79: H1 | CD79: H1 | CE79: H1 | CF79: H1 | CG79: H1 | CH79: H1 | CI79: H1 | CJ79: H1 | CK79: H1 | CL79: H1 | CM79: H1 | CN79: H1 | CO79: H1 | CP79: H1 | CQ79: H1 | CS79: H1
B80: 2 | C80: H2 | D80: ='1. Runde Gruppen'!T28 -> Fandrei Joel | E80: =AJ79+AJ84+AJ80+AJ88 -> 2 | F80: =AI79+AH80+AH84+AH88 -> 2 | G80: =AH79+AI84+AI80+AI88 -> 0 | H80: =AG79+AF88+AF84+AF80 -> 4 | I80: =AF79+AG80+AG84+AG88 -> 1 | J80: =AK79+AK84+AK80+AK88 -> 0 | M80: =IF(D80="X",-200000,IF(D80="Y",-200000,IF(D80="Z",-200000,IF(D80="",-200000,IF(D80="Z Freilos",-200000,IF(D80="",(-90000),(F80*10000)+(H80*1000)+(J80*10)+E80-(G80*10000)-(I80*1000)+O80)))))) -> 23002 | N80: =IF(E80=0,"",RANK(M80,M79:M83)) -> 1 | O80: ='1. Runde Gruppen'!AE28 -> 0 | P80: =IF(D80="","",D80) -> Fandrei Joel | Q80: =IF(V80="","",2) ->  | R80: =IF(B82=4,48,16) -> 16 | T80: H | U80: =C81 -> H3 | V80: =IF(X80="","",D80) ->  | W80: =C82 -> H4 | X80: =D82 ->  | AB80: =Matches!O80 -> 0 | AC80: =Matches!P80 -> 0 | AF80: =VLOOKUP(S80,$Y$2:$AC$88,4,FALSE) -> 0 | AG80: =VLOOKUP(S80,$Y$2:$AC$88,5,FALSE) -> 0 | AH80: 0 | AI80: 0 | AJ80: =IF(AF80+AG80>=1,1,0) -> 0 | AK80: =IF(AND(AF80+AG80>1,AF80=AG80),1,0) -> 0 | BI80: H2 | BZ80: =IF($BV$42="X","H2","") -> H2 | CA80: H2 | CB80: H2 | CC80: H2 | CD80: H2 | CE80: H2 | CF80: H2 | CG80: H2 | CH80: H2 | CI80: H2 | CJ80: H2 | CK80: H2 | CL80: H2 | CM80: H2 | CN80: H2 | CO80: H2 | CP80: H2 | CQ80: H2 | CS80: H2
B81: 3 | C81: H3 | D81: ='1. Runde Gruppen'!T29 -> Thomas Moritz | E81: =AJ82+AJ84+AJ87+AJ86 -> 2 | F81: =AI82+AI84+AH87+AH86 -> 1 | G81: =AH82+AH84+AI87+AI86 -> 1 | H81: =AG82+AG84+AF87+AF86 -> 3 | I81: =AF82+AF84+AG87+AG86 -> 3 | J81: =AK82+AK84+AK87+AK86 -> 0 | M81: 2 | N81: =IF(E81=0,"",RANK(M81,M79:M83)) -> 2 | O81: ='1. Runde Gruppen'!AE29 -> 0 | P81: =IF(D81="","",D81) -> Thomas Moritz | Q81: =IF(V81="","",3) ->  | R81: 24 | T81: H | U81: =C79 -> H1 | V81: =IF(X81="","",D79) ->  | W81: =C83 -> H5 | X81: =D83 ->  | AB81: =Matches!O81 -> 0 | AC81: =Matches!P81 -> 0 | AF81: 0 | AG81: 0 | AH81: 0 | AI81: 0 | AJ81: =IF(AF81+AG81>=1,1,0) -> 0 | AK81: 0 | BI81: H3 | BZ81: =IF($BV$42="X","H3","") -> H3 | CA81: H3 | CB81: H3 | CC81: H3 | CD81: H3 | CE81: H3 | CF81: H3 | CG81: H3 | CH81: H3 | CI81: H3 | CJ81: H3 | CK81: H3 | CL81: H3 | CM81: H3 | CN81: H3 | CO81: H3 | CP81: H3 | CQ81: H3 | CS81: H3
B82: =IF(D82="","",4) ->  | C82: H4 | D82: ='1. Runde Gruppen'!T30 ->  | E82: =AJ80+AJ83+AJ85+AJ87 -> 0 | F82: =AI80+AH83+AI85+AI87 -> 0 | G82: =AH80+AH85+AH87+AI83 -> 0 | H82: =AG80+AF83+AG85+AG87 -> 0 | I82: =AF80+AG83+AF85+AF87 -> 0 | J82: =AK80+AK85+AK87+AK83 -> 0 | M82: -200000 | N82: =IF(E82=0,"",RANK(M82,M79:M83)) ->  | O82: ='1. Runde Gruppen'!AE30 -> 0 | P82: =IF(D82="","",D82) ->  | Q82: =IF(V82="","",4) -> 4 | R82: 32 | S82: 32 | T82: H | U82: =C80 -> H2 | V82: =D79 -> Elham Faiz | W82: =C81 -> H3 | X82: =D81 -> Thomas Moritz | AF82: 1 | AG82: 2 | AH82: 0 | AI82: 1 | AJ82: 1 | AK82: 0 | BI82: H4 | CH82: H4 | CI82: H4 | CJ82: H4 | CK82: H4 | CL82: H4 | CM82: H4 | CN82: H4 | CO82: H4 | CP82: H4 | CQ82: 0
B83: =IF(D83="","",5) ->  | C83: H5 | D83: ='1. Runde Gruppen'!T31 ->  | E83: =AJ81+AJ83+AJ86+AJ88 -> 0 | F83: =AI81+AI83+AI86+AI88 -> 0 | G83: =AH81+AH83+AH86+AH88 -> 0 | H83: =AG81+AG83+AG86+AG88 -> 0 | I83: =AF81+AF83+AF86+AF88 -> 0 | J83: =AK81+AK83+AK86+AK88 -> 0 | M83: -200000 | N83: =IF(E83=0,"",RANK(M83,M79:M83)) ->  | O83: ='1. Runde Gruppen'!AE31 -> 0 | P83: =IF(D83="","",D83) ->  | Q83: =IF(V83="","",5) ->  | R83: 40 | T83: H | U83: =C82 -> H4 | V83: =IF(X83="","",D82) ->  | W83: =C83 -> H5 | X83: =D83 ->  | AF83: 0 | AG83: 0 | AH83: 0 | AI83: 0 | AJ83: 0 | AK83: 0 | BI83: H5 | CP83: H5 | CQ83: 0
Q84: =IF(V84="","",6) -> 6 | R84: =IF(B82=4,78,48) -> 48 | S84: 48 | T84: H | U84: =C79 -> H1 | V84: =D80 -> Fandrei Joel | W84: =C81 -> H3 | X84: Thomas Moritz | AF84: 2 | AG84: 1 | AH84: 1 | AI84: 0 | AJ84: 1 | AK84: 0
Q85: =IF(V85="","",7) ->  | R85: 56 | T85: H | U85: =C80 -> H2 | V85: =IF(X85="","",D79) ->  | W85: H4 | AF85: 0 | AG85: 0 | AH85: 0 | AI85: 0 | AJ85: 0 | AK85: 0
Q86: =IF(V86="","",8) ->  | R86: 64 | T86: H | U86: =C81 -> H3 | V86: =IF(X86="","",D81) ->  | W86: H5 | AF86: 0 | AG86: 0 | AH86: 0 | AI86: 0 | AJ86: 0 | AK86: 0
Q87: =IF(V87="","",9) ->  | R87: =IF(B82=4,16,72) -> 72 | T87: H | U87: =C79 -> H1 | V87: =IF(X87="","",D81) ->  | W87: =C82 -> H4 | X87: =D82 ->  | AF87: 0 | AG87: 0 | AH87: 0 | AI87: 0 | AJ87: 0 | AK87: 0
Q88: =IF(V88="","",10) ->  | R88: 80 | T88: H | U88: =C80 -> H2 | V88: =IF(X88="","",D80) ->  | W88: =C83 -> H5 | X88: =D83 ->  | AF88: =VLOOKUP(S88,$Y$2:$AC$88,4,FALSE) -> 0 | AG88: =VLOOKUP(S88,$Y$2:$AC$88,5,FALSE) -> 0 | AH88: 0 | AI88: 0 | AJ88: 0 | AK88: 0 | BI88: 2. Gruppenrunde | BV88: =BV42 -> X
E89: F+ | F89: F+ | G89: F+ | H89: F+ | BM89: 11 | BS89: 17 | BT89: 18 | BU89: 19 | BV89: 20 | BW89: 21 | BX89: 22 | BY89: 23 | BZ89: 24 | CQ89: =CQ43 -> 24
B90: 1 | C90: A1 | D90: =VLOOKUP(1,$N$2:$P$6,3,FALSE) -> Gärtner David | E90: =IFERROR(VLOOKUP(D90,Finals!$B$4:$C$26,2,FALSE),"") -> 2 | F90: =IFERROR(VLOOKUP(D90,Finals!$J$6:$K$24,2,FALSE),"") -> 0 | G90: =IFERROR(VLOOKUP(D90,Finals!$Q$10:$R$20,2,FALSE),"") ->  | H90: =IFERROR(VLOOKUP(D90,Finals!$X$23:$Y$24,2,FALSE),"") ->  | I90: =IFERROR(VLOOKUP(D90,Finals!$X$14:$Y$15,2,FALSE),"") ->  | AI90: A1 | BH90: =C90 -> A1 | BI90: =D90 -> Gärtner David | BM90: =BI90 -> Gärtner David | BS90: =$BI$90 -> Gärtner David | BT90: Gärtner David | BU90: Gärtner David | BV90: Gärtner David | BW90: Gärtner David | BX90: Gärtner David | BY90: Gärtner David | BZ90: Gärtner David | CP90: A1 | CQ90: =IFERROR(IF(AND($CQ$89>16,$CQ$89<=24),LOOKUP($CQ$89,$BS$89:$BZ$89,BS90:BZ90),""),"") -> Gärtner David
B91: 1 | C91: B1 | D91: =VLOOKUP(1,$N$13:$P$17,3,FALSE) -> Weber Marco | E91: =IFERROR(VLOOKUP(D91,Finals!$B$4:$C$26,2,FALSE),"") -> 2 | F91: =IFERROR(VLOOKUP(D91,Finals!$J$6:$K$24,2,FALSE),"") -> 2 | G91: =IFERROR(VLOOKUP(D91,Finals!$Q$10:$R$20,2,FALSE),"") -> 2 | H91: =IFERROR(VLOOKUP(D91,Finals!$X$23:$Y$24,2,FALSE),"") ->  | I91: =IFERROR(VLOOKUP(D91,Finals!$X$14:$Y$15,2,FALSE),"") -> 2 | AI91: A2 | BH91: B1 | BI91: Weber Marco | BM91: =BI107 -> Brömel Frank | BS91: =$BI$94 -> Delling Tino | BT91: =$BI$94 -> Delling Tino | BU91: Delling Tino | BV91: Delling Tino | BW91: Delling Tino | BX91: Delling Tino | BY91: Delling Tino | BZ91: Delling Tino | CP91: A2 | CQ91: =IFERROR(IF(AND($CQ$89>16,$CQ$89<=24),LOOKUP($CQ$89,$BS$89:$BZ$89,BS91:BZ91),""),"") -> Delling Tino
B92: 1 | C92: C1 | D92: =VLOOKUP(1,$N$24:$P$28,3,FALSE) -> Witzik Oliver | E92: =IFERROR(VLOOKUP(D92,Finals!$B$4:$C$26,2,FALSE),"") -> 0 | F92: =IFERROR(VLOOKUP(D92,Finals!$J$6:$K$24,2,FALSE),"") ->  | G92: =IFERROR(VLOOKUP(D92,Finals!$Q$10:$R$20,2,FALSE),"") ->  | H92: =IFERROR(VLOOKUP(D92,Finals!$X$23:$Y$24,2,FALSE),"") ->  | I92: =IFERROR(VLOOKUP(D92,Finals!$X$14:$Y$15,2,FALSE),"") ->  | AI92: A3 | BH92: C1 | BI92: Witzik Oliver | BS92: =BI107 -> Brömel Frank | BT92: =$BI$101 -> Suttner Magnus | BU92: Suttner Magnus | BV92: Suttner Magnus | BW92: Suttner Magnus | BX92: Suttner Magnus | BY92: Suttner Magnus | BZ92: Suttner Magnus | CP92: A3 | CQ92: Suttner Magnus
B93: 1 | C93: D1 | D93: =VLOOKUP(1,$N$35:$P$39,3,FALSE) -> Straßburger Marko | E93: =IFERROR(VLOOKUP(D93,Finals!$B$4:$C$26,2,FALSE),"") -> 1 | F93: =IFERROR(VLOOKUP(D93,Finals!$J$6:$K$24,2,FALSE),"") ->  | G93: =IFERROR(VLOOKUP(D93,Finals!$Q$10:$R$20,2,FALSE),"") ->  | H93: =IFERROR(VLOOKUP(D93,Finals!$X$23:$Y$24,2,FALSE),"") ->  | I93: =IFERROR(VLOOKUP(D93,Finals!$X$14:$Y$15,2,FALSE),"") ->  | AI93: B1 | BH93: D1 | BI93: Straßburger Marko | BM93: =BI91 -> Weber Marco | BS93: =$BI$91 -> Weber Marco | BT93: =$BI$91 -> Weber Marco | BU93: Weber Marco | BV93: Weber Marco | BW93: Weber Marco | BX93: Weber Marco | BY93: Weber Marco | BZ93: Weber Marco | CP93: B1 | CQ93: Weber Marco
B94: 1 | C94: E1 | D94: =VLOOKUP(1,$N$46:$P$50,3,FALSE) -> Delling Tino | E94: =IFERROR(VLOOKUP(D94,Finals!$B$4:$C$26,2,FALSE),"") -> 2 | F94: =IFERROR(VLOOKUP(D94,Finals!$J$6:$K$24,2,FALSE),"") -> 1 | G94: =IFERROR(VLOOKUP(D94,Finals!$Q$10:$R$20,2,FALSE),"") ->  | H94: =IFERROR(VLOOKUP(D94,Finals!$X$23:$Y$24,2,FALSE),"") ->  | I94: =IFERROR(VLOOKUP(D94,Finals!$X$14:$Y$15,2,FALSE),"") ->  | AI94: B2 | BH94: E1 | BI94: Delling Tino | BM94: =BI106 -> Brachmanski Dave | BS94: =BI100 -> Behling Oliver | BT94: =$BI$100 -> Behling Oliver | BU94: Behling Oliver | BV94: Behling Oliver | BW94: Behling Oliver | BX94: Behling Oliver | BY94: Behling Oliver | BZ94: Behling Oliver | CP94: B2 | CQ94: Behling Oliver
B95: 1 | C95: F1 | D95: =VLOOKUP(1,$N$57:$P$61,3,FALSE) -> Jeroch Paul | E95: =IFERROR(VLOOKUP(D95,Finals!$B$4:$C$26,2,FALSE),"") -> 2 | F95: =IFERROR(VLOOKUP(D95,Finals!$J$6:$K$24,2,FALSE),"") -> 2 | G95: =IFERROR(VLOOKUP(D95,Finals!$Q$10:$R$20,2,FALSE),"") -> 2 | H95: =IFERROR(VLOOKUP(D95,Finals!$X$23:$Y$24,2,FALSE),"") ->  | I95: =IFERROR(VLOOKUP(D95,Finals!$X$14:$Y$15,2,FALSE),"") -> 0 | AI95: B3 | BH95: F1 | BI95: Jeroch Paul | BS95: =BI101 -> Suttner Magnus | BT95: =$BI$102 -> Fandrei Andreas | BU95: Fandrei Andreas | BV95: Fandrei Andreas | BW95: Fandrei Andreas | BX95: Fandrei Andreas | BY95: Fandrei Andreas | BZ95: Fandrei Andreas | CP95: B3 | CQ95: Fandrei Andreas
B96: 1 | C96: G1 | D96: =VLOOKUP(1,$N$68:$P$72,3,FALSE) -> Stachly Marec | E96: =IFERROR(VLOOKUP(D96,Finals!$B$4:$C$26,2,FALSE),"") -> 2 | F96: =IFERROR(VLOOKUP(D96,Finals!$J$6:$K$24,2,FALSE),"") -> 1 | G96: =IFERROR(VLOOKUP(D96,Finals!$Q$10:$R$20,2,FALSE),"") ->  | H96: =IFERROR(VLOOKUP(D96,Finals!$X$23:$Y$24,2,FALSE),"") ->  | I96: =IFERROR(VLOOKUP(D96,Finals!$X$14:$Y$15,2,FALSE),"") ->  | AI96: C1 | BH96: G1 | BI96: Stachly Marec | BM96: =BI92 -> Witzik Oliver | BS96: =$BI$92 -> Witzik Oliver | BT96: =$BI$92 -> Witzik Oliver | BU96: Witzik Oliver | BV96: Witzik Oliver | BW96: Witzik Oliver | BX96: Witzik Oliver | BY96: Witzik Oliver | BZ96: Witzik Oliver | CP96: C1 | CQ96: Witzik Oliver
B97: 1 | C97: H1 | D97: =VLOOKUP(1,$N$79:$P$83,3,FALSE) -> Fandrei Joel | E97: =IFERROR(VLOOKUP(D97,Finals!$B$4:$C$26,2,FALSE),"") -> 2 | F97: =IFERROR(VLOOKUP(D97,Finals!$J$6:$K$24,2,FALSE),"") -> 2 | G97: =IFERROR(VLOOKUP(D97,Finals!$Q$10:$R$20,2,FALSE),"") -> 1 | H97: =IFERROR(VLOOKUP(D97,Finals!$X$23:$Y$24,2,FALSE),"") -> 0 | I97: =IFERROR(VLOOKUP(D97,Finals!$X$14:$Y$15,2,FALSE),"") ->  | AI97: C2 | BH97: H1 | BI97: Fandrei Joel | BM97: =BI99 -> Drahn Robert | BS97: =BI98 -> Valderrama Salvador | BT97: =$BI$98 -> Valderrama Salvador | BU97: Valderrama Salvador | BV97: Valderrama Salvador | BW97: Valderrama Salvador | BX97: Valderrama Salvador | BY97: Valderrama Salvador | BZ97: Valderrama Salvador | CP97: C2 | CQ97: Valderrama Salvador
B98: 2 | C98: A2 | D98: =VLOOKUP(2,$N$2:$P$6,3,FALSE) -> Valderrama Salvador | E98: =IFERROR(VLOOKUP(D98,Finals!$B$4:$C$26,2,FALSE),"") -> 1 | F98: =IFERROR(VLOOKUP(D98,Finals!$J$6:$K$24,2,FALSE),"") ->  | G98: =IFERROR(VLOOKUP(D98,Finals!$Q$10:$R$20,2,FALSE),"") ->  | H98: =IFERROR(VLOOKUP(D98,Finals!$X$23:$Y$24,2,FALSE),"") ->  | I98: =IFERROR(VLOOKUP(D98,Finals!$X$14:$Y$15,2,FALSE),"") ->  | AI98: C3 | BH98: A2 | BI98: Valderrama Salvador | BS98: =BI102 -> Fandrei Andreas | BT98: =$BI$103 -> Müller Marcus | BU98: Müller Marcus | BV98: Müller Marcus | BW98: Müller Marcus | BX98: Müller Marcus | BY98: Müller Marcus | BZ98: Müller Marcus | CP98: C3 | CQ98: Müller Marcus
B99: 2 | C99: B2 | D99: =VLOOKUP(2,$N$13:$P$17,3,FALSE) -> Drahn Robert | E99: =IFERROR(VLOOKUP(D99,Finals!$B$4:$C$26,2,FALSE),"") -> 0 | F99: =IFERROR(VLOOKUP(D99,Finals!$J$6:$K$24,2,FALSE),"") ->  | G99: =IFERROR(VLOOKUP(D99,Finals!$Q$10:$R$20,2,FALSE),"") ->  | H99: =IFERROR(VLOOKUP(D99,Finals!$X$23:$Y$24,2,FALSE),"") ->  | I99: =IFERROR(VLOOKUP(D99,Finals!$X$14:$Y$15,2,FALSE),"") ->  | AI99: D1 | BH99: B2 | BI99: Drahn Robert | BM99: =BI98 -> Valderrama Salvador | BS99: =$BI$93 -> Straßburger Marko | BT99: =$BI$93 -> Straßburger Marko | BU99: Straßburger Marko | BV99: Straßburger Marko | BW99: Straßburger Marko | BX99: Straßburger Marko | BY99: Straßburger Marko | BZ99: Straßburger Marko | CP99: D1 | CQ99: Straßburger Marko
B100: 2 | C100: C2 | D100: =VLOOKUP(2,$N$24:$P$28,3,FALSE) -> Behling Oliver | E100: =IFERROR(VLOOKUP(D100,Finals!$B$4:$C$26,2,FALSE),"") -> 0 | F100: =IFERROR(VLOOKUP(D100,Finals!$J$6:$K$24,2,FALSE),"") ->  | G100: =IFERROR(VLOOKUP(D100,Finals!$Q$10:$R$20,2,FALSE),"") ->  | H100: =IFERROR(VLOOKUP(D100,Finals!$X$23:$Y$24,2,FALSE),"") ->  | I100: =IFERROR(VLOOKUP(D100,Finals!$X$14:$Y$15,2,FALSE),"") ->  | AI100: D2 | BH100: C2 | BI100: Behling Oliver | BM100: =BI100 -> Behling Oliver | BS100: =BI99 -> Drahn Robert | BT100: =$BI$95 -> Jeroch Paul | BU100: Jeroch Paul | BV100: Jeroch Paul | BW100: Jeroch Paul | BX100: Jeroch Paul | BY100: Jeroch Paul | BZ100: Jeroch Paul | CP100: D2 | CQ100: Jeroch Paul
B101: 2 | C101: D2 | D101: =VLOOKUP(2,$N$35:$P$39,3,FALSE) -> Suttner Magnus | E101: =IFERROR(VLOOKUP(D101,Finals!$B$4:$C$26,2,FALSE),"") -> 1 | F101: =IFERROR(VLOOKUP(D101,Finals!$J$6:$K$24,2,FALSE),"") ->  | G101: =IFERROR(VLOOKUP(D101,Finals!$Q$10:$R$20,2,FALSE),"") ->  | H101: =IFERROR(VLOOKUP(D101,Finals!$X$23:$Y$24,2,FALSE),"") ->  | I101: =IFERROR(VLOOKUP(D101,Finals!$X$14:$Y$15,2,FALSE),"") ->  | AI101: D3 | BH101: D2 | BI101: Suttner Magnus | BS101: =BI106 -> Brachmanski Dave | BT101: =$BI$99 -> Drahn Robert | BU101: Drahn Robert | BV101: Drahn Robert | BW101: Drahn Robert | BX101: Drahn Robert | BY101: Drahn Robert | BZ101: Drahn Robert | CP101: D3 | CQ101: Drahn Robert
B102: 2 | C102: E2 | D102: =VLOOKUP(2,$N$46:$P$50,3,FALSE) -> Fandrei Andreas | E102: =IFERROR(VLOOKUP(D102,Finals!$B$4:$C$26,2,FALSE),"") -> 0 | F102: =IFERROR(VLOOKUP(D102,Finals!$J$6:$K$24,2,FALSE),"") ->  | G102: =IFERROR(VLOOKUP(D102,Finals!$Q$10:$R$20,2,FALSE),"") ->  | H102: =IFERROR(VLOOKUP(D102,Finals!$X$23:$Y$24,2,FALSE),"") ->  | I102: =IFERROR(VLOOKUP(D102,Finals!$X$14:$Y$15,2,FALSE),"") ->  | BH102: E2 | BI102: Fandrei Andreas
B103: 2 | C103: F2 | D103: =VLOOKUP(2,$N$57:$P$61,3,FALSE) -> Müller Marcus | E103: =IFERROR(VLOOKUP(D103,Finals!$B$4:$C$26,2,FALSE),"") -> 2 | F103: =IFERROR(VLOOKUP(D103,Finals!$J$6:$K$24,2,FALSE),"") -> 2 | G103: =IFERROR(VLOOKUP(D103,Finals!$Q$10:$R$20,2,FALSE),"") -> 0 | H103: =IFERROR(VLOOKUP(D103,Finals!$X$23:$Y$24,2,FALSE),"") -> 0 | I103: =IFERROR(VLOOKUP(D103,Finals!$X$14:$Y$15,2,FALSE),"") ->  | BH103: F2 | BI103: Müller Marcus
B104: 2 | C104: G2 | D104: =VLOOKUP(2,$N$68:$P$72,3,FALSE) -> Hofmann Frank | E104: =IFERROR(VLOOKUP(D104,Finals!$B$4:$C$26,2,FALSE),"") -> 0 | F104: =IFERROR(VLOOKUP(D104,Finals!$J$6:$K$24,2,FALSE),"") ->  | G104: =IFERROR(VLOOKUP(D104,Finals!$Q$10:$R$20,2,FALSE),"") ->  | H104: =IFERROR(VLOOKUP(D104,Finals!$X$23:$Y$24,2,FALSE),"") ->  | I104: =IFERROR(VLOOKUP(D104,Finals!$X$14:$Y$15,2,FALSE),"") ->  | BH104: G2 | BI104: Hofmann Frank
B105: 2 | C105: H2 | D105: =VLOOKUP(2,$N$79:$P$83,3,FALSE) -> Thomas Moritz | E105: =IFERROR(VLOOKUP(D105,Finals!$B$4:$C$26,2,FALSE),"") -> 2 | F105: =IFERROR(VLOOKUP(D105,Finals!$J$6:$K$24,2,FALSE),"") -> 0 | G105: =IFERROR(VLOOKUP(D105,Finals!$Q$10:$R$20,2,FALSE),"") ->  | H105: =IFERROR(VLOOKUP(D105,Finals!$X$23:$Y$24,2,FALSE),"") ->  | I105: =IFERROR(VLOOKUP(D105,Finals!$X$14:$Y$15,2,FALSE),"") ->  | BH105: H2 | BI105: Thomas Moritz
B106: 3 | C106: A3 | D106: =VLOOKUP(3,$N$2:$P$6,3,FALSE) -> Brachmanski Dave | E106: =IFERROR(VLOOKUP(D106,Finals!$B$4:$C$26,2,FALSE),"") ->  | F106: =IFERROR(VLOOKUP(D106,Finals!$J$6:$K$24,2,FALSE),"") ->  | G106: =IFERROR(VLOOKUP(D106,Finals!$Q$10:$R$20,2,FALSE),"") ->  | H106: =IFERROR(VLOOKUP(D106,Finals!$X$23:$Y$24,2,FALSE),"") ->  | I106: =IFERROR(VLOOKUP(D106,Finals!$X$14:$Y$15,2,FALSE),"") ->  | BH106: A3 | BI106: Brachmanski Dave
B107: 3 | C107: B3 | D107: =VLOOKUP(3,$N$13:$P$17,3,FALSE) -> Brömel Frank | E107: =IFERROR(VLOOKUP(D107,Finals!$B$4:$C$26,2,FALSE),"") ->  | F107: =IFERROR(VLOOKUP(D107,Finals!$J$6:$K$24,2,FALSE),"") ->  | G107: =IFERROR(VLOOKUP(D107,Finals!$Q$10:$R$20,2,FALSE),"") ->  | H107: =IFERROR(VLOOKUP(D107,Finals!$X$23:$Y$24,2,FALSE),"") ->  | I107: =IFERROR(VLOOKUP(D107,Finals!$X$14:$Y$15,2,FALSE),"") ->  | BH107: B3 | BI107: Brömel Frank
B108: 3 | C108: C3 | D108: =VLOOKUP(3,$N$24:$P$28,3,FALSE) -> Isermann Rene | E108: =IFERROR(VLOOKUP(D108,Finals!$B$4:$C$26,2,FALSE),"") ->  | F108: =IFERROR(VLOOKUP(D108,Finals!$J$6:$K$24,2,FALSE),"") ->  | G108: =IFERROR(VLOOKUP(D108,Finals!$Q$10:$R$20,2,FALSE),"") ->  | H108: =IFERROR(VLOOKUP(D108,Finals!$X$23:$Y$24,2,FALSE),"") ->  | I108: =IFERROR(VLOOKUP(D108,Finals!$X$14:$Y$15,2,FALSE),"") ->  | BH108: C3 | BI108: Isermann Rene
B109: 3 | C109: D3 | D109: =VLOOKUP(3,$N$35:$P$39,3,FALSE) -> Hartung Andreas | E109: =IFERROR(VLOOKUP(D109,Finals!$B$4:$C$26,2,FALSE),"") ->  | F109: =IFERROR(VLOOKUP(D109,Finals!$J$6:$K$24,2,FALSE),"") ->  | G109: =IFERROR(VLOOKUP(D109,Finals!$Q$10:$R$20,2,FALSE),"") ->  | H109: =IFERROR(VLOOKUP(D109,Finals!$X$23:$Y$24,2,FALSE),"") ->  | I109: =IFERROR(VLOOKUP(D109,Finals!$X$14:$Y$15,2,FALSE),"") ->  | BH109: D3 | BI109: Hartung Andreas
B110: 3 | C110: E3 | D110: =VLOOKUP(3,$N$46:$P$50,3,FALSE) -> Swennen Andy | E110: =IFERROR(VLOOKUP(D110,Finals!$B$4:$C$26,2,FALSE),"") ->  | F110: =IFERROR(VLOOKUP(D110,Finals!$J$6:$K$24,2,FALSE),"") ->  | G110: =IFERROR(VLOOKUP(D110,Finals!$Q$10:$R$20,2,FALSE),"") ->  | H110: =IFERROR(VLOOKUP(D110,Finals!$X$23:$Y$24,2,FALSE),"") ->  | I110: =IFERROR(VLOOKUP(D110,Finals!$X$14:$Y$15,2,FALSE),"") ->  | BH110: E3 | BI110: Swennen Andy
B111: 3 | C111: F3 | D111: =VLOOKUP(3,$N$57:$P$61,3,FALSE) -> Rejke Ronny | E111: =IFERROR(VLOOKUP(D111,Finals!$B$4:$C$26,2,FALSE),"") ->  | F111: =IFERROR(VLOOKUP(D111,Finals!$J$6:$K$24,2,FALSE),"") ->  | G111: =IFERROR(VLOOKUP(D111,Finals!$Q$10:$R$20,2,FALSE),"") ->  | H111: =IFERROR(VLOOKUP(D111,Finals!$X$23:$Y$24,2,FALSE),"") ->  | I111: =IFERROR(VLOOKUP(D111,Finals!$X$14:$Y$15,2,FALSE),"") ->  | BH111: F3 | BI111: Rejke Ronny
B112: 3 | C112: G3 | D112: =VLOOKUP(3,$N$68:$P$72,3,FALSE) -> Löffel Ulrich | E112: =IFERROR(VLOOKUP(D112,Finals!$B$4:$C$26,2,FALSE),"") ->  | F112: =IFERROR(VLOOKUP(D112,Finals!$J$6:$K$24,2,FALSE),"") ->  | G112: =IFERROR(VLOOKUP(D112,Finals!$Q$10:$R$20,2,FALSE),"") ->  | H112: =IFERROR(VLOOKUP(D112,Finals!$X$23:$Y$24,2,FALSE),"") ->  | I112: =IFERROR(VLOOKUP(D112,Finals!$X$14:$Y$15,2,FALSE),"") ->  | BH112: G3 | BI112: Löffel Ulrich
B113: 3 | C113: H3 | D113: =VLOOKUP(3,$N$79:$P$83,3,FALSE) -> Elham Faiz | E113: =IFERROR(VLOOKUP(D113,Finals!$B$4:$C$26,2,FALSE),"") ->  | F113: =IFERROR(VLOOKUP(D113,Finals!$J$6:$K$24,2,FALSE),"") ->  | G113: =IFERROR(VLOOKUP(D113,Finals!$Q$10:$R$20,2,FALSE),"") ->  | H113: =IFERROR(VLOOKUP(D113,Finals!$X$23:$Y$24,2,FALSE),"") ->  | I113: =IFERROR(VLOOKUP(D113,Finals!$X$14:$Y$15,2,FALSE),"") ->  | BH113: H3 | BI113: Elham Faiz
A114: Punkteberechnung | BQ114: =BH1 -> 24
A115: Nr | B115: Name | D115: Teilnahme | E115: F+ 1 | F115: F+ 2 | G115: AF | H115: VF | I115: 4. | N115: 3/4 | O115: 1/2 | Q115: PR2 | U115: Su | V115: x5 | W115: Su | Y115: AF | Z115: VF | AA115: 4 | AB115: 3 | AC115: 2 | BF115: 1 | BG115: Höchste | BH115: Fr+ | BI115: Gesamt | BK115: Platz | BQ115: =IF(Finals!Y14+Finals!Y15>=1,"X",0) -> X | BT115: Oli
A116: =Spieler!A2 -> 1 | B116: =Spieler!C2 -> Behling Oliver | D116: =IF(B116="","",$H$165) -> 50 | E116: =IF(B116="","",VLOOKUP(B116,$D$1:$H$83,5,FALSE)) -> 2 | F116: =IFERROR(IF(B116="","",VLOOKUP(B116,'2. Runde Gruppen'!$D$3:$H$20,5,FALSE)),"") -> 0 | G116: =IFERROR(VLOOKUP(B116,$D$90:$E$113,2,FALSE),"") -> 0 | H116: =IFERROR(VLOOKUP(B116,$D$90:$F$113,3,FALSE),"") ->  | I116: =IFERROR(VLOOKUP(B116,$D$90:$G$113,4,FALSE),"") ->  | N116: =IFERROR(VLOOKUP(B116,$D$90:$H$113,5,FALSE),"") ->  | O116: =IFERROR(VLOOKUP(B116,$D$90:$I$113,6,FALSE),"") ->  | Q116: =IF(OR(F116<>"",G116<>""),Berechnung!$H$164,D116) -> 100 | R116: =IF(Q116<>"",Q116,D116) -> 100 | T116: 0.004 | U116: =SUM(E116:O116) -> 2 | V116: =U116*5+T116 -> 10.004 | W116: =IF(B116="","",V116+R116+X116) -> 160.004 | X116: =D116 -> 50 | Y116: =IF(AND(D116=30,G116<>""),$E$164,IF(AND(D116=50,G116<>""),$H$164,"")) -> 100 | Z116: =IF(AND(D116=20,H116<>""),$D$163,IF(AND(D116=30,H116<>""),$E$163,IF(AND(D116=50,H116<>""),$H$163,""))) ->  | AA116: =IF(B116="","",IF(B116=Finals!$X$7,Berechnung!$H$162,"")) ->  | AB116: =IF(B116="","",IF(B116=Finals!$X$6,Berechnung!$H$161,"")) ->  | AC116: =IF(B116="","",IF(B116=Finals!$X$5,Berechnung!$H$160,"")) ->  | AD116: =IF(E116=Finals!$X$7,Berechnung!$H$162,"") ->  | BF116: =IF(B116="","",IF(B116=Finals!$X$4,Berechnung!$H$159,"")) ->  | BG116: =IFERROR(IF(B116="","",LARGE(Y116:BF116:BF116,1)),0) -> 100 | BH116: =IFERROR(IF(B116="","",IF(BG116<>0,V116+T116,IF(BG116=0,R116+T116+V116))),"") -> 10.008 | BI116: =IFERROR(BG116+BH116,"") -> 110.008 | BJ116: =B116 -> Behling Oliver | BK116: =IF(B116="","",A116) -> 1 | BL116: =IFERROR(LARGE($BI$116:$BJ$155,1),"") -> 410.0036 | BM116: =IF(BJ116="","",VLOOKUP(BL116,$BI$116:$BJ$155,2,FALSE)) -> Weber Marco | BO116: =IF(BM116="","",BK116) -> 1 | BP116: =BM116 -> Weber Marco | BQ116: =BL116 -> 410.0036 | BR116: =IF(BO116="","",BQ114*4) -> 96 | BS116: =VLOOKUP(BP116,$B$116:$U$155,20,FALSE) -> 12 | BT116: =IF(BR116="","",BR116+BS116) -> 108
A117: =Spieler!A3 -> 2 | B117: =Spieler!C3 -> Brachmanski Dave | D117: =IF(B117="","",$H$165) -> 50 | E117: =IF(B117="","",VLOOKUP(B117,$D$1:$H$83,5,FALSE)) -> 1 | F117: =IFERROR(IF(B117="","",VLOOKUP(B117,'2. Runde Gruppen'!$D$3:$H$20,5,FALSE)),"") ->  | G117: =IFERROR(VLOOKUP(B117,$D$90:$E$113,2,FALSE),"") ->  | H117: =IFERROR(VLOOKUP(B117,$D$90:$F$113,3,FALSE),"") ->  | I117: =IFERROR(VLOOKUP(B117,$D$90:$G$113,4,FALSE),"") ->  | N117: =IFERROR(VLOOKUP(B117,$D$90:$H$113,5,FALSE),"") ->  | O117: =IFERROR(VLOOKUP(B117,$D$90:$I$113,6,FALSE),"") ->  | Q117: =IF(OR(F117<>"",G117<>""),Berechnung!$H$164,D117) -> 50 | R117: =IF(Q117<>"",Q117,D117) -> 50 | T117: 0.0039 | U117: =SUM(E117:O117) -> 1 | V117: =U117*5+T117 -> 5.0039 | W117: =IF(B117="","",V117+R117+X117) -> 105.0039 | X117: =D117 -> 50 | Y117: =IF(AND(D117=30,G117<>""),$E$164,IF(AND(D117=50,G117<>""),$H$164,"")) ->  | Z117: =IF(AND(D117=20,H117<>""),$D$163,IF(AND(D117=30,H117<>""),$E$163,IF(AND(D117=50,H117<>""),$H$163,""))) ->  | AA117: =IF(B117="","",IF(B117=Finals!$X$7,Berechnung!$H$162,"")) ->  | AB117: =IF(B117="","",IF(B117=Finals!$X$6,Berechnung!$H$161,"")) ->  | AC117: =IF(B117="","",IF(B117=Finals!$X$5,Berechnung!$H$160,"")) ->  | AD117: =IF(E117=Finals!$X$7,Berechnung!$H$162,"") ->  | BF117: =IF(B117="","",IF(B117=Finals!$X$4,Berechnung!$H$159,"")) ->  | BG117: =IFERROR(IF(B117="","",LARGE(Y117:BF117:BF117,1)),0) -> 0 | BH117: =IFERROR(IF(B117="","",IF(BG117<>0,V117+T117,IF(BG117=0,R117+T117+V117))),"") -> 55.0078 | BI117: =IFERROR(BG117+BH117,"") -> 55.0078 | BJ117: =B117 -> Brachmanski Dave | BK117: 2 | BL117: =IFERROR(LARGE($BI$116:$BJ$155,2),"") -> 350.0056 | BM117: Jeroch Paul | BO117: =IF(BM117="","",BK117) -> 2 | BP117: =BM117 -> Jeroch Paul | BQ117: =BL117 -> 350.0056 | BR117: =IF(BO117="","",($BQ$114-BO116)*4) -> 92 | BS117: =VLOOKUP(BP117,$B$116:$U$155,20,FALSE) -> 10 | BT117: =IF(BR117="","",BR117+BS117) -> 102
A118: =Spieler!A4 -> 3 | B118: =Spieler!C4 -> Brömel Frank | D118: 50 | E118: 0 | F118: =IFERROR(IF(B118="","",VLOOKUP(B118,'2. Runde Gruppen'!$D$3:$H$20,5,FALSE)),"") ->  | Q118: =IF(OR(F118<>"",G118<>""),Berechnung!$H$164,D118) -> 50 | R118: 50 | T118: 0.0038 | U118: 0 | V118: =U118*5+T118 -> 0.0038 | W118: =IF(B118="","",V118+R118+X118) -> 100.0038 | X118: 50 | AA118: =IF(B118="","",IF(B118=Finals!$X$7,Berechnung!$H$162,"")) ->  | AB118: =IF(B118="","",IF(B118=Finals!$X$6,Berechnung!$H$161,"")) ->  | AC118: =IF(B118="","",IF(B118=Finals!$X$5,Berechnung!$H$160,"")) ->  | AD118: =IF(E118=Finals!$X$7,Berechnung!$H$162,"") ->  | BF118: =IF(B118="","",IF(B118=Finals!$X$4,Berechnung!$H$159,"")) ->  | BG118: =IFERROR(IF(B118="","",LARGE(Y118:BF118:BF118,1)),0) -> 0 | BH118: 50.0076 | BI118: =IFERROR(BG118+BH118,"") -> 50.0076 | BJ118: Brömel Frank | BK118: 3 | BL118: =IFERROR(LARGE($BI$116:$BJ$155,3),"") -> 275.0066 | BM118: Fandrei Joel | BO118: 3 | BP118: Fandrei Joel | BQ118: 275.0066 | BR118: =IF(BO118="","",($BQ$114-BO117)*4) -> 88 | BS118: 9 | BT118: 97
A119: =Spieler!A5 -> 4 | B119: =Spieler!C5 -> Delling Tino | D119: 50 | E119: 4 | F119: =IFERROR(IF(B119="","",VLOOKUP(B119,'2. Runde Gruppen'!$D$3:$H$20,5,FALSE)),"") -> 0 | G119: 2 | H119: 1 | Q119: =IF(OR(F119<>"",G119<>""),Berechnung!$H$164,D119) -> 100 | R119: 100 | T119: 0.0037 | U119: 7 | V119: 35.0037 | W119: 185.0037 | X119: 50 | Y119: 100 | Z119: 150 | AA119: =IF(B119="","",IF(B119=Finals!$X$7,Berechnung!$H$162,"")) ->  | AB119: =IF(B119="","",IF(B119=Finals!$X$6,Berechnung!$H$161,"")) ->  | AC119: =IF(B119="","",IF(B119=Finals!$X$5,Berechnung!$H$160,"")) ->  | AD119: =IF(E119=Finals!$X$7,Berechnung!$H$162,"") ->  | BF119: =IF(B119="","",IF(B119=Finals!$X$4,Berechnung!$H$159,"")) ->  | BG119: =IFERROR(IF(B119="","",LARGE(Y119:BF119:BF119,1)),0) -> 150 | BH119: 35.0074 | BI119: =IFERROR(BG119+BH119,"") -> 185.0074 | BJ119: Delling Tino | BK119: 4 | BL119: =IFERROR(LARGE($BI$116:$BJ$155,4),"") -> 260.0052 | BM119: Müller Marcus | BO119: 4 | BP119: Müller Marcus | BQ119: 260.0052 | BR119: 84 | BS119: 6 | BT119: 90
A120: =Spieler!A6 -> 5 | B120: =Spieler!C6 -> Drahn Robert | D120: 50 | E120: 2 | F120: =IFERROR(IF(B120="","",VLOOKUP(B120,'2. Runde Gruppen'!$D$3:$H$20,5,FALSE)),"") -> 0 | G120: 0 | Q120: =IF(OR(F120<>"",G120<>""),Berechnung!$H$164,D120) -> 100 | R120: 100 | T120: 0.0036 | U120: 2 | V120: 10.0036 | W120: 160.0036 | X120: 50 | Y120: 100 | AA120: =IF(B120="","",IF(B120=Finals!$X$7,Berechnung!$H$162,"")) ->  | AB120: =IF(B120="","",IF(B120=Finals!$X$6,Berechnung!$H$161,"")) ->  | AC120: =IF(B120="","",IF(B120=Finals!$X$5,Berechnung!$H$160,"")) ->  | AD120: =IF(E120=Finals!$X$7,Berechnung!$H$162,"") ->  | BF120: =IF(B120="","",IF(B120=Finals!$X$4,Berechnung!$H$159,"")) ->  | BG120: =IFERROR(IF(B120="","",LARGE(Y120:BF120:BF120,1)),0) -> 100 | BH120: 10.0072 | BI120: =IFERROR(BG120+BH120,"") -> 110.0072 | BJ120: Drahn Robert | BK120: 5 | BL120: =IFERROR(LARGE($BI$116:$BJ$155,5),"") -> 185.0074 | BM120: Delling Tino | BO120: 5 | BP120: Delling Tino | BQ120: 185.0074 | BR120: 80 | BS120: 7 | BT120: 87
A121: =Spieler!A7 -> 6 | B121: =Spieler!C7 -> Elham Faiz | D121: 50 | E121: 1 | F121: =IFERROR(IF(B121="","",VLOOKUP(B121,'2. Runde Gruppen'!$D$3:$H$20,5,FALSE)),"") ->  | Q121: =IF(OR(F121<>"",G121<>""),Berechnung!$H$164,D121) -> 50 | R121: 50 | T121: 0.0035 | U121: 1 | V121: 5.0035 | W121: 105.0035 | X121: 50 | AA121: =IF(B121="","",IF(B121=Finals!$X$7,Berechnung!$H$162,"")) ->  | AB121: =IF(B121="","",IF(B121=Finals!$X$6,Berechnung!$H$161,"")) ->  | AC121: =IF(B121="","",IF(B121=Finals!$X$5,Berechnung!$H$160,"")) ->  | AD121: =IF(E121=Finals!$X$7,Berechnung!$H$162,"") ->  | BF121: =IF(B121="","",IF(B121=Finals!$X$4,Berechnung!$H$159,"")) ->  | BG121: =IFERROR(IF(B121="","",LARGE(Y121:BF121:BF121,1)),0) -> 0 | BH121: 55.007 | BI121: =IFERROR(BG121+BH121,"") -> 55.007 | BJ121: Elham Faiz | BK121: 6 | BL121: =IFERROR(LARGE($BI$116:$BJ$155,6),"") -> 185.0048 | BM121: Stachly Marec | BO121: 6 | BP121: Stachly Marec | BQ121: 185.0048 | BR121: 76 | BS121: 7 | BT121: 83
A122: =Spieler!A8 -> 7 | B122: =Spieler!C8 -> Fandrei Andreas | D122: 50 | E122: 2 | F122: =IFERROR(IF(B122="","",VLOOKUP(B122,'2. Runde Gruppen'!$D$3:$H$20,5,FALSE)),"") -> 0 | G122: 0 | Q122: =IF(OR(F122<>"",G122<>""),Berechnung!$H$164,D122) -> 100 | R122: 100 | T122: 0.0034 | U122: 2 | V122: 10.0034 | W122: 160.0034 | X122: 50 | Y122: 100 | AA122: =IF(B122="","",IF(B122=Finals!$X$7,Berechnung!$H$162,"")) ->  | AB122: =IF(B122="","",IF(B122=Finals!$X$6,Berechnung!$H$161,"")) ->  | AC122: =IF(B122="","",IF(B122=Finals!$X$5,Berechnung!$H$160,"")) ->  | AD122: =IF(E122=Finals!$X$7,Berechnung!$H$162,"") ->  | BF122: =IF(B122="","",IF(B122=Finals!$X$4,Berechnung!$H$159,"")) ->  | BG122: =IFERROR(IF(B122="","",LARGE(Y122:BF122:BF122,1)),0) -> 100 | BH122: 10.0068 | BI122: 110.0068 | BJ122: Fandrei Andreas | BK122: 7 | BL122: =IFERROR(LARGE($BI$116:$BJ$155,7),"") -> 180.0064 | BM122: Gärtner David | BO122: 7 | BP122: Gärtner David | BQ122: 180.0064 | BR122: 72 | BS122: 6 | BT122: 78
A123: =Spieler!A9 -> 8 | B123: =Spieler!C9 -> Fandrei Joel | D123: 50 | E123: 4 | F123: =IFERROR(IF(B123="","",VLOOKUP(B123,'2. Runde Gruppen'!$D$3:$H$20,5,FALSE)),"") ->  | G123: 2 | H123: 2 | I123: 1 | N123: 0 | Q123: =IF(OR(F123<>"",G123<>""),Berechnung!$H$164,D123) -> 100 | R123: 100 | T123: 0.0033 | U123: 9 | V123: 45.0033 | W123: 195.0033 | X123: 50 | Y123: 100 | Z123: 150 | AA123: =IF(B123="","",IF(B123=Finals!$X$7,Berechnung!$H$162,"")) -> 230 | AB123: =IF(B123="","",IF(B123=Finals!$X$6,Berechnung!$H$161,"")) ->  | AC123: =IF(B123="","",IF(B123=Finals!$X$5,Berechnung!$H$160,"")) ->  | AD123: =IF(E123=Finals!$X$7,Berechnung!$H$162,"") ->  | BF123: =IF(B123="","",IF(B123=Finals!$X$4,Berechnung!$H$159,"")) ->  | BG123: =IFERROR(IF(B123="","",LARGE(Y123:BF123:BF123,1)),0) -> 230 | BH123: 45.0066 | BI123: 275.0066 | BJ123: Fandrei Joel | BK123: 8 | BL123: =IFERROR(LARGE($BI$116:$BJ$155,8),"") -> 175.004 | BM123: Thomas Moritz | BO123: 8 | BP123: Thomas Moritz | BQ123: 175.004 | BR123: 68 | BS123: 5 | BT123: 73
A124: =Spieler!A10 -> 9 | B124: =Spieler!C10 -> Gärtner David | D124: 50 | E124: 4 | F124: =IFERROR(IF(B124="","",VLOOKUP(B124,'2. Runde Gruppen'!$D$3:$H$20,5,FALSE)),"") -> 0 | G124: 2 | H124: 0 | Q124: =IF(OR(F124<>"",G124<>""),Berechnung!$H$164,D124) -> 100 | R124: 100 | T124: 0.0032 | U124: =SUM(E124:O124) -> 6 | V124: =U124*5+T124 -> 30.0032 | W124: =IF(B124="","",V124+R124+X124) -> 180.0032 | X124: 50 | Y124: 100 | Z124: =IF(AND(D124=20,H124<>""),$D$163,IF(AND(D124=30,H124<>""),$E$163,IF(AND(D124=50,H124<>""),$H$163,""))) -> 150 | AA124: =IF(B124="","",IF(B124=Finals!$X$7,Berechnung!$H$162,"")) ->  | AB124: =IF(B124="","",IF(B124=Finals!$X$6,Berechnung!$H$161,"")) ->  | AC124: =IF(B124="","",IF(B124=Finals!$X$5,Berechnung!$H$160,"")) ->  | AD124: =IF(E124=Finals!$X$7,Berechnung!$H$162,"") ->  | BF124: =IF(B124="","",IF(B124=Finals!$X$4,Berechnung!$H$159,"")) ->  | BG124: =IFERROR(IF(B124="","",LARGE(Y124:BF124:BF124,1)),0) -> 150 | BH124: 30.0064 | BI124: 180.0064 | BJ124: Gärtner David | BK124: 9 | BL124: =IFERROR(LARGE($BI$116:$BJ$155,9),"") -> 125.0046 | BM124: Straßburger Marko | BO124: 9 | BP124: Straßburger Marko | BQ124: 125.0046 | BR124: 64 | BS124: 5 | BT124: 69
A125: =Spieler!A11 -> 10 | B125: =Spieler!C11 -> Hartung Andreas | D125: 50 | E125: =IF(B125="","",VLOOKUP(B125,$D$1:$H$83,5,FALSE)) -> 1 | F125: =IFERROR(IF(B125="","",VLOOKUP(B125,'2. Runde Gruppen'!$D$3:$H$20,5,FALSE)),"") ->  | Q125: =IF(OR(F125<>"",G125<>""),Berechnung!$H$164,D125) -> 50 | R125: 50 | T125: 0.0031 | U125: 1 | V125: 5.0031 | W125: 105.0031 | X125: 50 | Z125: =IF(AND(D125=20,H125<>""),$D$163,IF(AND(D125=30,H125<>""),$E$163,IF(AND(D125=50,H125<>""),$H$163,""))) ->  | AA125: =IF(B125="","",IF(B125=Finals!$X$7,Berechnung!$H$162,"")) ->  | AB125: =IF(B125="","",IF(B125=Finals!$X$6,Berechnung!$H$161,"")) ->  | AC125: =IF(B125="","",IF(B125=Finals!$X$5,Berechnung!$H$160,"")) ->  | AD125: =IF(E125=Finals!$X$7,Berechnung!$H$162,"") ->  | BF125: =IF(B125="","",IF(B125=Finals!$X$4,Berechnung!$H$159,"")) ->  | BG125: =IFERROR(IF(B125="","",LARGE(Y125:BF125:BF125,1)),0) -> 0 | BH125: 55.0062 | BI125: 55.0062 | BJ125: Hartung Andreas | BK125: 10 | BL125: =IFERROR(LARGE($BI$116:$BJ$155,10),"") -> 120.0044 | BM125: Suttner Magnus | BO125: 10 | BP125: Suttner Magnus | BQ125: 120.0044 | BR125: 60 | BS125: 4 | BT125: 64
A126: =Spieler!A12 -> 11 | B126: =Spieler!C12 -> Hofmann Frank | D126: 50 | E126: 2 | F126: =IFERROR(IF(B126="","",VLOOKUP(B126,'2. Runde Gruppen'!$D$3:$H$20,5,FALSE)),"") ->  | G126: 0 | Q126: =IF(OR(F126<>"",G126<>""),Berechnung!$H$164,D126) -> 100 | R126: 100 | T126: 0.003 | U126: 2 | V126: 10.003 | W126: 160.003 | X126: 50 | Y126: 100 | AA126: =IF(B126="","",IF(B126=Finals!$X$7,Berechnung!$H$162,"")) ->  | AB126: =IF(B126="","",IF(B126=Finals!$X$6,Berechnung!$H$161,"")) ->  | AC126: =IF(B126="","",IF(B126=Finals!$X$5,Berechnung!$H$160,"")) ->  | AD126: =IF(E126=Finals!$X$7,Berechnung!$H$162,"") ->  | BF126: =IF(B126="","",IF(B126=Finals!$X$4,Berechnung!$H$159,"")) ->  | BG126: =IFERROR(IF(B126="","",LARGE(Y126:BF126:BF126,1)),0) -> 100 | BH126: 10.006 | BI126: 110.006 | BJ126: Hofmann Frank | BK126: 11 | BL126: =IFERROR(LARGE($BI$116:$BJ$155,11),"") -> 120.0038 | BM126: Valderrama Salvador | BO126: 11 | BP126: Valderrama Salvador | BQ126: 120.0038 | BR126: 56 | BS126: 4 | BT126: 60
A127: =Spieler!A13 -> 12 | B127: =Spieler!C13 -> Isermann Rene | D127: 50 | E127: 0 | F127: =IFERROR(IF(B127="","",VLOOKUP(B127,'2. Runde Gruppen'!$D$3:$H$20,5,FALSE)),"") ->  | Q127: =IF(OR(F127<>"",G127<>""),Berechnung!$H$164,D127) -> 50 | R127: 50 | T127: 0.0029 | U127: 0 | V127: 0.0029 | W127: 100.0029 | X127: 50 | AA127: =IF(B127="","",IF(B127=Finals!$X$7,Berechnung!$H$162,"")) ->  | AB127: =IF(B127="","",IF(B127=Finals!$X$6,Berechnung!$H$161,"")) ->  | AC127: =IF(B127="","",IF(B127=Finals!$X$5,Berechnung!$H$160,"")) ->  | AD127: =IF(E127=Finals!$X$7,Berechnung!$H$162,"") ->  | BF127: =IF(B127="","",IF(B127=Finals!$X$4,Berechnung!$H$159,"")) ->  | BG127: =IFERROR(IF(B127="","",LARGE(Y127:BF127:BF127,1)),0) -> 0 | BH127: 50.0058 | BI127: 50.0058 | BJ127: Isermann Rene | BK127: 12 | BL127: =IFERROR(LARGE($BI$116:$BJ$155,12),"") -> 120.0034 | BM127: Witzik Oliver | BO127: 12 | BP127: Witzik Oliver | BQ127: 120.0034 | BR127: 52 | BS127: 4 | BT127: 56
A128: =Spieler!A14 -> 13 | B128: =Spieler!C14 -> Jeroch Paul | D128: 50 | E128: 4 | F128: =IFERROR(IF(B128="","",VLOOKUP(B128,'2. Runde Gruppen'!$D$3:$H$20,5,FALSE)),"") -> 0 | G128: 2 | H128: 2 | I128: 2 | O128: 0 | Q128: =IF(OR(F128<>"",G128<>""),Berechnung!$H$164,D128) -> 100 | R128: 100 | T128: 0.0028 | U128: 10 | V128: 50.0028 | W128: 200.0028 | X128: 50 | Y128: 100 | Z128: 150 | AA128: =IF(B128="","",IF(B128=Finals!$X$7,Berechnung!$H$162,"")) ->  | AB128: =IF(B128="","",IF(B128=Finals!$X$6,Berechnung!$H$161,"")) ->  | AC128: =IF(B128="","",IF(B128=Finals!$X$5,Berechnung!$H$160,"")) -> 300 | AD128: =IF(E128=Finals!$X$7,Berechnung!$H$162,"") ->  | BF128: =IF(B128="","",IF(B128=Finals!$X$4,Berechnung!$H$159,"")) ->  | BG128: =IFERROR(IF(B128="","",LARGE(Y128:BF128:BF128,1)),0) -> 300 | BH128: 50.0056 | BI128: 350.0056 | BJ128: Jeroch Paul | BK128: 13 | BL128: =IFERROR(LARGE($BI$116:$BJ$155,13),"") -> 110.008 | BM128: Behling Oliver | BO128: 13 | BP128: Behling Oliver | BQ128: 110.008 | BR128: 48 | BS128: 2 | BT128: 50
A129: =Spieler!A15 -> 14 | B129: =Spieler!C15 -> Löffel Ulrich | D129: 50 | E129: 0 | F129: =IFERROR(IF(B129="","",VLOOKUP(B129,'2. Runde Gruppen'!$D$3:$H$20,5,FALSE)),"") ->  | Q129: =IF(OR(F129<>"",G129<>""),Berechnung!$H$164,D129) -> 50 | R129: 50 | T129: 0.0027 | U129: 0 | V129: 0.0027 | W129: 100.0027 | X129: 50 | AA129: =IF(B129="","",IF(B129=Finals!$X$7,Berechnung!$H$162,"")) ->  | AB129: =IF(B129="","",IF(B129=Finals!$X$6,Berechnung!$H$161,"")) ->  | AC129: =IF(B129="","",IF(B129=Finals!$X$5,Berechnung!$H$160,"")) ->  | AD129: =IF(E129=Finals!$X$7,Berechnung!$H$162,"") ->  | BF129: =IF(B129="","",IF(B129=Finals!$X$4,Berechnung!$H$159,"")) ->  | BG129: =IFERROR(IF(B129="","",LARGE(Y129:BF129:BF129,1)),0) -> 0 | BH129: 50.0054 | BI129: 50.0054 | BJ129: Löffel Ulrich | BK129: 14 | BL129: =IFERROR(LARGE($BI$116:$BJ$155,14),"") -> 110.0072 | BM129: Drahn Robert | BO129: 14 | BP129: Drahn Robert | BQ129: 110.0072 | BR129: 44 | BS129: 2 | BT129: 46
A130: =Spieler!A16 -> 15 | B130: =Spieler!C16 -> Müller Marcus | D130: 50 | E130: 2 | F130: =IFERROR(IF(B130="","",VLOOKUP(B130,'2. Runde Gruppen'!$D$3:$H$20,5,FALSE)),"") -> 0 | G130: 2 | H130: 2 | I130: 0 | N130: 0 | Q130: =IF(OR(F130<>"",G130<>""),Berechnung!$H$164,D130) -> 100 | R130: 100 | T130: 0.0026 | U130: 6 | V130: 30.0026 | W130: 180.0026 | X130: 50 | Y130: 100 | Z130: 150 | AA130: =IF(B130="","",IF(B130=Finals!$X$7,Berechnung!$H$162,"")) ->  | AB130: =IF(B130="","",IF(B130=Finals!$X$6,Berechnung!$H$161,"")) -> 230 | AC130: =IF(B130="","",IF(B130=Finals!$X$5,Berechnung!$H$160,"")) ->  | AD130: =IF(E130=Finals!$X$7,Berechnung!$H$162,"") ->  | BF130: =IF(B130="","",IF(B130=Finals!$X$4,Berechnung!$H$159,"")) ->  | BG130: =IFERROR(IF(B130="","",LARGE(Y130:BF130:BF130,1)),0) -> 230 | BH130: 30.0052 | BI130: 260.0052 | BJ130: Müller Marcus | BK130: 15 | BL130: =IFERROR(LARGE($BI$116:$BJ$155,15),"") -> 110.0068 | BM130: Fandrei Andreas | BO130: 15 | BP130: Fandrei Andreas | BQ130: 110.0068 | BR130: 40 | BS130: 2 | BT130: 42
A131: =Spieler!A17 -> 16 | B131: =Spieler!C17 -> Rejke Ronny | D131: 50 | E131: 1 | F131: =IFERROR(IF(B131="","",VLOOKUP(B131,'2. Runde Gruppen'!$D$3:$H$20,5,FALSE)),"") ->  | Q131: =IF(OR(F131<>"",G131<>""),Berechnung!$H$164,D131) -> 50 | R131: 50 | T131: 0.0025 | U131: 1 | V131: 5.0025 | W131: 105.0025 | X131: 50 | AA131: =IF(B131="","",IF(B131=Finals!$X$7,Berechnung!$H$162,"")) ->  | AB131: =IF(B131="","",IF(B131=Finals!$X$6,Berechnung!$H$161,"")) ->  | AC131: =IF(B131="","",IF(B131=Finals!$X$5,Berechnung!$H$160,"")) ->  | AD131: =IF(E131=Finals!$X$7,Berechnung!$H$162,"") ->  | BF131: =IF(B131="","",IF(B131=Finals!$X$4,Berechnung!$H$159,"")) ->  | BG131: =IFERROR(IF(B131="","",LARGE(Y131:BF131:BF131,1)),0) -> 0 | BH131: 55.005 | BI131: =IFERROR(BG131+BH131,"") -> 55.005 | BJ131: Rejke Ronny | BK131: 16 | BL131: =IFERROR(LARGE($BI$116:$BJ$155,16),"") -> 110.006 | BM131: Hofmann Frank | BO131: 16 | BP131: Hofmann Frank | BQ131: =BL131 -> 110.006 | BR131: 36 | BS131: 2 | BT131: 38
A132: =Spieler!A18 -> 17 | B132: =Spieler!C18 -> Stachly Marec | D132: 50 | E132: 4 | F132: =IFERROR(IF(B132="","",VLOOKUP(B132,'2. Runde Gruppen'!$D$3:$H$20,5,FALSE)),"") ->  | G132: 2 | H132: 1 | Q132: =IF(OR(F132<>"",G132<>""),Berechnung!$H$164,D132) -> 100 | R132: 100 | T132: 0.0024 | U132: 7 | V132: 35.0024 | W132: 185.0024 | X132: 50 | Y132: 100 | Z132: 150 | AA132: =IF(B132="","",IF(B132=Finals!$X$7,Berechnung!$H$162,"")) ->  | AB132: =IF(B132="","",IF(B132=Finals!$X$6,Berechnung!$H$161,"")) ->  | AC132: =IF(B132="","",IF(B132=Finals!$X$5,Berechnung!$H$160,"")) ->  | AD132: =IF(E132=Finals!$X$7,Berechnung!$H$162,"") ->  | BF132: =IF(B132="","",IF(B132=Finals!$X$4,Berechnung!$H$159,"")) ->  | BG132: =IFERROR(IF(B132="","",LARGE(Y132:BF132:BF132,1)),0) -> 150 | BH132: 35.0048 | BI132: 185.0048 | BJ132: Stachly Marec | BK132: 17 | BL132: =IFERROR(LARGE($BI$116:$BJ$155,17),"") -> 55.0078 | BM132: Brachmanski Dave | BO132: 17 | BP132: Brachmanski Dave | BQ132: 55.0078 | BR132: 32 | BS132: 1 | BT132: 33
A133: =Spieler!A19 -> 18 | B133: =Spieler!C19 -> Straßburger Marko | D133: 50 | E133: 4 | F133: =IFERROR(IF(B133="","",VLOOKUP(B133,'2. Runde Gruppen'!$D$3:$H$20,5,FALSE)),"") -> 0 | G133: 1 | Q133: =IF(OR(F133<>"",G133<>""),Berechnung!$H$164,D133) -> 100 | R133: 100 | T133: 0.0023 | U133: 5 | V133: 25.0023 | W133: 175.0023 | X133: 50 | Y133: 100 | AA133: =IF(B133="","",IF(B133=Finals!$X$7,Berechnung!$H$162,"")) ->  | AB133: =IF(B133="","",IF(B133=Finals!$X$6,Berechnung!$H$161,"")) ->  | AC133: =IF(B133="","",IF(B133=Finals!$X$5,Berechnung!$H$160,"")) ->  | AD133: =IF(E133=Finals!$X$7,Berechnung!$H$162,"") ->  | BF133: =IF(B133="","",IF(B133=Finals!$X$4,Berechnung!$H$159,"")) ->  | BG133: =IFERROR(IF(B133="","",LARGE(Y133:BF133:BF133,1)),0) -> 100 | BH133: 25.0046 | BI133: 125.0046 | BJ133: Straßburger Marko | BK133: 18 | BL133: =IFERROR(LARGE($BI$116:$BJ$155,18),"") -> 55.007 | BM133: Elham Faiz | BO133: 18 | BP133: Elham Faiz | BQ133: 55.007 | BR133: 28 | BS133: 1 | BT133: 29
A134: =Spieler!A20 -> 19 | B134: =Spieler!C20 -> Suttner Magnus | D134: 50 | E134: 3 | F134: =IFERROR(IF(B134="","",VLOOKUP(B134,'2. Runde Gruppen'!$D$3:$H$20,5,FALSE)),"") -> 0 | G134: 1 | Q134: =IF(OR(F134<>"",G134<>""),Berechnung!$H$164,D134) -> 100 | R134: 100 | T134: 0.0022 | U134: 4 | V134: 20.0022 | W134: 170.0022 | X134: 50 | Y134: 100 | AA134: =IF(B134="","",IF(B134=Finals!$X$7,Berechnung!$H$162,"")) ->  | AB134: =IF(B134="","",IF(B134=Finals!$X$6,Berechnung!$H$161,"")) ->  | AC134: =IF(B134="","",IF(B134=Finals!$X$5,Berechnung!$H$160,"")) ->  | AD134: =IF(E134=Finals!$X$7,Berechnung!$H$162,"") ->  | BF134: =IF(B134="","",IF(B134=Finals!$X$4,Berechnung!$H$159,"")) ->  | BG134: =IFERROR(IF(B134="","",LARGE(Y134:BF134:BF134,1)),0) -> 100 | BH134: 20.0044 | BI134: 120.0044 | BJ134: Suttner Magnus | BK134: 19 | BL134: =IFERROR(LARGE($BI$116:$BJ$155,19),"") -> 55.0062 | BM134: Hartung Andreas | BO134: 19 | BP134: Hartung Andreas | BQ134: 55.0062 | BR134: 24 | BS134: 1 | BT134: 25
A135: =Spieler!A21 -> 20 | B135: =Spieler!C21 -> Swennen Andy | D135: 50 | E135: 0 | F135: =IFERROR(IF(B135="","",VLOOKUP(B135,'2. Runde Gruppen'!$D$3:$H$20,5,FALSE)),"") ->  | Q135: =IF(OR(F135<>"",G135<>""),Berechnung!$H$164,D135) -> 50 | R135: 50 | T135: 0.0021 | U135: 0 | V135: 0.0021 | W135: 100.0021 | X135: 50 | Y135: =IF(AND(D135=30,G135<>""),$E$164,IF(AND(D135=50,G135<>""),$H$164,"")) ->  | AA135: =IF(B135="","",IF(B135=Finals!$X$7,Berechnung!$H$162,"")) ->  | AB135: =IF(B135="","",IF(B135=Finals!$X$6,Berechnung!$H$161,"")) ->  | AC135: =IF(B135="","",IF(B135=Finals!$X$5,Berechnung!$H$160,"")) ->  | AD135: =IF(E135=Finals!$X$7,Berechnung!$H$162,"") ->  | BF135: =IF(B135="","",IF(B135=Finals!$X$4,Berechnung!$H$159,"")) ->  | BG135: =IFERROR(IF(B135="","",LARGE(Y135:BF135:BF135,1)),0) -> 0 | BH135: 50.0042 | BI135: 50.0042 | BJ135: Swennen Andy | BK135: 20 | BL135: =IFERROR(LARGE($BI$116:$BJ$155,20),"") -> 55.005 | BM135: Rejke Ronny | BO135: 20 | BP135: Rejke Ronny | BQ135: 55.005 | BR135: 20 | BS135: 1 | BT135: 21
A136: =Spieler!A22 -> 21 | B136: =Spieler!C22 -> Thomas Moritz | D136: 50 | E136: 3 | F136: =IFERROR(IF(B136="","",VLOOKUP(B136,'2. Runde Gruppen'!$D$3:$H$20,5,FALSE)),"") ->  | G136: =IFERROR(VLOOKUP(B136,$D$90:$E$113,2,FALSE),"") -> 2 | H136: 0 | Q136: =IF(OR(F136<>"",G136<>""),Berechnung!$H$164,D136) -> 100 | R136: 100 | T136: 0.002 | U136: 5 | V136: 25.002 | W136: 175.002 | X136: 50 | Y136: =IF(AND(D136=30,G136<>""),$E$164,IF(AND(D136=50,G136<>""),$H$164,"")) -> 100 | Z136: 150 | AA136: =IF(B136="","",IF(B136=Finals!$X$7,Berechnung!$H$162,"")) ->  | AB136: =IF(B136="","",IF(B136=Finals!$X$6,Berechnung!$H$161,"")) ->  | AC136: =IF(B136="","",IF(B136=Finals!$X$5,Berechnung!$H$160,"")) ->  | AD136: =IF(E136=Finals!$X$7,Berechnung!$H$162,"") ->  | BF136: =IF(B136="","",IF(B136=Finals!$X$4,Berechnung!$H$159,"")) ->  | BG136: =IFERROR(IF(B136="","",LARGE(Y136:BF136:BF136,1)),0) -> 150 | BH136: 25.004 | BI136: =IFERROR(BG136+BH136,"") -> 175.004 | BJ136: Thomas Moritz | BK136: 21 | BL136: =IFERROR(LARGE($BI$116:$BJ$155,21),"") -> 50.0076 | BM136: Brömel Frank | BO136: 21 | BP136: Brömel Frank | BQ136: 50.0076 | BR136: 16 | BS136: 0 | BT136: 16
A137: =Spieler!A23 -> 22 | B137: =Spieler!C23 -> Valderrama Salvador | D137: 50 | E137: 3 | F137: =IFERROR(IF(B137="","",VLOOKUP(B137,'2. Runde Gruppen'!$D$3:$H$20,5,FALSE)),"") -> 0 | G137: 1 | Q137: =IF(OR(F137<>"",G137<>""),Berechnung!$H$164,D137) -> 100 | R137: 100 | T137: 0.0019 | U137: 4 | V137: 20.0019 | W137: 170.0019 | X137: 50 | Y137: 100 | AA137: =IF(B137="","",IF(B137=Finals!$X$7,Berechnung!$H$162,"")) ->  | AB137: =IF(B137="","",IF(B137=Finals!$X$6,Berechnung!$H$161,"")) ->  | AC137: =IF(B137="","",IF(B137=Finals!$X$5,Berechnung!$H$160,"")) ->  | AD137: =IF(E137=Finals!$X$7,Berechnung!$H$162,"") ->  | BF137: =IF(B137="","",IF(B137=Finals!$X$4,Berechnung!$H$159,"")) ->  | BG137: =IFERROR(IF(B137="","",LARGE(Y137:BF137:BF137,1)),0) -> 100 | BH137: 20.0038 | BI137: 120.0038 | BJ137: Valderrama Salvador | BK137: 22 | BL137: =IFERROR(LARGE($BI$116:$BJ$155,22),"") -> 50.0058 | BM137: Isermann Rene | BO137: 22 | BP137: Isermann Rene | BQ137: 50.0058 | BR137: 12 | BS137: 0 | BT137: 12
A138: =Spieler!A24 -> 23 | B138: =Spieler!C24 -> Weber Marco | D138: 50 | E138: 4 | F138: =IFERROR(IF(B138="","",VLOOKUP(B138,'2. Runde Gruppen'!$D$3:$H$20,5,FALSE)),"") -> 0 | G138: 2 | H138: 2 | I138: 2 | O138: 2 | Q138: =IF(OR(F138<>"",G138<>""),Berechnung!$H$164,D138) -> 100 | R138: 100 | T138: 0.0018 | U138: 12 | V138: 60.0018 | W138: 210.0018 | X138: 50 | Y138: 100 | Z138: 150 | AA138: =IF(B138="","",IF(B138=Finals!$X$7,Berechnung!$H$162,"")) ->  | AB138: =IF(B138="","",IF(B138=Finals!$X$6,Berechnung!$H$161,"")) ->  | AC138: =IF(B138="","",IF(B138=Finals!$X$5,Berechnung!$H$160,"")) ->  | AD138: =IF(E138=Finals!$X$7,Berechnung!$H$162,"") ->  | BF138: =IF(B138="","",IF(B138=Finals!$X$4,Berechnung!$H$159,"")) -> 350 | BG138: =IFERROR(IF(B138="","",LARGE(Y138:BF138:BF138,1)),0) -> 350 | BH138: 60.0036 | BI138: 410.0036 | BJ138: Weber Marco | BK138: 23 | BL138: =IFERROR(LARGE($BI$116:$BJ$155,23),"") -> 50.0054 | BM138: Löffel Ulrich | BO138: 23 | BP138: Löffel Ulrich | BQ138: 50.0054 | BR138: 8 | BS138: 0 | BT138: 8
A139: =Spieler!A25 -> 24 | B139: =Spieler!C25 -> Witzik Oliver | D139: 50 | E139: 4 | F139: =IFERROR(IF(B139="","",VLOOKUP(B139,'2. Runde Gruppen'!$D$3:$H$20,5,FALSE)),"") -> 0 | G139: 0 | Q139: =IF(OR(F139<>"",G139<>""),Berechnung!$H$164,D139) -> 100 | R139: 100 | T139: 0.0017 | U139: 4 | V139: 20.0017 | W139: 170.0017 | X139: 50 | Y139: 100 | AA139: =IF(B139="","",IF(B139=Finals!$X$7,Berechnung!$H$162,"")) ->  | AB139: =IF(B139="","",IF(B139=Finals!$X$6,Berechnung!$H$161,"")) ->  | AC139: =IF(B139="","",IF(B139=Finals!$X$5,Berechnung!$H$160,"")) ->  | AD139: =IF(E139=Finals!$X$7,Berechnung!$H$162,"") ->  | BF139: =IF(B139="","",IF(B139=Finals!$X$4,Berechnung!$H$159,"")) ->  | BG139: =IFERROR(IF(B139="","",LARGE(Y139:BF139:BF139,1)),0) -> 100 | BH139: 20.0034 | BI139: 120.0034 | BJ139: Witzik Oliver | BK139: 24 | BL139: =IFERROR(LARGE($BI$116:$BJ$155,24),"") -> 50.0042 | BM139: Swennen Andy | BO139: 24 | BP139: Swennen Andy | BQ139: 50.0042 | BR139: 4 | BS139: 0 | BT139: 4
A140: =Spieler!A26 -> 25 | B140: =Spieler!C26 ->  | E140: =IF(B140="","",VLOOKUP(B140,$D$1:$H$83,5,FALSE)) ->  | F140: =IFERROR(IF(B140="","",VLOOKUP(B140,'2. Runde Gruppen'!$D$3:$H$20,5,FALSE)),"") ->  | Q140: =IF(OR(F140<>"",G140<>""),Berechnung!$H$164,D140) ->  | T140: 0.0016 | U140: 0 | V140: 0.0016 | AA140: =IF(B140="","",IF(B140=Finals!$X$7,Berechnung!$H$162,"")) ->  | AB140: =IF(B140="","",IF(B140=Finals!$X$6,Berechnung!$H$161,"")) ->  | AC140: =IF(B140="","",IF(B140=Finals!$X$5,Berechnung!$H$160,"")) ->  | AD140: =IF(E140=Finals!$X$7,Berechnung!$H$162,"") ->  | BF140: =IF(B140="","",IF(B140=Finals!$X$4,Berechnung!$H$159,"")) ->  | BG140: =IFERROR(IF(B140="","",LARGE(Y140:BF140:BF140,1)),0) ->  | BK140: =IF(B140="","",A140) ->  | BL140: =IFERROR(LARGE($BI$116:$BJ$155,25),"") ->  | BS140: 0
A141: =Spieler!A27 -> 26 | B141: =Spieler!C27 ->  | E141: =IF(B141="","",VLOOKUP(B141,$D$1:$H$83,5,FALSE)) ->  | F141: =IFERROR(IF(B141="","",VLOOKUP(B141,'2. Runde Gruppen'!$D$3:$H$20,5,FALSE)),"") ->  | Q141: =IF(OR(F141<>"",G141<>""),Berechnung!$H$164,D141) ->  | R141: =IF(Q141<>"",Q141,D141) ->  | T141: 0.0015 | U141: 0 | V141: 0.0015 | AA141: =IF(B141="","",IF(B141=Finals!$X$7,Berechnung!$H$162,"")) ->  | AB141: =IF(B141="","",IF(B141=Finals!$X$6,Berechnung!$H$161,"")) ->  | AC141: =IF(B141="","",IF(B141=Finals!$X$5,Berechnung!$H$160,"")) ->  | AD141: =IF(E141=Finals!$X$7,Berechnung!$H$162,"") ->  | BF141: =IF(B141="","",IF(B141=Finals!$X$4,Berechnung!$H$159,"")) ->  | BG141: =IFERROR(IF(B141="","",LARGE(Y141:BF141:BF141,1)),0) ->  | BK141: =IF(B141="","",A141) ->  | BL141: =IFERROR(LARGE($BI$116:$BJ$155,26),"") ->  | BS141: 0
A142: =Spieler!A28 -> 27 | B142: =Spieler!C28 ->  | F142: =IFERROR(IF(B142="","",VLOOKUP(B142,'2. Runde Gruppen'!$D$3:$H$20,5,FALSE)),"") ->  | Q142: =IF(OR(F142<>"",G142<>""),Berechnung!$H$164,D142) ->  | T142: 0.0014 | U142: 0 | V142: 0.0014 | AA142: =IF(B142="","",IF(B142=Finals!$X$7,Berechnung!$H$162,"")) ->  | AB142: =IF(B142="","",IF(B142=Finals!$X$6,Berechnung!$H$161,"")) ->  | AC142: =IF(B142="","",IF(B142=Finals!$X$5,Berechnung!$H$160,"")) ->  | AD142: =IF(E142=Finals!$X$7,Berechnung!$H$162,"") ->  | BF142: =IF(B142="","",IF(B142=Finals!$X$4,Berechnung!$H$159,"")) ->  | BG142: =IFERROR(IF(B142="","",LARGE(Y142:BF142:BF142,1)),0) ->  | BL142: =IFERROR(LARGE($BI$116:$BJ$155,27),"") ->  | BS142: 0
A143: =Spieler!A29 -> 28 | B143: =Spieler!C29 ->  | F143: =IFERROR(IF(B143="","",VLOOKUP(B143,'2. Runde Gruppen'!$D$3:$H$20,5,FALSE)),"") ->  | Q143: =IF(OR(F143<>"",G143<>""),Berechnung!$H$164,D143) ->  | T143: 0.0013 | U143: 0 | V143: 0.0013 | AA143: =IF(B143="","",IF(B143=Finals!$X$7,Berechnung!$H$162,"")) ->  | AB143: =IF(B143="","",IF(B143=Finals!$X$6,Berechnung!$H$161,"")) ->  | AC143: =IF(B143="","",IF(B143=Finals!$X$5,Berechnung!$H$160,"")) ->  | AD143: =IF(E143=Finals!$X$7,Berechnung!$H$162,"") ->  | BF143: =IF(B143="","",IF(B143=Finals!$X$4,Berechnung!$H$159,"")) ->  | BG143: =IFERROR(IF(B143="","",LARGE(Y143:BF143:BF143,1)),0) ->  | BL143: =IFERROR(LARGE($BI$116:$BJ$155,28),"") ->  | BS143: 0
A144: =Spieler!A30 -> 29 | B144: =Spieler!C30 ->  | F144: =IFERROR(IF(B144="","",VLOOKUP(B144,'2. Runde Gruppen'!$D$3:$H$20,5,FALSE)),"") ->  | Q144: =IF(OR(F144<>"",G144<>""),Berechnung!$H$164,D144) ->  | T144: 0.0012 | U144: 0 | V144: 0.0012 | AA144: =IF(B144="","",IF(B144=Finals!$X$7,Berechnung!$H$162,"")) ->  | AB144: =IF(B144="","",IF(B144=Finals!$X$6,Berechnung!$H$161,"")) ->  | AC144: =IF(B144="","",IF(B144=Finals!$X$5,Berechnung!$H$160,"")) ->  | AD144: =IF(E144=Finals!$X$7,Berechnung!$H$162,"") ->  | BF144: =IF(B144="","",IF(B144=Finals!$X$4,Berechnung!$H$159,"")) ->  | BG144: =IFERROR(IF(B144="","",LARGE(Y144:BF144:BF144,1)),0) ->  | BL144: =IFERROR(LARGE($BI$116:$BJ$155,29),"") ->  | BS144: 0
A145: =Spieler!A31 -> 30 | B145: =Spieler!C31 ->  | F145: =IFERROR(IF(B145="","",VLOOKUP(B145,'2. Runde Gruppen'!$D$3:$H$20,5,FALSE)),"") ->  | Q145: =IF(OR(F145<>"",G145<>""),Berechnung!$H$164,D145) ->  | T145: 0.0011 | U145: 0 | V145: 0.0011 | AA145: =IF(B145="","",IF(B145=Finals!$X$7,Berechnung!$H$162,"")) ->  | AB145: =IF(B145="","",IF(B145=Finals!$X$6,Berechnung!$H$161,"")) ->  | AC145: =IF(B145="","",IF(B145=Finals!$X$5,Berechnung!$H$160,"")) ->  | AD145: =IF(E145=Finals!$X$7,Berechnung!$H$162,"") ->  | BF145: =IF(B145="","",IF(B145=Finals!$X$4,Berechnung!$H$159,"")) ->  | BG145: =IFERROR(IF(B145="","",LARGE(Y145:BF145:BF145,1)),0) ->  | BL145: =IFERROR(LARGE($BI$116:$BJ$155,30),"") ->  | BS145: 0
A146: =Spieler!A32 -> 31 | B146: =Spieler!C32 ->  | F146: =IFERROR(IF(B146="","",VLOOKUP(B146,'2. Runde Gruppen'!$D$3:$H$20,5,FALSE)),"") ->  | Q146: =IF(OR(F146<>"",G146<>""),Berechnung!$H$164,D146) ->  | T146: 0.001 | U146: 0 | V146: 0.001 | AA146: =IF(B146="","",IF(B146=Finals!$X$7,Berechnung!$H$162,"")) ->  | AB146: =IF(B146="","",IF(B146=Finals!$X$6,Berechnung!$H$161,"")) ->  | AC146: =IF(B146="","",IF(B146=Finals!$X$5,Berechnung!$H$160,"")) ->  | AD146: =IF(E146=Finals!$X$7,Berechnung!$H$162,"") ->  | BF146: =IF(B146="","",IF(B146=Finals!$X$4,Berechnung!$H$159,"")) ->  | BG146: =IFERROR(IF(B146="","",LARGE(Y146:BF146:BF146,1)),0) ->  | BL146: =IFERROR(LARGE($BI$116:$BJ$155,31),"") ->  | BS146: 0
A147: =Spieler!A33 -> 32 | B147: =Spieler!C33 ->  | F147: =IFERROR(IF(B147="","",VLOOKUP(B147,'2. Runde Gruppen'!$D$3:$H$20,5,FALSE)),"") ->  | Q147: =IF(OR(F147<>"",G147<>""),Berechnung!$H$164,D147) ->  | T147: 0.0009 | U147: 0 | V147: 0.0009 | AA147: =IF(B147="","",IF(B147=Finals!$X$7,Berechnung!$H$162,"")) ->  | AB147: =IF(B147="","",IF(B147=Finals!$X$6,Berechnung!$H$161,"")) ->  | AC147: =IF(B147="","",IF(B147=Finals!$X$5,Berechnung!$H$160,"")) ->  | AD147: =IF(E147=Finals!$X$7,Berechnung!$H$162,"") ->  | BF147: =IF(B147="","",IF(B147=Finals!$X$4,Berechnung!$H$159,"")) ->  | BG147: =IFERROR(IF(B147="","",LARGE(Y147:BF147:BF147,1)),0) ->  | BL147: =IFERROR(LARGE($BI$116:$BJ$155,32),"") ->  | BM147: =IF(BJ147="","",VLOOKUP(BL147,$BI$116:$BJ$155,2,FALSE)) ->  | BS147: 0
A148: =Spieler!A34 -> 33 | B148: =Spieler!C34 ->  | F148: =IFERROR(IF(B148="","",VLOOKUP(B148,'2. Runde Gruppen'!$D$3:$H$20,5,FALSE)),"") ->  | Q148: =IF(OR(F148<>"",G148<>""),Berechnung!$H$164,D148) ->  | T148: 0.0008 | U148: 0 | V148: 0.0008 | AA148: =IF(B148="","",IF(B148=Finals!$X$7,Berechnung!$H$162,"")) ->  | AB148: =IF(B148="","",IF(B148=Finals!$X$6,Berechnung!$H$161,"")) ->  | AC148: =IF(B148="","",IF(B148=Finals!$X$5,Berechnung!$H$160,"")) ->  | AD148: =IF(E148=Finals!$X$7,Berechnung!$H$162,"") ->  | BF148: =IF(B148="","",IF(B148=Finals!$X$4,Berechnung!$H$159,"")) ->  | BG148: =IFERROR(IF(B148="","",LARGE(Y148:BF148:BF148,1)),0) ->  | BL148: =IFERROR(LARGE($BI$116:$BJ$155,33),"") ->  | BM148: =IF(BJ148="","",VLOOKUP(BL148,$BI$116:$BJ$155,2,FALSE)) ->  | BS148: 0
A149: =Spieler!A35 -> 34 | B149: =Spieler!C35 ->  | F149: =IFERROR(IF(B149="","",VLOOKUP(B149,'2. Runde Gruppen'!$D$3:$H$20,5,FALSE)),"") ->  | Q149: =IF(OR(F149<>"",G149<>""),Berechnung!$H$164,D149) ->  | T149: 0.0007 | U149: 0 | V149: 0.0007 | AA149: =IF(B149="","",IF(B149=Finals!$X$7,Berechnung!$H$162,"")) ->  | AB149: =IF(B149="","",IF(B149=Finals!$X$6,Berechnung!$H$161,"")) ->  | AC149: =IF(B149="","",IF(B149=Finals!$X$5,Berechnung!$H$160,"")) ->  | AD149: =IF(E149=Finals!$X$7,Berechnung!$H$162,"") ->  | BF149: =IF(B149="","",IF(B149=Finals!$X$4,Berechnung!$H$159,"")) ->  | BG149: =IFERROR(IF(B149="","",LARGE(Y149:BF149:BF149,1)),0) ->  | BL149: =IFERROR(LARGE($BI$116:$BJ$155,34),"") ->  | BS149: 0
A150: =Spieler!A36 -> 35 | B150: =Spieler!C36 ->  | F150: =IFERROR(IF(B150="","",VLOOKUP(B150,'2. Runde Gruppen'!$D$3:$H$20,5,FALSE)),"") ->  | Q150: =IF(OR(F150<>"",G150<>""),Berechnung!$H$164,D150) ->  | T150: 0.0006 | U150: 0 | V150: 0.0006 | AA150: =IF(B150="","",IF(B150=Finals!$X$7,Berechnung!$H$162,"")) ->  | AB150: =IF(B150="","",IF(B150=Finals!$X$6,Berechnung!$H$161,"")) ->  | AC150: =IF(B150="","",IF(B150=Finals!$X$5,Berechnung!$H$160,"")) ->  | AD150: =IF(E150=Finals!$X$7,Berechnung!$H$162,"") ->  | BF150: =IF(B150="","",IF(B150=Finals!$X$4,Berechnung!$H$159,"")) ->  | BG150: =IFERROR(IF(B150="","",LARGE(Y150:BF150:BF150,1)),0) ->  | BL150: =IFERROR(LARGE($BI$116:$BJ$155,35),"") ->  | BS150: 0
A151: =Spieler!A37 -> 36 | B151: =Spieler!C37 ->  | F151: =IFERROR(IF(B151="","",VLOOKUP(B151,'2. Runde Gruppen'!$D$3:$H$20,5,FALSE)),"") ->  | Q151: =IF(OR(F151<>"",G151<>""),Berechnung!$H$164,D151) ->  | T151: 0.0005 | U151: 0 | V151: 0.0005 | AA151: =IF(B151="","",IF(B151=Finals!$X$7,Berechnung!$H$162,"")) ->  | AB151: =IF(B151="","",IF(B151=Finals!$X$6,Berechnung!$H$161,"")) ->  | AC151: =IF(B151="","",IF(B151=Finals!$X$5,Berechnung!$H$160,"")) ->  | AD151: =IF(E151=Finals!$X$7,Berechnung!$H$162,"") ->  | BF151: =IF(B151="","",IF(B151=Finals!$X$4,Berechnung!$H$159,"")) ->  | BG151: =IFERROR(IF(B151="","",LARGE(Y151:BF151:BF151,1)),0) ->  | BL151: =IFERROR(LARGE($BI$116:$BJ$155,36),"") ->  | BS151: 0
A152: =Spieler!A38 -> 37 | B152: =Spieler!C38 ->  | F152: =IFERROR(IF(B152="","",VLOOKUP(B152,'2. Runde Gruppen'!$D$3:$H$20,5,FALSE)),"") ->  | Q152: =IF(OR(F152<>"",G152<>""),Berechnung!$H$164,D152) ->  | T152: 0.0004 | U152: 0 | V152: 0.0004 | AA152: =IF(B152="","",IF(B152=Finals!$X$7,Berechnung!$H$162,"")) ->  | AB152: =IF(B152="","",IF(B152=Finals!$X$6,Berechnung!$H$161,"")) ->  | AC152: =IF(B152="","",IF(B152=Finals!$X$5,Berechnung!$H$160,"")) ->  | AD152: =IF(E152=Finals!$X$7,Berechnung!$H$162,"") ->  | BF152: =IF(B152="","",IF(B152=Finals!$X$4,Berechnung!$H$159,"")) ->  | BG152: =IFERROR(IF(B152="","",LARGE(Y152:BF152:BF152,1)),0) ->  | BL152: =IFERROR(LARGE($BI$116:$BJ$155,37),"") ->  | BS152: 0
A153: =Spieler!A39 -> 38 | B153: =Spieler!C39 ->  | F153: =IFERROR(IF(B153="","",VLOOKUP(B153,'2. Runde Gruppen'!$D$3:$H$20,5,FALSE)),"") ->  | Q153: =IF(OR(F153<>"",G153<>""),Berechnung!$H$164,D153) ->  | T153: 0.0003 | U153: 0 | V153: 0.0003 | AA153: =IF(B153="","",IF(B153=Finals!$X$7,Berechnung!$H$162,"")) ->  | AB153: =IF(B153="","",IF(B153=Finals!$X$6,Berechnung!$H$161,"")) ->  | AC153: =IF(B153="","",IF(B153=Finals!$X$5,Berechnung!$H$160,"")) ->  | AD153: =IF(E153=Finals!$X$7,Berechnung!$H$162,"") ->  | BF153: =IF(B153="","",IF(B153=Finals!$X$4,Berechnung!$H$159,"")) ->  | BG153: =IFERROR(IF(B153="","",LARGE(Y153:BF153:BF153,1)),0) ->  | BL153: =IFERROR(LARGE($BI$116:$BJ$155,38),"") ->  | BS153: 0
A154: =Spieler!A40 -> 39 | B154: =Spieler!C40 ->  | F154: =IFERROR(IF(B154="","",VLOOKUP(B154,'2. Runde Gruppen'!$D$3:$H$20,5,FALSE)),"") ->  | Q154: =IF(OR(F154<>"",G154<>""),Berechnung!$H$164,D154) ->  | T154: 0.0002 | U154: 0 | V154: 0.0002 | AA154: =IF(B154="","",IF(B154=Finals!$X$7,Berechnung!$H$162,"")) ->  | AB154: =IF(B154="","",IF(B154=Finals!$X$6,Berechnung!$H$161,"")) ->  | AC154: =IF(B154="","",IF(B154=Finals!$X$5,Berechnung!$H$160,"")) ->  | AD154: =IF(E154=Finals!$X$7,Berechnung!$H$162,"") ->  | BF154: =IF(B154="","",IF(B154=Finals!$X$4,Berechnung!$H$159,"")) ->  | BG154: =IFERROR(IF(B154="","",LARGE(Y154:BF154:BF154,1)),0) ->  | BL154: =IFERROR(LARGE($BI$116:$BJ$155,39),"") ->  | BS154: 0
A155: =Spieler!A41 -> 40 | B155: =Spieler!C41 ->  | F155: =IFERROR(IF(B155="","",VLOOKUP(B155,'2. Runde Gruppen'!$D$3:$H$20,5,FALSE)),"") ->  | Q155: =IF(OR(F155<>"",G155<>""),Berechnung!$H$164,D155) ->  | T155: 0.0001 | U155: 0 | V155: 0.0001 | AA155: =IF(B155="","",IF(B155=Finals!$X$7,Berechnung!$H$162,"")) ->  | AB155: =IF(B155="","",IF(B155=Finals!$X$6,Berechnung!$H$161,"")) ->  | AC155: =IF(B155="","",IF(B155=Finals!$X$5,Berechnung!$H$160,"")) ->  | AD155: =IF(E155=Finals!$X$7,Berechnung!$H$162,"") ->  | BF155: =IF(B155="","",IF(B155=Finals!$X$4,Berechnung!$H$159,"")) ->  | BG155: =IFERROR(IF(B155="","",LARGE(Y155:BF155:BF155,1)),0) ->  | BL155: =IFERROR(LARGE($BI$116:$BJ$155,40),"") ->  | BS155: 0
B158: Platzierung | D158: 12-15 TN | E158: 16-23 TN | F158: 24-40 TN
B159: 1. Platz | D159: =Spieler!S18 -> 150 | E159: =Spieler!T18 -> 250 | F159: =Spieler!AA18 -> 350 | H159: =IF($BH$1<16,D159,IF(AND($BH$1>15,$BH$1<24),E159,IF($BH$1>23,F159))) -> 350
B160: 2. Platz | D160: =Spieler!S19 -> 120 | E160: =Spieler!T19 -> 200 | F160: =Spieler!AA19 -> 300 | H160: =IF($BH$1<16,D160,IF(AND($BH$1>15,$BH$1<24),E160,IF($BH$1>23,F160))) -> 300
B161: 3. Platz | D161: =Spieler!S20 -> 90 | E161: =Spieler!T20 -> 140 | F161: =Spieler!AA20 -> 230 | H161: 230
B162: 4. Platz | D162: =Spieler!S21 -> 90 | E162: =Spieler!T21 -> 140 | F162: =Spieler!AA21 -> 230 | H162: =IF($BH$1<16,D162,IF(AND($BH$1>15,$BH$1<24),E162,IF($BH$1>23,F162))) -> 230
B163: Viertelfinale | D163: =Spieler!S22 -> 50 | E163: =Spieler!T22 -> 100 | F163: =Spieler!AA22 -> 150 | H163: 150
B164: 2. Runde (Gr. o. AF) | D164: =Spieler!S23 -> - | E164: =Spieler!T23 -> 60 | F164: =Spieler!AA23 -> 100 | H164: 100
B165: Teilnahme | D165: =Spieler!S24 -> 20 | E165: =Spieler!T24 -> 30 | F165: =Spieler!AA24 -> 50 | H165: 50
E168: R1 | G168: R2 | I168: AF | N168: VF | Q168: HF | S168: F | U168: Gesamt
E169: F+ | F169: F- | G169: F+ | H169: F- | I169: F+ | J169: F- | K169: F+ | L169: F- | M169: F+ | N169: F+ | O169: F- | P169: F- | Q169: F+ | R169: F- | S169: F+ | T169: F- | U169: + | V169: - | X169: %
C170: =A116 -> 1 | D170: =B116 -> Behling Oliver | E170: =VLOOKUP($D170,$D$2:$J$83,5,FALSE) -> 2 | F170: =VLOOKUP($D170,$D$2:$J$83,6,FALSE) -> 2 | G170: =IFERROR(VLOOKUP($D170,'2. Runde Gruppen'!$D$3:$I$20,4,FALSE),0) -> 0 | H170: =IFERROR(VLOOKUP($D170,'2. Runde Gruppen'!$D$3:$I$20,5,FALSE),0) -> 0 | I170: =IFERROR(VLOOKUP($D170,Finals!$B$4:$I$26,2,FALSE),0) -> 0 | J170: =IFERROR(VLOOKUP($D170,Finals!$B$4:$I$26,8,FALSE),0) -> 2 | N170: =IFERROR(VLOOKUP($D170,Finals!$J$6:$P$24,2,FALSE),0) -> 0 | O170: =IFERROR(VLOOKUP($D170,Finals!$J$6:$P$24,7,FALSE),0) -> 0 | Q170: =IFERROR(VLOOKUP($D170,Finals!$Q$10:$W$20,2,FALSE),0) -> 0 | R170: =IFERROR(VLOOKUP($D170,Finals!$Q$10:$W$20,7,FALSE),0) -> 0 | S170: =IFERROR(VLOOKUP($D170,Finals!$X$14:$AD$15,2,FALSE),0) -> 0 | T170: =IFERROR(VLOOKUP($D170,Finals!$X$14:$AD$15,7,FALSE),0) -> 0 | U170: =E170+G170+I170+N170+Q170+S170 -> 2 | V170: =F170+H170+J170+O170+R170+T170 -> 4 | W170: =U170+V170 -> 6 | X170: =IFERROR(U170/W170,"") -> 0.3333333333
C171: =A117 -> 2 | D171: Brachmanski Dave | E171: =VLOOKUP($D171,$D$2:$J$83,5,FALSE) -> 1 | F171: 4 | G171: =IFERROR(VLOOKUP($D171,'2. Runde Gruppen'!$D$3:$I$20,4,FALSE),0) -> 0 | H171: =IFERROR(VLOOKUP($D171,'2. Runde Gruppen'!$D$3:$I$20,5,FALSE),0) -> 0 | I171: =IFERROR(VLOOKUP($D171,Finals!$B$4:$I$26,2,FALSE),0) -> 0 | J171: =IFERROR(VLOOKUP($D171,Finals!$B$4:$I$26,8,FALSE),0) -> 0 | N171: =IFERROR(VLOOKUP($D171,Finals!$J$6:$P$24,2,FALSE),0) -> 0 | O171: =IFERROR(VLOOKUP($D171,Finals!$J$6:$P$24,7,FALSE),0) -> 0 | Q171: =IFERROR(VLOOKUP($D171,Finals!$Q$10:$W$20,2,FALSE),0) -> 0 | R171: =IFERROR(VLOOKUP($D171,Finals!$Q$10:$W$20,7,FALSE),0) -> 0 | S171: =IFERROR(VLOOKUP($D171,Finals!$X$14:$AD$15,2,FALSE),0) -> 0 | T171: =IFERROR(VLOOKUP($D171,Finals!$X$14:$AD$15,7,FALSE),0) -> 0 | U171: =E171+G171+I171+N171+Q171+S171 -> 1 | V171: =F171+H171+J171+O171+R171+T171 -> 4 | W171: =U171+V171 -> 5 | X171: =IFERROR(U171/W171,"") -> 0.2
C172: =A118 -> 3 | D172: Brömel Frank | E172: 0 | F172: 4 | G172: =IFERROR(VLOOKUP($D172,'2. Runde Gruppen'!$D$3:$I$20,4,FALSE),0) -> 0 | H172: =IFERROR(VLOOKUP($D172,'2. Runde Gruppen'!$D$3:$I$20,5,FALSE),0) -> 0 | I172: =IFERROR(VLOOKUP($D172,Finals!$B$4:$I$26,2,FALSE),0) -> 0 | J172: =IFERROR(VLOOKUP($D172,Finals!$B$4:$I$26,8,FALSE),0) -> 0 | N172: =IFERROR(VLOOKUP($D172,Finals!$J$6:$P$24,2,FALSE),0) -> 0 | O172: =IFERROR(VLOOKUP($D172,Finals!$J$6:$P$24,7,FALSE),0) -> 0 | Q172: =IFERROR(VLOOKUP($D172,Finals!$Q$10:$W$20,2,FALSE),0) -> 0 | R172: =IFERROR(VLOOKUP($D172,Finals!$Q$10:$W$20,7,FALSE),0) -> 0 | S172: =IFERROR(VLOOKUP($D172,Finals!$X$14:$AD$15,2,FALSE),0) -> 0 | T172: =IFERROR(VLOOKUP($D172,Finals!$X$14:$AD$15,7,FALSE),0) -> 0 | U172: 0 | V172: 4 | W172: 4 | X172: 0
C173: =A119 -> 4 | D173: Delling Tino | E173: 4 | F173: 0 | G173: =IFERROR(VLOOKUP($D173,'2. Runde Gruppen'!$D$3:$I$20,4,FALSE),0) -> 0 | H173: =IFERROR(VLOOKUP($D173,'2. Runde Gruppen'!$D$3:$I$20,5,FALSE),0) -> 0 | I173: =IFERROR(VLOOKUP($D173,Finals!$B$4:$I$26,2,FALSE),0) -> 2 | J173: =IFERROR(VLOOKUP($D173,Finals!$B$4:$I$26,8,FALSE),0) -> 0 | N173: =IFERROR(VLOOKUP($D173,Finals!$J$6:$P$24,2,FALSE),0) -> 1 | O173: =IFERROR(VLOOKUP($D173,Finals!$J$6:$P$24,7,FALSE),0) -> 2 | Q173: =IFERROR(VLOOKUP($D173,Finals!$Q$10:$W$20,2,FALSE),0) -> 0 | R173: =IFERROR(VLOOKUP($D173,Finals!$Q$10:$W$20,7,FALSE),0) -> 0 | S173: =IFERROR(VLOOKUP($D173,Finals!$X$14:$AD$15,2,FALSE),0) -> 0 | T173: =IFERROR(VLOOKUP($D173,Finals!$X$14:$AD$15,7,FALSE),0) -> 0 | U173: 7 | V173: 2 | W173: 9 | X173: 0.7777777778
C174: =A120 -> 5 | D174: Drahn Robert | E174: 2 | F174: 2 | G174: =IFERROR(VLOOKUP($D174,'2. Runde Gruppen'!$D$3:$I$20,4,FALSE),0) -> 0 | H174: =IFERROR(VLOOKUP($D174,'2. Runde Gruppen'!$D$3:$I$20,5,FALSE),0) -> 0 | I174: =IFERROR(VLOOKUP($D174,Finals!$B$4:$I$26,2,FALSE),0) -> 0 | J174: =IFERROR(VLOOKUP($D174,Finals!$B$4:$I$26,8,FALSE),0) -> 2 | N174: =IFERROR(VLOOKUP($D174,Finals!$J$6:$P$24,2,FALSE),0) -> 0 | O174: =IFERROR(VLOOKUP($D174,Finals!$J$6:$P$24,7,FALSE),0) -> 0 | Q174: =IFERROR(VLOOKUP($D174,Finals!$Q$10:$W$20,2,FALSE),0) -> 0 | R174: =IFERROR(VLOOKUP($D174,Finals!$Q$10:$W$20,7,FALSE),0) -> 0 | S174: =IFERROR(VLOOKUP($D174,Finals!$X$14:$AD$15,2,FALSE),0) -> 0 | T174: =IFERROR(VLOOKUP($D174,Finals!$X$14:$AD$15,7,FALSE),0) -> 0 | U174: 2 | V174: 4 | W174: 6 | X174: 0.3333333333
C175: =A121 -> 6 | D175: Elham Faiz | E175: =VLOOKUP($D175,$D$2:$J$83,5,FALSE) -> 1 | F175: =VLOOKUP($D175,$D$2:$J$83,6,FALSE) -> 4 | G175: =IFERROR(VLOOKUP($D175,'2. Runde Gruppen'!$D$3:$I$20,4,FALSE),0) -> 0 | H175: =IFERROR(VLOOKUP($D175,'2. Runde Gruppen'!$D$3:$I$20,5,FALSE),0) -> 0 | I175: =IFERROR(VLOOKUP($D175,Finals!$B$4:$I$26,2,FALSE),0) -> 0 | J175: =IFERROR(VLOOKUP($D175,Finals!$B$4:$I$26,8,FALSE),0) -> 0 | N175: =IFERROR(VLOOKUP($D175,Finals!$J$6:$P$24,2,FALSE),0) -> 0 | O175: =IFERROR(VLOOKUP($D175,Finals!$J$6:$P$24,7,FALSE),0) -> 0 | Q175: =IFERROR(VLOOKUP($D175,Finals!$Q$10:$W$20,2,FALSE),0) -> 0 | R175: =IFERROR(VLOOKUP($D175,Finals!$Q$10:$W$20,7,FALSE),0) -> 0 | S175: =IFERROR(VLOOKUP($D175,Finals!$X$14:$AD$15,2,FALSE),0) -> 0 | T175: =IFERROR(VLOOKUP($D175,Finals!$X$14:$AD$15,7,FALSE),0) -> 0 | U175: 1 | V175: =F175+H175+J175+O175+R175+T175 -> 4 | W175: 5 | X175: =IFERROR(U175/W175,"") -> 0.2
C176: =A122 -> 7 | D176: Fandrei Andreas | E176: =VLOOKUP($D176,$D$2:$J$83,5,FALSE) -> 2 | F176: =VLOOKUP($D176,$D$2:$J$83,6,FALSE) -> 2 | G176: =IFERROR(VLOOKUP($D176,'2. Runde Gruppen'!$D$3:$I$20,4,FALSE),0) -> 0 | H176: =IFERROR(VLOOKUP($D176,'2. Runde Gruppen'!$D$3:$I$20,5,FALSE),0) -> 0 | I176: =IFERROR(VLOOKUP($D176,Finals!$B$4:$I$26,2,FALSE),0) -> 0 | J176: =IFERROR(VLOOKUP($D176,Finals!$B$4:$I$26,8,FALSE),0) -> 2 | N176: =IFERROR(VLOOKUP($D176,Finals!$J$6:$P$24,2,FALSE),0) -> 0 | O176: =IFERROR(VLOOKUP($D176,Finals!$J$6:$P$24,7,FALSE),0) -> 0 | Q176: =IFERROR(VLOOKUP($D176,Finals!$Q$10:$W$20,2,FALSE),0) -> 0 | R176: =IFERROR(VLOOKUP($D176,Finals!$Q$10:$W$20,7,FALSE),0) -> 0 | S176: =IFERROR(VLOOKUP($D176,Finals!$X$14:$AD$15,2,FALSE),0) -> 0 | T176: =IFERROR(VLOOKUP($D176,Finals!$X$14:$AD$15,7,FALSE),0) -> 0 | U176: 2 | V176: 4 | W176: 6 | X176: 0.3333333333
C177: =A123 -> 8 | D177: Fandrei Joel | E177: 4 | F177: 1 | G177: =IFERROR(VLOOKUP($D177,'2. Runde Gruppen'!$D$3:$I$20,4,FALSE),0) -> 0 | H177: =IFERROR(VLOOKUP($D177,'2. Runde Gruppen'!$D$3:$I$20,5,FALSE),0) -> 0 | I177: =IFERROR(VLOOKUP($D177,Finals!$B$4:$I$26,2,FALSE),0) -> 2 | J177: =IFERROR(VLOOKUP($D177,Finals!$B$4:$I$26,8,FALSE),0) -> 1 | N177: =IFERROR(VLOOKUP($D177,Finals!$J$6:$P$24,2,FALSE),0) -> 2 | O177: =IFERROR(VLOOKUP($D177,Finals!$J$6:$P$24,7,FALSE),0) -> 1 | Q177: =IFERROR(VLOOKUP($D177,Finals!$Q$10:$W$20,2,FALSE),0) -> 1 | R177: =IFERROR(VLOOKUP($D177,Finals!$Q$10:$W$20,7,FALSE),0) -> 2 | S177: =IFERROR(VLOOKUP($D177,Finals!$X$14:$AD$15,2,FALSE),0) -> 0 | T177: =IFERROR(VLOOKUP($D177,Finals!$X$14:$AD$15,7,FALSE),0) -> 0 | U177: 9 | V177: 5 | W177: 14 | X177: 0.6428571429
C178: =A124 -> 9 | D178: Gärtner David | E178: 4 | F178: 2 | G178: =IFERROR(VLOOKUP($D178,'2. Runde Gruppen'!$D$3:$I$20,4,FALSE),0) -> 0 | H178: =IFERROR(VLOOKUP($D178,'2. Runde Gruppen'!$D$3:$I$20,5,FALSE),0) -> 0 | I178: =IFERROR(VLOOKUP($D178,Finals!$B$4:$I$26,2,FALSE),0) -> 2 | J178: =IFERROR(VLOOKUP($D178,Finals!$B$4:$I$26,8,FALSE),0) -> 0 | N178: =IFERROR(VLOOKUP($D178,Finals!$J$6:$P$24,2,FALSE),0) -> 0 | O178: =IFERROR(VLOOKUP($D178,Finals!$J$6:$P$24,7,FALSE),0) -> 2 | Q178: =IFERROR(VLOOKUP($D178,Finals!$Q$10:$W$20,2,FALSE),0) -> 0 | R178: =IFERROR(VLOOKUP($D178,Finals!$Q$10:$W$20,7,FALSE),0) -> 0 | S178: =IFERROR(VLOOKUP($D178,Finals!$X$14:$AD$15,2,FALSE),0) -> 0 | T178: =IFERROR(VLOOKUP($D178,Finals!$X$14:$AD$15,7,FALSE),0) -> 0 | U178: 6 | V178: 4 | W178: =U178+V178 -> 10 | X178: 0.6
C179: =A125 -> 10 | D179: Hartung Andreas | E179: 1 | F179: 4 | G179: =IFERROR(VLOOKUP($D179,'2. Runde Gruppen'!$D$3:$I$20,4,FALSE),0) -> 0 | H179: =IFERROR(VLOOKUP($D179,'2. Runde Gruppen'!$D$3:$I$20,5,FALSE),0) -> 0 | I179: =IFERROR(VLOOKUP($D179,Finals!$B$4:$I$26,2,FALSE),0) -> 0 | J179: =IFERROR(VLOOKUP($D179,Finals!$B$4:$I$26,8,FALSE),0) -> 0 | N179: =IFERROR(VLOOKUP($D179,Finals!$J$6:$P$24,2,FALSE),0) -> 0 | O179: =IFERROR(VLOOKUP($D179,Finals!$J$6:$P$24,7,FALSE),0) -> 0 | Q179: =IFERROR(VLOOKUP($D179,Finals!$Q$10:$W$20,2,FALSE),0) -> 0 | R179: =IFERROR(VLOOKUP($D179,Finals!$Q$10:$W$20,7,FALSE),0) -> 0 | S179: =IFERROR(VLOOKUP($D179,Finals!$X$14:$AD$15,2,FALSE),0) -> 0 | T179: =IFERROR(VLOOKUP($D179,Finals!$X$14:$AD$15,7,FALSE),0) -> 0 | U179: 1 | V179: 4 | W179: 5 | X179: 0.2
C180: =A126 -> 11 | D180: Hofmann Frank | E180: 2 | F180: 2 | G180: =IFERROR(VLOOKUP($D180,'2. Runde Gruppen'!$D$3:$I$20,4,FALSE),0) -> 0 | H180: =IFERROR(VLOOKUP($D180,'2. Runde Gruppen'!$D$3:$I$20,5,FALSE),0) -> 0 | I180: =IFERROR(VLOOKUP($D180,Finals!$B$4:$I$26,2,FALSE),0) -> 0 | J180: =IFERROR(VLOOKUP($D180,Finals!$B$4:$I$26,8,FALSE),0) -> 2 | N180: =IFERROR(VLOOKUP($D180,Finals!$J$6:$P$24,2,FALSE),0) -> 0 | O180: =IFERROR(VLOOKUP($D180,Finals!$J$6:$P$24,7,FALSE),0) -> 0 | Q180: =IFERROR(VLOOKUP($D180,Finals!$Q$10:$W$20,2,FALSE),0) -> 0 | R180: =IFERROR(VLOOKUP($D180,Finals!$Q$10:$W$20,7,FALSE),0) -> 0 | S180: =IFERROR(VLOOKUP($D180,Finals!$X$14:$AD$15,2,FALSE),0) -> 0 | T180: =IFERROR(VLOOKUP($D180,Finals!$X$14:$AD$15,7,FALSE),0) -> 0 | U180: 2 | V180: 4 | W180: 6 | X180: 0.3333333333
C181: =A127 -> 12 | D181: Isermann Rene | E181: 0 | F181: 4 | G181: =IFERROR(VLOOKUP($D181,'2. Runde Gruppen'!$D$3:$I$20,4,FALSE),0) -> 0 | H181: =IFERROR(VLOOKUP($D181,'2. Runde Gruppen'!$D$3:$I$20,5,FALSE),0) -> 0 | I181: =IFERROR(VLOOKUP($D181,Finals!$B$4:$I$26,2,FALSE),0) -> 0 | J181: =IFERROR(VLOOKUP($D181,Finals!$B$4:$I$26,8,FALSE),0) -> 0 | N181: =IFERROR(VLOOKUP($D181,Finals!$J$6:$P$24,2,FALSE),0) -> 0 | O181: =IFERROR(VLOOKUP($D181,Finals!$J$6:$P$24,7,FALSE),0) -> 0 | Q181: =IFERROR(VLOOKUP($D181,Finals!$Q$10:$W$20,2,FALSE),0) -> 0 | R181: =IFERROR(VLOOKUP($D181,Finals!$Q$10:$W$20,7,FALSE),0) -> 0 | S181: =IFERROR(VLOOKUP($D181,Finals!$X$14:$AD$15,2,FALSE),0) -> 0 | T181: =IFERROR(VLOOKUP($D181,Finals!$X$14:$AD$15,7,FALSE),0) -> 0 | U181: 0 | V181: 4 | W181: 4 | X181: 0
C182: =A128 -> 13 | D182: Jeroch Paul | E182: 4 | F182: 1 | G182: =IFERROR(VLOOKUP($D182,'2. Runde Gruppen'!$D$3:$I$20,4,FALSE),0) -> 0 | H182: =IFERROR(VLOOKUP($D182,'2. Runde Gruppen'!$D$3:$I$20,5,FALSE),0) -> 0 | I182: =IFERROR(VLOOKUP($D182,Finals!$B$4:$I$26,2,FALSE),0) -> 2 | J182: =IFERROR(VLOOKUP($D182,Finals!$B$4:$I$26,8,FALSE),0) -> 0 | N182: =IFERROR(VLOOKUP($D182,Finals!$J$6:$P$24,2,FALSE),0) -> 2 | O182: =IFERROR(VLOOKUP($D182,Finals!$J$6:$P$24,7,FALSE),0) -> 1 | Q182: =IFERROR(VLOOKUP($D182,Finals!$Q$10:$W$20,2,FALSE),0) -> 2 | R182: =IFERROR(VLOOKUP($D182,Finals!$Q$10:$W$20,7,FALSE),0) -> 1 | S182: =IFERROR(VLOOKUP($D182,Finals!$X$14:$AD$15,2,FALSE),0) -> 0 | T182: =IFERROR(VLOOKUP($D182,Finals!$X$14:$AD$15,7,FALSE),0) -> 2 | U182: 10 | V182: 5 | W182: 15 | X182: 0.6666666667
C183: =A129 -> 14 | D183: Löffel Ulrich | E183: 0 | F183: 4 | G183: =IFERROR(VLOOKUP($D183,'2. Runde Gruppen'!$D$3:$I$20,4,FALSE),0) -> 0 | H183: =IFERROR(VLOOKUP($D183,'2. Runde Gruppen'!$D$3:$I$20,5,FALSE),0) -> 0 | I183: =IFERROR(VLOOKUP($D183,Finals!$B$4:$I$26,2,FALSE),0) -> 0 | J183: =IFERROR(VLOOKUP($D183,Finals!$B$4:$I$26,8,FALSE),0) -> 0 | N183: =IFERROR(VLOOKUP($D183,Finals!$J$6:$P$24,2,FALSE),0) -> 0 | O183: =IFERROR(VLOOKUP($D183,Finals!$J$6:$P$24,7,FALSE),0) -> 0 | Q183: =IFERROR(VLOOKUP($D183,Finals!$Q$10:$W$20,2,FALSE),0) -> 0 | R183: =IFERROR(VLOOKUP($D183,Finals!$Q$10:$W$20,7,FALSE),0) -> 0 | S183: =IFERROR(VLOOKUP($D183,Finals!$X$14:$AD$15,2,FALSE),0) -> 0 | T183: =IFERROR(VLOOKUP($D183,Finals!$X$14:$AD$15,7,FALSE),0) -> 0 | U183: 0 | V183: 4 | W183: 4 | X183: 0
C184: =A130 -> 15 | D184: Müller Marcus | E184: 2 | F184: 2 | G184: =IFERROR(VLOOKUP($D184,'2. Runde Gruppen'!$D$3:$I$20,4,FALSE),0) -> 0 | H184: =IFERROR(VLOOKUP($D184,'2. Runde Gruppen'!$D$3:$I$20,5,FALSE),0) -> 0 | I184: =IFERROR(VLOOKUP($D184,Finals!$B$4:$I$26,2,FALSE),0) -> 2 | J184: =IFERROR(VLOOKUP($D184,Finals!$B$4:$I$26,8,FALSE),0) -> 1 | N184: =IFERROR(VLOOKUP($D184,Finals!$J$6:$P$24,2,FALSE),0) -> 2 | O184: =IFERROR(VLOOKUP($D184,Finals!$J$6:$P$24,7,FALSE),0) -> 0 | Q184: =IFERROR(VLOOKUP($D184,Finals!$Q$10:$W$20,2,FALSE),0) -> 0 | R184: =IFERROR(VLOOKUP($D184,Finals!$Q$10:$W$20,7,FALSE),0) -> 2 | S184: =IFERROR(VLOOKUP($D184,Finals!$X$14:$AD$15,2,FALSE),0) -> 0 | T184: =IFERROR(VLOOKUP($D184,Finals!$X$14:$AD$15,7,FALSE),0) -> 0 | U184: 6 | V184: 5 | W184: 11 | X184: 0.5454545455
C185: =A131 -> 16 | D185: Rejke Ronny | E185: 1 | F185: 4 | G185: =IFERROR(VLOOKUP($D185,'2. Runde Gruppen'!$D$3:$I$20,4,FALSE),0) -> 0 | H185: =IFERROR(VLOOKUP($D185,'2. Runde Gruppen'!$D$3:$I$20,5,FALSE),0) -> 0 | I185: =IFERROR(VLOOKUP($D185,Finals!$B$4:$I$26,2,FALSE),0) -> 0 | J185: =IFERROR(VLOOKUP($D185,Finals!$B$4:$I$26,8,FALSE),0) -> 0 | N185: =IFERROR(VLOOKUP($D185,Finals!$J$6:$P$24,2,FALSE),0) -> 0 | O185: =IFERROR(VLOOKUP($D185,Finals!$J$6:$P$24,7,FALSE),0) -> 0 | Q185: =IFERROR(VLOOKUP($D185,Finals!$Q$10:$W$20,2,FALSE),0) -> 0 | R185: =IFERROR(VLOOKUP($D185,Finals!$Q$10:$W$20,7,FALSE),0) -> 0 | S185: =IFERROR(VLOOKUP($D185,Finals!$X$14:$AD$15,2,FALSE),0) -> 0 | T185: =IFERROR(VLOOKUP($D185,Finals!$X$14:$AD$15,7,FALSE),0) -> 0 | U185: 1 | V185: 4 | W185: 5 | X185: 0.2
C186: =A132 -> 17 | D186: Stachly Marec | E186: 4 | F186: 0 | G186: =IFERROR(VLOOKUP($D186,'2. Runde Gruppen'!$D$3:$I$20,4,FALSE),0) -> 0 | H186: =IFERROR(VLOOKUP($D186,'2. Runde Gruppen'!$D$3:$I$20,5,FALSE),0) -> 0 | I186: =IFERROR(VLOOKUP($D186,Finals!$B$4:$I$26,2,FALSE),0) -> 2 | J186: =IFERROR(VLOOKUP($D186,Finals!$B$4:$I$26,8,FALSE),0) -> 1 | N186: =IFERROR(VLOOKUP($D186,Finals!$J$6:$P$24,2,FALSE),0) -> 1 | O186: =IFERROR(VLOOKUP($D186,Finals!$J$6:$P$24,7,FALSE),0) -> 2 | Q186: =IFERROR(VLOOKUP($D186,Finals!$Q$10:$W$20,2,FALSE),0) -> 0 | R186: =IFERROR(VLOOKUP($D186,Finals!$Q$10:$W$20,7,FALSE),0) -> 0 | S186: =IFERROR(VLOOKUP($D186,Finals!$X$14:$AD$15,2,FALSE),0) -> 0 | T186: =IFERROR(VLOOKUP($D186,Finals!$X$14:$AD$15,7,FALSE),0) -> 0 | U186: 7 | V186: 3 | W186: 10 | X186: 0.7
C187: =A133 -> 18 | D187: Straßburger Marko | E187: 4 | F187: 2 | G187: =IFERROR(VLOOKUP($D187,'2. Runde Gruppen'!$D$3:$I$20,4,FALSE),0) -> 0 | H187: =IFERROR(VLOOKUP($D187,'2. Runde Gruppen'!$D$3:$I$20,5,FALSE),0) -> 0 | I187: =IFERROR(VLOOKUP($D187,Finals!$B$4:$I$26,2,FALSE),0) -> 1 | J187: =IFERROR(VLOOKUP($D187,Finals!$B$4:$I$26,8,FALSE),0) -> 2 | N187: =IFERROR(VLOOKUP($D187,Finals!$J$6:$P$24,2,FALSE),0) -> 0 | O187: =IFERROR(VLOOKUP($D187,Finals!$J$6:$P$24,7,FALSE),0) -> 0 | Q187: =IFERROR(VLOOKUP($D187,Finals!$Q$10:$W$20,2,FALSE),0) -> 0 | R187: =IFERROR(VLOOKUP($D187,Finals!$Q$10:$W$20,7,FALSE),0) -> 0 | S187: =IFERROR(VLOOKUP($D187,Finals!$X$14:$AD$15,2,FALSE),0) -> 0 | T187: =IFERROR(VLOOKUP($D187,Finals!$X$14:$AD$15,7,FALSE),0) -> 0 | U187: 5 | V187: =F187+H187+J187+O187+R187+T187 -> 4 | W187: 9 | X187: 0.5555555556
C188: =A134 -> 19 | D188: Suttner Magnus | E188: 3 | F188: 2 | G188: =IFERROR(VLOOKUP($D188,'2. Runde Gruppen'!$D$3:$I$20,4,FALSE),0) -> 0 | H188: =IFERROR(VLOOKUP($D188,'2. Runde Gruppen'!$D$3:$I$20,5,FALSE),0) -> 0 | I188: =IFERROR(VLOOKUP($D188,Finals!$B$4:$I$26,2,FALSE),0) -> 1 | J188: =IFERROR(VLOOKUP($D188,Finals!$B$4:$I$26,8,FALSE),0) -> 2 | N188: =IFERROR(VLOOKUP($D188,Finals!$J$6:$P$24,2,FALSE),0) -> 0 | O188: =IFERROR(VLOOKUP($D188,Finals!$J$6:$P$24,7,FALSE),0) -> 0 | Q188: =IFERROR(VLOOKUP($D188,Finals!$Q$10:$W$20,2,FALSE),0) -> 0 | R188: =IFERROR(VLOOKUP($D188,Finals!$Q$10:$W$20,7,FALSE),0) -> 0 | S188: =IFERROR(VLOOKUP($D188,Finals!$X$14:$AD$15,2,FALSE),0) -> 0 | T188: =IFERROR(VLOOKUP($D188,Finals!$X$14:$AD$15,7,FALSE),0) -> 0 | U188: 4 | V188: 4 | W188: 8 | X188: 0.5
C189: =A135 -> 20 | D189: Swennen Andy | E189: 0 | F189: 4 | G189: =IFERROR(VLOOKUP($D189,'2. Runde Gruppen'!$D$3:$I$20,4,FALSE),0) -> 0 | H189: =IFERROR(VLOOKUP($D189,'2. Runde Gruppen'!$D$3:$I$20,5,FALSE),0) -> 0 | I189: =IFERROR(VLOOKUP($D189,Finals!$B$4:$I$26,2,FALSE),0) -> 0 | J189: =IFERROR(VLOOKUP($D189,Finals!$B$4:$I$26,8,FALSE),0) -> 0 | N189: =IFERROR(VLOOKUP($D189,Finals!$J$6:$P$24,2,FALSE),0) -> 0 | O189: =IFERROR(VLOOKUP($D189,Finals!$J$6:$P$24,7,FALSE),0) -> 0 | Q189: =IFERROR(VLOOKUP($D189,Finals!$Q$10:$W$20,2,FALSE),0) -> 0 | R189: =IFERROR(VLOOKUP($D189,Finals!$Q$10:$W$20,7,FALSE),0) -> 0 | S189: =IFERROR(VLOOKUP($D189,Finals!$X$14:$AD$15,2,FALSE),0) -> 0 | T189: =IFERROR(VLOOKUP($D189,Finals!$X$14:$AD$15,7,FALSE),0) -> 0 | U189: 0 | V189: 4 | W189: 4 | X189: 0
C190: =A136 -> 21 | D190: Thomas Moritz | E190: 3 | F190: 3 | G190: =IFERROR(VLOOKUP($D190,'2. Runde Gruppen'!$D$3:$I$20,4,FALSE),0) -> 0 | H190: =IFERROR(VLOOKUP($D190,'2. Runde Gruppen'!$D$3:$I$20,5,FALSE),0) -> 0 | I190: =IFERROR(VLOOKUP($D190,Finals!$B$4:$I$26,2,FALSE),0) -> 2 | J190: =IFERROR(VLOOKUP($D190,Finals!$B$4:$I$26,8,FALSE),0) -> 0 | N190: =IFERROR(VLOOKUP($D190,Finals!$J$6:$P$24,2,FALSE),0) -> 0 | O190: =IFERROR(VLOOKUP($D190,Finals!$J$6:$P$24,7,FALSE),0) -> 2 | Q190: =IFERROR(VLOOKUP($D190,Finals!$Q$10:$W$20,2,FALSE),0) -> 0 | R190: =IFERROR(VLOOKUP($D190,Finals!$Q$10:$W$20,7,FALSE),0) -> 0 | S190: =IFERROR(VLOOKUP($D190,Finals!$X$14:$AD$15,2,FALSE),0) -> 0 | T190: =IFERROR(VLOOKUP($D190,Finals!$X$14:$AD$15,7,FALSE),0) -> 0 | U190: 5 | V190: 5 | W190: 10 | X190: 0.5
C191: =A137 -> 22 | D191: Valderrama Salvador | E191: 3 | F191: 2 | G191: =IFERROR(VLOOKUP($D191,'2. Runde Gruppen'!$D$3:$I$20,4,FALSE),0) -> 0 | H191: =IFERROR(VLOOKUP($D191,'2. Runde Gruppen'!$D$3:$I$20,5,FALSE),0) -> 0 | I191: =IFERROR(VLOOKUP($D191,Finals!$B$4:$I$26,2,FALSE),0) -> 1 | J191: =IFERROR(VLOOKUP($D191,Finals!$B$4:$I$26,8,FALSE),0) -> 2 | N191: =IFERROR(VLOOKUP($D191,Finals!$J$6:$P$24,2,FALSE),0) -> 0 | O191: =IFERROR(VLOOKUP($D191,Finals!$J$6:$P$24,7,FALSE),0) -> 0 | Q191: =IFERROR(VLOOKUP($D191,Finals!$Q$10:$W$20,2,FALSE),0) -> 0 | R191: =IFERROR(VLOOKUP($D191,Finals!$Q$10:$W$20,7,FALSE),0) -> 0 | S191: =IFERROR(VLOOKUP($D191,Finals!$X$14:$AD$15,2,FALSE),0) -> 0 | T191: =IFERROR(VLOOKUP($D191,Finals!$X$14:$AD$15,7,FALSE),0) -> 0 | U191: 4 | V191: 4 | W191: 8 | X191: 0.5
C192: =A138 -> 23 | D192: Weber Marco | E192: 4 | F192: 0 | G192: =IFERROR(VLOOKUP($D192,'2. Runde Gruppen'!$D$3:$I$20,4,FALSE),0) -> 0 | H192: =IFERROR(VLOOKUP($D192,'2. Runde Gruppen'!$D$3:$I$20,5,FALSE),0) -> 0 | I192: =IFERROR(VLOOKUP($D192,Finals!$B$4:$I$26,2,FALSE),0) -> 2 | J192: =IFERROR(VLOOKUP($D192,Finals!$B$4:$I$26,8,FALSE),0) -> 0 | N192: =IFERROR(VLOOKUP($D192,Finals!$J$6:$P$24,2,FALSE),0) -> 2 | O192: =IFERROR(VLOOKUP($D192,Finals!$J$6:$P$24,7,FALSE),0) -> 0 | Q192: =IFERROR(VLOOKUP($D192,Finals!$Q$10:$W$20,2,FALSE),0) -> 2 | R192: =IFERROR(VLOOKUP($D192,Finals!$Q$10:$W$20,7,FALSE),0) -> 0 | S192: =IFERROR(VLOOKUP($D192,Finals!$X$14:$AD$15,2,FALSE),0) -> 2 | T192: =IFERROR(VLOOKUP($D192,Finals!$X$14:$AD$15,7,FALSE),0) -> 0 | U192: 12 | V192: 0 | W192: 12 | X192: 1
C193: =A139 -> 24 | D193: Witzik Oliver | E193: 4 | F193: 0 | G193: =IFERROR(VLOOKUP($D193,'2. Runde Gruppen'!$D$3:$I$20,4,FALSE),0) -> 0 | H193: =IFERROR(VLOOKUP($D193,'2. Runde Gruppen'!$D$3:$I$20,5,FALSE),0) -> 0 | I193: =IFERROR(VLOOKUP($D193,Finals!$B$4:$I$26,2,FALSE),0) -> 0 | J193: =IFERROR(VLOOKUP($D193,Finals!$B$4:$I$26,8,FALSE),0) -> 2 | N193: =IFERROR(VLOOKUP($D193,Finals!$J$6:$P$24,2,FALSE),0) -> 0 | O193: =IFERROR(VLOOKUP($D193,Finals!$J$6:$P$24,7,FALSE),0) -> 0 | Q193: =IFERROR(VLOOKUP($D193,Finals!$Q$10:$W$20,2,FALSE),0) -> 0 | R193: =IFERROR(VLOOKUP($D193,Finals!$Q$10:$W$20,7,FALSE),0) -> 0 | S193: =IFERROR(VLOOKUP($D193,Finals!$X$14:$AD$15,2,FALSE),0) -> 0 | T193: =IFERROR(VLOOKUP($D193,Finals!$X$14:$AD$15,7,FALSE),0) -> 0 | U193: 4 | V193: 2 | W193: 6 | X193: 0.6666666667
C194: =A140 -> 25 | E194: 0 | F194: 0 | G194: =IFERROR(VLOOKUP($D194,'2. Runde Gruppen'!$D$3:$I$20,4,FALSE),0) -> 0 | H194: =IFERROR(VLOOKUP($D194,'2. Runde Gruppen'!$D$3:$I$20,5,FALSE),0) -> 0 | I194: =IFERROR(VLOOKUP($D194,Finals!$B$4:$I$26,2,FALSE),0) -> 0 | J194: =IFERROR(VLOOKUP($D194,Finals!$B$4:$I$26,8,FALSE),0) -> 0 | N194: =IFERROR(VLOOKUP($D194,Finals!$J$6:$P$24,2,FALSE),0) -> 0 | O194: =IFERROR(VLOOKUP($D194,Finals!$J$6:$P$24,7,FALSE),0) -> 0 | Q194: =IFERROR(VLOOKUP($D194,Finals!$Q$10:$W$20,2,FALSE),0) -> 0 | R194: =IFERROR(VLOOKUP($D194,Finals!$Q$10:$W$20,7,FALSE),0) -> 0 | S194: =IFERROR(VLOOKUP($D194,Finals!$X$14:$AD$15,2,FALSE),0) -> 0 | T194: =IFERROR(VLOOKUP($D194,Finals!$X$14:$AD$15,7,FALSE),0) -> 0 | U194: 0 | V194: 0 | W194: 0
C195: =A141 -> 26 | E195: 0 | F195: 0 | G195: =IFERROR(VLOOKUP($D195,'2. Runde Gruppen'!$D$3:$I$20,4,FALSE),0) -> 0 | H195: =IFERROR(VLOOKUP($D195,'2. Runde Gruppen'!$D$3:$I$20,5,FALSE),0) -> 0 | I195: =IFERROR(VLOOKUP($D195,Finals!$B$4:$I$26,2,FALSE),0) -> 0 | J195: =IFERROR(VLOOKUP($D195,Finals!$B$4:$I$26,8,FALSE),0) -> 0 | N195: =IFERROR(VLOOKUP($D195,Finals!$J$6:$P$24,2,FALSE),0) -> 0 | O195: =IFERROR(VLOOKUP($D195,Finals!$J$6:$P$24,7,FALSE),0) -> 0 | Q195: =IFERROR(VLOOKUP($D195,Finals!$Q$10:$W$20,2,FALSE),0) -> 0 | R195: =IFERROR(VLOOKUP($D195,Finals!$Q$10:$W$20,7,FALSE),0) -> 0 | S195: =IFERROR(VLOOKUP($D195,Finals!$X$14:$AD$15,2,FALSE),0) -> 0 | T195: =IFERROR(VLOOKUP($D195,Finals!$X$14:$AD$15,7,FALSE),0) -> 0 | U195: 0 | V195: 0 | W195: 0
C196: =A142 -> 27 | E196: 0 | F196: 0 | G196: =IFERROR(VLOOKUP($D196,'2. Runde Gruppen'!$D$3:$I$20,4,FALSE),0) -> 0 | H196: =IFERROR(VLOOKUP($D196,'2. Runde Gruppen'!$D$3:$I$20,5,FALSE),0) -> 0 | I196: =IFERROR(VLOOKUP($D196,Finals!$B$4:$I$26,2,FALSE),0) -> 0 | J196: =IFERROR(VLOOKUP($D196,Finals!$B$4:$I$26,8,FALSE),0) -> 0 | N196: =IFERROR(VLOOKUP($D196,Finals!$J$6:$P$24,2,FALSE),0) -> 0 | O196: =IFERROR(VLOOKUP($D196,Finals!$J$6:$P$24,7,FALSE),0) -> 0 | Q196: =IFERROR(VLOOKUP($D196,Finals!$Q$10:$W$20,2,FALSE),0) -> 0 | R196: =IFERROR(VLOOKUP($D196,Finals!$Q$10:$W$20,7,FALSE),0) -> 0 | S196: =IFERROR(VLOOKUP($D196,Finals!$X$14:$AD$15,2,FALSE),0) -> 0 | T196: =IFERROR(VLOOKUP($D196,Finals!$X$14:$AD$15,7,FALSE),0) -> 0 | U196: 0 | V196: 0 | W196: 0
C197: =A143 -> 28 | E197: 0 | F197: 0 | G197: =IFERROR(VLOOKUP($D197,'2. Runde Gruppen'!$D$3:$I$20,4,FALSE),0) -> 0 | H197: =IFERROR(VLOOKUP($D197,'2. Runde Gruppen'!$D$3:$I$20,5,FALSE),0) -> 0 | I197: =IFERROR(VLOOKUP($D197,Finals!$B$4:$I$26,2,FALSE),0) -> 0 | J197: =IFERROR(VLOOKUP($D197,Finals!$B$4:$I$26,8,FALSE),0) -> 0 | N197: =IFERROR(VLOOKUP($D197,Finals!$J$6:$P$24,2,FALSE),0) -> 0 | O197: =IFERROR(VLOOKUP($D197,Finals!$J$6:$P$24,7,FALSE),0) -> 0 | Q197: =IFERROR(VLOOKUP($D197,Finals!$Q$10:$W$20,2,FALSE),0) -> 0 | R197: =IFERROR(VLOOKUP($D197,Finals!$Q$10:$W$20,7,FALSE),0) -> 0 | S197: =IFERROR(VLOOKUP($D197,Finals!$X$14:$AD$15,2,FALSE),0) -> 0 | T197: =IFERROR(VLOOKUP($D197,Finals!$X$14:$AD$15,7,FALSE),0) -> 0 | U197: 0 | V197: 0 | W197: 0
C198: =A144 -> 29 | E198: 0 | F198: 0 | G198: =IFERROR(VLOOKUP($D198,'2. Runde Gruppen'!$D$3:$I$20,4,FALSE),0) -> 0 | H198: =IFERROR(VLOOKUP($D198,'2. Runde Gruppen'!$D$3:$I$20,5,FALSE),0) -> 0 | I198: =IFERROR(VLOOKUP($D198,Finals!$B$4:$I$26,2,FALSE),0) -> 0 | J198: =IFERROR(VLOOKUP($D198,Finals!$B$4:$I$26,8,FALSE),0) -> 0 | N198: =IFERROR(VLOOKUP($D198,Finals!$J$6:$P$24,2,FALSE),0) -> 0 | O198: =IFERROR(VLOOKUP($D198,Finals!$J$6:$P$24,7,FALSE),0) -> 0 | Q198: =IFERROR(VLOOKUP($D198,Finals!$Q$10:$W$20,2,FALSE),0) -> 0 | R198: =IFERROR(VLOOKUP($D198,Finals!$Q$10:$W$20,7,FALSE),0) -> 0 | S198: =IFERROR(VLOOKUP($D198,Finals!$X$14:$AD$15,2,FALSE),0) -> 0 | T198: =IFERROR(VLOOKUP($D198,Finals!$X$14:$AD$15,7,FALSE),0) -> 0 | U198: 0 | V198: 0 | W198: 0
C199: =A145 -> 30 | E199: 0 | F199: 0 | G199: =IFERROR(VLOOKUP($D199,'2. Runde Gruppen'!$D$3:$I$20,4,FALSE),0) -> 0 | H199: =IFERROR(VLOOKUP($D199,'2. Runde Gruppen'!$D$3:$I$20,5,FALSE),0) -> 0 | I199: =IFERROR(VLOOKUP($D199,Finals!$B$4:$I$26,2,FALSE),0) -> 0 | J199: =IFERROR(VLOOKUP($D199,Finals!$B$4:$I$26,8,FALSE),0) -> 0 | N199: =IFERROR(VLOOKUP($D199,Finals!$J$6:$P$24,2,FALSE),0) -> 0 | O199: =IFERROR(VLOOKUP($D199,Finals!$J$6:$P$24,7,FALSE),0) -> 0 | Q199: =IFERROR(VLOOKUP($D199,Finals!$Q$10:$W$20,2,FALSE),0) -> 0 | R199: =IFERROR(VLOOKUP($D199,Finals!$Q$10:$W$20,7,FALSE),0) -> 0 | S199: =IFERROR(VLOOKUP($D199,Finals!$X$14:$AD$15,2,FALSE),0) -> 0 | T199: =IFERROR(VLOOKUP($D199,Finals!$X$14:$AD$15,7,FALSE),0) -> 0 | U199: 0 | V199: 0 | W199: 0
C200: =A146 -> 31 | E200: 0 | F200: 0 | G200: =IFERROR(VLOOKUP($D200,'2. Runde Gruppen'!$D$3:$I$20,4,FALSE),0) -> 0 | H200: =IFERROR(VLOOKUP($D200,'2. Runde Gruppen'!$D$3:$I$20,5,FALSE),0) -> 0 | I200: =IFERROR(VLOOKUP($D200,Finals!$B$4:$I$26,2,FALSE),0) -> 0 | J200: =IFERROR(VLOOKUP($D200,Finals!$B$4:$I$26,8,FALSE),0) -> 0 | N200: =IFERROR(VLOOKUP($D200,Finals!$J$6:$P$24,2,FALSE),0) -> 0 | O200: =IFERROR(VLOOKUP($D200,Finals!$J$6:$P$24,7,FALSE),0) -> 0 | Q200: =IFERROR(VLOOKUP($D200,Finals!$Q$10:$W$20,2,FALSE),0) -> 0 | R200: =IFERROR(VLOOKUP($D200,Finals!$Q$10:$W$20,7,FALSE),0) -> 0 | S200: =IFERROR(VLOOKUP($D200,Finals!$X$14:$AD$15,2,FALSE),0) -> 0 | T200: =IFERROR(VLOOKUP($D200,Finals!$X$14:$AD$15,7,FALSE),0) -> 0 | U200: 0 | V200: 0 | W200: 0
C201: =A147 -> 32 | E201: 0 | F201: 0 | G201: =IFERROR(VLOOKUP($D201,'2. Runde Gruppen'!$D$3:$I$20,4,FALSE),0) -> 0 | H201: =IFERROR(VLOOKUP($D201,'2. Runde Gruppen'!$D$3:$I$20,5,FALSE),0) -> 0 | I201: =IFERROR(VLOOKUP($D201,Finals!$B$4:$I$26,2,FALSE),0) -> 0 | J201: =IFERROR(VLOOKUP($D201,Finals!$B$4:$I$26,8,FALSE),0) -> 0 | N201: =IFERROR(VLOOKUP($D201,Finals!$J$6:$P$24,2,FALSE),0) -> 0 | O201: =IFERROR(VLOOKUP($D201,Finals!$J$6:$P$24,7,FALSE),0) -> 0 | Q201: =IFERROR(VLOOKUP($D201,Finals!$Q$10:$W$20,2,FALSE),0) -> 0 | R201: =IFERROR(VLOOKUP($D201,Finals!$Q$10:$W$20,7,FALSE),0) -> 0 | S201: =IFERROR(VLOOKUP($D201,Finals!$X$14:$AD$15,2,FALSE),0) -> 0 | T201: =IFERROR(VLOOKUP($D201,Finals!$X$14:$AD$15,7,FALSE),0) -> 0 | U201: 0 | V201: 0 | W201: 0
C202: =A148 -> 33 | E202: 0 | F202: 0 | G202: =IFERROR(VLOOKUP($D202,'2. Runde Gruppen'!$D$3:$I$20,4,FALSE),0) -> 0 | H202: =IFERROR(VLOOKUP($D202,'2. Runde Gruppen'!$D$3:$I$20,5,FALSE),0) -> 0 | I202: =IFERROR(VLOOKUP($D202,Finals!$B$4:$I$26,2,FALSE),0) -> 0 | J202: =IFERROR(VLOOKUP($D202,Finals!$B$4:$I$26,8,FALSE),0) -> 0 | N202: =IFERROR(VLOOKUP($D202,Finals!$J$6:$P$24,2,FALSE),0) -> 0 | O202: =IFERROR(VLOOKUP($D202,Finals!$J$6:$P$24,7,FALSE),0) -> 0 | Q202: =IFERROR(VLOOKUP($D202,Finals!$Q$10:$W$20,2,FALSE),0) -> 0 | R202: =IFERROR(VLOOKUP($D202,Finals!$Q$10:$W$20,7,FALSE),0) -> 0 | S202: =IFERROR(VLOOKUP($D202,Finals!$X$14:$AD$15,2,FALSE),0) -> 0 | T202: =IFERROR(VLOOKUP($D202,Finals!$X$14:$AD$15,7,FALSE),0) -> 0 | U202: 0 | V202: 0 | W202: 0
C203: =A149 -> 34 | E203: 0 | F203: 0 | G203: =IFERROR(VLOOKUP($D203,'2. Runde Gruppen'!$D$3:$I$20,4,FALSE),0) -> 0 | H203: =IFERROR(VLOOKUP($D203,'2. Runde Gruppen'!$D$3:$I$20,5,FALSE),0) -> 0 | I203: =IFERROR(VLOOKUP($D203,Finals!$B$4:$I$26,2,FALSE),0) -> 0 | J203: =IFERROR(VLOOKUP($D203,Finals!$B$4:$I$26,8,FALSE),0) -> 0 | N203: =IFERROR(VLOOKUP($D203,Finals!$J$6:$P$24,2,FALSE),0) -> 0 | O203: =IFERROR(VLOOKUP($D203,Finals!$J$6:$P$24,7,FALSE),0) -> 0 | Q203: =IFERROR(VLOOKUP($D203,Finals!$Q$10:$W$20,2,FALSE),0) -> 0 | R203: =IFERROR(VLOOKUP($D203,Finals!$Q$10:$W$20,7,FALSE),0) -> 0 | S203: =IFERROR(VLOOKUP($D203,Finals!$X$14:$AD$15,2,FALSE),0) -> 0 | T203: =IFERROR(VLOOKUP($D203,Finals!$X$14:$AD$15,7,FALSE),0) -> 0 | U203: 0 | V203: 0 | W203: 0
C204: =A150 -> 35 | E204: 0 | F204: 0 | G204: =IFERROR(VLOOKUP($D204,'2. Runde Gruppen'!$D$3:$I$20,4,FALSE),0) -> 0 | H204: =IFERROR(VLOOKUP($D204,'2. Runde Gruppen'!$D$3:$I$20,5,FALSE),0) -> 0 | I204: =IFERROR(VLOOKUP($D204,Finals!$B$4:$I$26,2,FALSE),0) -> 0 | J204: =IFERROR(VLOOKUP($D204,Finals!$B$4:$I$26,8,FALSE),0) -> 0 | N204: =IFERROR(VLOOKUP($D204,Finals!$J$6:$P$24,2,FALSE),0) -> 0 | O204: =IFERROR(VLOOKUP($D204,Finals!$J$6:$P$24,7,FALSE),0) -> 0 | Q204: =IFERROR(VLOOKUP($D204,Finals!$Q$10:$W$20,2,FALSE),0) -> 0 | R204: =IFERROR(VLOOKUP($D204,Finals!$Q$10:$W$20,7,FALSE),0) -> 0 | S204: =IFERROR(VLOOKUP($D204,Finals!$X$14:$AD$15,2,FALSE),0) -> 0 | T204: =IFERROR(VLOOKUP($D204,Finals!$X$14:$AD$15,7,FALSE),0) -> 0 | U204: 0 | V204: 0 | W204: 0
... 5 more rows

Sheet 2. Runde Gruppen (hidden)
A1: =Spieler!S12 -> 24 | D1: Zwischenrunde R2 - 3 Länder Ranking (GST-Serie)
A2: A | C2: R2 | D2: Spieler | E2: M | F2: W | G2: L | H2: F+ | I2: F- | M2: Rang | N2: Rang | O2: P+ | S2: Spieler | T2: Spieler | V2: Breaks 30+ | Z2: F+ | AA2: F- | AF2: Breaks 30+ | AQ2: Freigabe-Code Finals
B3: A1 | C3: =IF(AND(Spieler!$AG$1="X",Spieler!$S$12<21),"",'2. Runde Gruppen'!B3) -> A1 | D3: =IFERROR(IF(C3="","",IF(AND(Spieler!AG1="X",Spieler!AG2<21),"",VLOOKUP(B3,Berechnung!$CP$90:$CQ$101,2,FALSE))),"") -> Gärtner David | E3: =AB3+AB4 -> 0 | F3: =AC3+AC4 -> 0 | G3: =AD3+AD4 -> 0 | H3: =Z3+Z4 -> 0 | I3: =AA3+AA4 -> 0 | M3: =IF(D3="",(-90000),(F3*1000)+(H3*100)+E3-(G3*500)-(I3*50)+O3) -> 0 | N3: =IF(E3=0,"",RANK(M3,M3:M5)) ->  | P3: =IF(D3="","",D3) -> Gärtner David | R3: 1 | S3: =D3 -> Gärtner David | T3: =D4 -> Delling Tino | AJ3: =IFERROR(LARGE(V3:Y3,1),"") ->  | AK3: =S3 -> Gärtner David | AL3: =IFERROR(LARGE(AF3:AI3,1),"") ->  | AM3: =T3 -> Delling Tino | AN3: =IF(V3>0,1)+IF(W3>0,1)+IF(X3>0,1)+IF(Y3>0,1) -> 0 | AO3: =IF(AF3>0,1)+IF(AG3>0,1)+IF(AH3>0,1)+IF(AI3>0,1) -> 0
B4: A2 | C4: =IF(AND(Spieler!$AG$1="X",Spieler!$S$12<21),"",'2. Runde Gruppen'!B4) -> A2 | D4: =IFERROR(IF(C3="","",IF(AND(Spieler!AG1="X",Spieler!AG2<21),"",VLOOKUP(B4,Berechnung!$CP$90:$CQ$101,2,FALSE))),"") -> Delling Tino | E4: =AB3+AB5 -> 0 | F4: =AD3+AC5 -> 0 | G4: =AC3+AD5 -> 0 | H4: =AA3+Z5 -> 0 | I4: =Z3+AA5 -> 0 | M4: =IF(D4="",(-90000),(F4*1000)+(H4*100)+E4-(G4*500)-(I4*50)+O4) -> 0 | N4: =IF(E4=0,"",RANK(M4,M3:M5)) ->  | P4: =IF(D4="","",D4) -> Delling Tino | R4: 2 | S4: =D3 -> Gärtner David | T4: =D5 -> Behling Oliver | AB4: =IF(Z4+AA4>0,1,0) -> 0 | AC4: =IF(Z4>AA4,1,0) -> 0 | AD4: =IF(AA4>Z4,1,0) -> 0 | AJ4: =IFERROR(LARGE(V4:Y4,1),"") ->  | AK4: =S4 -> Gärtner David | AL4: =IFERROR(LARGE(AF4:AI4,1),"") ->  | AM4: =T4 -> Behling Oliver | AN4: =IF(V4>0,1)+IF(W4>0,1)+IF(X4>0,1)+IF(Y4>0,1) -> 0 | AO4: =IF(AF4>0,1)+IF(AG4>0,1)+IF(AH4>0,1)+IF(AI4>0,1) -> 0
B5: A3 | C5: =IF(AND(Spieler!$AG$1="X",Spieler!$S$12<21),"",'2. Runde Gruppen'!B5) -> A3 | D5: =IFERROR(IF(C3="","",IF(AND(Spieler!AG1="X",Spieler!AG2<21),"",VLOOKUP(B9,Berechnung!$CP$90:$CQ$101,2,FALSE))),"") -> Behling Oliver | E5: =AB4+AB5 -> 0 | F5: =AD4+AD5 -> 0 | G5: =AC4+AC5 -> 0 | H5: =AA4+AA5 -> 0 | I5: =Z4+Z5 -> 0 | M5: =IF(D5="",(-90000),(F5*1000)+(H5*100)+E5-(G5*500)-(I5*50)+O5) -> 0 | N5: =IF(E5=0,"",RANK(M5,M3:M5)) ->  | P5: =IF(D5="","",D5) -> Behling Oliver | R5: 3 | S5: =D4 -> Delling Tino | T5: =D5 -> Behling Oliver | AB5: =IF(Z5+AA5>0,1,0) -> 0 | AC5: =IF(Z5>AA5,1,0) -> 0 | AD5: =IF(AA5>Z5,1,0) -> 0 | AJ5: =IFERROR(LARGE(V5:Y5,1),"") ->  | AK5: Delling Tino | AL5: =IFERROR(LARGE(AF5:AI5,1),"") ->  | AM5: Behling Oliver | AN5: =IF(V5>0,1)+IF(W5>0,1)+IF(X5>0,1)+IF(Y5>0,1) -> 0 | AO5: =IF(AF5>0,1)+IF(AG5>0,1)+IF(AH5>0,1)+IF(AI5>0,1) -> 0
A7: B | C7: R2 | D7: Spieler | E7: M | F7: W | G7: L | H7: F+ | I7: F- | M7: Rang | N7: Rang | O7: P+ | S7: Spieler | T7: Spieler | V7: Breaks 30+ | Z7: F+ | AA7: F- | AF7: Breaks 30+
B8: B1 | C8: =IF(AND(Spieler!$AG$1="X",Spieler!$S$12<21),"",'2. Runde Gruppen'!B8) -> B1 | D8: =IFERROR(IF(C3="","",IF(AND(Spieler!AG1="X",Spieler!AG2<21),"",VLOOKUP(B8,Berechnung!$CP$90:$CQ$101,2,FALSE))),"") -> Weber Marco | E8: =AB8+AB9 -> 0 | F8: =AC8+AC9 -> 0 | G8: =AD8+AD9 -> 0 | H8: =Z8+Z9 -> 0 | I8: =AA8+AA9 -> 0 | M8: =IF(D8="",(-90000),(F8*1000)+(H8*100)+E8-(G8*500)-(I8*50)+O8) -> 0 | N8: =IF(E8=0,"",RANK(M8,M8:M10)) ->  | P8: =IF(D8="","",D8) -> Weber Marco | R8: 1 | S8: =D8 -> Weber Marco | T8: =D9 -> Suttner Magnus | AB8: =IF(Z8+AA8>0,1,0) -> 0 | AC8: =IF(Z8>AA8,1,0) -> 0 | AD8: =IF(AA8>Z8,1,0) -> 0 | AJ8: =IFERROR(LARGE(V8:Y8,1),"") ->  | AK8: Weber Marco | AL8: =IFERROR(LARGE(AF8:AI8,1),"") ->  | AM8: Suttner Magnus | AN8: =IF(V8>0,1)+IF(W8>0,1)+IF(X8>0,1)+IF(Y8>0,1) -> 0 | AO8: =IF(AF8>0,1)+IF(AG8>0,1)+IF(AH8>0,1)+IF(AI8>0,1) -> 0
B9: B2 | C9: =IF(AND(Spieler!$AG$1="X",Spieler!$S$12<21),"",'2. Runde Gruppen'!B9) -> B2 | D9: =IFERROR(IF(C3="","",IF(AND(Spieler!AG1="X",Spieler!AG2<21),"",VLOOKUP(B5,Berechnung!$CP$90:$CQ$101,2,FALSE))),"") -> Suttner Magnus | E9: =AB8+AB10 -> 0 | F9: =AD8+AC10 -> 0 | G9: =AC8+AD10 -> 0 | H9: =AA8+Z10 -> 0 | I9: =Z8+AA10 -> 0 | M9: =IF(D9="",(-90000),(F9*1000)+(H9*100)+E9-(G9*500)-(I9*50)+O9) -> 0 | N9: =IF(E9=0,"",RANK(M9,M8:M10)) ->  | P9: =IF(D9="","",D9) -> Suttner Magnus | R9: 2 | S9: =D8 -> Weber Marco | T9: =D10 -> Müller Marcus | AB9: =IF(Z9+AA9>0,1,0) -> 0 | AC9: =IF(Z9>AA9,1,0) -> 0 | AD9: =IF(AA9>Z9,1,0) -> 0 | AJ9: =IFERROR(LARGE(V9:Y9,1),"") ->  | AK9: Weber Marco | AL9: =IFERROR(LARGE(AF9:AI9,1),"") ->  | AM9: Müller Marcus | AN9: =IF(V9>0,1)+IF(W9>0,1)+IF(X9>0,1)+IF(Y9>0,1) -> 0 | AO9: =IF(AF9>0,1)+IF(AG9>0,1)+IF(AH9>0,1)+IF(AI9>0,1) -> 0
B10: B3 | C10: =IF(AND(Spieler!$AG$1="X",Spieler!$S$12<21),"",'2. Runde Gruppen'!B10) -> B3 | D10: =IFERROR(IF(C3="","",IF(AND(Spieler!AG1="X",Spieler!AG2<21),"",VLOOKUP(B15,Berechnung!$CP$90:$CQ$101,2,FALSE))),"") -> Müller Marcus | E10: =AB9+AB10 -> 0 | F10: =AD9+AD10 -> 0 | G10: =AC9+AC10 -> 0 | H10: =AA9+AA10 -> 0 | I10: =Z9+Z10 -> 0 | M10: =IF(D10="",(-90000),(F10*1000)+(H10*100)+E10-(G10*500)-(I10*50)+O10) -> 0 | N10: =IF(E10=0,"",RANK(M10,M8:M10)) ->  | P10: =IF(D10="","",D10) -> Müller Marcus | R10: 3 | S10: =D9 -> Suttner Magnus | T10: =D10 -> Müller Marcus | AB10: =IF(Z10+AA10>0,1,0) -> 0 | AC10: =IF(Z10>AA10,1,0) -> 0 | AD10: =IF(AA10>Z10,1,0) -> 0 | AJ10: =IFERROR(LARGE(V10:Y10,1),"") ->  | AK10: Suttner Magnus | AL10: =IFERROR(LARGE(AF10:AI10,1),"") ->  | AM10: Müller Marcus | AN10: =IF(V10>0,1)+IF(W10>0,1)+IF(X10>0,1)+IF(Y10>0,1) -> 0 | AO10: =IF(AF10>0,1)+IF(AG10>0,1)+IF(AH10>0,1)+IF(AI10>0,1) -> 0
A12: C | C12: R2 | D12: Spieler | E12: M | F12: W | G12: L | H12: F+ | I12: F- | M12: Rang | N12: Rang | O12: P+ | S12: Spieler | T12: Spieler | V12: Breaks 30+ | Z12: F+ | AA12: F- | AF12: Breaks 30+
B13: C1 | C13: =IF(AND(Spieler!$AG$1="X",Spieler!$S$12<21),"",'2. Runde Gruppen'!B13) -> C1 | D13: =IFERROR(IF(C3="","",IF(AND(Spieler!AG1="X",Spieler!AG2<21),"",VLOOKUP(B13,Berechnung!$CP$90:$CQ$101,2,FALSE))),"") -> Witzik Oliver | E13: =AB13+AB14 -> 0 | F13: =AC13+AC14 -> 0 | G13: =AD13+AD14 -> 0 | H13: =Z13+Z14 -> 0 | I13: =AA13+AA14 -> 0 | M13: =IF(D13="",(-90000),(F13*1000)+(H13*100)+E13-(G13*500)-(I13*50)+O13) -> 0 | N13: =IF(E13=0,"",RANK(M13,M13:M15)) ->  | P13: =IF(D13="","",D13) -> Witzik Oliver | R13: 1 | S13: =D13 -> Witzik Oliver | T13: =D14 -> Valderrama Salvador | AJ13: =IFERROR(LARGE(V13:Y13,1),"") ->  | AK13: Witzik Oliver | AL13: =IFERROR(LARGE(AF13:AI13,1),"") ->  | AM13: Valderrama Salvador | AN13: =IF(V13>0,1)+IF(W13>0,1)+IF(X13>0,1)+IF(Y13>0,1) -> 0 | AO13: =IF(AF13>0,1)+IF(AG13>0,1)+IF(AH13>0,1)+IF(AI13>0,1) -> 0
B14: C2 | C14: =IF(AND(Spieler!$AG$1="X",Spieler!$S$12<21),"",'2. Runde Gruppen'!B14) -> C2 | D14: =IFERROR(IF(C3="","",IF(AND(Spieler!AG1="X",Spieler!AG2<21),"",VLOOKUP(B14,Berechnung!$CP$90:$CQ$101,2,FALSE))),"") -> Valderrama Salvador | E14: =AB13+AB15 -> 0 | F14: =AD13+AC15 -> 0 | G14: =AC13+AD15 -> 0 | H14: =AA13+Z15 -> 0 | I14: =Z13+AA15 -> 0 | M14: =IF(D14="",(-90000),(F14*1000)+(H14*100)+E14-(G14*500)-(I14*50)+O14) -> 0 | N14: =IF(E14=0,"",RANK(M14,M13:M15)) ->  | P14: =IF(D14="","",D14) -> Valderrama Salvador | R14: 2 | S14: =D13 -> Witzik Oliver | T14: =D15 -> Fandrei Andreas | AB14: =IF(Z14+AA14>0,1,0) -> 0 | AC14: =IF(Z14>AA14,1,0) -> 0 | AD14: =IF(AA14>Z14,1,0) -> 0 | AJ14: =IFERROR(LARGE(V14:Y14,1),"") ->  | AK14: Witzik Oliver | AL14: =IFERROR(LARGE(AF14:AI14,1),"") ->  | AM14: Fandrei Andreas | AN14: =IF(V14>0,1)+IF(W14>0,1)+IF(X14>0,1)+IF(Y14>0,1) -> 0 | AO14: =IF(AF14>0,1)+IF(AG14>0,1)+IF(AH14>0,1)+IF(AI14>0,1) -> 0
B15: C3 | C15: =IF(AND(Spieler!$AG$1="X",Spieler!$S$12<21),"",'2. Runde Gruppen'!B15) -> C3 | D15: =IFERROR(IF(C3="","",IF(AND(Spieler!AG1="X",Spieler!AG2<21),"",VLOOKUP(B10,Berechnung!$CP$90:$CQ$101,2,FALSE))),"") -> Fandrei Andreas | E15: =AB14+AB15 -> 0 | F15: =AD14+AD15 -> 0 | G15: =AC14+AC15 -> 0 | H15: =AA14+AA15 -> 0 | I15: =Z14+Z15 -> 0 | M15: =IF(D15="",(-90000),(F15*1000)+(H15*100)+E15-(G15*500)-(I15*50)+O15) -> 0 | N15: =IF(E15=0,"",RANK(M15,M13:M15)) ->  | P15: =IF(D15="","",D15) -> Fandrei Andreas | R15: 3 | S15: =D14 -> Valderrama Salvador | T15: =D15 -> Fandrei Andreas | AB15: =IF(Z15+AA15>0,1,0) -> 0 | AC15: =IF(Z15>AA15,1,0) -> 0 | AD15: =IF(AA15>Z15,1,0) -> 0 | AJ15: =IFERROR(LARGE(V15:Y15,1),"") ->  | AK15: Valderrama Salvador | AL15: =IFERROR(LARGE(AF15:AI15,1),"") ->  | AM15: Fandrei Andreas | AN15: =IF(V15>0,1)+IF(W15>0,1)+IF(X15>0,1)+IF(Y15>0,1) -> 0 | AO15: =IF(AF15>0,1)+IF(AG15>0,1)+IF(AH15>0,1)+IF(AI15>0,1) -> 0
A17: D | C17: R2 | D17: Spieler | E17: M | F17: W | G17: L | H17: F+ | I17: F- | M17: Rang | N17: Rang | O17: P+ | S17: Spieler | T17: Spieler | V17: Breaks 30+ | Z17: F+ | AA17: F- | AF17: Breaks 30+
B18: D1 | C18: =IF(AND(Spieler!$AG$1="X",Spieler!$S$12<21),"",'2. Runde Gruppen'!B18) -> D1 | D18: =IFERROR(IF(C3="","",IF(AND(Spieler!AG1="X",Spieler!AG2<21),"",VLOOKUP(B18,Berechnung!$CP$90:$CQ$101,2,FALSE))),"") -> Straßburger Marko | E18: =AB18+AB19 -> 0 | F18: =AC18+AC19 -> 0 | G18: =AD18+AD19 -> 0 | H18: =Z18+Z19 -> 0 | I18: =AA18+AA19 -> 0 | M18: =IF(D18="",(-90000),(F18*1000)+(H18*100)+E18-(G18*500)-(I18*50)+O18) -> 0 | N18: =IF(E18=0,"",RANK(M18,M18:M20)) ->  | P18: =IF(D18="","",D18) -> Straßburger Marko | R18: 1 | S18: =D18 -> Straßburger Marko | T18: =D19 -> Jeroch Paul | AB18: =IF(Z18+AA18>0,1,0) -> 0 | AC18: =IF(Z18>AA18,1,0) -> 0 | AD18: =IF(AA18>Z18,1,0) -> 0 | AJ18: =IFERROR(LARGE(V18:Y18,1),"") ->  | AK18: Straßburger Marko | AL18: =IFERROR(LARGE(AF18:AI18,1),"") ->  | AM18: Jeroch Paul | AN18: =IF(V18>0,1)+IF(W18>0,1)+IF(X18>0,1)+IF(Y18>0,1) -> 0 | AO18: =IF(AF18>0,1)+IF(AG18>0,1)+IF(AH18>0,1)+IF(AI18>0,1) -> 0
B19: D2 | C19: =IF(AND(Spieler!$AG$1="X",Spieler!$S$12<21),"",'2. Runde Gruppen'!B19) -> D2 | D19: =IFERROR(IF(C3="","",IF(AND(Spieler!AG1="X",Spieler!AG2<21),"",VLOOKUP(B19,Berechnung!$CP$90:$CQ$101,2,FALSE))),"") -> Jeroch Paul | E19: =AB18+AB20 -> 0 | F19: =AD18+AC20 -> 0 | G19: =AC18+AD20 -> 0 | H19: =AA18+Z20 -> 0 | I19: =Z18+AA20 -> 0 | M19: =IF(D19="",(-90000),(F19*1000)+(H19*100)+E19-(G19*500)-(I19*50)+O19) -> 0 | N19: =IF(E19=0,"",RANK(M19,M18:M20)) ->  | P19: =IF(D19="","",D19) -> Jeroch Paul | R19: 2 | S19: =D18 -> Straßburger Marko | T19: =D20 -> Drahn Robert | AB19: =IF(Z19+AA19>0,1,0) -> 0 | AC19: =IF(Z19>AA19,1,0) -> 0 | AD19: =IF(AA19>Z19,1,0) -> 0 | AJ19: =IFERROR(LARGE(V19:Y19,1),"") ->  | AK19: Straßburger Marko | AL19: =IFERROR(LARGE(AF19:AI19,1),"") ->  | AM19: Drahn Robert | AN19: =IF(V19>0,1)+IF(W19>0,1)+IF(X19>0,1)+IF(Y19>0,1) -> 0 | AO19: =IF(AF19>0,1)+IF(AG19>0,1)+IF(AH19>0,1)+IF(AI19>0,1) -> 0
B20: D3 | C20: =IF(AND(Spieler!$AG$1="X",Spieler!$S$12<21),"",'2. Runde Gruppen'!B20) -> D3 | D20: =IFERROR(IF(C3="","",IF(AND(Spieler!AG1="X",Spieler!AG2<21),"",VLOOKUP(B20,Berechnung!$CP$90:$CQ$101,2,FALSE))),"") -> Drahn Robert | E20: =AB19+AB20 -> 0 | F20: =AD19+AD20 -> 0 | G20: =AC19+AC20 -> 0 | H20: =AA19+AA20 -> 0 | I20: =Z19+Z20 -> 0 | M20: =IF(D20="",(-90000),(F20*1000)+(H20*100)+E20-(G20*500)-(I20*50)+O20) -> 0 | N20: =IF(E20=0,"",RANK(M20,M18:M20)) ->  | P20: =IF(D20="","",D20) -> Drahn Robert | R20: 3 | S20: =D19 -> Jeroch Paul | T20: =D20 -> Drahn Robert | AB20: =IF(Z20+AA20>0,1,0) -> 0 | AC20: =IF(Z20>AA20,1,0) -> 0 | AD20: =IF(AA20>Z20,1,0) -> 0 | AJ20: =IFERROR(LARGE(V20:Y20,1),"") ->  | AK20: Jeroch Paul | AL20: =IFERROR(LARGE(AF20:AI20,1),"") ->  | AM20: Drahn Robert | AN20: =IF(V20>0,1)+IF(W20>0,1)+IF(X20>0,1)+IF(Y20>0,1) -> 0 | AO20: =IF(AF20>0,1)+IF(AG20>0,1)+IF(AH20>0,1)+IF(AI20>0,1) -> 0
AJ21: =IFERROR(LARGE(AJ3:AJ20,1),0) -> 0 | AL21: =IFERROR(LARGE(AL3:AL20,1),0) -> 0 | AN21: =SUM(AN3:AN20) -> 0 | AO21: =SUM(AO3:AO20) -> 0
Z23: =SUM(Z3:AA20) -> 0 | AI23: HB | AJ23: =IFERROR(IF(AND(AJ21=0,AL21=0),"",IF(AJ21>AL21,AJ21,AL21)),"") -> 
AI24: Anzahl | AJ24: =AN21+AO21 -> 0
AI25: 1 | AJ25: =IFERROR(VLOOKUP(AJ21,AJ3:AK20,2,FALSE),"") -> 
AI26: 2 | AJ26: =IFERROR(VLOOKUP(AL21,AL3:AM20,2,FALSE),"") -> 
AI27: HB | AJ27: =IFERROR(IF(AND(AJ21=0,AL21=0),"",IF(AJ21>AL21,AJ25,AJ26)),"") -> 

Sheet Finals
A1: =Spieler!S12 -> 24 | B1: Finals - 3 Länder Ranking - GST Serie | AF1: Ranking
A2: =Spieler!AG1 -> X | B2: Achtelfinals | C2: Bo3 | D2: Break 30+ | J2: Viertelfinals | V2: Platzierung | Y2: Auswertung | AF2: Pl. | AG2: Spieler | AH2: Pkt. | AI2: Quote % | AJ2: F+ | AK2: F-
A4: 1 | B4: =IFERROR(IF(AND($A$1=24,$A$2=""),"",IF($A$1>23,VLOOKUP(1,'1. Runde Gruppen'!$N$3:$P$7,3,FALSE),"")),"") -> Gärtner David | C4: 2 | G4: =B4 -> Gärtner David | I4: =C5 -> 0 | J4: =D4 -> 0 | V4: 1. | X4: =IF(Y14=Y15,"",IF(Y15>Y14,X15,X14)) -> Weber Marco | Y4: Highbreak R1 | AF4: =IFERROR(Berechnung!BO116,"") -> 1 | AG4: =IFERROR(IF(Spieler!$I$2="","",Berechnung!BP116),"") -> Weber Marco | AH4: =IFERROR(IF(Spieler!$S$11="SR",Berechnung!BT116,Berechnung!BQ116),"") -> 410.0036 | AI4: =IFERROR(VLOOKUP(AG4,Berechnung!$D$170:$X$209,21,FALSE),"") -> 1 | AJ4: =IFERROR(IF(AG4="","",VLOOKUP(AG4,Berechnung!$D$170:$V$209,18,FALSE)),"") -> 12 | AK4: =IFERROR(IF(AG4="","",VLOOKUP(AG4,Berechnung!$D$170:$V$209,19,FALSE)),"") -> 0
B5: Fandrei Andreas | C5: 0 | G5: =B5 -> Fandrei Andreas | I5: =C4 -> 2 | J5: =D5 -> 0 | K5: Bo3 | L5: Break 30+ | V5: 2. | X5: =IF(Y14=Y15,"",IF(Y15>Y14,X14,X15)) -> Jeroch Paul | Y5: =Matches!AB85 -> 63 | Z5: =Matches!AB84 -> Jeroch Paul | AF5: =IFERROR(Berechnung!BO117,"") -> 2 | AG5: =IFERROR(IF(Spieler!$I$2="","",Berechnung!BP117),"") -> Jeroch Paul | AH5: =IFERROR(IF(Spieler!$S$11="SR",Berechnung!BT117,Berechnung!BQ117),"") -> 350.0056 | AI5: =IFERROR(VLOOKUP(AG5,Berechnung!$D$170:$X$209,21,FALSE),"") -> 0.6666666667 | AJ5: =IFERROR(IF(AG5="","",VLOOKUP(AG5,Berechnung!$D$170:$V$209,18,FALSE)),"") -> 10 | AK5: =IFERROR(IF(AG5="","",VLOOKUP(AG5,Berechnung!$D$170:$V$209,19,FALSE)),"") -> 5
H6: 1 | J6: =IFERROR(IF(AND($A$1=24,$A$2=""),VLOOKUP(1,'2. Runde Gruppen'!N3:P5,3,FALSE),IF(AND(Spieler!AG1="X",Spieler!S12<21),VLOOKUP(1,'1. Runde Gruppen'!N3:P7,3,FALSE),IF(AND(A1>11,A1<17),VLOOKUP(1,'1. Runde Gruppen'!$N$3:$P$7,3,FALSE),IF(A1=11,VLOOKUP(1,'1. Runde Gruppen'!$N$3:$P$7,3,FALSE),IF(AND($A$1>16,$A$1<24),VLOOKUP(1,'2. Runde Gruppen'!$N$3:$P$5,3,FALSE),IF(C4=C5,"",IF(C4>C5,B4,B5))))))),"") -> Gärtner David | K6: 0 | O6: =J6 -> Gärtner David | P6: =K7 -> 2 | V6: 3. | X6: =X23 -> Müller Marcus | Y6: Highbreak R2 | AF6: =IFERROR(Berechnung!BO118,"") -> 3 | AG6: =IFERROR(IF(Spieler!$I$2="","",Berechnung!BP118),"") -> Fandrei Joel | AH6: =IFERROR(IF(Spieler!$S$11="SR",Berechnung!BT118,Berechnung!BQ118),"") -> 275.0066 | AI6: =IFERROR(VLOOKUP(AG6,Berechnung!$D$170:$X$209,21,FALSE),"") -> 0.6428571429 | AJ6: =IFERROR(IF(AG6="","",VLOOKUP(AG6,Berechnung!$D$170:$V$209,18,FALSE)),"") -> 9 | AK6: =IFERROR(IF(AG6="","",VLOOKUP(AG6,Berechnung!$D$170:$V$209,19,FALSE)),"") -> 5
A7: 2 | B7: =IFERROR(IF(AND($A$1=24,$A$2=""),"",IF($A$1>23,VLOOKUP(1,'1. Runde Gruppen'!$AD$3:$AF$7,3,FALSE),"")),"") -> Weber Marco | C7: 2 | D7: 35 | E7: 64 | G7: Weber Marco | I7: =C8 -> 0 | J7: =IFERROR(IF(AND($A$1=24,$A$2=""),VLOOKUP(2,'2. Runde Gruppen'!N18:P20,3,FALSE),IF(AND(Spieler!AG1="X",Spieler!S12<21),VLOOKUP(2,'1. Runde Gruppen'!AD11:AF15,3,FALSE),IF(AND(A1>11,A1<17),VLOOKUP(2,'1. Runde Gruppen'!$AD$11:$AF$15,3,FALSE),IF(A1=11,VLOOKUP(2,'1. Runde Gruppen'!$N$11:$P$15,3,FALSE),IF(AND($A$1>16,$A$1<24),VLOOKUP(2,'2. Runde Gruppen'!$N$18:$P$20,3,FALSE),IF(C7=C8,"",IF(C7>C8,B7,B8))))))),"") -> Weber Marco | K7: 2 | O7: =J7 -> Weber Marco | P7: =K6 -> 0 | V7: 3. | X7: =X24 -> Fandrei Joel | Y7: ='2. Runde Gruppen'!AJ23 ->  | Z7: ='2. Runde Gruppen'!AJ27 ->  | AF7: =IFERROR(Berechnung!BO119,"") -> 4 | AG7: =IFERROR(IF(Spieler!$I$2="","",Berechnung!BP119),"") -> Müller Marcus | AH7: =IFERROR(IF(Spieler!$S$11="SR",Berechnung!BT119,Berechnung!BQ119),"") -> 260.0052 | AI7: =IFERROR(VLOOKUP(AG7,Berechnung!$D$170:$X$209,21,FALSE),"") -> 0.5454545455 | AJ7: =IFERROR(IF(AG7="","",VLOOKUP(AG7,Berechnung!$D$170:$V$209,18,FALSE)),"") -> 6 | AK7: =IFERROR(IF(AG7="","",VLOOKUP(AG7,Berechnung!$D$170:$V$209,19,FALSE)),"") -> 5
B8: Hofmann Frank | C8: 0 | G8: Hofmann Frank | I8: =C7 -> 2 | Y8: Highbreak Finals | AF8: =IFERROR(Berechnung!BO120,"") -> 5 | AG8: =IFERROR(IF(Spieler!$I$2="","",Berechnung!BP120),"") -> Delling Tino | AH8: =IFERROR(IF(Spieler!$S$11="SR",Berechnung!BT120,Berechnung!BQ120),"") -> 185.0074 | AI8: =IFERROR(VLOOKUP(AG8,Berechnung!$D$170:$X$209,21,FALSE),"") -> 0.7777777778 | AJ8: =IFERROR(IF(AG8="","",VLOOKUP(AG8,Berechnung!$D$170:$V$209,18,FALSE)),"") -> 7 | AK8: =IFERROR(IF(AG8="","",VLOOKUP(AG8,Berechnung!$D$170:$V$209,19,FALSE)),"") -> 2
Q9: Halbfinale 1 | R9: Bo3 | S9: Break 30+ | Y9: =A64 -> 64 | Z9: =B64 -> Weber Marco | AF9: =IFERROR(Berechnung!BO121,"") -> 6 | AG9: =IFERROR(IF(Spieler!$I$2="","",Berechnung!BP121),"") -> Stachly Marec | AH9: =IFERROR(IF(Spieler!$S$11="SR",Berechnung!BT121,Berechnung!BQ121),"") -> 185.0048 | AI9: =IFERROR(VLOOKUP(AG9,Berechnung!$D$170:$X$209,21,FALSE),"") -> 0.7 | AJ9: =IFERROR(IF(AG9="","",VLOOKUP(AG9,Berechnung!$D$170:$V$209,18,FALSE)),"") -> 7 | AK9: =IFERROR(IF(AG9="","",VLOOKUP(AG9,Berechnung!$D$170:$V$209,19,FALSE)),"") -> 3
A10: 3 | B10: =IFERROR(IF(AND($A$1=24,$A$2=""),"",IF($A$1>23,VLOOKUP(1,'1. Runde Gruppen'!$N$11:$P$15,3,FALSE),"")),"") -> Witzik Oliver | C10: 0 | G10: Witzik Oliver | I10: =C11 -> 2 | O10: 1 | Q10: =IFERROR(IF(A1<11,VLOOKUP(1,'1. Runde Gruppen'!$N$3:$P$7,3,FALSE),IF(K6=K7,"",IF(K6>K7,J6,J7))),"") -> Weber Marco | R10: 2 | V10: =Q10 -> Weber Marco | W10: =R11 -> 0 | Y10: =Y52+R52+K52+C52+'2. Runde Gruppen'!Z23+Matches!O83 -> 91 | Z10: gespielte Frames | AF10: =IFERROR(Berechnung!BO122,"") -> 7 | AG10: =IFERROR(IF(Spieler!$I$2="","",Berechnung!BP122),"") -> Gärtner David | AH10: =IFERROR(IF(Spieler!$S$11="SR",Berechnung!BT122,Berechnung!BQ122),"") -> 180.0064 | AI10: =IFERROR(VLOOKUP(AG10,Berechnung!$D$170:$X$209,21,FALSE),"") -> 0.6 | AJ10: =IFERROR(IF(AG10="","",VLOOKUP(AG10,Berechnung!$D$170:$V$209,18,FALSE)),"") -> 6 | AK10: =IFERROR(IF(AG10="","",VLOOKUP(AG10,Berechnung!$D$170:$V$209,19,FALSE)),"") -> 4
B11: Thomas Moritz | C11: 2 | D11: 38 | G11: Thomas Moritz | I11: =C10 -> 0 | K11: =K5 -> Bo3 | L11: Break 30+ | Q11: =IFERROR(IF(A1<11,VLOOKUP(2,'1. Runde Gruppen'!$AD$3:$AF$7,3,FALSE),IF(K12=K13,"",IF(K12>K13,J12,J13))),"") -> Müller Marcus | R11: 0 | V11: =Q11 -> Müller Marcus | W11: =R10 -> 2 | Y11: =SUM(Z53+S53+L53+D53+'2. Runde Gruppen'!AJ24+Matches!AD82+Matches!AE82) -> 14 | Z11: Breaks 30+ | AF11: =IFERROR(Berechnung!BO123,"") -> 8 | AG11: =IFERROR(IF(Spieler!$I$2="","",Berechnung!BP123),"") -> Thomas Moritz | AH11: =IFERROR(IF(Spieler!$S$11="SR",Berechnung!BT123,Berechnung!BQ123),"") -> 175.004 | AI11: =IFERROR(VLOOKUP(AG11,Berechnung!$D$170:$X$209,21,FALSE),"") -> 0.5 | AJ11: =IFERROR(IF(AG11="","",VLOOKUP(AG11,Berechnung!$D$170:$V$209,18,FALSE)),"") -> 5 | AK11: =IFERROR(IF(AG11="","",VLOOKUP(AG11,Berechnung!$D$170:$V$209,19,FALSE)),"") -> 5
H12: 2 | J12: =IFERROR(IF(AND($A$1=24,$A$2=""),VLOOKUP(1,'2. Runde Gruppen'!N8:P10,3,FALSE),IF(AND(Spieler!AG1="X",Spieler!S12<21),VLOOKUP(1,'1. Runde Gruppen'!AD3:AF7,3,FALSE),IF(AND(A1>11,A1<17),VLOOKUP(1,'1. Runde Gruppen'!$AD$3:$AF$7,3,FALSE),IF(A1=11,VLOOKUP(1,'1. Runde Gruppen'!$AD$3:$AF$7,3,FALSE),IF(AND($A$1>16,$A$1<24),VLOOKUP(1,'2. Runde Gruppen'!$N$8:$P$10,3,FALSE),IF(C10=C11,"",IF(C10>C11,B10,B11))))))),"") -> Thomas Moritz | K12: 0 | O12: =J12 -> Thomas Moritz | P12: =K13 -> 2 | AF12: =IFERROR(Berechnung!BO124,"") -> 9 | AG12: =IFERROR(IF(Spieler!$I$2="","",Berechnung!BP124),"") -> Straßburger Marko | AH12: =IFERROR(IF(Spieler!$S$11="SR",Berechnung!BT124,Berechnung!BQ124),"") -> 125.0046 | AI12: =IFERROR(VLOOKUP(AG12,Berechnung!$D$170:$X$209,21,FALSE),"") -> 0.5555555556 | AJ12: =IFERROR(IF(AG12="","",VLOOKUP(AG12,Berechnung!$D$170:$V$209,18,FALSE)),"") -> 5 | AK12: =IFERROR(IF(AG12="","",VLOOKUP(AG12,Berechnung!$D$170:$V$209,19,FALSE)),"") -> 4
A13: 4 | B13: =IFERROR(IF(AND($A$1=24,$A$2=""),"",IF($A$1>23,VLOOKUP(1,'1. Runde Gruppen'!$AD$11:$AF$15,3,FALSE),"")),"") -> Straßburger Marko | C13: 1 | G13: Straßburger Marko | I13: =C14 -> 2 | J13: =IFERROR(IF(AND($A$1=24,$A$2=""),VLOOKUP(2,'2. Runde Gruppen'!N13:P15,3,FALSE),IF(AND(Spieler!AG1="X",Spieler!S12<21),VLOOKUP(2,'1. Runde Gruppen'!N11:P15,3,FALSE),IF(AND(A1>11,A1<17),VLOOKUP(2,'1. Runde Gruppen'!$N$11:$P$15,3,FALSE),IF(A1=11,VLOOKUP(3,'1. Runde Gruppen'!$N$3:$P$7,3,FALSE),IF(AND($A$1>16,$A$1<24),VLOOKUP(2,'2. Runde Gruppen'!$N$13:$P$15,3,FALSE),IF(C13=C14,"",IF(C13>C14,B13,B14))))))),"") -> Müller Marcus | K13: 2 | O13: =J13 -> Müller Marcus | P13: =K12 -> 0 | X13: Finale | Y13: Bo3 / 5 | Z13: Break 30+ | AF13: =IFERROR(Berechnung!BO125,"") -> 10 | AG13: =IFERROR(IF(Spieler!$I$2="","",Berechnung!BP125),"") -> Suttner Magnus | AH13: =IFERROR(IF(Spieler!$S$11="SR",Berechnung!BT125,Berechnung!BQ125),"") -> 120.0044 | AI13: =IFERROR(VLOOKUP(AG13,Berechnung!$D$170:$X$209,21,FALSE),"") -> 0.5 | AJ13: =IFERROR(IF(AG13="","",VLOOKUP(AG13,Berechnung!$D$170:$V$209,18,FALSE)),"") -> 4 | AK13: =IFERROR(IF(AG13="","",VLOOKUP(AG13,Berechnung!$D$170:$V$209,19,FALSE)),"") -> 4
B14: Müller Marcus | C14: 2 | F14: 31 | G14: Müller Marcus | I14: =C13 -> 1 | X14: =IF(R10=R11,"",IF(R10>R11,Q10,Q11)) -> Weber Marco | Y14: 2 | AD14: =Y15 -> 0 | AE14: =X14 -> Weber Marco | AF14: =IFERROR(Berechnung!BO126,"") -> 11 | AG14: =IFERROR(IF(Spieler!$I$2="","",Berechnung!BP126),"") -> Valderrama Salvador | AH14: =IFERROR(IF(Spieler!$S$11="SR",Berechnung!BT126,Berechnung!BQ126),"") -> 120.0038 | AI14: =IFERROR(VLOOKUP(AG14,Berechnung!$D$170:$X$209,21,FALSE),"") -> 0.5 | AJ14: =IFERROR(IF(AG14="","",VLOOKUP(AG14,Berechnung!$D$170:$V$209,18,FALSE)),"") -> 4 | AK14: =IFERROR(IF(AG14="","",VLOOKUP(AG14,Berechnung!$D$170:$V$209,19,FALSE)),"") -> 4
X15: =IF(R19=R20,"",IF(R19>R20,Q19,Q20)) -> Jeroch Paul | Y15: 0 | AD15: =Y14 -> 2 | AE15: =X15 -> Jeroch Paul | AF15: =IFERROR(Berechnung!BO127,"") -> 12 | AG15: =IFERROR(IF(Spieler!$I$2="","",Berechnung!BP127),"") -> Witzik Oliver | AH15: =IFERROR(IF(Spieler!$S$11="SR",Berechnung!BT127,Berechnung!BQ127),"") -> 120.0034 | AI15: =IFERROR(VLOOKUP(AG15,Berechnung!$D$170:$X$209,21,FALSE),"") -> 0.6666666667 | AJ15: =IFERROR(IF(AG15="","",VLOOKUP(AG15,Berechnung!$D$170:$V$209,18,FALSE)),"") -> 4 | AK15: =IFERROR(IF(AG15="","",VLOOKUP(AG15,Berechnung!$D$170:$V$209,19,FALSE)),"") -> 2
A16: 5 | B16: Delling Tino | C16: 2 | G16: Delling Tino | I16: =C17 -> 0 | K16: =K5 -> Bo3 | L16: Break 30+ | AF16: =IFERROR(Berechnung!BO128,"") -> 13 | AG16: =IFERROR(IF(Spieler!$I$2="","",Berechnung!BP128),"") -> Behling Oliver | AH16: =IFERROR(IF(Spieler!$S$11="SR",Berechnung!BT128,Berechnung!BQ128),"") -> 110.008 | AI16: =IFERROR(VLOOKUP(AG16,Berechnung!$D$170:$X$209,21,FALSE),"") -> 0.3333333333 | AJ16: =IFERROR(IF(AG16="","",VLOOKUP(AG16,Berechnung!$D$170:$V$209,18,FALSE)),"") -> 2 | AK16: =IFERROR(IF(AG16="","",VLOOKUP(AG16,Berechnung!$D$170:$V$209,19,FALSE)),"") -> 4
B17: Behling Oliver | C17: 0 | G17: Behling Oliver | H17: 3 | I17: =C16 -> 2 | J17: =IFERROR(IF(AND($A$1=24,$A$2=""),VLOOKUP(1,'2. Runde Gruppen'!N13:P15,3,FALSE),IF(AND(Spieler!AG1="X",Spieler!S12<21),VLOOKUP(1,'1. Runde Gruppen'!N11:P15,3,FALSE),IF(AND(A1>11,A1<17),VLOOKUP(1,'1. Runde Gruppen'!$N$11:$P$15,3,FALSE),IF(A1=11,VLOOKUP(1,'1. Runde Gruppen'!$N$11:$P$15,3,FALSE),IF(AND($A$1>16,$A$1<24),VLOOKUP(1,'2. Runde Gruppen'!$N$13:$P$15,3,FALSE),IF(C16=C17,"",IF(C16>C17,B16,B17))))))),"") -> Delling Tino | K17: 1 | O17: =J17 -> Delling Tino | P17: =K18 -> 2 | AF17: =IFERROR(Berechnung!BO129,"") -> 14 | AG17: =IFERROR(IF(Spieler!$I$2="","",Berechnung!BP129),"") -> Drahn Robert | AH17: =IFERROR(IF(Spieler!$S$11="SR",Berechnung!BT129,Berechnung!BQ129),"") -> 110.0072 | AI17: =IFERROR(VLOOKUP(AG17,Berechnung!$D$170:$X$209,21,FALSE),"") -> 0.3333333333 | AJ17: =IFERROR(IF(AG17="","",VLOOKUP(AG17,Berechnung!$D$170:$V$209,18,FALSE)),"") -> 2 | AK17: =IFERROR(IF(AG17="","",VLOOKUP(AG17,Berechnung!$D$170:$V$209,19,FALSE)),"") -> 4
J18: =IFERROR(IF(AND($A$1=24,$A$2=""),VLOOKUP(2,'2. Runde Gruppen'!N8:P10,3,FALSE),IF(AND(Spieler!AG1="X",Spieler!S12<21),VLOOKUP(2,'1. Runde Gruppen'!AD3:AF7,3,FALSE),IF(AND(A1>11,A1<17),VLOOKUP(2,'1. Runde Gruppen'!$AD$3:$AF$7,3,FALSE),IF(A1=11,VLOOKUP(3,'1. Runde Gruppen'!$AD$3:$AF$7,3,FALSE),IF(AND($A$1>16,$A$1<24),VLOOKUP(2,'2. Runde Gruppen'!$N$8:$P$10,3,FALSE),IF(C19=C20,"",IF(C19>C20,B19,B20))))))),"") -> Jeroch Paul | K18: 2 | O18: =J18 -> Jeroch Paul | P18: =K17 -> 1 | Q18: Halbfinale 2 | R18: =R9 -> Bo3 | S18: Break 30+ | AF18: =IFERROR(Berechnung!BO130,"") -> 15 | AG18: =IFERROR(IF(Spieler!$I$2="","",Berechnung!BP130),"") -> Fandrei Andreas | AH18: =IFERROR(IF(Spieler!$S$11="SR",Berechnung!BT130,Berechnung!BQ130),"") -> 110.0068 | AI18: =IFERROR(VLOOKUP(AG18,Berechnung!$D$170:$X$209,21,FALSE),"") -> 0.3333333333 | AJ18: =IFERROR(IF(AG18="","",VLOOKUP(AG18,Berechnung!$D$170:$V$209,18,FALSE)),"") -> 2 | AK18: =IFERROR(IF(AG18="","",VLOOKUP(AG18,Berechnung!$D$170:$V$209,19,FALSE)),"") -> 4
A19: 6 | B19: =IFERROR(IF(AND($A$1=24,$A$2=""),"",IF($A$1>23,VLOOKUP(1,'1. Runde Gruppen'!$AD$19:$AF$23,3,FALSE),"")),"") -> Jeroch Paul | C19: 2 | G19: Jeroch Paul | I19: =C20 -> 0 | O19: 2 | Q19: =IFERROR(IF(A1<11,VLOOKUP(1,'1. Runde Gruppen'!$AD$3:$AF$7,3,FALSE),IF(K17=K18,"",IF(K17>K18,J17,J18))),"") -> Jeroch Paul | R19: 2 | V19: =Q19 -> Jeroch Paul | W19: =R20 -> 1 | AF19: =IFERROR(Berechnung!BO131,"") -> 16 | AG19: =IFERROR(IF(Spieler!$I$2="","",Berechnung!BP131),"") -> Hofmann Frank | AH19: =IFERROR(IF(Spieler!$S$11="SR",Berechnung!BT131,Berechnung!BQ131),"") -> 110.006 | AI19: =IFERROR(VLOOKUP(AG19,Berechnung!$D$170:$X$209,21,FALSE),"") -> 0.3333333333 | AJ19: =IFERROR(IF(AG19="","",VLOOKUP(AG19,Berechnung!$D$170:$V$209,18,FALSE)),"") -> 2 | AK19: =IFERROR(IF(AG19="","",VLOOKUP(AG19,Berechnung!$D$170:$V$209,19,FALSE)),"") -> 4
B20: Drahn Robert | C20: 0 | G20: Drahn Robert | I20: =C19 -> 2 | Q20: =IFERROR(IF(A1<11,VLOOKUP(2,'1. Runde Gruppen'!$N$3:$P$7,3,FALSE),IF(K23=K24,"",IF(K23>K24,J23,J24))),"") -> Fandrei Joel | R20: 1 | V20: =Q20 -> Fandrei Joel | W20: =R19 -> 2 | AF20: =IFERROR(Berechnung!BO132,"") -> 17 | AG20: =IFERROR(IF(Spieler!$I$2="","",Berechnung!BP132),"") -> Brachmanski Dave | AH20: =IFERROR(IF(Spieler!$S$11="SR",Berechnung!BT132,Berechnung!BQ132),"") -> 55.0078 | AI20: =IFERROR(VLOOKUP(AG20,Berechnung!$D$170:$X$209,21,FALSE),"") -> 0.2 | AJ20: =IFERROR(IF(AG20="","",VLOOKUP(AG20,Berechnung!$D$170:$V$209,18,FALSE)),"") -> 1 | AK20: =IFERROR(IF(AG20="","",VLOOKUP(AG20,Berechnung!$D$170:$V$209,19,FALSE)),"") -> 4
AF21: =IFERROR(Berechnung!BO133,"") -> 18 | AG21: =IFERROR(IF(Spieler!$I$2="","",Berechnung!BP133),"") -> Elham Faiz | AH21: =IFERROR(IF(Spieler!$S$11="SR",Berechnung!BT133,Berechnung!BQ133),"") -> 55.007 | AI21: =IFERROR(VLOOKUP(AG21,Berechnung!$D$170:$X$209,21,FALSE),"") -> 0.2 | AJ21: =IFERROR(IF(AG21="","",VLOOKUP(AG21,Berechnung!$D$170:$V$209,18,FALSE)),"") -> 1 | AK21: =IFERROR(IF(AG21="","",VLOOKUP(AG21,Berechnung!$D$170:$V$209,19,FALSE)),"") -> 4
A22: 7 | B22: =IFERROR(IF(AND($A$1=24,$A$2=""),"",IF($A$1>23,VLOOKUP(1,'1. Runde Gruppen'!$N$27:$P$31,3,FALSE),"")),"") -> Stachly Marec | C22: 2 | G22: Stachly Marec | I22: =C23 -> 1 | K22: =K5 -> Bo3 | L22: Break 30+ | X22: Spiel um Platz 3 | Y22: Bo1 | Z22: Break 30+ | AF22: =IFERROR(Berechnung!BO134,"") -> 19 | AG22: =IFERROR(IF(Spieler!$I$2="","",Berechnung!BP134),"") -> Hartung Andreas | AH22: =IFERROR(IF(Spieler!$S$11="SR",Berechnung!BT134,Berechnung!BQ134),"") -> 55.0062 | AI22: =IFERROR(VLOOKUP(AG22,Berechnung!$D$170:$X$209,21,FALSE),"") -> 0.2 | AJ22: =IFERROR(IF(AG22="","",VLOOKUP(AG22,Berechnung!$D$170:$V$209,18,FALSE)),"") -> 1 | AK22: =IFERROR(IF(AG22="","",VLOOKUP(AG22,Berechnung!$D$170:$V$209,19,FALSE)),"") -> 4
B23: Valderrama Salvador | C23: 1 | G23: Valderrama Salvador | H23: 4 | I23: =C22 -> 2 | J23: =IFERROR(IF(AND($A$1=24,$A$2=""),VLOOKUP(1,'2. Runde Gruppen'!N18:P20,3,FALSE),IF(AND(Spieler!AG1="X",Spieler!S12<21),VLOOKUP(1,'1. Runde Gruppen'!AD11:AF15,3,FALSE),IF(AND(A1>11,A1<17),VLOOKUP(1,'1. Runde Gruppen'!$AD$11:$AF$15,3,FALSE),IF(A1=11,VLOOKUP(2,'1. Runde Gruppen'!$N$3:$P$7,3,FALSE),IF(AND($A$1>16,$A$1<24),VLOOKUP(1,'2. Runde Gruppen'!$N$18:$P$20,3,FALSE),IF(C22=C23,"",IF(C22>C23,B22,B23))))))),"") -> Stachly Marec | K23: 1 | L23: 37 | O23: =J23 -> Stachly Marec | P23: =K24 -> 2 | X23: =IF(R10=R11,"",IF(R10<R11,Q10,Q11)) -> Müller Marcus | Y23: 0 | AE23: =X23 -> Müller Marcus | AF23: =IFERROR(Berechnung!BO135,"") -> 20 | AG23: =IFERROR(IF(Spieler!$I$2="","",Berechnung!BP135),"") -> Rejke Ronny | AH23: =IFERROR(IF(Spieler!$S$11="SR",Berechnung!BT135,Berechnung!BQ135),"") -> 55.005 | AI23: =IFERROR(VLOOKUP(AG23,Berechnung!$D$170:$X$209,21,FALSE),"") -> 0.2 | AJ23: =IFERROR(IF(AG23="","",VLOOKUP(AG23,Berechnung!$D$170:$V$209,18,FALSE)),"") -> 1 | AK23: =IFERROR(IF(AG23="","",VLOOKUP(AG23,Berechnung!$D$170:$V$209,19,FALSE)),"") -> 4
J24: =IFERROR(IF(AND($A$1=24,$A$2=""),VLOOKUP(2,'2. Runde Gruppen'!N3:P5,3,FALSE),IF(AND(Spieler!AG1="X",Spieler!S12<21),VLOOKUP(2,'1. Runde Gruppen'!N3:P7,3,FALSE),IF(AND(A1>11,A1<17),VLOOKUP(2,'1. Runde Gruppen'!$N$3:$P$7,3,FALSE),IF(A1=11,VLOOKUP(2,'1. Runde Gruppen'!$AD$3:$AF$7,3,FALSE),IF(AND($A$1>16,$A$1<24),VLOOKUP(2,'2. Runde Gruppen'!$N$3:$P$5,3,FALSE),IF(C25=C26,"",IF(C25>C26,B25,B26))))))),"") -> Fandrei Joel | K24: 2 | M24: 41 | N24: 45 | O24: =J24 -> Fandrei Joel | P24: =K23 -> 1 | X24: =IF(R20=R19,"",IF(R20>R19,Q19,Q20)) -> Fandrei Joel | Y24: 0 | AE24: =X24 -> Fandrei Joel | AF24: =IFERROR(Berechnung!BO136,"") -> 21 | AG24: =IFERROR(IF(Spieler!$I$2="","",Berechnung!BP136),"") -> Brömel Frank | AH24: =IFERROR(IF(Spieler!$S$11="SR",Berechnung!BT136,Berechnung!BQ136),"") -> 50.0076 | AI24: =IFERROR(VLOOKUP(AG24,Berechnung!$D$170:$X$209,21,FALSE),"") -> 0 | AJ24: =IFERROR(IF(AG24="","",VLOOKUP(AG24,Berechnung!$D$170:$V$209,18,FALSE)),"") -> 0 | AK24: =IFERROR(IF(AG24="","",VLOOKUP(AG24,Berechnung!$D$170:$V$209,19,FALSE)),"") -> 4
A25: 8 | B25: =IFERROR(IF(AND($A$1=24,$A$2=""),"",IF($A$1>23,VLOOKUP(1,'1. Runde Gruppen'!$AD$27:$AF$31,3,FALSE),"")),"") -> Fandrei Joel | C25: 2 | G25: Fandrei Joel | I25: =C26 -> 1 | Q25: speichert unter C:\Users\Public\Videos | X25: =IF(Q25=R26,"",IF(Q25>R26,#REF!,Q26)) ->  | AF25: =IFERROR(Berechnung!BO137,"") -> 22 | AG25: =IFERROR(IF(Spieler!$I$2="","",Berechnung!BP137),"") -> Isermann Rene | AH25: =IFERROR(IF(Spieler!$S$11="SR",Berechnung!BT137,Berechnung!BQ137),"") -> 50.0058 | AI25: =IFERROR(VLOOKUP(AG25,Berechnung!$D$170:$X$209,21,FALSE),"") -> 0 | AJ25: =IFERROR(IF(AG25="","",VLOOKUP(AG25,Berechnung!$D$170:$V$209,18,FALSE)),"") -> 0 | AK25: =IFERROR(IF(AG25="","",VLOOKUP(AG25,Berechnung!$D$170:$V$209,19,FALSE)),"") -> 4
B26: Suttner Magnus | C26: 1 | G26: Suttner Magnus | I26: =C25 -> 2 | Q26: =NOW()-TODAY() -> 12:39:24.400 | AF26: =IFERROR(Berechnung!BO138,"") -> 23 | AG26: =IFERROR(IF(Spieler!$I$2="","",Berechnung!BP138),"") -> Löffel Ulrich | AH26: =IFERROR(IF(Spieler!$S$11="SR",Berechnung!BT138,Berechnung!BQ138),"") -> 50.0054 | AI26: =IFERROR(VLOOKUP(AG26,Berechnung!$D$170:$X$209,21,FALSE),"") -> 0 | AJ26: =IFERROR(IF(AG26="","",VLOOKUP(AG26,Berechnung!$D$170:$V$209,18,FALSE)),"") -> 0 | AK26: =IFERROR(IF(AG26="","",VLOOKUP(AG26,Berechnung!$D$170:$V$209,19,FALSE)),"") -> 4
AF27: =IFERROR(Berechnung!BO139,"") -> 24 | AG27: =IFERROR(IF(Spieler!$I$2="","",Berechnung!BP139),"") -> Swennen Andy | AH27: =IFERROR(IF(Spieler!$S$11="SR",Berechnung!BT139,Berechnung!BQ139),"") -> 50.0042 | AI27: =IFERROR(VLOOKUP(AG27,Berechnung!$D$170:$X$209,21,FALSE),"") -> 0 | AJ27: =IFERROR(IF(AG27="","",VLOOKUP(AG27,Berechnung!$D$170:$V$209,18,FALSE)),"") -> 0 | AK27: =IFERROR(IF(AG27="","",VLOOKUP(AG27,Berechnung!$D$170:$V$209,19,FALSE)),"") -> 4
AF28: =IFERROR(Berechnung!BO140,"") ->  | AG28: =IFERROR(IF(Spieler!$I$2="","",Berechnung!BP140),"") ->  | AH28: =IFERROR(IF(Spieler!$S$11="SR",Berechnung!BT140,Berechnung!BQ140),"") ->  | AI28: =IFERROR(VLOOKUP(AG28,Berechnung!$D$170:$X$209,21,FALSE),"") ->  | AJ28: =IFERROR(IF(AG28="","",VLOOKUP(AG28,Berechnung!$D$170:$V$209,18,FALSE)),"") ->  | AK28: =IFERROR(IF(AG28="","",VLOOKUP(AG28,Berechnung!$D$170:$V$209,19,FALSE)),"") -> 
B29: Next Target: 16.03.2024 - Limbach-O. (6/10) | AF29: =IFERROR(Berechnung!BO141,"") ->  | AG29: =IFERROR(IF(Spieler!$I$2="","",Berechnung!BP141),"") ->  | AH29: =IFERROR(IF(Spieler!$S$11="SR",Berechnung!BT141,Berechnung!BQ141),"") ->  | AI29: =IFERROR(VLOOKUP(AG29,Berechnung!$D$170:$X$209,21,FALSE),"") ->  | AJ29: =IFERROR(IF(AG29="","",VLOOKUP(AG29,Berechnung!$D$170:$V$209,18,FALSE)),"") ->  | AK29: =IFERROR(IF(AG29="","",VLOOKUP(AG29,Berechnung!$D$170:$V$209,19,FALSE)),"") -> 
AF30: =IFERROR(Berechnung!BO142,"") ->  | AG30: =IFERROR(IF(Spieler!$I$2="","",Berechnung!BP142),"") ->  | AH30: =IFERROR(IF(Spieler!$S$11="SR",Berechnung!BT142,Berechnung!BQ142),"") ->  | AI30: =IFERROR(VLOOKUP(AG30,Berechnung!$D$170:$X$209,21,FALSE),"") ->  | AJ30: =IFERROR(IF(AG30="","",VLOOKUP(AG30,Berechnung!$D$170:$V$209,18,FALSE)),"") ->  | AK30: =IFERROR(IF(AG30="","",VLOOKUP(AG30,Berechnung!$D$170:$V$209,19,FALSE)),"") -> 
AF31: =IFERROR(Berechnung!BO143,"") ->  | AG31: =IFERROR(IF(Spieler!$I$2="","",Berechnung!BP143),"") ->  | AH31: =IFERROR(IF(Spieler!$S$11="SR",Berechnung!BT143,Berechnung!BQ143),"") ->  | AI31: =IFERROR(VLOOKUP(AG31,Berechnung!$D$170:$X$209,21,FALSE),"") ->  | AJ31: =IFERROR(IF(AG31="","",VLOOKUP(AG31,Berechnung!$D$170:$V$209,18,FALSE)),"") ->  | AK31: =IFERROR(IF(AG31="","",VLOOKUP(AG31,Berechnung!$D$170:$V$209,19,FALSE)),"") -> 
AF32: =IFERROR(Berechnung!BO144,"") ->  | AG32: =IFERROR(IF(Spieler!$I$2="","",Berechnung!BP144),"") ->  | AH32: =IFERROR(IF(Spieler!$S$11="SR",Berechnung!BT144,Berechnung!BQ144),"") ->  | AI32: =IFERROR(VLOOKUP(AG32,Berechnung!$D$170:$X$209,21,FALSE),"") ->  | AJ32: =IFERROR(IF(AG32="","",VLOOKUP(AG32,Berechnung!$D$170:$V$209,18,FALSE)),"") ->  | AK32: =IFERROR(IF(AG32="","",VLOOKUP(AG32,Berechnung!$D$170:$V$209,19,FALSE)),"") -> 
B33: Infos unter www.saxonian-snooker.de | AF33: =IFERROR(Berechnung!BO145,"") ->  | AG33: =IFERROR(IF(Spieler!$I$2="","",Berechnung!BP145),"") ->  | AH33: =IFERROR(IF(Spieler!$S$11="SR",Berechnung!BT145,Berechnung!BQ145),"") ->  | AI33: =IFERROR(VLOOKUP(AG33,Berechnung!$D$170:$X$209,21,FALSE),"") ->  | AJ33: =IFERROR(IF(AG33="","",VLOOKUP(AG33,Berechnung!$D$170:$V$209,18,FALSE)),"") ->  | AK33: =IFERROR(IF(AG33="","",VLOOKUP(AG33,Berechnung!$D$170:$V$209,19,FALSE)),"") -> 
AF34: =IFERROR(Berechnung!BO146,"") ->  | AG34: =IFERROR(IF(Spieler!$I$2="","",Berechnung!BP146),"") ->  | AH34: =IFERROR(IF(Spieler!$S$11="SR",Berechnung!BT146,Berechnung!BQ146),"") ->  | AI34: =IFERROR(VLOOKUP(AG34,Berechnung!$D$170:$X$209,21,FALSE),"") ->  | AJ34: =IFERROR(IF(AG34="","",VLOOKUP(AG34,Berechnung!$D$170:$V$209,18,FALSE)),"") ->  | AK34: =IFERROR(IF(AG34="","",VLOOKUP(AG34,Berechnung!$D$170:$V$209,19,FALSE)),"") -> 
AF35: =IFERROR(Berechnung!BO147,"") ->  | AG35: =IFERROR(IF(Spieler!$I$2="","",Berechnung!BP147),"") ->  | AH35: =IFERROR(IF(Spieler!$S$11="SR",Berechnung!BT147,Berechnung!BQ147),"") ->  | AI35: =IFERROR(VLOOKUP(AG35,Berechnung!$D$170:$X$209,21,FALSE),"") ->  | AJ35: =IFERROR(IF(AG35="","",VLOOKUP(AG35,Berechnung!$D$170:$V$209,18,FALSE)),"") ->  | AK35: =IFERROR(IF(AG35="","",VLOOKUP(AG35,Berechnung!$D$170:$V$209,19,FALSE)),"") -> 
AF36: =IFERROR(Berechnung!BO148,"") ->  | AG36: =IFERROR(IF(Spieler!$I$2="","",Berechnung!BP148),"") ->  | AH36: =IFERROR(IF(Spieler!$S$11="SR",Berechnung!BT148,Berechnung!BQ148),"") ->  | AI36: =IFERROR(VLOOKUP(AG36,Berechnung!$D$170:$X$209,21,FALSE),"") ->  | AJ36: =IFERROR(IF(AG36="","",VLOOKUP(AG36,Berechnung!$D$170:$V$209,18,FALSE)),"") ->  | AK36: =IFERROR(IF(AG36="","",VLOOKUP(AG36,Berechnung!$D$170:$V$209,19,FALSE)),"") -> 
A37: =Matches!AK9 -> 148 | B37: =Matches!Y12 -> TRUE | AF37: =IFERROR(Berechnung!BO149,"") ->  | AG37: =IFERROR(IF(Spieler!$I$2="","",Berechnung!BP149),"") ->  | AH37: =IFERROR(IF(Spieler!$S$11="SR",Berechnung!BT149,Berechnung!BQ149),"") ->  | AI37: =IFERROR(VLOOKUP(AG37,Berechnung!$D$170:$X$209,21,FALSE),"") ->  | AJ37: =IFERROR(IF(AG37="","",VLOOKUP(AG37,Berechnung!$D$170:$V$209,18,FALSE)),"") ->  | AK37: =IFERROR(IF(AG37="","",VLOOKUP(AG37,Berechnung!$D$170:$V$209,19,FALSE)),"") -> 
A38: A2 | B38: =IFERROR(IF(AND($A$1=24,$A$2="X"),"",IF($A$1>23,VLOOKUP(2,'1. Runde Gruppen'!$AD$27:$AF$31,3,FALSE),"")),"") ->  | C38: =RAND()*100 -> 45.77845893 | D38: =B38 ->  | J38: 63.66343632 | K38: =B38 ->  | L38: =LARGE($J$38:$J$41,1) -> 97.02427032 | M38: =VLOOKUP(L38,$J$38:$K$41,2,FALSE) ->  | AF38: =IFERROR(Berechnung!BO150,"") ->  | AG38: =IFERROR(IF(Spieler!$I$2="","",Berechnung!BP150),"") ->  | AH38: =IFERROR(IF(Spieler!$S$11="SR",Berechnung!BT150,Berechnung!BQ150),"") ->  | AI38: =IFERROR(VLOOKUP(AG38,Berechnung!$D$170:$X$209,21,FALSE),"") ->  | AJ38: =IFERROR(IF(AG38="","",VLOOKUP(AG38,Berechnung!$D$170:$V$209,18,FALSE)),"") ->  | AK38: =IFERROR(IF(AG38="","",VLOOKUP(AG38,Berechnung!$D$170:$V$209,19,FALSE)),"") -> 
A39: B2 | B39: =IFERROR(IF($A$1>23,VLOOKUP(2,'1. Runde Gruppen'!$N$27:$P$31,3,FALSE),""),"") -> Hofmann Frank | C39: 3.191861819 | D39: Hofmann Frank | J39: 74.66042717 | K39: =B39 -> Hofmann Frank | L39: =LARGE($J$38:$J$41,3) -> 74.66042717 | M39: =VLOOKUP(L39,$J$38:$K$41,2,FALSE) -> Hofmann Frank | AF39: =IFERROR(Berechnung!BO151,"") ->  | AG39: =IFERROR(IF(Spieler!$I$2="","",Berechnung!BP151),"") ->  | AH39: =IFERROR(IF(Spieler!$S$11="SR",Berechnung!BT151,Berechnung!BQ151),"") ->  | AI39: =IFERROR(VLOOKUP(AG39,Berechnung!$D$170:$X$209,21,FALSE),"") ->  | AJ39: =IFERROR(IF(AG39="","",VLOOKUP(AG39,Berechnung!$D$170:$V$209,18,FALSE)),"") ->  | AK39: =IFERROR(IF(AG39="","",VLOOKUP(AG39,Berechnung!$D$170:$V$209,19,FALSE)),"") -> 
A40: C2 | B40: =IFERROR(IF(AND($A$1=24,$A$2="X"),"",IF($A$1>23,VLOOKUP(2,'1. Runde Gruppen'!$AD$19:$AF$23,3,FALSE),"")),"") ->  | C40: 45.86204279 | J40: 84.05182728 | L40: =LARGE($J$38:$J$41,4) -> 63.66343632 | AF40: =IFERROR(Berechnung!BO152,"") ->  | AG40: =IFERROR(IF(Spieler!$I$2="","",Berechnung!BP152),"") ->  | AH40: =IFERROR(IF(Spieler!$S$11="SR",Berechnung!BT152,Berechnung!BQ152),"") ->  | AI40: =IFERROR(VLOOKUP(AG40,Berechnung!$D$170:$X$209,21,FALSE),"") ->  | AJ40: =IFERROR(IF(AG40="","",VLOOKUP(AG40,Berechnung!$D$170:$V$209,18,FALSE)),"") ->  | AK40: =IFERROR(IF(AG40="","",VLOOKUP(AG40,Berechnung!$D$170:$V$209,19,FALSE)),"") -> 
A41: D2 | B41: =IFERROR(IF(AND($A$1=24,$A$2="X"),"",IF($A$1>23,VLOOKUP(2,'1. Runde Gruppen'!$N$19:$P$23,3,FALSE),"")),"") ->  | C41: 6.256428537 | J41: 97.02427032 | L41: =LARGE($J$38:$J$41,2) -> 84.05182728 | AF41: =IFERROR(Berechnung!BO153,"") ->  | AG41: =IFERROR(IF(Spieler!$I$2="","",Berechnung!BP153),"") ->  | AH41: =IFERROR(IF(Spieler!$S$11="SR",Berechnung!BT153,Berechnung!BQ153),"") ->  | AI41: =IFERROR(VLOOKUP(AG41,Berechnung!$D$170:$X$209,21,FALSE),"") ->  | AJ41: =IFERROR(IF(AG41="","",VLOOKUP(AG41,Berechnung!$D$170:$V$209,18,FALSE)),"") ->  | AK41: =IFERROR(IF(AG41="","",VLOOKUP(AG41,Berechnung!$D$170:$V$209,19,FALSE)),"") -> 
A42: E2 | B42: =IFERROR(IF(AND($A$1=24,$A$2="X"),"",IF($A$1>23,VLOOKUP(2,'1. Runde Gruppen'!$AD$11:$AF$15,3,FALSE),"")),"") ->  | C42: 14.94049873 | J42: 14.87062761 | K42: =B42 ->  | L42: =LARGE($J$42:$J$45,1) -> 98.22855951 | M42: =VLOOKUP(L42,$J$42:$K$45,2,FALSE) ->  | AF42: =IFERROR(Berechnung!BO154,"") ->  | AG42: =IFERROR(IF(Spieler!$I$2="","",Berechnung!BP154),"") ->  | AH42: =IFERROR(IF(Spieler!$S$11="SR",Berechnung!BT154,Berechnung!BQ154),"") ->  | AI42: =IFERROR(VLOOKUP(AG42,Berechnung!$D$170:$X$209,21,FALSE),"") ->  | AJ42: =IFERROR(IF(AG42="","",VLOOKUP(AG42,Berechnung!$D$170:$V$209,18,FALSE)),"") ->  | AK42: =IFERROR(IF(AG42="","",VLOOKUP(AG42,Berechnung!$D$170:$V$209,19,FALSE)),"") -> 
A43: F2 | B43: =IFERROR(IF(AND($A$1=24,$A$2="X"),"",IF($A$1>23,VLOOKUP(2,'1. Runde Gruppen'!$N$11:$P$15,3,FALSE),"")),"") ->  | C43: 78.87887751 | J43: 98.22855951 | K43: =B43 ->  | L43: =LARGE($J$42:$J$45,3) -> 14.87062761 | M43: =VLOOKUP(L43,$J$42:$K$45,2,FALSE) ->  | AF43: =IFERROR(Berechnung!BO155,"") ->  | AG43: =IFERROR(IF(Spieler!$I$2="","",Berechnung!BP155),"") ->  | AH43: =IFERROR(IF(Spieler!$S$11="SR",Berechnung!BT155,Berechnung!BQ155),"") ->  | AI43: =IFERROR(VLOOKUP(AG43,Berechnung!$D$170:$X$209,21,FALSE),"") ->  | AJ43: =IFERROR(IF(AG43="","",VLOOKUP(AG43,Berechnung!$D$170:$V$209,18,FALSE)),"") ->  | AK43: =IFERROR(IF(AG43="","",VLOOKUP(AG43,Berechnung!$D$170:$V$209,19,FALSE)),"") -> 
A44: G2 | B44: =IFERROR(IF(AND($A$1=24,$A$2="X"),"",IF($A$1>23,VLOOKUP(2,'1. Runde Gruppen'!$AD$3:$AF$7,3,FALSE),"")),"") ->  | C44: 72.01003058 | J44: 94.20115664 | L44: =LARGE($J$42:$J$45,4) -> 3.872382822
A45: H2 | B45: =IFERROR(IF(AND($A$1=24,$A$2="X"),"",IF($A$1>23,VLOOKUP(2,'1. Runde Gruppen'!$N$3:$P$7,3,FALSE),"")),"") ->  | C45: 29.79740651 | J45: 3.872382822 | L45: =LARGE($J$42:$J$45,2) -> 94.20115664
A52: =IFERROR(LARGE(D4:D26,1),"") -> 38 | B52: =VLOOKUP(A52,$D$4:$I$26,4,FALSE) -> Thomas Moritz | C52: =SUM(C4:C26) -> 19 | D52: =IFERROR(LARGE(D4:F26,1),"") -> 64 | E52: =VLOOKUP(D52,E4:I26,4,FALSE) -> 0 | F52: =VLOOKUP(D52,F4:I26,3,FALSE) ->  | K52: =SUM(K4:K26) -> 10 | L52: =IFERROR(LARGE(L4:N26,1),"") -> 45 | M52: =VLOOKUP(L52,M4:P26,4,FALSE) ->  | N52: =VLOOKUP(L52,N4:P26,3,FALSE) -> 1 | R52: =SUM(R4:R26) -> 5 | S52: =IFERROR(LARGE(S4:U26,1),"") ->  | T52: =VLOOKUP(S52,T4:W26,4,FALSE) ->  | U52: =VLOOKUP(S52,U4:W26,3,FALSE) ->  | Y52: =SUM(Y14:Y24) -> 2 | Z52: =IFERROR(LARGE(Z14:AC24,1),"") ->  | AA52: =VLOOKUP(Z52,AA4:AE26,4,FALSE) ->  | AB52: =VLOOKUP(AA52,AB4:AE26,4,FALSE) ->  | AC52: =VLOOKUP(Z52,AC14:AE24,3,FALSE) -> 
A53: =IFERROR(LARGE(E4:E26,1),"") -> 64 | B53: =VLOOKUP(A53,E4:I26,3,FALSE) -> Weber Marco | D53: =COUNT(D4:F26) -> 4 | L53: =COUNT(L4:N26) -> 3 | S53: =COUNT(S4:U26) -> 0 | Z53: =COUNT(Z14:AC24) -> 0
A54: =IFERROR(LARGE(F4:F26,1),"") -> 31 | B54: =VLOOKUP(A54,F4:I26,2,FALSE) -> Müller Marcus | D54: =Z53+S53+L53+D53 -> 7
A55: =IFERROR(LARGE(L6:L24,1),"") -> 37 | B55: =VLOOKUP(A55,L6:P24,4,FALSE) -> Stachly Marec | D55: =IFERROR(LARGE(L6:O24,1),"") -> 45
A56: =IFERROR(LARGE(M6:M24,1),"") -> 41 | B56: =VLOOKUP(A56,M6:P24,3,FALSE) -> Fandrei Joel | D56: =IFERROR(VLOOKUP(D52,D4:I26,5,FALSE),"") ->  | L56: =IFERROR(VLOOKUP(L52,L6:P24,5,FALSE),"") ->  | S56: =IFERROR(VLOOKUP(S52,S10:W20,5,FALSE),"") -> 
A57: =IFERROR(LARGE(N6:N24,1),"") -> 45 | B57: =VLOOKUP(A57,N6:P24,2,FALSE) -> Fandrei Joel | L57: =L52 -> 45 | S57: =S52 ->  | Z57: =Z52 -> 
A58: =IFERROR(LARGE(S10:S20,1),"") ->  | B58: =VLOOKUP(A58,S10:W20,4,FALSE) ->  | D58: =LARGE(S10:V20,1) ->  | L58: =L52 -> 45
A59: =IFERROR(LARGE(T10:T20,1),"") ->  | B59: =VLOOKUP(A59,T10:W20,3,FALSE) -> 
A60: =IFERROR(LARGE(U10:U20,1),"") ->  | B60: =VLOOKUP(A60,U10:W20,2,FALSE) -> 
A61: =IFERROR(LARGE(Z14:Z24,1),"") ->  | B61: =VLOOKUP(A61,Z14:AE24,5,FALSE) -> 
A62: =IFERROR(LARGE(AA14:AA24,1),"") ->  | B62: =VLOOKUP(A62,AA14:AE24,4,FALSE) -> 
A63: =IFERROR(LARGE(AC14:AC24,1),"") ->  | B63: =VLOOKUP(A63,AC14:AE24,3,FALSE) -> 
A64: =IFERROR(LARGE(A52:A63,1),"") -> 64 | B64: =IFERROR(VLOOKUP(A64,A52:B63,2,FALSE),"") -> Weber Marco | D64: =LARGE(D52:D63,1) -> 
